Workbook

Sheet Table-State (hidden)
D13: RUNNING PAY BAND | E13: GRADE PAY NO | F13: (Grade Pay | G13: Mini of Pay Band | H13: Max of Grade Pay | I13: Revised GradePay Min | J13: Revised GradePay Max, | K13: Proposed Pay Band | L13: Propsed Grade Pay | M13: Existing_Pay_Band_for_7PC | P13: =C16 -> 9300-34800 | Q13: =C15 -> 4800 | R13: =C23 -> 63351 | V13: Propsed table | AA13: Acutal basis | AE13: =COUNTIF(AE15:AE38,">0") -> 1 | AH13: =$D$77 -> 14 | AK13: 27570 | AL13: =B21 -> 34800 | AM13: =IF(ISERROR(AL13),"",AL13) -> 34800 | CF13: AJMER | CG13: Arrear_Period | CL13: Existing pay | CM13: =B20 -> 27570 | CO13: HRA Rate | CP13: Basic Pay as on 1-7-16 | CQ13: HRA Rate
A14: Exisint Pay band | B14: 9300-34800 (Grade Pay Rs. 5400) | C14: PB-2 (9300-34800) Grade Pay Rs. 4800 GP NO-14 | D14: 5200-20200 | E14: 2 | F14: 1700 | G14: 5200 | H14: 20200 | I14: =G14*3 -> 15600 | J14: 60600 | K14: =CONCATENATE(I14,"-",J14) -> 15600-60600 | L14: =F14*3 -> 5100 | M14: =CONCATENATE(D14," ",$F$13," ","Rs."," ",F14,")") -> 5200-20200 (Grade Pay Rs. 1700) | P14: PAY BAND | Q14: GTARE PAY | R14: ENTRY PAY | S14: FACTOR | T14: FACTOR | U14: MIN. PAY | V14: Condt. | W14: Cal. Value | Z14: =(MAX(Z15:Z35)) -> 64000 | AA14: Condt. | AB14: Cal. Value | AE14: =INDEX($AD$15:$AD$38,MATCH($AH$13,$AH$15:$AH$38,0)) -> 65000 | AF14: =IF($AE$13>1,AE14,(MAX($AE$15:$AE$38))) -> 65000 | AG14: Existing Grade Pay | AH14: Existing Grade Pay No. | AI14: Levels | AJ14: 1 | AK14: 2 | AL14: 3 | AM14: 4 | AN14: 5 | AO14: 6 | AP14: 7 | AQ14: 8 | AR14: 9 | AS14: 10 | AT14: 11 | AU14: 12 | AV14: 13 | AW14: 14 | AX14: 15 | AY14: 16 | AZ14: 17 | BA14: 18 | BB14: 19 | BC14: 20 | BD14: 21 | BE14: 22 | BF14: 23 | BG14: 24 | BH14: 25 | BI14: 26 | BJ14: 27 | BK14: 28 | BL14: 29 | BM14: 30 | BN14: 31 | BO14: 32 | BP14: 33 | BQ14: 34 | BR14: 35 | BS14: 36 | BT14: 37 | BU14: 38 | BV14: 39 | BW14: 40 | BX14: Existing Grade Pay | BY14: Existing Grade Pay No. | BZ14: Levels | CA14: Recovery Codition | CB14: Next Level for ACP1 | CF14: ALWAR | CG14: 2016-01-01 | CH14: 1 | CI14: 9867 | CJ14: =CI14 -> 9867 | CL14: Probable DA | CM14: 1.19 | CO14: 0.2 | CP14: 75582 | CQ14: =CO14 -> 0.2
A15: Existing Grade Pay | B15: =INDEX($F$14:$F$38,MATCH(B14,$M$14:$M$38,0)) -> 5400 | C15: 4800 | D15: 5200-20200 | E15: 2 | F15: 1700 | G15: 5200 | H15: 20200 | I15: 15600 | J15: 60600 | K15: 15600-60600 | L15: 5100 | M15: 5200-20200 (Grade Pay Rs. 1700) | P15: 5200-20200 | Q15: 1700 | R15: 6900 | S15: 2.57 | T15: 2.57 | U15: 17700 | V15: =IF($P$13=P15,IF($Q$13=Q15,"YES","NO")) -> FALSE | W15: =IF(V15="YES",$R$13,0) -> 0 | X15: 1 | Y15: =SMALL(AJ15:BW15,COUNTIF(AJ15:BW15,"<"&W15)+1) -> 17700 | Z15: =IF(W15=0,0,Y15) -> 0 | AA15: =IF($C$16=AF15,IF($C$15=AG15,"YES","NO")) -> FALSE | AB15: =IF(AA15="YES",$C$23,0) -> 0 | AC15: 1 | AD15: =SMALL(AJ15:BW15,COUNTIF(AJ15:BW15,"<"&AB15)+1) -> 17700 | AE15: =IF(AB15=0,0,AD15) -> 0 | AF15: 5200-20200 | AG15: 1700 | AH15: 2 | AI15: L-1 | AJ15: =U15 -> 17700 | AK15: =ROUND((U15*1.03),-2) -> 18200 | AL15: =ROUND((AK15*1.03),-2) -> 18700 | AM15: 19300 | AN15: 19900 | AO15: 20500 | AP15: 21100 | AQ15: 21700 | AR15: 22400 | AS15: 23100 | AT15: 23800 | AU15: 24500 | AV15: 25200 | AW15: 26000 | AX15: 26800 | AY15: 27600 | AZ15: 28400 | BA15: 29300 | BB15: 30200 | BC15: 31100 | BD15: 32000 | BE15: 33000 | BF15: 34000 | BG15: 35000 | BH15: 36100 | BI15: 37200 | BJ15: 38300 | BK15: 39400 | BL15: 40600 | BM15: 41800 | BN15: 43100 | BO15: 44400 | BP15: 45700 | BQ15: 47100 | BR15: 48500 | BS15: 50000 | BT15: 51500 | BU15: 53000 | BV15: 54600 | BW15: 56200 | BX15: 1700 | BY15: 2 | BZ15: L-1 | CB15: =BZ16 -> L-2 | CF15: BANSWARA | CG15: 2016-02-01 | CH15: 2 | CI15: =CI14 -> 9867 | CJ15: =CJ14+CI15 -> 19734 | CL15: DA | CM15: =ROUND(CM13*CM14,0)+CM13 -> 60378 | CP15: 28400
A16: Pay Band | B16: =INDEX($D$14:$D$38,MATCH(B14,$M$14:$M$38,0)) -> 9300-34800 | C16: =E77 -> 9300-34800 | D16: 5200-20200 | E16: 3 | F16: 1750 | G16: 5200 | H16: 20200 | I16: 15600 | J16: 60600 | K16: 15600-60600 | L16: 5250 | M16: 5200-20200 (Grade Pay Rs. 1750) | P16: 5200-20200 | Q16: 1750 | R16: 7000 | S16: 2.57 | T16: 2.57 | U16: 17900 | V16: FALSE | W16: 0 | X16: 2 | Y16: 17900 | Z16: 0 | AA16: FALSE | AB16: 0 | AC16: 2 | AD16: 17900 | AE16: 0 | AF16: 5200-20200 | AG16: 1750 | AH16: 3 | AI16: L-2 | AJ16: 17900 | AK16: 18400 | AL16: 19000 | AM16: 19600 | AN16: 20200 | AO16: 20800 | AP16: 21400 | AQ16: 22000 | AR16: 22700 | AS16: 23400 | AT16: 24100 | AU16: 24800 | AV16: 25500 | AW16: 26300 | AX16: 27100 | AY16: 27900 | AZ16: 28700 | BA16: 29600 | BB16: 30500 | BC16: 31400 | BD16: 32300 | BE16: 33300 | BF16: 34300 | BG16: 35300 | BH16: 36400 | BI16: 37500 | BJ16: 38600 | BK16: 39800 | BL16: 41000 | BM16: 42200 | BN16: 43500 | BO16: 44800 | BP16: 46100 | BQ16: 47500 | BR16: 48900 | BS16: 50400 | BT16: 51900 | BU16: 53500 | BV16: 55100 | BW16: 56800 | BX16: 1750 | BY16: 3 | BZ16: L-2 | CA16: PP | CB16: =BZ17 -> L-3 | CF16: BARAN | CG16: 2016-03-01 | CH16: 3 | CI16: =CI15 -> 9867 | CJ16: 29601 | CP16: =IF(CH33=CH32,ROUND(CP14*CQ14,0),ROUND(CP15*CQ14,0)) -> 5680
A17: Factor | B17: =INDEX($T$15:$T$35,MATCH(B15,$Q$15:$Q$35,0)) -> 2.57 | C17: 2.57 | D17: 5200-20200 | E17: 4 | F17: 1900 | G17: 5200 | H17: 20200 | I17: 15600 | J17: 60600 | K17: 15600-60600 | L17: 5700 | M17: 5200-20200 (Grade Pay Rs. 1900) | P17: 5200-20200 | Q17: 1900 | R17: 7580 | S17: 2.57 | T17: 2.57 | U17: 18200 | V17: FALSE | W17: 0 | X17: 3 | Y17: 18200 | Z17: 0 | AA17: FALSE | AB17: 0 | AC17: 3 | AD17: 18200 | AE17: 0 | AF17: 5200-20200 | AG17: 1900 | AH17: 4 | AI17: L-3 | AJ17: 18200 | AK17: 18700 | AL17: 19300 | AM17: 19900 | AN17: 20500 | AO17: 21100 | AP17: 21700 | AQ17: 22400 | AR17: 23100 | AS17: 23800 | AT17: 24500 | AU17: 25200 | AV17: 26000 | AW17: 26800 | AX17: 27600 | AY17: 28400 | AZ17: 29300 | BA17: 30200 | BB17: 31100 | BC17: 32000 | BD17: 33000 | BE17: 34000 | BF17: 35000 | BG17: 36100 | BH17: 37200 | BI17: 38300 | BJ17: 39400 | BK17: 40600 | BL17: 41800 | BM17: 43100 | BN17: 44400 | BO17: 45700 | BP17: 47100 | BQ17: 48500 | BR17: 50000 | BS17: 51500 | BT17: 53000 | BU17: 54600 | BV17: 56200 | BW17: 57900 | BX17: 1900 | BY17: 4 | BZ17: L-3 | CA17: PP | CB17: L-4 | CF17: BARMER | CG17: 2016-04-01 | CH17: 4 | CI17: =CI16 -> 9867 | CJ17: 39468 | CL17: Desing & prepared by Pravesh -praveshbkn@gmail.com
A18: Entry Pay | B18: =INDEX($R$15:$R$35,MATCH($B$15,$Q$15:$Q$35,0)) -> 21000 | C18: =INDEX($R$15:$R$35,MATCH($C$15,$Q$15:$Q$35,0)) -> 18750 | D18: 5200-20200 | E18: 5 | F18: 2000 | G18: 5200 | H18: 20200 | I18: 15600 | J18: 60600 | K18: 15600-60600 | L18: 6000 | M18: 5200-20200 (Grade Pay Rs. 2000) | P18: 5200-20200 | Q18: 2000 | R18: 7960 | S18: 2.57 | T18: 2.57 | U18: 19200 | V18: FALSE | W18: 0 | X18: 4 | Y18: 19200 | Z18: 0 | AA18: FALSE | AB18: 0 | AC18: 4 | AD18: 19200 | AE18: 0 | AF18: 5200-20200 | AG18: 2000 | AH18: 5 | AI18: L-4 | AJ18: 19200 | AK18: 19800 | AL18: 20400 | AM18: 21000 | AN18: 21600 | AO18: 22200 | AP18: 22900 | AQ18: 23600 | AR18: 24300 | AS18: 25000 | AT18: 25800 | AU18: 26600 | AV18: 27400 | AW18: 28200 | AX18: 29000 | AY18: 29900 | AZ18: 30800 | BA18: 31700 | BB18: 32700 | BC18: 33700 | BD18: 34700 | BE18: 35700 | BF18: 36800 | BG18: 37900 | BH18: 39000 | BI18: 40200 | BJ18: 41400 | BK18: 42600 | BL18: 43900 | BM18: 45200 | BN18: 46600 | BO18: 48000 | BP18: 49400 | BQ18: 50900 | BR18: 52400 | BS18: 54000 | BT18: 55600 | BU18: 57300 | BV18: 59000 | BW18: 60800 | BX18: 2000 | BY18: 5 | BZ18: L-4 | CA18: PP | CB18: L-5 | CF18: BHARATPUR | CG18: 2016-05-01 | CH18: 5 | CI18: =CI17 -> 9867 | CJ18: 49335
A19: Minimum Pay | B19: =INDEX($U$15:$U$35,MATCH($B$15,$Q$15:$Q$35,0)) -> 33800 | C19: =INDEX($U$15:$U$35,MATCH($B$15,$Q$15:$Q$35,0)) -> 33800 | D19: 5200-20200 | E19: 9 | F19: 2400 | G19: 5200 | H19: 20200 | I19: 15600 | J19: 60600 | K19: 15600-60600 | L19: 7200 | M19: 5200-20200 (Grade Pay Rs. 2400) | P19: 5200-20200 | Q19: 2400 | R19: 9840 | S19: 2.57 | T19: 2.57 | U19: 20800 | V19: FALSE | W19: 0 | X19: 5 | Y19: 20800 | Z19: 0 | AA19: FALSE | AB19: 0 | AC19: 5 | AD19: 20800 | AE19: 0 | AF19: 5200-20200 | AG19: 2400 | AH19: 9 | AI19: L-5 | AJ19: 20800 | AK19: 21400 | AL19: 22000 | AM19: 22700 | AN19: 23400 | AO19: 24100 | AP19: 24800 | AQ19: 25500 | AR19: 26300 | AS19: 27100 | AT19: 27900 | AU19: 28700 | AV19: 29600 | AW19: 30500 | AX19: 31400 | AY19: 32300 | AZ19: 33300 | BA19: 34300 | BB19: 35300 | BC19: 36400 | BD19: 37500 | BE19: 38600 | BF19: 39800 | BG19: 41000 | BH19: 42200 | BI19: 43500 | BJ19: 44800 | BK19: 46100 | BL19: 47500 | BM19: 48900 | BN19: 50400 | BO19: 51900 | BP19: 53500 | BQ19: 55100 | BR19: 56800 | BS19: 58500 | BT19: 60300 | BU19: 62100 | BV19: 64000 | BW19: 65900 | BX19: 2400 | BY19: 9 | BZ19: L-5 | CA19: PP | CB19: L-6 | CF19: BHILWARA | CG19: 2016-06-01 | CH19: 6 | CI19: =CI18 -> 9867 | CJ19: 59202 | CM19: =ROUND((B23*1.03),-2) -> 73000
A20: Present Pay | B20: 27570 | C20: 24650 | D20: 5200-20200 | E20: 9 | F20: 2400 | G20: 5200 | H20: 20200 | I20: 15600 | J20: 60600 | K20: 15600-60600 | L20: 7200 | M20: 5200-20200 (Grade Pay Rs. 2400) | P20: 5200-20200 | Q20: 2400 | R20: 11170 | S20: 2.57 | T20: 2.57 | U20: 21500 | V20: FALSE | W20: 0 | X20: 6 | Y20: 21500 | Z20: 0 | AA20: FALSE | AB20: 0 | AC20: 6 | AD20: 21500 | AE20: 0 | AF20: 5200-20200 | AG20: 2400 | AH20: 9A | AI20: L-6 | AJ20: 21500 | AK20: 22100 | AL20: 22800 | AM20: 23500 | AN20: 24200 | AO20: 24900 | AP20: 25600 | AQ20: 26400 | AR20: 27200 | AS20: 28000 | AT20: 28800 | AU20: 29700 | AV20: 30600 | AW20: 31500 | AX20: 32400 | AY20: 33400 | AZ20: 34400 | BA20: 35400 | BB20: 36500 | BC20: 37600 | BD20: 38700 | BE20: 39900 | BF20: 41100 | BG20: 42300 | BH20: 43600 | BI20: 44900 | BJ20: 46200 | BK20: 47600 | BL20: 49000 | BM20: 50500 | BN20: 52000 | BO20: 53600 | BP20: 55200 | BQ20: 56900 | BR20: 58600 | BS20: 60400 | BT20: 62200 | BU20: 64100 | BV20: 66000 | BW20: 68000 | BX20: 2400 | BY20: 9A | BZ20: L-6 | CA20: PP | CB20: L-7 | CF20: BIKANER | CG20: 2016-07-01 | CH20: 7 | CI20: 9694 | CJ20: 68896
A21: Highest value in pb | B21: =INDEX($H$14:$H$38,MATCH($Q$13,$F$14:$F$38,0)) -> 34800 | C21: =INDEX($H$14:$H$38,MATCH($C$15,$F$14:$F$38,0)) -> 34800 | D21: 5200-20200 | E21: 9 | F21: 2400 | G21: 5200 | H21: 20200 | I21: 15600 | J21: 60600 | K21: 15600-60600 | L21: 7200 | M21: 5200-20200 (Grade Pay Rs. 2400) | P21: 9300-34800 | Q21: 3600 | R21: 12900 | S21: 2.62 | T21: 2.57 | U21: 22400 | V21: NO | W21: 0 | X21: 7 | Y21: 22400 | Z21: 0 | AA21: FALSE | AB21: 0 | AC21: 7 | AD21: 22400 | AE21: 0 | AF21: 5200-20200 | AG21: 2400 | AH21: 9B | AI21: L-7 | AJ21: 22400 | AK21: 23100 | AL21: 23800 | AM21: 24500 | AN21: 25200 | AO21: 26000 | AP21: 26800 | AQ21: 27600 | AR21: 28400 | AS21: 29300 | AT21: 30200 | AU21: 31100 | AV21: 32000 | AW21: 33000 | AX21: 34000 | AY21: 35000 | AZ21: 36100 | BA21: 37200 | BB21: 38300 | BC21: 39400 | BD21: 40600 | BE21: 41800 | BF21: 43100 | BG21: 44400 | BH21: 45700 | BI21: 47100 | BJ21: 48500 | BK21: 50000 | BL21: 51500 | BM21: =ROUND((BL21*1.03),-2) -> 53000 | BN21: 54600 | BO21: 56200 | BP21: 57900 | BQ21: 59600 | BR21: 61400 | BS21: 63200 | BT21: 65100 | BU21: 67100 | BV21: 69100 | BW21: 71200 | BX21: 2400 | BY21: 9B | BZ21: L-7 | CA21: PP | CB21: L-8 | CF21: BUNDI | CG21: 2016-08-01 | CH21: 8 | CI21: =CI20 -> 9694 | CJ21: 78590
A22: Lowest value in pb | B22: =INDEX($G$14:$G$38,MATCH($Q$13,$F$14:$F$38,0)) -> 9300 | C22: =INDEX($G$14:$G$38,MATCH($C$15,$F$14:$F$38,0)) -> 9300 | D22: 5200-20200 | E22: 10 | F22: 2800 | G22: 5200 | H22: 20200 | I22: 15600 | J22: 60600 | K22: 15600-60600 | L22: 8400 | M22: 5200-20200 (Grade Pay Rs. 2800) | P22: 9300-34800 | Q22: 4200 | R22: 14430 | S22: 2.62 | T22: 2.57 | U22: 26300 | V22: NO | W22: 0 | X22: 8 | Y22: 26300 | Z22: 0 | AA22: FALSE | AB22: 0 | AC22: 8 | AD22: 26300 | AE22: 0 | AF22: 5200-20200 | AG22: 2800 | AH22: 10 | AI22: L-8 | AJ22: 26300 | AK22: 27100 | AL22: =ROUND((AK22*1.03),-2) -> 27900 | AM22: 28700 | AN22: 29600 | AO22: 30500 | AP22: 31400 | AQ22: 32300 | AR22: 33300 | AS22: 34300 | AT22: 35300 | AU22: 36400 | AV22: 37500 | AW22: 38600 | AX22: 39800 | AY22: 41000 | AZ22: 42200 | BA22: 43500 | BB22: 44800 | BC22: 46100 | BD22: 47500 | BE22: 48900 | BF22: 50400 | BG22: 51900 | BH22: 53500 | BI22: 55100 | BJ22: 56800 | BK22: 58500 | BL22: 60300 | BM22: 62100 | BN22: 64000 | BO22: 65900 | BP22: 67900 | BQ22: 69900 | BR22: 72000 | BS22: 74200 | BT22: 76400 | BU22: 78700 | BV22: 81100 | BW22: 83500 | BX22: 2800 | BY22: 10 | BZ22: L-8 | CA22: PP | CB22: L-9 | CF22: CHITTORGARH | CG22: 2016-09-01 | CH22: 9 | CI22: =CI21 -> 9694 | CJ22: 88284 | CL22: 0 | CM22: 0
A23: Computed Value | B23: =IF(B22>B20,0,IF(B20>B21,0,ROUND($B$20*$B$17,0))) -> 70855 | C23: =J106 -> 63351 | D23: 5200-20200 | E23: 10 | F23: 2800 | G23: 5200 | H23: 20200 | I23: 15600 | J23: 60600 | K23: 15600-60600 | L23: 8400 | M23: 5200-20200 (Grade Pay Rs. 2800) | P23: 9300-34800 | Q23: 4800 | R23: 18750 | S23: 2.62 | T23: 2.57 | U23: 28700 | V23: YES | W23: 63351 | X23: 9 | Y23: 64000 | Z23: 64000 | AA23: FALSE | AB23: 0 | AC23: 9 | AD23: 28700 | AE23: 0 | AF23: 5200-20200 | AG23: 2800 | AH23: 10A | AI23: L-9 | AJ23: 28700 | AK23: 29600 | AL23: 30500 | AM23: 31400 | AN23: 32300 | AO23: 33300 | AP23: 34300 | AQ23: 35300 | AR23: 36400 | AS23: 37500 | AT23: 38600 | AU23: 39800 | AV23: 41000 | AW23: 42200 | AX23: 43500 | AY23: 44800 | AZ23: 46100 | BA23: 47500 | BB23: 48900 | BC23: 50400 | BD23: 51900 | BE23: 53500 | BF23: 55100 | BG23: 56800 | BH23: 58500 | BI23: 60300 | BJ23: 62100 | BK23: 64000 | BL23: 65900 | BM23: 67900 | BN23: 69900 | BO23: 72000 | BP23: 74200 | BQ23: 76400 | BR23: 78700 | BS23: 81100 | BT23: 83500 | BU23: 86000 | BV23: 88600 | BW23: 91300 | BX23: 2800 | BY23: 10A | BZ23: L-9 | CA23: PP | CB23: L-10 | CF23: CHURU | CG23: 2016-10-01 | CH23: 10 | CI23: =CI22 -> 9694 | CJ23: 97978 | CL23: 0.1 | CM23: 0.1
A24: Next Level | B24: =Z14 -> 64000 | C24: =AG14 -> Existing Grade Pay | D24: 9300-34800 | E24: 11 | F24: 3600 | G24: 9300 | H24: 34800 | I24: 27900 | J24: 104400 | K24: 27900-104400 | L24: 10800 | M24: 9300-34800 (Grade Pay Rs. 3600) | P24: 9300-34800 | Q24: 5400 | R24: 21000 | S24: 2.62 | T24: 2.57 | U24: 33800 | V24: NO | W24: 0 | X24: 10 | Y24: 33800 | Z24: 0 | AA24: NO | AB24: 0 | AC24: 10 | AD24: 33800 | AE24: 0 | AF24: 9300-34800 | AG24: 3600 | AH24: 11 | AI24: L-10 | AJ24: 33800 | AK24: 34800 | AL24: 35800 | AM24: 36900 | AN24: 38000 | AO24: 39100 | AP24: 40300 | AQ24: 41500 | AR24: 42700 | AS24: 44000 | AT24: 45300 | AU24: 46700 | AV24: 48100 | AW24: 49500 | AX24: 51000 | AY24: 52500 | AZ24: 54100 | BA24: 55700 | BB24: 57400 | BC24: 59100 | BD24: 60900 | BE24: 62700 | BF24: 64600 | BG24: 66500 | BH24: 68500 | BI24: 70600 | BJ24: 72700 | BK24: 74900 | BL24: 77100 | BM24: 79400 | BN24: 81800 | BO24: 84300 | BP24: 86800 | BQ24: 89400 | BR24: 92100 | BS24: 94900 | BT24: 97700 | BU24: 100600 | BV24: 103600 | BW24: 106700 | BX24: 3600 | BY24: 11 | BZ24: L-10 | CB24: L-11 | CF24: DAUSA | CG24: 2016-11-01 | CH24: 11 | CI24: =CI23 -> 9694 | CJ24: 107672 | CL24: 0.2 | CM24: 0.2
D25: 9300-34800 | E25: 12 | F25: 4200 | G25: 9300 | H25: 34800 | I25: 27900 | J25: 104400 | K25: 27900-104400 | L25: 12600 | M25: 9300-34800 (Grade Pay Rs. 4200) | P25: 15600-39100 | Q25: 5400 | R25: 21000 | S25: 2.67 | T25: 2.57 | U25: 37800 | V25: FALSE | W25: 0 | X25: 11 | Y25: 37800 | Z25: 0 | AA25: NO | AB25: 0 | AC25: 11 | AD25: 37800 | AE25: 0 | AF25: 9300-34800 | AG25: 4200 | AH25: 12 | AI25: L-11 | AJ25: 37800 | AK25: 38900 | AL25: 40100 | AM25: 41300 | AN25: 42500 | AO25: 43800 | AP25: 45100 | AQ25: 46500 | AR25: 47900 | AS25: 49300 | AT25: 50800 | AU25: 52300 | AV25: 53900 | AW25: 55500 | AX25: 57200 | AY25: 58900 | AZ25: 60700 | BA25: 62500 | BB25: 64400 | BC25: 66300 | BD25: 68300 | BE25: 70300 | BF25: 72400 | BG25: 74600 | BH25: 76800 | BI25: 79100 | BJ25: 81500 | BK25: 83900 | BL25: 86400 | BM25: 89000 | BN25: 91700 | BO25: 94500 | BP25: 97300 | BQ25: 100200 | BR25: 103200 | BS25: 106300 | BT25: 109500 | BU25: 112800 | BV25: 116200 | BW25: 119700 | BX25: 4200 | BY25: 12 | BZ25: L-11 | CB25: L-12 | CF25: DHOLPUR | CG25: 2016-12-01 | CH25: 12 | CI25: =CI24 -> 9694 | CJ25: 117366 | CL25: 0.3 | CM25: 0.3
D26: 9300-34800 | E26: 14 | F26: 4800 | G26: 9300 | H26: 34800 | I26: 27900 | J26: 104400 | K26: 27900-104400 | L26: 14400 | M26: 9300-34800 (Grade Pay Rs. 4800) | P26: 15600-39100 | Q26: 6000 | R26: 22740 | S26: 2.67 | T26: 2.57 | U26: 44300 | V26: FALSE | W26: 0 | X26: 12 | Y26: 44300 | Z26: 0 | AA26: YES | AB26: 63351 | AC26: 12 | AD26: 65000 | AE26: 65000 | AF26: 9300-34800 | AG26: 4800 | AH26: 14 | AI26: L-12 | AJ26: 44300 | AK26: 45600 | AL26: 47000 | AM26: 48400 | AN26: 49900 | AO26: 51400 | AP26: 52900 | AQ26: 54500 | AR26: 56100 | AS26: 57800 | AT26: 59500 | AU26: 61300 | AV26: 63100 | AW26: 65000 | AX26: 67000 | AY26: 69000 | AZ26: 71100 | BA26: 73200 | BB26: 75400 | BC26: 77700 | BD26: 80000 | BE26: 82400 | BF26: 84900 | BG26: 87400 | BH26: 90000 | BI26: 92700 | BJ26: 95500 | BK26: 98400 | BL26: 101400 | BM26: 104400 | BN26: 107500 | BO26: 110700 | BP26: 114000 | BQ26: 117400 | BR26: 120900 | BS26: 124500 | BT26: 128200 | BU26: 132000 | BV26: 136000 | BW26: 140100 | BX26: 4800 | BY26: 14 | BZ26: L-12 | CA26: PP | CB26: L-13 | CF26: DUNGARPUR | CL26: Cureent | CM26: 0.2
D27: 9300-34800 | E27: 15 | F27: 5400 | G27: 15600 | H27: 39100 | I27: 46800 | J27: 117300 | K27: 46800-117300 | L27: 16200 | M27: 9300-34800 (Grade Pay Rs. 5400) | P27: 15600-39100 | Q27: 6600 | R27: 25200 | S27: 2.67 | T27: 2.57 | U27: 53100 | V27: FALSE | W27: 0 | X27: 13 | Y27: 53100 | Z27: 0 | AA27: NO | AB27: 0 | AC27: 13 | AD27: 53100 | AE27: 0 | AF27: 9300-34800 | AG27: 5400 | AH27: 15 | AI27: L-13 | AJ27: 53100 | AK27: 54700 | AL27: 56300 | AM27: 58000 | AN27: 59700 | AO27: 61500 | AP27: 63300 | AQ27: 65200 | AR27: 67200 | AS27: 69200 | AT27: 71300 | AU27: 73400 | AV27: 75600 | AW27: 77900 | AX27: 80200 | AY27: 82600 | AZ27: 85100 | BA27: 87700 | BB27: 90300 | BC27: 93000 | BD27: 95800 | BE27: 98700 | BF27: 101700 | BG27: 104800 | BH27: 107900 | BI27: 111100 | BJ27: 114400 | BK27: 117800 | BL27: 121300 | BM27: 124900 | BN27: 128600 | BO27: 132500 | BP27: 136500 | BQ27: 140600 | BR27: 144800 | BS27: 149100 | BT27: 153600 | BU27: 158200 | BV27: 162900 | BW27: 167800 | BX27: 5400 | BY27: 15 | BZ27: L-13 | CB27: L-14 | CF27: GANGANAGAR | CG27: Start period | CH27: 2016-01-01 | CI27: Proposed arrear amt | CL27: Proposed | CM27: =VLOOKUP(CM26,CL22:CM25,2) -> 0.2
D28: 15600-39100 | E28: 15 | F28: 5400 | G28: 15600 | H28: 39100 | I28: 46800 | J28: 117300 | K28: 46800-117300 | L28: 16200 | M28: 15600-39100 (Grade Pay Rs. 5400) | P28: 15600-39100 | Q28: 6800 | R28: 26610 | S28: 2.67 | T28: 2.57 | U28: 56100 | V28: FALSE | W28: 0 | X28: 14 | Y28: 56100 | Z28: 0 | AA28: FALSE | AB28: 0 | AC28: 14 | AD28: 56100 | AE28: 0 | AF28: 15600-39100 | AG28: 5400 | AH28: 15 | AI28: L-14 | AJ28: 56100 | AK28: 57800 | AL28: 59500 | AM28: 61300 | AN28: 63100 | AO28: 65000 | AP28: 67000 | AQ28: 69000 | AR28: 71100 | AS28: 73200 | AT28: 75400 | AU28: 77700 | AV28: 80000 | AW28: 82400 | AX28: 84900 | AY28: 87400 | AZ28: 90000 | BA28: 92700 | BB28: 95500 | BC28: 98400 | BD28: 101400 | BE28: 104400 | BF28: 107500 | BG28: 110700 | BH28: 114000 | BI28: 117400 | BJ28: 120900 | BK28: 124500 | BL28: 128200 | BM28: =ROUND((BL28*1.03),-2) -> 132000 | BN28: 136000 | BO28: 140100 | BP28: 144300 | BQ28: 148600 | BR28: 153100 | BS28: 157700 | BT28: 162400 | BU28: 167300 | BV28: 172300 | BW28: 177500 | BX28: 5400 | BY28: 15 | BZ28: L-14 | CB28: L-15 | CF28: HANUMANGARH | CG28: End Period | CH28: 2017-02-01 | CI28: =VLOOKUP(CH29,CH14:CJ25,3) -> 
D29: 15600-39100 | E29: 16 | F29: 6000 | G29: 15600 | H29: 39100 | I29: 46800 | J29: 117300 | K29: 46800-117300 | L29: 18000 | M29: 15600-39100 (Grade Pay Rs. 6000) | P29: 15600-39100 | Q29: 7200 | R29: 28220 | S29: 2.67 | T29: 2.57 | U29: 60700 | V29: FALSE | W29: 0 | X29: 15 | Y29: 60700 | Z29: 0 | AA29: FALSE | AB29: 0 | AC29: 15 | AD29: 60700 | AE29: 0 | AF29: 15600-39100 | AG29: 6000 | AH29: 16 | AI29: L-15 | AJ29: 60700 | AK29: 62500 | AL29: =ROUND((AK29*1.03),-2) -> 64400 | AM29: 66300 | AN29: 68300 | AO29: 70300 | AP29: 72400 | AQ29: 74600 | AR29: 76800 | AS29: 79100 | AT29: 81500 | AU29: 83900 | AV29: 86400 | AW29: 89000 | AX29: 91700 | AY29: 94500 | AZ29: 97300 | BA29: 100200 | BB29: 103200 | BC29: 106300 | BD29: 109500 | BE29: 112800 | BF29: 116200 | BG29: 119700 | BH29: 123300 | BI29: 127000 | BJ29: 130800 | BK29: 134700 | BL29: 138700 | BM29: 142900 | BN29: 147200 | BO29: 151600 | BP29: 156100 | BQ29: 160800 | BR29: 165600 | BS29: 170600 | BT29: 175700 | BU29: 181000 | BV29: 186400 | BW29: 192000 | BX29: 6000 | BY29: 16 | BZ29: L-15 | CB29: L-16 | CF29: JAIPUR | CG29: Month code
D30: 15600-39100 | E30: 17 | F30: 6600 | G30: 15600 | H30: 39100 | I30: 46800 | J30: 117300 | K30: 46800-117300 | L30: 19800 | M30: 15600-39100 (Grade Pay Rs. 6600) | P30: 15600-39100 | Q30: 7600 | R30: 29920 | S30: 2.67 | T30: 2.57 | U30: 67300 | V30: FALSE | W30: 0 | X30: 16 | Y30: 67300 | Z30: 0 | AA30: FALSE | AB30: 0 | AC30: 16 | AD30: 67300 | AE30: 0 | AF30: 15600-39100 | AG30: 6600 | AH30: 17 | AI30: L-16 | AJ30: 67300 | AK30: 69300 | AL30: 71400 | AM30: 73500 | AN30: 75700 | AO30: 78000 | AP30: 80300 | AQ30: 82700 | AR30: 85200 | AS30: 87800 | AT30: 90400 | AU30: 93100 | AV30: 95900 | AW30: 98800 | AX30: 101800 | AY30: 104900 | AZ30: 108000 | BA30: 111200 | BB30: 114500 | BC30: 117900 | BD30: 121400 | BE30: 125000 | BF30: 128800 | BG30: 132700 | BH30: 136700 | BI30: 140800 | BJ30: 145000 | BK30: 149400 | BL30: 153900 | BM30: 158500 | BN30: 163300 | BO30: 168200 | BP30: 173200 | BQ30: 178400 | BR30: 183800 | BS30: 189300 | BT30: 195000 | BX30: 6600 | BY30: 17 | BZ30: L-16 | CB30: L-l 7 | CF30: JAISALMER | CI30: =CONCATENATE("Expected Arrear from"," ",TEXT(CH27,"mm/yy")," ","to"," ",TEXT(CH28,"mm/yy")," ","Rs.",CI28," ") -> 
D31: 15600-39100 | E31: 18 | F31: 6800 | G31: 15600 | H31: 39100 | I31: 46800 | J31: 117300 | K31: 46800-117300 | L31: 20400 | M31: 15600-39100 (Grade Pay Rs. 6800) | P31: 15600-39100 | Q31: 8200 | R31: 33310 | S31: 2.67 | T31: 2.57 | U31: 71000 | V31: FALSE | W31: 0 | X31: 17 | Y31: 71000 | Z31: 0 | AA31: FALSE | AB31: 0 | AC31: 17 | AD31: 71000 | AE31: 0 | AF31: 15600-39100 | AG31: 6800 | AH31: 18 | AI31: L-l 7 | AJ31: 71000 | AK31: 73100 | AL31: 75300 | AM31: 77600 | AN31: 79900 | AO31: 82300 | AP31: 84800 | AQ31: 87300 | AR31: 89900 | AS31: 92600 | AT31: 95400 | AU31: 98300 | AV31: 101200 | AW31: 104200 | AX31: 107300 | AY31: 110500 | AZ31: 113800 | BA31: 117200 | BB31: 120700 | BC31: 124300 | BD31: 128000 | BE31: 131800 | BF31: 135800 | BG31: 139900 | BH31: 144100 | BI31: 148400 | BJ31: 152900 | BK31: 157500 | BL31: 162200 | BM31: 167100 | BN31: 172100 | BO31: 177300 | BP31: 182600 | BQ31: 188100 | BR31: 193700 | BS31: 199500 | BX31: 6800 | BY31: 18 | BZ31: L-l 7 | CB31: L-18 | CF31: JALORE
D32: 15600-39100 | E32: 19 | F32: 7200 | G32: 15600 | H32: 39100 | I32: 46800 | J32: 117300 | K32: 46800-117300 | L32: 21600 | M32: 15600-39100 (Grade Pay Rs. 7200) | P32: 37400-67000 | Q32: 8700 | R32: 46100 | S32: 2.57 | T32: 2.57 | U32: 75300 | V32: FALSE | W32: 0 | X32: 18 | Y32: 75300 | Z32: 0 | AA32: FALSE | AB32: 0 | AC32: 18 | AD32: 75300 | AE32: 0 | AF32: 15600-39100 | AG32: 7200 | AH32: 19 | AI32: L-18 | AJ32: 75300 | AK32: 77600 | AL32: 79900 | AM32: 82300 | AN32: 84800 | AO32: 87300 | AP32: 89900 | AQ32: 92600 | AR32: 95400 | AS32: 98300 | AT32: 101200 | AU32: 104200 | AV32: 107300 | AW32: 110500 | AX32: 113800 | AY32: 117200 | AZ32: 120700 | BA32: 124300 | BB32: 128000 | BC32: 131800 | BD32: 135800 | BE32: 139900 | BF32: 144100 | BG32: 148400 | BH32: 152900 | BI32: 157500 | BJ32: 162200 | BK32: 167100 | BL32: 172100 | BM32: 177300 | BN32: 182600 | BO32: 188100 | BP32: 193700 | BQ32: 199500 | BX32: 7200 | BY32: 19 | BZ32: L-18 | CB32: L-19 | CF32: JHALAWAR | CH32: Existing Rate(as in 6PC) | CN32: Basic Pay as on 1-1-16
D33: 15600-39100 | E33: 20 | F33: 7600 | G33: 15600 | H33: 39100 | I33: 46800 | J33: 117300 | K33: 46800-117300 | L33: 22800 | M33: 15600-39100 (Grade Pay Rs. 7600) | P33: 37400-67000 | Q33: 8900 | R33: 48590 | S33: 2.67 | T33: 2.57 | U33: 79900 | V33: FALSE | W33: 0 | X33: 19 | Y33: 79900 | Z33: 0 | AA33: FALSE | AB33: 0 | AC33: 19 | AD33: 79900 | AE33: 0 | AF33: 15600-39100 | AG33: 7600 | AH33: 20 | AI33: L-19 | AJ33: 79900 | AK33: 82300 | AL33: 84800 | AM33: 87300 | AN33: 89900 | AO33: 92600 | AP33: 95400 | AQ33: 98300 | AR33: 101200 | AS33: 104200 | AT33: 107300 | AU33: 110500 | AV33: 113800 | AW33: 117200 | AX33: 120700 | AY33: 124300 | AZ33: 128000 | BA33: 131800 | BB33: 135800 | BC33: 139900 | BD33: 144100 | BE33: 148400 | BF33: 152900 | BG33: 157500 | BH33: 162200 | BI33: 167100 | BJ33: 172100 | BK33: 177300 | BL33: 182600 | BM33: 188100 | BN33: 193700 | BO33: 199500 | BX33: 7600 | BY33: 20 | BZ33: L-19 | CB33: L-20 | CF33: JHUNJHUNU | CG33: (a) | CH33: Proposed Rate in 7PC | CN33: 71900
D34: 15600-39100 | E34: 21 | F34: 8200 | G34: 15600 | H34: 39100 | I34: 46800 | J34: 117300 | K34: 46800-117300 | L34: 24600 | M34: 15600-39100 (Grade Pay Rs. 8200) | P34: 37400-67000 | Q34: 9500 | R34: 53600 | S34: 2.67 | T34: 2.57 | U34: 88900 | V34: FALSE | W34: 0 | X34: 20 | Y34: 88900 | Z34: 0 | AA34: FALSE | AB34: 0 | AC34: 20 | AD34: 88900 | AE34: 0 | AF34: 15600-39100 | AG34: 8200 | AH34: 21 | AI34: L-20 | AJ34: 88900 | AK34: 91600 | AL34: 94300 | AM34: 97100 | AN34: 100000 | AO34: 103000 | AP34: 106100 | AQ34: 109300 | AR34: 112600 | AS34: 116000 | AT34: 119500 | AU34: 123100 | AV34: 126800 | AW34: 130600 | AX34: 134500 | AY34: 138500 | AZ34: 142700 | BA34: 147000 | BB34: 151400 | BC34: 155900 | BD34: 160600 | BE34: 165400 | BF34: 170400 | BG34: 175500 | BH34: 180800 | BI34: 186200 | BJ34: 191800 | BK34: 197600 | BL34: 203500 | BX34: 8200 | BY34: 21 | BZ34: L-20 | CB34: L-21 | CF34: JODHPUR | CG34: (b) | CH34: Existing Rate(as in 6PC) | CN34: 27570
D35: 37400-67000 | E35: 22 | F35: 8700 | G35: 37400 | H35: 67000 | I35: 112200 | J35: 201000 | K35: 112200-201000 | L35: 26100 | M35: 37400-67000 (Grade Pay Rs. 8700) | P35: 37400-67000 | Q35: 10000 | R35: 54700 | S35: 2.72 | T35: 2.57 | U35: 123100 | V35: FALSE | W35: 0 | X35: 21 | Y35: 123100 | Z35: 0 | AA35: FALSE | AB35: 0 | AC35: 21 | AD35: 123100 | AE35: 0 | AF35: 37400-67000 | AG35: 8700 | AH35: 22 | AI35: L-21 | AJ35: 123100 | AK35: =ROUND((U35*1.03),-2) -> 126800 | AL35: 130600 | AM35: 134500 | AN35: 138500 | AO35: 142700 | AP35: 147000 | AQ35: 151400 | AR35: 155900 | AS35: 160600 | AT35: 165400 | AU35: 170400 | AV35: 175500 | AW35: 180800 | AX35: 186200 | AY35: 191800 | AZ35: 197600 | BA35: 203500 | BX35: 8700 | BY35: 22 | BZ35: L-21 | CB35: L-22 | CF35: KARAULI | CH35: HRA amount | CN35: =IF(CH33=CH32,ROUND(CN33*CO14,0),ROUND(CN34*CO14,0)) -> 5514
D36: 37400-67000 | E36: 23 | F36: 8900 | G36: 37400 | H36: 67000 | I36: 112200 | J36: 201000 | K36: 112200-201000 | L36: 26700 | M36: 37400-67000 (Grade Pay Rs. 8900) | U36: 129700 | V36: FALSE | W36: 0 | X36: 21 | Y36: 129700 | Z36: 0 | AA36: FALSE | AB36: 0 | AC36: 21 | AD36: 129700 | AE36: 0 | AF36: 37400-67000 | AG36: 8900 | AH36: 23 | AI36: L-22 | AJ36: 129700 | AK36: 133600 | AL36: 137600 | AM36: 141700 | AN36: 146000 | AO36: 150400 | AP36: 154900 | AQ36: 159500 | AR36: 164300 | AS36: 169200 | AT36: 174300 | AU36: 179500 | AV36: 184900 | AW36: 190400 | AX36: 196100 | AY36: 202000 | AZ36: 208100 | BX36: 8900 | BY36: 23 | BZ36: L-22 | CB36: L-23 | CF36: KOTA
D37: 37400-67000 | E37: 23A | F37: 9500 | G37: 37400 | H37: 67000 | I37: 112200 | J37: 201000 | K37: 112200-201000 | L37: 28500 | M37: 37400-67000 (Grade Pay Rs. 9500) | U37: 145800 | V37: FALSE | W37: 0 | X37: 21 | Y37: 145800 | Z37: 0 | AA37: FALSE | AB37: 0 | AC37: 21 | AD37: 145800 | AE37: 0 | AF37: 37400-67000 | AG37: 9500 | AH37: 23A | AI37: L-23 | AJ37: 145800 | AK37: 150200 | AL37: 154700 | AM37: 159300 | AN37: 164100 | AO37: 169000 | AP37: 174100 | AQ37: 179300 | AR37: 184700 | AS37: 190200 | AT37: 195900 | AU37: 201800 | AV37: 207900 | AW37: 214100 | BX37: 9500 | BY37: 23A | BZ37: L-23 | CB37: L-24 | CF37: NAGAUR
D38: 37400-67000 | E38: 24 | F38: 10000 | G38: 37400 | H38: 67000 | I38: 112200 | J38: 201000 | K38: 112200-201000 | L38: 30000 | M38: 37400-67000 (Grade Pay Rs. 10000) | U38: 148800 | V38: FALSE | W38: 0 | X38: 21 | Y38: 148800 | Z38: 0 | AA38: FALSE | AB38: 0 | AC38: 21 | AD38: 148800 | AE38: 0 | AF38: 37400-67000 | AG38: 10000 | AH38: 24 | AI38: L-24 | AJ38: 148800 | AK38: 153300 | AL38: 157900 | AM38: 162600 | AN38: 167500 | AO38: 172500 | AP38: 177700 | AQ38: 183000 | AR38: 188500 | AS38: 194200 | AT38: 200000 | AU38: 206000 | AV38: 212200 | AW38: 218600 | BX38: 10000 | BY38: 24 | BZ38: L-24 | CB38: =BZ38 -> L-24 | CF38: PALI
AJ39: 1 | AK39: 2 | AL39: 3 | AM39: 4 | AN39: 5 | AO39: 6 | AP39: 7 | AQ39: 8 | AR39: 9 | AS39: 10 | AT39: 11 | AU39: 12 | AV39: 13 | AW39: 14 | AX39: 15 | AY39: 16 | AZ39: 17 | BA39: 18 | BB39: 19 | BC39: 20 | BD39: 21 | BE39: 22 | BF39: 23 | BG39: 24 | BH39: 25 | BI39: 26 | BJ39: 27 | BK39: 28 | BL39: 29 | BM39: 30 | BN39: 31 | BO39: 32 | BP39: 33 | BQ39: 34 | BR39: 35 | BS39: 36 | BT39: 37 | BU39: 38 | BV39: 39 | BW39: 40 | CF39: PRATAPGARH
CF40: RAJSAMAND
AD41: Pay at Start | AG41: =INDEX($I$151:$I$167,MATCH(E137,$G$151:$G$167,0)) -> 67000 | AI41: =AG42 -> L-12 | AJ41: =INDEX(AJ15:AJ38,MATCH($AI$41,$AI$15:$AI$38,0)) -> 44300 | AK41: =INDEX(AK15:AK38,MATCH($AI$41,$AI$15:$AI$38,0)) -> 45600 | AL41: 47000 | AM41: 48400 | AN41: 49900 | AO41: 51400 | AP41: 52900 | AQ41: 54500 | AR41: 56100 | AS41: 57800 | AT41: 59500 | AU41: 61300 | AV41: 63100 | AW41: 65000 | AX41: 67000 | AY41: 69000 | AZ41: 71100 | BA41: 73200 | BB41: 75400 | BC41: 77700 | BD41: 80000 | BE41: 82400 | BF41: 84900 | BG41: 87400 | BH41: 90000 | BI41: 92700 | BJ41: 95500 | BK41: 98400 | BL41: 101400 | BM41: 104400 | BN41: 107500 | BO41: 110700 | BP41: 114000 | BQ41: 117400 | BR41: 120900 | BS41: 124500 | BT41: 128200 | BU41: 132000 | BV41: 136000 | BW41: 140100 | CF41: SAWAI MADHOPUR
AA42: If in ACP different grade pay granted insipte of next grade pay | AD42: Pay Level | AG42: L-12 | AI42: =AG43 -> L-13 | AJ42: =INDEX(AJ15:AJ38,MATCH($AI$42,$AI$15:$AI$38,0)) -> 53100 | AK42: =INDEX(AK15:AK38,MATCH($AI$42,$AI$15:$AI$38,0)) -> 54700 | AL42: 56300 | AM42: 58000 | AN42: 59700 | AO42: 61500 | AP42: 63300 | AQ42: 65200 | AR42: 67200 | AS42: 69200 | AT42: 71300 | AU42: 73400 | AV42: 75600 | AW42: 77900 | AX42: 80200 | AY42: 82600 | AZ42: 85100 | BA42: 87700 | BB42: 90300 | BC42: 93000 | BD42: 95800 | BE42: 98700 | BF42: 101700 | BG42: 104800 | BH42: 107900 | BI42: 111100 | BJ42: 114400 | BK42: 117800 | BL42: 121300 | BM42: 124900 | BN42: 128600 | BO42: 132500 | BP42: 136500 | BQ42: 140600 | BR42: 144800 | BS42: 149100 | BT42: 153600 | BU42: 158200 | BV42: 162900 | BW42: 167800 | CF42: SIKAR
AD43: Next Level | AG43: =IF(AB46="YES",AC46,INDEX($CB$15:$CB$38,MATCH($AG$42,$AI$15:$AI$38,0))) -> L-13 | CF43: SIROHI
AD44: ACP condition | AG44: =N135 -> YES | CF44: TONK
Z45: Icr condition | AA45: Next Gr.Pay | AB45: Condt. | AC45: next level | AD45: Incre in existing level | AG45: =IF($Z$46="NO",0,IF($AG$44="YES",ROUND((AG41*3%),-2),0)) -> 2000 | CF45: UDAIPUR
Z46: YES | AA46: 8200 | AB46: NO | AC46: =INDEX($CB$15:$CB$38,MATCH(AA46,$AG$15:$AG$38,0)) -> L-21 | AD46: Pay after increment | AG46: =AG41+AG45 -> 69000 | CF46: Secretariat
AD47: Pay in upgraded level | AG47: =SMALL($AJ$42:$BW$42,1+COUNTIF($AJ$42:$BW$42,"<="&AG46)) -> 69200
A50: s. No. | B50: Existing Running Pay Band | C50: Existing Grade Pay | D50: Existing Grade Pay No. | E50: Existing Pay Band | F50: Level in Pay Matrix | G50: Concenture Text for payband,grade pay and no. | H50: Recovery Condition | I50: Existing Grade Pay | J50: Existing Amount of Fixed Remuneration | K50: Amount of Fixed Remuneration per month with effect from 01.10.2017
A51: 1 | B51: 2 | C51: 3 | D51: 4 | F51: 5 | I51: 2 | J51: 4 | K51: 6
A52: 1 | B52: PB-1 (5200-20200) | C52: 1700 | D52: 2 | E52: 5200-20200 | F52: L-1 | G52: =CONCATENATE(B52," ","Grade Pay"," ","Rs."," ",C52," ","GP NO-",D52," ","") -> PB-1 (5200-20200) Grade Pay Rs. 1700 GP NO-2 | H52: =IF(CA15="","",CA15) ->  | I52: 1700 | J52: 6670 | K52: 12400 | L52: Existing Amount of Fixed Remuneration | P52: 13200 | T52: Employee_Type
A53: 2 | B53: PB-1 (5200-20200) | C53: 1750 | D53: 3 | E53: =E52 -> 5200-20200 | F53: L-2 | G53: PB-1 (5200-20200) Grade Pay Rs. 1750 GP NO-3 | H53: PP | I53: 1750 | J53: 7000 | K53: 12600 | L53: Existing Grade Pay | P53: 3600 | T53: Regular
A54: 3 | B54: PB-1 (5200-20200) | C54: 1900 | D54: 4 | E54: 5200-20200 | F54: L-3 | G54: PB-1 (5200-20200) Grade Pay Rs. 1900 GP NO-4 | H54: PP | I54: 1900 | J54: 7400 | K54: 12800 | L54: Existing Grade Pay No. | P54: 11 | T54: Pensioner
A55: 4 | B55: PB-1 (5200-20200) | C55: 2000 | D55: 5 | E55: 5200-20200 | F55: L-4 | G55: PB-1 (5200-20200) Grade Pay Rs. 2000 GP NO-5 | H55: PP | I55: 2000 | J55: 7790 | K55: 13500 | L55: Existing Pay Band | P55: 9300-34800 | T55: Probationer
A56: 5 | B56: PB-1 (5200-20200) | C56: 2400 | D56: 9 | E56: 5200-20200 | F56: L-5 | G56: PB-1 (5200-20200) Grade Pay Rs. 2400 GP NO-9 | H56: PP | I56: 2400 | J56: 8910 | K56: 14600
A57: 6 | B57: PB-1 (5200-20200) | C57: 2400 | D57: 9A | E57: 5200-20200 | F57: L-6 | G57: PB-1 (5200-20200) Grade Pay Rs. 2400 GP NO-9A | H57: PP | I57: 2400 | J57: 8910 | K57: 15100 | L57: New amount of fixed reuneration | P57: 23700
A58: 7 | B58: PB-1 (5200-20200) | C58: 2400 | D58: 9B | E58: 5200-20200 | F58: L-7 | G58: PB-1 (5200-20200) Grade Pay Rs. 2400 GP NO-9B | H58: PP | I58: 2400 | J58: 8910 | K58: 15700 | L58: Level in Pay Matrix | P58: L-10
A59: 8 | B59: PB-1 (5200-20200) | C59: 2800 | D59: 10 | E59: 5200-20200 | F59: L-8 | G59: PB-1 (5200-20200) Grade Pay Rs. 2800 GP NO-10 | H59: PP | I59: 2800 | J59: 11820 | K59: 18500
A60: 9 | B60: PB-1 (5200-20200) | C60: 2800 | D60: 10A | E60: 5200-20200 | F60: L-9 | G60: PB-1 (5200-20200) Grade Pay Rs. 2800 GP NO-10A | H60: PP | I60: 2800 | J60: 11820 | K60: 20100
A61: 10 | B61: PB-2 (9300-34800) | C61: 3600 | D61: 11 | E61: 9300-34800 | F61: L-10 | G61: PB-2 (9300-34800) Grade Pay Rs. 3600 GP NO-11 | I61: 3600 | J61: 13200 | K61: 23700
A62: 11 | B62: PB-2 (9300-34800) | C62: 4200 | D62: 12 | E62: =E61 -> 9300-34800 | F62: L-11 | G62: PB-2 (9300-34800) Grade Pay Rs. 4200 GP NO-12 | I62: 4200 | J62: 14660 | K62: 26500
A63: 12 | B63: PB-2 (9300-34800) | C63: 4800 | D63: 14 | E63: =E62 -> 9300-34800 | F63: L-12 | G63: PB-2 (9300-34800) Grade Pay Rs. 4800 GP NO-14 | H63: PP | I63: 4800 | J63: 17230 | K63: 31100
A64: 13 | B64: PB-2 (9300-34800) | C64: 5400 | D64: 15 | E64: =E63 -> 9300-34800 | F64: L-13 | G64: PB-2 (9300-34800) Grade Pay Rs. 5400 GP NO-15 | I64: N.A. | J64: NA. | K64: NA.
A65: 14 | B65: PB-3 (15600-39100) | C65: 5400 | D65: 15 | E65: 15600-39100 | F65: L-14 | G65: PB-3 (15600-39100) Grade Pay Rs. 5400 GP NO-15 | I65: 5400 | J65: 22180 | K65: 39300
A66: 15 | B66: PB-3 (15600-39100) | C66: 6000 | D66: 16 | E66: =E65 -> 15600-39100 | F66: L-15 | G66: PB-3 (15600-39100) Grade Pay Rs. 6000 GP NO-16 | I66: 6000 | J66: 24030 | K66: 42500
A67: 16 | B67: PB-3 (15600-39100) | C67: 6600 | D67: 17 | E67: 15600-39100 | F67: L-16 | G67: PB-3 (15600-39100) Grade Pay Rs. 6600 GP NO-17 | I67: 6600 | J67: 26670 | K67: 47200
A68: 17 | B68: PB-3 (15600-39100) | C68: 6800 | D68: 18 | E68: 15600-39100 | F68: L-17 | G68: PB-3 (15600-39100) Grade Pay Rs. 6800 GP NO-18 | I68: 6800 | J68: 28120 | K68: 49700
A69: 18 | B69: PB-3 (15600-39100) | C69: 7200 | D69: 19 | E69: 15600-39100 | F69: L-18 | G69: PB-3 (15600-39100) Grade Pay Rs. 7200 GP NO-19 | I69: 7200 | J69: 29840 | K69: 52800
A70: 19 | B70: PB-3 (15600-39100) | C70: 7600 | D70: 20 | E70: 15600-39100 | F70: L-19 | G70: PB-3 (15600-39100) Grade Pay Rs. 7600 GP NO-20 | I70: 7600 | J70: 31620 | K70: 56000
A71: 20 | B71: PB-3 (15600-39100) | C71: 8200 | D71: 21 | E71: 15600-39100 | F71: L-20 | G71: PB-3 (15600-39100) Grade Pay Rs. 8200 GP NO-21 | I71: 8200 | J71: 35180 | K71: 62300
A72: 21 | B72: PB-4 (37400-67000) | C72: 8700 | D72: 22 | E72: 37400-67000 | F72: L-21 | G72: PB-4 (37400-67000) Grade Pay Rs. 8700 GP NO-22 | I72: 8700 | J72: 48710 | K72: 86200
A73: 22 | B73: PB-4 (37400-67000) | C73: 8900 | D73: 23 | E73: =E72 -> 37400-67000 | F73: L-22 | G73: PB-4 (37400-67000) Grade Pay Rs. 8900 GP NO-23 | I73: 8900 | J73: 51350 | K73: 90800
A74: 23 | B74: PB-4 (37400-67000) | C74: 9500 | D74: 23A | E74: =E73 -> 37400-67000 | F74: L-23 | G74: PB-4 (37400-67000) Grade Pay Rs. 9500 GP NO-23A | I74: 9500 | J74: 54120 | K74: 102100
A75: 24 | B75: PB-4 (37400-67000) | C75: 10000 | D75: 24 | E75: =E74 -> 37400-67000 | F75: L-24 | G75: PB-4 (37400-67000) Grade Pay Rs. 10000 GP NO-24 | I75: 10000 | J75: 57820 | K75: 104200
B76: Output
A77: Pensioner | B77: PB-2 (9300-34800) Grade Pay Rs. 4800 GP NO-14 | C77: 4800 | D77: 14 | E77: 9300-34800 | G77: L-12
I78: =ISERROR(MATCH(P52,J52:J75,0)) -> FALSE
B80: Option | C80: 647805 | F80: CODE | G80: VALUE | H80: Input Value
B81: hereby elect the revised pay structure with effect from 1st January, 2016 | F81: A | G81: DATE | H81: 2016-01-02 | I81: =IF($F$85=F81,$C$87,$C$88) -> √
B82: hereby elect to the date of my next increment/the date of my subsequent increment raising my pay to Rs. | F82: B | G82: AMOUNT | H82: =H81 -> 2016-01-02 | I82: =IF($F$85=F82,$C$87,$C$88) -> X
B83: the date of my subsequent increment raising my pay to Rs. | F83: C | G83: PAY SCALE | H83: =H82 -> 2016-01-02 | I83: =IF($F$85=F83,$C$87,$C$88) -> X
B84: 1 vacate or cease to draw pay in the existing Pay structure/the date of my promotion/upgradation to the post of__. | F84: D | H84: =H83 -> 2016-01-02 | I84: =IF($F$85=F84,$C$87,$C$88) -> X
B85: hereby elect the revised pay structure with effect from 1st January, 2016 | F85: A | G85: =INDEX($F$159:$F$163,MATCH($A$165,$A$159:$A$163,0)) -> 43647 | H85: 42371 | I85: √
B87: YES | C87: √
C88: X
B90: Calculation of Personal Pay
B91: Existing Basic Pay | C91: Revised Basic Pay | D91: D.A. Rate | E91: Difference | F91: Rec. condt. | G91: PP apply
B92: 24650 | C92: 0 | D92: 1.25 | E92: =IF(F92="NO",0,IF(C92=0,0,IF(G92="",0,IF(B92=C92,0,B92+ROUND(B92*D92,0)-(C92+ROUND(C92*D92,0)))))) -> 0 | F92: NO | G92: =INDEX($H$52:$H$75,MATCH($C$77,$C$52:$C$75,0)) -> PP
B93: Calculation of Personal Pay | C93: 0 | D93: Final value | E93: =ABS(E92) -> 0 | F93: 0
B94: Text message | C94: The difference of Rs.
C95: shall be Personal Pay and which is to be absorbed in future increases in Pay (as per FD order no. F.14(1)FD/Rules/2013 dt. 09-12-17)
B96: Message 1 | C96: =CONCATENATE(C94," ",F93," ",C95) -> The difference of Rs. 0 shall be Personal Pay and which is to be absorbed in future increases in Pay (as per FD order no. F.14(1)FD/Rules/2013 dt. 09-12-17)
B97: Message 2 | C97: ---N.A.----
B98: Final message | C98: =IF(G92="PP",C96,"") -> The difference of Rs. 0 shall be Personal Pay and which is to be absorbed in future increases in Pay (as per FD order no. F.14(1)FD/Rules/2013 dt. 09-12-17)
C99: =IF(E92>0,C98,IF($C$97="---N.A.----",$C$97,$E$92)) -> ---N.A.----
B100: 19bmngr5GYTrBPCJQiTYDdyHhqRjA7YGsi | C100: 19bmngr5GYTrBPCJQiTYDdyHhqRjA7YGsi
B101: 16.18.1.22.5.19.8√97263.0458756048 | C101: 16.18.1.22.5.19.8√97263.0458756048 | E101: =IF(B101=C101,0,1) -> 0
A102: AMOUNT OF FIXED REMUNEREATION FOR PROBATIONER-TRAINEE | I102: Treatment of NPA
I103: Condition | J103: Basic Pay | K103: NPS | L103: DA on NPS | M103: Pay
A104: S.No. | B104: Existing Grade Pay | C104: Existing Grade Pay No. | D104: Existing Amount of Fixed Remuneration | E104: Corresponding Level | F104: Amount of Fixed Remuneration per month with effect from 01.10.2017 | G104: Remarks | I104: NO | J104: 24650 | K104: =IF(I104="YES",ROUND(J104*25%,0),0) -> 0 | L104: =ROUND(K104*125%,0) -> 0
A105: 1 | B105: 2 | C105: 3 | D105: 4 | E105: 5 | F105: 6 | G105: 7 | I105: Multipy factor | J105: =ROUND(J104*2.57,0) -> 63351
A106: 1 | B106: 1700 | C106: 2 | D106: 6670 | E106: L-1 | F106: 12400 | I106: Revised pay | J106: =IF(K104=0,J105,ROUNDUP(SUM(J105+L104),-1)) -> 63351
A107: 2 | B107: 1750 | C107: 3 | D107: 7000 | E107: L-2 | F107: 12600 | I107: Pay in matrix | J107: 65000
A108: 3 | B108: 1900 | C108: 4 | D108: 7400 | E108: L-3 | F108: 12800 | I108: Message 1 | J108: Amount arrived at by multiplying basic pay as at SI.No. 5{A) by 2.57 (rounded in Rs.)
A109: 4 | B109: 2000 | C109: 5 | D109: 7790 | E109: L-4 | F109: 13500 | I109: Message 2 | J109: =CONCATENATE("(","including DA @ 125% on NPA amt."," ",K104," ","Rs.",L104," ",")") -> (including DA @ 125% on NPA amt. 0 Rs.0 )
A110: 5 | B110: 2400 | C110: 9 | D110: 8910 | E110: L-5 | F110: 14600 | I110: Message 3 | J110: =CONCATENATE(J108," ",J109) -> Amount arrived at by multiplying basic pay as at SI.No. 5{A) by 2.57 (rounded in Rs.) (including DA @ 125% on NPA amt. 0 Rs.0 )
A111: 6 | B111: 2400 | C111: 9A | D111: 8910 | E111: L-6 | F111: 15100 | I111: Final message | J111: =IF($I$104="YES",J110,J108) -> Amount arrived at by multiplying basic pay as at SI.No. 5{A) by 2.57 (rounded in Rs.)
A112: 7 | B112: 2400 | C112: 9B | D112: 8910 | E112: L-7 | F112: 15700
A113: 8 | B113: 2800 | C113: 10 | D113: 11820 | E113: L-8 | F113: 18500 | I113: Revsied Pay in 7PC
A114: 9 | B114: 2800 | C114: 10A | D114: 11820 | E114: L-9 | F114: 20100 | I114: Pay in matrix | J114: =J107 -> 65000
A115: 10 | B115: 3600 | C115: 11 | D115: 13200 | E115: L-10 | F115: 23700 | I115: Existing NPA | J115: =K104 -> 0
A116: 11 | B116: 4200 | C116: 12 | D116: 14660 | E116: L-11 | F116: 26500 | I116: Final Pay | J116: =SUM(J114:J115) -> 65000
A117: 12 | B117: 4800 | C117: 14 | D117: 17230 | E117: L-12 | F117: 31100 | I117: Message 1 | J117: Revised emoluments as at SI. No.8
A118: 13 | B118: 5400 | C118: 15 | D118: 22180 | E118: L-14 | F118: 39300 | I118: Message 2 | J118: =CONCATENATE("(","including pre-revised Non Practicing Allowance Rs."," ",J115,")"," ","i.e."," ","Rs.",J114,"+","Rs.",J115,"=","Rs.",J116,")") -> (including pre-revised Non Practicing Allowance Rs. 0) i.e. Rs.65000+Rs.0=Rs.65000)
A119: 14 | B119: 6000 | C119: 16 | D119: 24030 | E119: L-15 | F119: 42500 | I119: Message 3 | J119: =CONCATENATE(J117," ",J118) -> Revised emoluments as at SI. No.8 (including pre-revised Non Practicing Allowance Rs. 0) i.e. Rs.65000+Rs.0=Rs.65000)
A120: 15 | B120: 6600 | C120: 17 | D120: 26670 | E120: L-16 | F120: 47200 | I120: Final message | J120: =IF($I$104="YES",J119,J117) -> Revised emoluments as at SI. No.8
A121: 16 | B121: 6800 | C121: 18 | D121: 28120 | E121: L-17 | F121: 49700
A122: 17 | B122: 7200 | C122: 19 | D122: 29840 | E122: L-18 | F122: 52800
A123: 18 | B123: 7600 | C123: 20 | D123: 31620 | E123: L-19 | F123: 56000
A124: 19 | B124: 8200 | C124: 21 | D124: 35180 | E124: L-20 | F124: 62300
A125: 20 | B125: 8700 | C125: 22 | D125: 48710 | E125: L-21 | F125: 86200 | H125: =INDEX(I151:I167,COUNT(I151:I167)) -> 0
A126: 21 | B126: 8900 | C126: 23 | D126: 51350 | E126: L-22 | F126: 90800 | H126: {=INDEX(array,SMALL(IF(vals=val,ROW(vals)-ROW(INDEX(vals,1,1))+1),nth))}
A127: 22 | B127: 9500 | C127: 23A | D127: 54120 | E127: L-2 3 | F127: 102100
A128: 23 | B128: 10000 | C128: 24 | D128: 57820 | E128: L-24 | F128: 104200 | H128: =VLOOKUP(L135,$G$151:$G$167,1,TRUE) -> 2017-04-16
B130: Minimum Six month servicecondition | D130: No of days
B131: Condition | C131: YES | D131: =EDATE(B134,6) -> 2016-07-02 | E131: =D131 -> 2016-07-02
B133: =YEAR(B134) -> 2016 | C133: =IF(B133=2016,A137,IF(B133=2017,A138,A139)) -> 2016-07-01 | G133: 2017-07-01 | H133: 2018-07-01 | I133: =IF(F137="YES",H133,G133) -> 2018-07-01 | J133: 2019-07-01
A134: Option in VII pay | B134: 2016-01-02 | C134: Add-6 month condt. | D134: =IF($C$131="YES",$B$134,EDATE(B134,6)) -> 2016-01-02 | E134: First Incr. Start | F134: =LARGE($A$137:$A$139,COUNTIF($A$137:$A$139,">="&$D$134)) -> 2016-07-01 | G134: Increment start date | J134: =F134 -> 2016-07-01 | K134: Code | L134: ACP date | M134: ACP CONDT | N134: Condt. | O134: Code | Q134: Pay at Start | T134: =AG41 -> 67000
A135: Employee code | B135: YEAR | C135: Condition | D135: ACP/PROMOTION STATUS | G135: Increment end date | J135: =IF($B$147="Pensioner",J133,I133) -> 2019-07-01 | K135: A | L135: =IF(F137="YES",E137,"") -> 2017-04-16 | M135: =IF(J134=L135,"NO","YES") -> YES | N135: =F137 -> YES | O135: 1 | Q135: Pay Level | T135: =AG42 -> L-12
A136: 647805 | B136: 2016 | C136: YES | D136: Type | E136: Effective Date | F136: Condition | G136: Base Pay | J136: 27570 | K136: B | L136: =IF(F138="YES",E138,"") ->  | M136: 2017-07-01 | N136: =F138 -> 0 | O136: 2 | Q136: Next Level | T136: L-13
A137: 2016-07-01 | B137: 2017 | C137: YES | D137: ACP | E137: 2017-04-16 | F137: YES | G137: Increment Rate | J137: 0.03 | K137: C | L137: Base G.Pay | M137: =IF(D150<M136,"YES","NO") -> NO | Q137: ACP condition | T137: YES
A138: 2017-07-01 | D138: 0 | E138: 00:00:00 | F138: 0 | G138: BASE DATE FOR START POINT | J138: =IF(N135="YES",IF(L135<=J134,L135,J134)) -> 2016-07-01 | K138: =IF(J138=FALSE,J134,J138) -> 2016-07-01 | Q138: Incre in existing level | T138: 2000
A139: 2018-07-01
A140: =INDEX($B$140:$B$143,MATCH(SMALL(COUNTIF($B$140:$B$143,"<"&$B$140:$B$143),ROW(1:1)),COUNTIF($B$140:$B$143,"<"&$B$140:$B$143),0)) -> 2016-07-01 | B140: 2016-07-01 | C140: =C136 -> YES | D140: =INDEX($B$140:$B$143,MATCH(ROWS($D$139:D139),COUNTIF($B$140:$B$143,"<="&$B$140:$B$143),0)) -> 2016-07-01 | E140: =INDEX($C$140:$C$143,MATCH(D140,$B$140:$B$143,0)) -> YES | F140: =IFERROR(E140,"") -> YES | G140: Text message for Incr order | I140: =CONCATENATE("Details of"," ",D137," ","between ",TEXT(J134,"dd/mm/yyyy")," ","to"," ",TEXT(G133,"dd/mm/yyyy")) -> Details of ACP between 01/07/2016 to 01/07/2017 | N140: PP amt | Q140: Pay after increment | T140: =AG46 -> 69000
A141: =INDEX($B$140:$B$143,MATCH(SMALL(COUNTIF($B$140:$B$143,"<"&$B$140:$B$143),ROW(2:2)),COUNTIF($B$140:$B$143,"<"&$B$140:$B$143),0)) -> 2016-07-01 | B141: 2017-07-01 | C141: =C137 -> YES | D141: =INDEX($B$140:$B$143,MATCH(ROWS($D$139:D140),COUNTIF($B$140:$B$143,"<="&$B$140:$B$143),0)) -> 2017-04-16 | E141: =INDEX($C$140:$C$143,MATCH(D141,$B$140:$B$143,0)) -> YES | F141: YES | G141: Due | H141: Exist. Pay Level | I141: New Pay Level | J141: Existing Pay | K141: Incre. Amt. | L141: Pay after Incr. | N141: ---N.A.---- | Q141: Pay in upgraded level | T141: =AG47 -> 69200
A142: =INDEX($B$140:$B$143,MATCH(SMALL(COUNTIF($B$140:$B$143,"<"&$B$140:$B$143),ROW(3:3)),COUNTIF($B$140:$B$143,"<"&$B$140:$B$143),0)) -> 2017-04-16 | B142: =IF(C142="YES",E137,"") -> 2017-04-16 | C142: =IF(F137="YES",F137,"") -> YES | D142: =INDEX($B$140:$B$143,MATCH(ROWS($D$139:D141),COUNTIF($B$140:$B$143,"<="&$B$140:$B$143),0)) -> 2017-07-01 | E142: YES | F142: YES | G142: =CONCATENATE(D137," ","due date") -> ACP due date | H142: =T135 -> L-12 | I142: =T136 -> L-13 | J142: =T134 -> 67000 | K142: =T138 -> 2000 | L142: =T141 -> 69200
A143: =INDEX($B$140:$B$143,MATCH(SMALL(COUNTIF($B$140:$B$143,"<"&$B$140:$B$143),ROW(4:4)),COUNTIF($B$140:$B$143,"<"&$B$140:$B$143),0)) -> 2017-07-01 | B143: =IF(C143="YES",E138,"") ->  | C143: =IF(F138="YES",F138,"") ->  | D143: =INDEX($B$140:$B$143,MATCH(ROWS($D$139:D142),COUNTIF($B$140:$B$143,"<="&$B$140:$B$143),0)) ->  | G143: =IF($F$137="YES",G142,"") -> ACP due date | H143: =IF($F$137="YES",H142,"") -> L-12 | I143: =IF($F$137="YES",I142,"") -> L-13 | J143: =IF($F$137="YES",J142,"") -> 67000 | K143: =IF($F$137="YES",K142,"") -> 2000 | L143: 69200 | N143: =CONCATENATE("Personal Pay","(",N141,")") -> Personal Pay(---N.A.----) | AC143: 2016-07-01
A144: Text message for first increments | C144: =IF(F134-C133=0,"","Date of first incre. applicable [Rule 13(1) i.e. mini. 6 months service condition]") -> 
G145: Note shown in increment order for retirement purpose | M145: Types of pension | N145: Process condition | O145: Employee type | P145: Last Pay | Q145: Last Pay
A146: Date of service end | B146: Employee category | C146: Last increment date | E146: DATE OF RETIREMENT/SERVICE END DATE | G146: =IF($B$147="Pensioner", IF($M$146="Death","Retire(Death)date",IF($M$146="Retirement","Retirement date",IF($M$146="Voluntary","Voluntary Ret. Date","")))) -> Retire(Death)date | H146: =IF($B$147="Pensioner", IF($M$146="Death","Pay on Retire(Death)date",IF($M$146="Retirement","Pay on Retirement date",IF($M$146="Voluntary","Pay on Voluntary Ret. Date","")))) -> Pay on Retire(Death)date | J146: =IF($B$147="Pensioner", IF($M$146="Death","Revised Pay on Retire(Death)date",IF($M$146="Retirement","Revised Pay on Retirement date",IF($M$146="Voluntary","Revised Pay on Voluntary Ret. Date","")))) -> Revised Pay on Retire(Death)date | M146: Death | N146: YES | O146: Pensioner | P146: 24650 | Q146: =X168 -> 67000
A147: =E148 -> 2016-05-01 | B147: =O148 -> Pensioner | C147: =IF(B147="Pensioner",LARGE($G$151:$G$167,COUNTIF($G$151:$G$167,">="&$A$147)),MAX($G$151:$G$167)) -> 2016-07-01 | E147: 2016-05-01
C148: =LARGE($G$151:$G$167,COUNTIF($G$151:$G$167,">="&$A$147)) -> 2016-07-01 | E148: =IF($B$147="Pensioner",IF(E147=FALSE,"",E147),"") -> 2016-05-01 | G148: =IF(G146=FALSE,"",G146) -> Retire(Death)date | H148: =IF(H146=FALSE,"",H146) -> Pay on Retire(Death)date | J148: =IF(J146=FALSE,"",J146) -> Revised Pay on Retire(Death)date | M148: =IF(M146=FALSE,"",M146) -> Death | N148: =IF(N146=FALSE,"",N146) -> YES | O148: =IF(O146=FALSE,"",O146) -> Pensioner | P148: =IF($B$147="Pensioner",IF(P146=FALSE,"",P146),"") -> 24650 | Q148: =IF($B$147="Pensioner",IF(Q146=FALSE,"",Q146),"") -> 67000
T149: Start date: | U149: =J134 -> 2016-07-01 | V149: End date: | W149: =IF(J134-A139=0,F134,J135) -> 2019-07-01 | AC149: Month code | AE149: Cal date | AG149: Base Date | AH149: Final Month Code | AJ149: Final Cal Date
A150: Next Date of Increement | B150: Next Date of Increement | C150: Change Date | D150: Condition | E150: Change date after condt. | F150: Close Date | G150: Final Date for further cal. | H150: Incr. Condt. | I150: Pay at start | J150: Incr. amt | K150: Change Pay Level | L150: Change Pay Level due to ACP/Promt | M150: Grade Pay (a) | N150: GradePay (b) | O150: Adjusted PP | P150: Balance PP amt | Q150: Final Grade Pay for cal | R150: Pay at end | S150: S.N. | T150: Date_list | U150: SHORT DATE (A) | AB150: 1 | AC150: =IF(AE150="","",1) ->  | AE150: =IF(L135="","",IF(L135<AE151,L135,"")) ->  | AL150: =AC150 -> 
A151: =AA151 -> 2016-07-01 | B151: =A151 -> 2016-07-01 | D151: NO | E151: =IF(D151="YES",C151,A151) -> 2016-07-01 | F151: =J135 -> 2019-07-01 | G151: =E151 -> 2016-07-01 | H151: =F140 -> YES | I151: 65000 | J151: =IF(H151="YES",ROUND((I151*3%),-2),0) -> 2000 | K151: =IF($L$135=G151,"1",IF($L$136=G151,"2","NO")) -> NO | L151: =IF(K151="1",J151,IF(K151="2",J151,0)) -> 0 | M151: =IF(L151>0,IF($N$135="YES",IF($L$135=G151,$T$141,0))) -> FALSE | N151: =IF(M151,M151,0) -> 0 | O151: =IF($N$141="---N.A.----","--NIL--",IF($N$141>J151,J151,N141)) -> --NIL-- | P151: =IF($N$141="---N.A.----","--NIL--",$N$141-O151) -> --NIL-- | R151: =IF(N151>0,N151,I151+J151) -> 67000 | S151: 1 | T151: =U149 -> 2016-07-01 | U151: 2016-07-01 | V151: =U151 -> 2016-07-01 | W151: =IF($B$147="Pensioner",IF($C$147<G151,"N.A.",R151),R151) -> 67000 | X151: =IF(W151=FALSE,V171,W151) -> 67000 | Y151: YES | Z151: =IF(Y151="YES",V151,U151) -> 2016-07-01 | AA151: =IFERROR(Z151,"") -> 2016-07-01 | AC151: =IF(AE151="","",(MAX(AA$21:AA150)+1)) -> 8201 | AD151: 2016-07-01 | AE151: =AG151 -> 2016-07-01 | AF151: =AE151 -> 2016-07-01 | AG151: 2016-07-01 | AH151: 1 | AI151: =IF(ISNA(VLOOKUP(AC151,Z$21:AB$65,3,FALSE))," ",(VLOOKUP(AC151,Z$21:AB$65,3,FALSE))) ->  | AJ151: =IF(ISNA(VLOOKUP(AH151,AA$21:AC$65,3,FALSE))," ",(VLOOKUP(AH151,AA$21:AC$65,3,FALSE))) ->  | AK151: =AJ151 ->  | AL151: 8201
A152: =IF($K$138=$J$135,"",AA152) -> 2017-04-16 | B152: =IF(A152="","","01/07/"&(IF(MONTH(A152)<=6,YEAR(A152),(YEAR(A152)+1)))) -> 01/07/2017 | D152: NO | E152: 2017-04-16 | F152: =F151 -> 2019-07-01 | G152: =IF(G151="","",IF(F152>=E152,E152,"")) -> 2017-04-16 | H152: =F141 -> YES | I152: =R151 -> 67000 | J152: =IF(H152="YES",ROUND((I152*3%),-2),0) -> 2000 | K152: 1 | L152: =IF(K152="1",J152,IF(K152="2",J152,0)) -> 2000 | M152: =IF(L152>0,IF($N$135="YES",IF($L$135=G152,$T$141,0))) -> 69200 | N152: =IF(M152,M152,0) -> 69200 | O152: =IF(X152="---",0,IF($N$141="---N.A.----","--NIL--",IF(P151>J152,J152,P151))) -> 0 | P152: =IF($N$141="---N.A.----","--NIL--",P151-O152) -> --NIL-- | R152: =IF(AA152="",0,IF(N152>0,N152,I152+J152)) -> 69200 | S152: 2 | T152: =DATE(YEAR(T151),MONTH(T151)+12,DAY(T151)) -> 2017-07-01 | U152: 2017-04-16 | V152: =U152 -> 2017-04-16 | W152: =IF($B$147="Pensioner",IF($C$147<=G152,"---",R152),R152) -> --- | X152: --- | Y152: YES | Z152: 2017-04-16 | AA152: 2017-04-16 | AC152: =IF(AF152="","",AC151) -> 8201 | AE152: =DATE(YEAR(AE151),MONTH(AE151)+6,DAY(AE151)) -> 2017-01-01 | AF152: =IF(AE152=AE151,"",AE152) -> 2017-01-01 | AG152: =DATE(YEAR(AG151)+1,MONTH(AG151),DAY(AG151)) -> 2017-07-01 | AH152: 2 | AK152: =IF(AI152>0,AI154,AI152) ->  | AL152: 8201
A153: 2017-07-01 | B153: 01/07/2018 | D153: NO | E153: 2017-07-01 | F153: 2019-07-01 | G153: 2017-07-01 | H153: =F142 -> YES | I153: 69200 | J153: 2100 | K153: NO | L153: =IF(K153="1",J153,IF(K153="2",J153,0)) -> 0 | M153: FALSE | N153: 0 | O153: =IF(X153="---",0,IF($N$141="---N.A.----","--NIL--",IF(P152>J153,J153,P152))) -> 0 | P153: =IF($N$141="---N.A.----","--NIL--",P152-O153) -> --NIL-- | R153: =IF(AA153="",0,IF(N153>0,N153,I153+J153)) -> 71300 | S153: 3 | T153: =DATE(YEAR(T152),MONTH(T152)+12,DAY(T152)) -> 2018-07-01 | U153: 2017-07-01 | V153: 2017-07-01 | W153: =IF($B$147="Pensioner",IF($C$147<=G153,"---",R153),R153) -> --- | X153: --- | Y153: YES | Z153: 2017-07-01 | AA153: 2017-07-01 | AB153: 2 | AC153: =IF(AF153="","",MAX(AC151:AC152)) -> 8201 | AF153: =IF(AE153=AE152,"",AE153) -> 00:00:00 | AG153: =DATE(YEAR(AG152)+1,MONTH(AG152),DAY(AG152)) -> 2018-07-01 | AH153: 3 | AK153: =IF(AI153>0,AI157,AI153) ->  | AL153: 8201
A154: 2018-07-01 | B154: 01/07/2019 | D154: NO | E154: 2018-07-01 | F154: 2019-07-01 | G154: =IF(G153="","",IF(F154>=E154,E154,"")) -> 2018-07-01 | H154: =F143 ->  | I154: 71300 | J154: 0 | K154: NO | L154: 0 | M154: FALSE | N154: 0 | O154: =IF(X154="---",0,IF($N$141="---N.A.----","--NIL--",IF(P153>J154,J154,P153))) -> 0 | P154: =IF($N$141="---N.A.----","--NIL--",P153-O154) -> --NIL-- | R154: 71300 | S154: 4 | T154: 2019-07-01 | U154: 2018-07-01 | V154: 2018-07-01 | W154: --- | X154: --- | Y154: YES | Z154: 2018-07-01 | AA154: 2018-07-01 | AC154: =IF(AE154="","",(MAX(AA$21:AA153)+1)) -> 42918 | AD154: =DATE(YEAR(AD151)+1,MONTH(AD151),DAY(AD151)) -> 2017-07-01 | AE154: =DATE(YEAR(AE153),MONTH(AE153)+12,DAY(AE153)) -> 1900-12-31 | AF154: =AE154 -> 1900-12-31 | AG154: =DATE(YEAR(AG152)+1,MONTH(AG152),DAY(AG152)) -> 2018-07-01 | AH154: 4 | AK154: =IF(AI154>0,AI158,AI154) ->  | AL154: 42918
C155: =B155 ->  | D155: NO | F155: 2019-07-01 | I155: 71300 | J155: 0 | K155: 2 | L155: 0 | M155: FALSE | N155: 0 | R155: 0 | S155: 5 | T155: 2020-07-01 | W155: --- | X155: --- | Y155: YES | AC155: =IF(AF155="","",AC154) ->  | AF155: =IF(AE155=AE153,"",AE155) ->  | AG155: =DATE(YEAR(AG154)+1,MONTH(AG154),DAY(AG154)) -> 2019-07-01 | AH155: 5 | AK155: =IF(AI155>0,AI159,AI155) -> 
D156: NO | F156: 2019-07-01 | I156: 0 | J156: 0 | K156: 2 | L156: 0 | M156: FALSE | N156: 0 | R156: 0 | S156: 6 | T156: 2021-07-01 | W156: --- | X156: --- | Y156: YES | AB156: 3 | AC156: =IF(AF156="","",MAX(AC154:AC155)) -> 42918 | AF156: =IF(AE156=AE154,"",AE156) -> 00:00:00 | AG156: =DATE(YEAR(AG155)+1,MONTH(AG155),DAY(AG155)) -> 2020-07-01 | AH156: 6 | AK156: =IF(AI156>0,AI160,AI156) ->  | AL156: 42918
D157: NO | F157: 2019-07-01 | I157: 0 | J157: 0 | K157: 2 | L157: 0 | M157: FALSE | N157: 0 | R157: 0 | S157: 7 | T157: 2022-07-01 | W157: --- | X157: --- | Y157: YES | AC157: =IF(AE157="","",(MAX(AA$21:AA156)+1)) -> 43283 | AD157: =DATE(YEAR(AD154)+1,MONTH(AD154),DAY(AD154)) -> 2018-07-01 | AE157: =DATE(YEAR(AE156),MONTH(AE156)+12,DAY(AE156)) -> 1900-12-31 | AF157: =AE157 -> 1900-12-31 | AG157: =DATE(YEAR(AG155)+1,MONTH(AG155),DAY(AG155)) -> 2020-07-01 | AH157: 7 | AK157: =IF(AJ157=$AK$22,DATE(YEAR(AK155)+1,MONTH(AK155),DAY(AK155)),AJ157) ->  | AL157: 43283
D158: NO | F158: 2019-07-01 | I158: 0 | J158: 0 | K158: 2 | L158: 0 | M158: FALSE | N158: 0 | R158: 0 | S158: 8 | T158: 2023-07-01 | W158: --- | X158: --- | Y158: YES | AC158: =IF(AF158="","",AC157) ->  | AF158: =IF(AE158=AE156,"",AE158) ->  | AG158: =DATE(YEAR(AG157)+1,MONTH(AG157),DAY(AG157)) -> 2021-07-01 | AH158: 8 | AK158: =IF(AJ158=$AK$22,DATE(YEAR(AK157)+1,MONTH(AK157),DAY(AK157)),AJ158) -> 
D159: NO | F159: 2019-07-01 | I159: 0 | J159: 0 | K159: 2 | M159: FALSE | N159: 0 | R159: 0 | S159: 9 | T159: 2024-07-01 | W159: --- | X159: --- | Y159: YES | AB159: 4 | AC159: =IF(AF159="","",MAX(AC157:AC158)) -> 43283 | AF159: =IF(AE159=AE157,"",AE159) -> 00:00:00 | AG159: =DATE(YEAR(AG158)+1,MONTH(AG158),DAY(AG158)) -> 2022-07-01 | AH159: 9 | AK159: =IF(AJ159=$AK$22,DATE(YEAR(AK158)+1,MONTH(AK158),DAY(AK158)),AJ159) ->  | AL159: 43283
B160: =IF(A160="","","01/07/"&YEAR(A160)+1) ->  | D160: NO | F160: 2019-07-01 | I160: 0 | J160: 0 | K160: 2 | M160: FALSE | N160: 0 | R160: 0 | S160: 10 | T160: 2025-07-01 | W160: --- | X160: --- | Y160: YES | AC160: =IF(AE160="","",(MAX(AA$21:AA159)+1)) -> 43283 | AD160: =DATE(YEAR(AD157)+1,MONTH(AD157),DAY(AD157)) -> 2019-07-01 | AE160: =DATE(YEAR(AE159),MONTH(AE159)+12,DAY(AE159)) -> 1900-12-31 | AF160: =AE160 -> 1900-12-31 | AG160: =DATE(YEAR(AG158)+1,MONTH(AG158),DAY(AG158)) -> 2022-07-01 | AH160: 10 | AK160: =IF(AJ160=$AK$22,DATE(YEAR(AK158)+1,MONTH(AK158),DAY(AK158)),AJ160) ->  | AL160: 43283
D161: NO | F161: 2019-07-01 | I161: 0 | J161: 0 | K161: 2 | M161: FALSE | N161: 0 | R161: 0 | S161: 11 | T161: 2026-07-01 | W161: --- | X161: --- | Y161: YES | AC161: =IF(AF161="","",AC160) ->  | AE161: =IF(AND($L$135>=AE160,$L$135<=AE163),$L$135,IF(AND($L$136>=AE160,$L$136<=AE163),$L$136,IF(AND($L$137>=AE160,$L$137<=AE163),$L$137,""))) ->  | AF161: =IF(AE161=AE159,"",AE161) ->  | AG161: =DATE(YEAR(AG160)+1,MONTH(AG160),DAY(AG160)) -> 2023-07-01 | AH161: 11 | AK161: =IF(AJ161=$AK$22,DATE(YEAR(AK160)+1,MONTH(AK160),DAY(AK160)),AJ161) -> 
D162: NO | F162: 2019-07-01 | I162: 0 | J162: 0 | K162: 2 | M162: FALSE | N162: 0 | R162: 0 | S162: 12 | T162: 2027-07-01 | W162: --- | X162: --- | Y162: YES | AB162: 5 | AC162: =IF(AF162="","",MAX(AC160:AC161)) -> 43283 | AF162: =IF(AE162=AE160,"",AE162) -> 00:00:00 | AG162: =DATE(YEAR(AG161)+1,MONTH(AG161),DAY(AG161)) -> 2024-07-01 | AH162: 12 | AK162: =IF(AJ162=$AK$22,DATE(YEAR(AK161)+1,MONTH(AK161),DAY(AK161)),AJ162) ->  | AL162: 43283
D163: NO | F163: 2019-07-01 | I163: 0 | J163: 0 | K163: 2 | M163: FALSE | N163: 0 | R163: 0 | S163: 13 | T163: 2028-07-01 | W163: --- | X163: --- | Y163: YES | AC163: =IF(AE163="","",(MAX(AA$21:AA162)+1)) -> 43283 | AD163: =DATE(YEAR(AD160)+1,MONTH(AD160),DAY(AD160)) -> 2020-07-01 | AE163: =DATE(YEAR(AE162),MONTH(AE162)+12,DAY(AE162)) -> 1900-12-31 | AF163: =AE163 -> 1900-12-31 | AG163: =DATE(YEAR(AG161)+1,MONTH(AG161),DAY(AG161)) -> 2024-07-01 | AH163: 13 | AK163: =IF(AJ163=$AK$22,DATE(YEAR(AK161)+1,MONTH(AK161),DAY(AK161)),AJ163) ->  | AL163: 43283
D164: NO | F164: 2019-07-01 | I164: 0 | J164: 0 | K164: 2 | M164: FALSE | N164: 0 | R164: 0 | S164: 14 | T164: 2029-07-01 | W164: --- | X164: --- | Y164: YES | AC164: =IF(AF164="","",AC163) ->  | AF164: =IF(AE164=AE162,"",AE164) ->  | AG164: =DATE(YEAR(AG163)+1,MONTH(AG163),DAY(AG163)) -> 2025-07-01 | AH164: 14 | AK164: =IF(AJ164=$AK$22,DATE(YEAR(AK163)+1,MONTH(AK163),DAY(AK163)),AJ164) -> 
D165: NO | F165: 2019-07-01 | I165: 0 | J165: 0 | K165: 2 | M165: FALSE | N165: 0 | R165: 0 | S165: 15 | T165: 2030-07-01 | W165: --- | X165: --- | Y165: YES | AB165: 6 | AC165: =IF(AF165="","",MAX(AC163:AC164)) -> 43283 | AF165: =IF(AE165=AE163,"",AE165) -> 00:00:00 | AG165: =DATE(YEAR(AG164)+1,MONTH(AG164),DAY(AG164)) -> 2026-07-01 | AH165: 15 | AK165: =IF(AJ165=$AK$22,DATE(YEAR(AK164)+1,MONTH(AK164),DAY(AK164)),AJ165) ->  | AL165: 43283
A166: 2030-07-01 | B166: 01/07/2031 | C166: 01/07/2031 | D166: NO | E166: 2030-07-01 | F166: 2019-07-01 | I166: 0 | J166: 0 | K166: 2 | M166: FALSE | N166: 0 | R166: 0 | S166: 16 | T166: =IF(N135="YES",L135,"") -> 2017-04-16 | U166: 2030-07-01 | V166: 2030-07-01 | W166: --- | X166: --- | Y166: YES | Z166: 2030-07-01 | AA166: 2030-07-01 | AC166: =IF(AE166="","",(MAX(AA$21:AA165)+1)) -> 43283 | AD166: =DATE(YEAR(AD163)+1,MONTH(AD163),DAY(AD163)) -> 2021-07-01 | AE166: =DATE(YEAR(AE165),MONTH(AE165)+12,DAY(AE165)) -> 1900-12-31 | AF166: =AE166 -> 1900-12-31 | AG166: =DATE(YEAR(AG164)+1,MONTH(AG164),DAY(AG164)) -> 2026-07-01 | AH166: 16 | AK166: =IF(AJ166=$AK$22,DATE(YEAR(AK164)+1,MONTH(AK164),DAY(AK164)),AJ166) ->  | AL166: 43283
D167: NO | F167: 2019-07-01 | I167: 0 | J167: 0 | K167: 2 | M167: FALSE | N167: 0 | R167: 0 | S167: 17 | T167: =IF(N136="YES",L136,"") ->  | W167: --- | X167: --- | Y167: YES | AC167: =IF(AF167="","",AC166) ->  | AF167: =IF(AE167=AE165,"",AE167) ->  | AG167: =DATE(YEAR(AG166)+1,MONTH(AG166),DAY(AG166)) -> 2027-07-01 | AH167: 17 | AK167: =IF(AJ167=$AK$22,DATE(YEAR(AK166)+1,MONTH(AK166),DAY(AK166)),AJ167) -> 
X168: =MAX(X151:X167) -> 67000 | AB168: 7 | AC168: =IF(AF168="","",MAX(AC166:AC167)) -> 43283 | AF168: =IF(AE168=AE166,"",AE168) -> 00:00:00 | AG168: =DATE(YEAR(AG167)+1,MONTH(AG167),DAY(AG167)) -> 2028-07-01 | AH168: 18 | AK168: =IF(AJ168=$AK$22,DATE(YEAR(AK167)+1,MONTH(AK167),DAY(AK167)),AJ168) ->  | AL168: 43283
AC169: =IF(AE169="","",(MAX(AA$21:AA168)+1)) -> 47666 | AD169: =DATE(YEAR(AD166)+1,MONTH(AD166),DAY(AD166)) -> 2022-07-01 | AE169: =DATE(YEAR(AE168),MONTH(AE168)+12,DAY(AE168)) -> 1900-12-31 | AF169: =AE169 -> 1900-12-31 | AG169: =DATE(YEAR(AG167)+1,MONTH(AG167),DAY(AG167)) -> 2028-07-01 | AH169: =AC169 -> 47666 | AK169: =IF(AJ169=$AK$22,DATE(YEAR(AK167)+1,MONTH(AK167),DAY(AK167)),AJ169) ->  | AL169: 47666
B170: DA RATE IN VII PC | AC170: =IF(AF170="","",AC169) ->  | AF170: =IF(AE170=AE168,"",AE170) ->  | AG170: =DATE(YEAR(AG169)+1,MONTH(AG169),DAY(AG169)) -> 2029-07-01 | AK170: =IF(AJ170=$AK$22,DATE(YEAR(AK169)+1,MONTH(AK169),DAY(AK169)),AJ170) -> 
B171: 2016-01-01 | C171: 2016-12-31 | D171: 0 | AB171: 8 | AC171: =IF(AF171="","",MAX(AC169:AC170)) -> 47666 | AF171: =IF(AE171=AE169,"",AE171) -> 00:00:00 | AG171: =DATE(YEAR(AG170)+1,MONTH(AG170),DAY(AG170)) -> 2030-07-01 | AH171: 47666 | AK171: =IF(AJ171=$AK$22,DATE(YEAR(AK170)+1,MONTH(AK170),DAY(AK170)),AJ171) ->  | AL171: 47666
B172: =C171+1 -> 2017-01-01 | C172: 2017-06-30 | D172: 0.04 | AC172: =IF(AE172="","",(MAX(AA$21:AA171)+1)) -> 47666 | AD172: =DATE(YEAR(AD169)+1,MONTH(AD169),DAY(AD169)) -> 2023-07-01 | AE172: =DATE(YEAR(AE171),MONTH(AE171)+12,DAY(AE171)) -> 1900-12-31 | AF172: =AE172 -> 1900-12-31 | AG172: =DATE(YEAR(AG170)+1,MONTH(AG170),DAY(AG170)) -> 2030-07-01 | AH172: 47666 | AK172: =IF(AJ172=$AK$22,DATE(YEAR(AK170)+1,MONTH(AK170),DAY(AK170)),AJ172) ->  | AL172: 47666
B173: =C172+1 -> 2017-07-01 | D173: 0.05 | AC173: =IF(AF173="","",AC172) ->  | AF173: =IF(AE173=AE171,"",AE173) ->  | AK173: =IF(AJ173=$AK$22,DATE(YEAR(AK172)+1,MONTH(AK172),DAY(AK172)),AJ173) -> 
AB174: 9 | AC174: =IF(AF174="","",MAX(AC172:AC173)) -> 47666 | AF174: =IF(AE174=AE172,"",AE174) -> 00:00:00 | AH174: 47666 | AK174: =IF(AJ174=$AK$22,DATE(YEAR(AK173)+1,MONTH(AK173),DAY(AK173)),AJ174) ->  | AL174: 47666
AC175: =IF(AE175="","",(MAX(AA$21:AA174)+1)) -> 47666 | AD175: =DATE(YEAR(AD172)+1,MONTH(AD172),DAY(AD172)) -> 2024-07-01 | AE175: =DATE(YEAR(AE174),MONTH(AE174)+12,DAY(AE174)) -> 1900-12-31 | AF175: =AE175 -> 1900-12-31 | AH175: 47666 | AK175: =IF(AJ175=$AK$22,DATE(YEAR(AK173)+1,MONTH(AK173),DAY(AK173)),AJ175) ->  | AL175: 47666
B176: PENSION SERVICE END DATE | C176: =A147 -> 2016-05-01 | D176: =VLOOKUP($C$176,$B$171:$D$173,3) -> 0 | G176: =A147 -> 2016-05-01 | AC176: =IF(AF176="","",AC175) ->  | AF176: =IF(AE176=AE174,"",AE176) ->  | AK176: =IF(AJ176=$AK$22,DATE(YEAR(AK175)+1,MONTH(AK175),DAY(AK175)),AJ176) -> 
B177: Pension Type | C177: Family Pension | AB177: 10 | AC177: =IF(AF177="","",MAX(AC175:AC176)) -> 47666 | AF177: =IF(AE177=AE175,"",AE177) -> 00:00:00 | AH177: 47666 | AK177: =IF(AJ177=$AK$22,DATE(YEAR(AK176)+1,MONTH(AK176),DAY(AK176)),AJ177) ->  | AL177: 47666
B178: End day of service end date | C178: =EOMONTH(C176,0) -> 2016-05-31 | AC178: =IF(AE178="","",(MAX(AA$21:AA177)+1)) -> 47666 | AD178: =DATE(YEAR(AD175)+1,MONTH(AD175),DAY(AD175)) -> 2025-07-01 | AE178: =DATE(YEAR(AE177),MONTH(AE177)+12,DAY(AE177)) -> 1900-12-31 | AF178: =AE178 -> 1900-12-31 | AH178: 47666 | AK178: =IF(AJ178=$AK$22,DATE(YEAR(AK176)+1,MONTH(AK176),DAY(AK176)),AJ178) ->  | AL178: 47666
B179: Partial payment status | C179: =IF(C178>C176,"YES","NO") -> YES | AC179: =IF(AF179="","",AC178) ->  | AF179: =IF(AE179=AE177,"",AE179) ->  | AK179: =IF(AJ179=$AK$22,DATE(YEAR(AK178)+1,MONTH(AK178),DAY(AK178)),AJ179) -> 
B180: LAST DAY OF MONTH | C180: =EOMONTH(C176,-1) -> 2016-04-30 | AB180: 11 | AC180: =IF(AF180="","",MAX(AC178:AC179)) -> 47666 | AF180: =IF(AE180=AE178,"",AE180) -> 00:00:00 | AH180: 47666 | AK180: =IF(AJ180=$AK$22,DATE(YEAR(AK179)+1,MONTH(AK179),DAY(AK179)),AJ180) ->  | AL180: 47666
B181: WORKING DAY FOR SERVICE | C181: =C176-C180 -> 1 | AC181: =IF(AE181="","",(MAX(AA$21:AA180)+1)) -> 47666 | AD181: =DATE(YEAR(AD178)+1,MONTH(AD178),DAY(AD178)) -> 2026-07-01 | AE181: =DATE(YEAR(AE180),MONTH(AE180)+12,DAY(AE180)) -> 1900-12-31 | AF181: =AE181 -> 1900-12-31 | AH181: 47666 | AK181: =IF(AJ181=$AK$22,DATE(YEAR(AK179)+1,MONTH(AK179),DAY(AK179)),AJ181) ->  | AL181: 47666
B182: NO OF DAYS | C182: =DAY(EOMONTH(C176,0)) -> 31 | D182: =C182 -> 31 | AC182: =IF(AF182="","",AC181) ->  | AF182: =IF(AE182=AE180,"",AE182) ->  | AK182: =IF(AJ182=$AK$22,DATE(YEAR(AK181)+1,MONTH(AK181),DAY(AK181)),AJ182) -> 
AB183: 12 | AC183: =IF(AF183="","",MAX(AC181:AC182)) -> 47666 | AF183: =IF(AE183=AE181,"",AE183) -> 00:00:00 | AH183: 47666 | AK183: =IF(AJ183=$AK$22,DATE(YEAR(AK182)+1,MONTH(AK182),DAY(AK182)),AJ183) ->  | AL183: 47666
B184: BASIC PAY | C184: 67000 | D184: =IF($C$179="YES",ROUND(C184*$C$181/$D$182,0),C184) -> 2161 | AC184: =IF(AE184="","",(MAX(AA$21:AA183)+1)) -> 47666 | AD184: =DATE(YEAR(AD181)+1,MONTH(AD181),DAY(AD181)) -> 2027-07-01 | AE184: =DATE(YEAR(AE183),MONTH(AE183)+12,DAY(AE183)) -> 1900-12-31 | AF184: =AE184 -> 1900-12-31 | AH184: 47666 | AK184: =IF(AJ184=$AK$22,DATE(YEAR(AK182)+1,MONTH(AK182),DAY(AK182)),AJ184) ->  | AL184: 47666
B185: DA | C185: 0 | D185: =IF($C$179="YES",ROUND(C185*$C$181/$D$182,0),C185) -> 0 | AC185: =IF(AF185="","",AC184) ->  | AF185: =IF(AE185=AE183,"",AE185) ->  | AK185: =IF(AJ185=$AK$22,DATE(YEAR(AK184)+1,MONTH(AK184),DAY(AK184)),AJ185) -> 
AC186: =IF(AF186="","",MAX(AC184:AC185)) -> 47666 | AF186: =IF(AE186=AE184,"",AE186) -> 00:00:00 | AH186: 47666 | AK186: =IF(AJ186=$AK$22,DATE(YEAR(AK185)+1,MONTH(AK185),DAY(AK185)),AJ186) ->  | AL186: 47666
AC187: =IF(AE187="","",(MAX(AA$21:AA186)+1)) -> 47666 | AD187: =DATE(YEAR(AD184)+1,MONTH(AD184),DAY(AD184)) -> 2028-07-01 | AE187: =DATE(YEAR(AE186),MONTH(AE186)+12,DAY(AE186)) -> 1900-12-31 | AF187: =AE187 -> 1900-12-31 | AH187: 47666 | AK187: =IF(AJ187=$AK$22,DATE(YEAR(AK185)+1,MONTH(AK185),DAY(AK185)),AJ187) ->  | AL187: 47666
B192: Incr_Name_of_Treasury
B193: AJMER
B194: ALWAR
B195: BANSWARA
B196: BARAN
B197: BARMER
B198: BHARATPUR
B199: BHILWARA
B200: BIKANER
B201: BUNDI
B202: CHITTORGARH
B203: CHURU
B204: DAUSA
B205: DHOLPUR
B206: DUNGARPUR
B207: GANGANAGAR
B208: HANUMANGARH
B209: JAIPUR
B210: JAISALMER
B211: JALORE
B212: JHALAWAR
B213: JHUNJHUNU
B214: JODHPUR
B215: KARAULI
B216: KOTA
B217: NAGAUR
B218: PALI
B219: RAJSAMAND
B220: SAWAI MADHOPUR
B221: SIKAR
B222: SIROHI
B223: TONK
... 2 more rows

Sheet Home
A1: Design & Prepaired by Pravesh Kumar Sharma, Accountant, please call-9460100093 or write mail to praveshbkn@gmail.com for further query/error/updation/suggestion
S2: (A) Prepare Increment order in VII PC
S3: इसमें यूजर सामयिक वेतनवृद्वि का 550 कार्मिकों की संख्या तक परिकलन एवं प्रमाण पत्र का व्यूह/प्रिंट ले सकता है । इसके लिये सर्वप्रथम डीडीओ डाटा सीट में आवश्यक प्रविष्ट करनी है तथा इसके पास एम्पयोली सीट में आवश्यक प्रविष्टि करनी है एवं कन्डीशन को यस या नो को सलेक्ट करना है । शेष प्रक्रिया आटो-प्रोसेस है ।
A6: (A) Prepare Increment order in VII PC (upto 550 employee) | K6: (B) Prepare Increment order in VII PC with ACP effect
B9: DDO DATA
L10: Data Entry
S11: (B) Prepare Increment order in VII PC with following effect
B13: Employee Data | L13: View/Print Incremental Order
S14: इसमें यूजर सातवें वेतनमान में इनके प्रभाव को समाहित करते हुए सामयिक वेतनवृद्वि का परिकलन कर सकता है ।
L16: View/Print ACP order
B17: Gp Incr. Order | S17: Regular ACP
S18: Probation Period Complete in Regular Pay
S19: Probation Period Complete in Fix Pay
B20: Only those employee name and its data will be shown in Incremental order,if incremental condition is "YES" in sheet "Employee Data"… rest data will be hide in sheet 'Gp Incr. Order" | S20: Promotion after ACP benefit
C24: (C) Genernal information on Increment
B26: Key Points on Increment | I26: Important circular/ memoramdum/clearfication on FD portal
C29: (D) Utility
B31: Check Increment amount (In VI & VII Pay) | H31: View Pay Matrix (in different way) | M31: Blank copy of Increment order

Sheet Gp Incr. Order
B1: HOME | D1: ""Please don't edit in this sheet, if you want any kind of updation .. Please use sheet DDO Data & Employee Data",the macros are enable for this sheet only adjusting print purpose" | K1: HOME | N1: Employee Data
A2: =UPPER('DDO Data'!$C$4) -> DIRECTOR XXXXX...XXX, RAJASTHAN, BIKANER
A3: Periodic Salalry Increment Certificate
A4: 1 | B4: Certified that the Government servents named below have earned the prescribed periodical increments from the date cited in column 6 having been the incumbent of the posts specified not less than year from the date in column 6 after deducting period of suspension for misconduct etc. and absence on leave without pay & the case of those holding the post in officiating capacity, all other kinds of leave.
A7: 2 | B7: Certified that the Government servents named below have earned/will earn periodical increments from the date cited for reasons stated in the explanatory memo attached here to.
A9: Emp. Code | B9: Name of Incumbent | C9: Post | D9: Pay Level | E9: Date From Present Pay is being taken | F9: Date of Increment | G9: Annual Increment Amount | K9: Personal Pay
G10: Pay in the Level in the Pay Matrix | H10: Increment amount | I10: Total Basic Pay | J10: Opening Balance of P.P. under Rule 11(6) | K10: Adjusted P.P. under Rule 11(6) | L10: Balace P.P. amt
A14: 1 | B14: =A14+1 -> 2 | C14: =B14+1 -> 3 | D14: 4 | E14: 5 | F14: 6 | G14: 7 | H14: 8 | I14: 9 | J14: =I14+1 -> 10 | K14: =J14+1 -> 11 | L14: =K14+1 -> 12 | M14: Shri/Smt/……./
A15: =IF(Databackup!B3="","",Databackup!B3) -> 1 | B15: =Databackup!C3 -> PKS | C15: =Databackup!D3 -> AAO-I | D15: =Databackup!E3 -> L-13 | E15: =Databackup!F3 -> 2022-07-01 | F15: =Databackup!G3 -> 2023-07-01 | G15: =Databackup!I3 -> 82600 | H15: =Databackup!J3 -> 2500 | I15: =Databackup!K3 -> 85100 | J15: =Databackup!L3 -> 0 | K15: =Databackup!M3 ->  | L15: =IF(Databackup!N3>0,Databackup!N3,"--.--") -> --N.A.-- | M15: =CONCATENATE(B15," ","Designation"," ",C15) -> PKS Designation AAO-I
A16: =IF(Databackup!B4="","",Databackup!B4) ->  | B16: =Databackup!C4 ->  | C16: =Databackup!D4 ->  | D16: =Databackup!E4 ->  | E16: =Databackup!F4 ->  | F16: =Databackup!G4 ->  | G16: =Databackup!I4 ->  | H16: =Databackup!J4 ->  | I16: =Databackup!K4 ->  | J16: =Databackup!L4 ->  | K16: =Databackup!M4 ->  | L16: =IF(Databackup!N4>0,Databackup!N4,"--.--") ->  | M16: Designation
A17: =IF(Databackup!B5="","",Databackup!B5) ->  | B17: =Databackup!C5 ->  | C17: =Databackup!D5 ->  | D17: =Databackup!E5 ->  | E17: =Databackup!F5 ->  | F17: =Databackup!G5 ->  | G17: =Databackup!I5 ->  | H17: =Databackup!J5 ->  | I17: =Databackup!K5 ->  | J17: =Databackup!L5 ->  | K17: =Databackup!M5 ->  | L17: =IF(Databackup!N5>0,Databackup!N5,"--.--") ->  | M17: Designation
A18: =IF(Databackup!B6="","",Databackup!B6) ->  | B18: =Databackup!C6 ->  | C18: =Databackup!D6 ->  | D18: =Databackup!E6 ->  | E18: =Databackup!F6 ->  | F18: =Databackup!G6 ->  | G18: =Databackup!I6 ->  | H18: =Databackup!J6 ->  | I18: =Databackup!K6 ->  | J18: =Databackup!L6 ->  | K18: =Databackup!M6 ->  | L18: =IF(Databackup!N6>0,Databackup!N6,"--.--") ->  | M18: Designation
A19: =IF(Databackup!B7="","",Databackup!B7) ->  | B19: =Databackup!C7 ->  | C19: =Databackup!D7 ->  | D19: =Databackup!E7 ->  | E19: =Databackup!F7 ->  | F19: =Databackup!G7 ->  | G19: =Databackup!I7 ->  | H19: =Databackup!J7 ->  | I19: =Databackup!K7 ->  | J19: =Databackup!L7 ->  | K19: =Databackup!M7 ->  | L19: =IF(Databackup!N7>0,Databackup!N7,"--.--") ->  | M19: =CONCATENATE(B19," ","Designation"," ",C19) -> Designation
A20: =IF(Databackup!B8="","",Databackup!B8) ->  | B20: =Databackup!C8 ->  | C20: =Databackup!D8 ->  | D20: =Databackup!E8 ->  | E20: =Databackup!F8 ->  | F20: =Databackup!G8 ->  | G20: =Databackup!I8 ->  | H20: =Databackup!J8 ->  | I20: =Databackup!K8 ->  | J20: =Databackup!L8 ->  | K20: =Databackup!M8 ->  | L20: =IF(Databackup!N8>0,Databackup!N8,"--.--") ->  | M20: Designation
A21: =IF(Databackup!B9="","",Databackup!B9) ->  | B21: =Databackup!C9 ->  | C21: =Databackup!D9 ->  | D21: =Databackup!E9 ->  | E21: =Databackup!F9 ->  | F21: =Databackup!G9 ->  | G21: =Databackup!I9 ->  | H21: =Databackup!J9 ->  | I21: =Databackup!K9 ->  | J21: =Databackup!L9 ->  | K21: =Databackup!M9 ->  | L21: =IF(Databackup!N9>0,Databackup!N9,"--.--") ->  | M21: Designation
A22: =IF(Databackup!B10="","",Databackup!B10) ->  | B22: =Databackup!C10 ->  | C22: =Databackup!D10 ->  | D22: =Databackup!E10 ->  | E22: =Databackup!F10 ->  | F22: =Databackup!G10 ->  | G22: =Databackup!I10 ->  | H22: =Databackup!J10 ->  | I22: =Databackup!K10 ->  | J22: =Databackup!L10 ->  | K22: =Databackup!M10 ->  | L22: =IF(Databackup!N10>0,Databackup!N10,"--.--") ->  | M22: Designation
A23: =IF(Databackup!B11="","",Databackup!B11) ->  | B23: =Databackup!C11 ->  | C23: =Databackup!D11 ->  | D23: =Databackup!E11 ->  | E23: =Databackup!F11 ->  | F23: =Databackup!G11 ->  | G23: =Databackup!I11 ->  | H23: =Databackup!J11 ->  | I23: =Databackup!K11 ->  | J23: =Databackup!L11 ->  | K23: =Databackup!M11 ->  | L23: =IF(Databackup!N11>0,Databackup!N11,"--.--") ->  | M23: Designation
A24: =IF(Databackup!B12="","",Databackup!B12) ->  | B24: =Databackup!C12 ->  | C24: =Databackup!D12 ->  | D24: =Databackup!E12 ->  | E24: =Databackup!F12 ->  | F24: =Databackup!G12 ->  | G24: =Databackup!I12 ->  | H24: =Databackup!J12 ->  | I24: =Databackup!K12 ->  | J24: =Databackup!L12 ->  | K24: =Databackup!M12 ->  | L24: =IF(Databackup!N12>0,Databackup!N12,"--.--") ->  | M24: Designation
A25: =IF(Databackup!B13="","",Databackup!B13) ->  | B25: =Databackup!C13 ->  | C25: =Databackup!D13 ->  | D25: =Databackup!E13 ->  | E25: =Databackup!F13 ->  | F25: =Databackup!G13 ->  | G25: =Databackup!I13 ->  | H25: =Databackup!J13 ->  | I25: =Databackup!K13 ->  | J25: =Databackup!L13 ->  | K25: =Databackup!M13 ->  | L25: =IF(Databackup!N13>0,Databackup!N13,"--.--") ->  | M25: Designation
A26: =IF(Databackup!B14="","",Databackup!B14) ->  | B26: =Databackup!C14 ->  | C26: =Databackup!D14 ->  | D26: =Databackup!E14 ->  | E26: =Databackup!F14 ->  | F26: =Databackup!G14 ->  | G26: =Databackup!I14 ->  | H26: =Databackup!J14 ->  | I26: =Databackup!K14 ->  | J26: =Databackup!L14 ->  | K26: =Databackup!M14 ->  | L26: =IF(Databackup!N14>0,Databackup!N14,"--.--") ->  | M26: Designation
A27: =IF(Databackup!B15="","",Databackup!B15) ->  | B27: =Databackup!C15 ->  | C27: =Databackup!D15 ->  | D27: =Databackup!E15 ->  | E27: =Databackup!F15 ->  | F27: =Databackup!G15 ->  | G27: =Databackup!I15 ->  | H27: =Databackup!J15 ->  | I27: =Databackup!K15 ->  | J27: =Databackup!L15 ->  | K27: =Databackup!M15 ->  | L27: =IF(Databackup!N15>0,Databackup!N15,"--.--") ->  | M27: Designation
A28: =IF(Databackup!B16="","",Databackup!B16) ->  | B28: =Databackup!C16 ->  | C28: =Databackup!D16 ->  | D28: =Databackup!E16 ->  | E28: =Databackup!F16 ->  | F28: =Databackup!G16 ->  | G28: =Databackup!I16 ->  | H28: =Databackup!J16 ->  | I28: =Databackup!K16 ->  | J28: =Databackup!L16 ->  | K28: =Databackup!M16 ->  | L28: =IF(Databackup!N16>0,Databackup!N16,"--.--") ->  | M28: Designation
A29: =IF(Databackup!B17="","",Databackup!B17) ->  | B29: =Databackup!C17 ->  | C29: =Databackup!D17 ->  | D29: =Databackup!E17 ->  | E29: =Databackup!F17 ->  | F29: =Databackup!G17 ->  | G29: =Databackup!I17 ->  | H29: =Databackup!J17 ->  | I29: =Databackup!K17 ->  | J29: =Databackup!L17 ->  | K29: =Databackup!M17 ->  | L29: =IF(Databackup!N17>0,Databackup!N17,"--.--") ->  | M29: Designation
A30: =IF(Databackup!B18="","",Databackup!B18) ->  | B30: =Databackup!C18 ->  | C30: =Databackup!D18 ->  | D30: =Databackup!E18 ->  | E30: =Databackup!F18 ->  | F30: =Databackup!G18 ->  | G30: =Databackup!I18 ->  | H30: =Databackup!J18 ->  | I30: =Databackup!K18 ->  | J30: =Databackup!L18 ->  | K30: =Databackup!M18 ->  | L30: =IF(Databackup!N18>0,Databackup!N18,"--.--") ->  | M30: Designation
A31: =IF(Databackup!B19="","",Databackup!B19) ->  | B31: =Databackup!C19 ->  | C31: =Databackup!D19 ->  | D31: =Databackup!E19 ->  | E31: =Databackup!F19 ->  | F31: =Databackup!G19 ->  | G31: =Databackup!I19 ->  | H31: =Databackup!J19 ->  | I31: =Databackup!K19 ->  | J31: =Databackup!L19 ->  | K31: =Databackup!M19 ->  | L31: =IF(Databackup!N19>0,Databackup!N19,"--.--") ->  | M31: Designation
A32: =IF(Databackup!B20="","",Databackup!B20) ->  | B32: =Databackup!C20 ->  | C32: =Databackup!D20 ->  | D32: =Databackup!E20 ->  | E32: =Databackup!F20 ->  | F32: =Databackup!G20 ->  | G32: =Databackup!I20 ->  | H32: =Databackup!J20 ->  | I32: =Databackup!K20 ->  | J32: =Databackup!L20 ->  | K32: =Databackup!M20 ->  | L32: =IF(Databackup!N20>0,Databackup!N20,"--.--") ->  | M32: Designation
A33: =IF(Databackup!B21="","",Databackup!B21) ->  | B33: =Databackup!C21 ->  | C33: =Databackup!D21 ->  | D33: =Databackup!E21 ->  | E33: =Databackup!F21 ->  | F33: =Databackup!G21 ->  | G33: =Databackup!I21 ->  | H33: =Databackup!J21 ->  | I33: =Databackup!K21 ->  | J33: =Databackup!L21 ->  | K33: =Databackup!M21 ->  | L33: =IF(Databackup!N21>0,Databackup!N21,"--.--") ->  | M33: Designation
A34: =IF(Databackup!B22="","",Databackup!B22) ->  | B34: =Databackup!C22 ->  | C34: =Databackup!D22 ->  | D34: =Databackup!E22 ->  | E34: =Databackup!F22 ->  | F34: =Databackup!G22 ->  | G34: =Databackup!I22 ->  | H34: =Databackup!J22 ->  | I34: =Databackup!K22 ->  | J34: =Databackup!L22 ->  | K34: =Databackup!M22 ->  | L34: =IF(Databackup!N22>0,Databackup!N22,"--.--") ->  | M34: Designation
A35: =IF(Databackup!B23="","",Databackup!B23) ->  | B35: =Databackup!C23 ->  | C35: =Databackup!D23 ->  | D35: =Databackup!E23 ->  | E35: =Databackup!F23 ->  | F35: =Databackup!G23 ->  | G35: =Databackup!I23 ->  | H35: =Databackup!J23 ->  | I35: =Databackup!K23 ->  | J35: =Databackup!L23 ->  | K35: =Databackup!M23 ->  | L35: =IF(Databackup!N23>0,Databackup!N23,"--.--") ->  | M35: Designation
A36: =IF(Databackup!B24="","",Databackup!B24) ->  | B36: =Databackup!C24 ->  | C36: =Databackup!D24 ->  | D36: =Databackup!E24 ->  | E36: =Databackup!F24 ->  | F36: =Databackup!G24 ->  | G36: =Databackup!I24 ->  | H36: =Databackup!J24 ->  | I36: =Databackup!K24 ->  | J36: =Databackup!L24 ->  | K36: =Databackup!M24 ->  | L36: =IF(Databackup!N24>0,Databackup!N24,"--.--") ->  | M36: Designation
A37: =IF(Databackup!B25="","",Databackup!B25) ->  | B37: =Databackup!C25 ->  | C37: =Databackup!D25 ->  | D37: =Databackup!E25 ->  | E37: =Databackup!F25 ->  | F37: =Databackup!G25 ->  | G37: =Databackup!I25 ->  | H37: =Databackup!J25 ->  | I37: =Databackup!K25 ->  | J37: =Databackup!L25 ->  | K37: =Databackup!M25 ->  | L37: =IF(Databackup!N25>0,Databackup!N25,"--.--") ->  | M37: Designation
A38: =IF(Databackup!B26="","",Databackup!B26) ->  | B38: =Databackup!C26 ->  | C38: =Databackup!D26 ->  | D38: =Databackup!E26 ->  | E38: =Databackup!F26 ->  | F38: =Databackup!G26 ->  | G38: =Databackup!I26 ->  | H38: =Databackup!J26 ->  | I38: =Databackup!K26 ->  | J38: =Databackup!L26 ->  | K38: =Databackup!M26 ->  | L38: =IF(Databackup!N26>0,Databackup!N26,"--.--") ->  | M38: Designation
A39: =IF(Databackup!B27="","",Databackup!B27) ->  | B39: =Databackup!C27 ->  | C39: =Databackup!D27 ->  | D39: =Databackup!E27 ->  | E39: =Databackup!F27 ->  | F39: =Databackup!G27 ->  | G39: =Databackup!I27 ->  | H39: =Databackup!J27 ->  | I39: =Databackup!K27 ->  | J39: =Databackup!L27 ->  | K39: =Databackup!M27 ->  | L39: =IF(Databackup!N27>0,Databackup!N27,"--.--") ->  | M39: Designation
A40: =IF(Databackup!B28="","",Databackup!B28) ->  | B40: =Databackup!C28 ->  | C40: =Databackup!D28 ->  | D40: =Databackup!E28 ->  | E40: =Databackup!F28 ->  | F40: =Databackup!G28 ->  | G40: =Databackup!I28 ->  | H40: =Databackup!J28 ->  | I40: =Databackup!K28 ->  | J40: =Databackup!L28 ->  | K40: =Databackup!M28 ->  | L40: =IF(Databackup!N28>0,Databackup!N28,"--.--") ->  | M40: Designation
A41: =IF(Databackup!B29="","",Databackup!B29) ->  | B41: =Databackup!C29 ->  | C41: =Databackup!D29 ->  | D41: =Databackup!E29 ->  | E41: =Databackup!F29 ->  | F41: =Databackup!G29 ->  | G41: =Databackup!I29 ->  | H41: =Databackup!J29 ->  | I41: =Databackup!K29 ->  | J41: =Databackup!L29 ->  | K41: =Databackup!M29 ->  | L41: =IF(Databackup!N29>0,Databackup!N29,"--.--") ->  | M41: Designation
A42: =IF(Databackup!B30="","",Databackup!B30) ->  | B42: =Databackup!C30 ->  | C42: =Databackup!D30 ->  | D42: =Databackup!E30 ->  | E42: =Databackup!F30 ->  | F42: =Databackup!G30 ->  | G42: =Databackup!I30 ->  | H42: =Databackup!J30 ->  | I42: =Databackup!K30 ->  | J42: =Databackup!L30 ->  | K42: =Databackup!M30 ->  | L42: =IF(Databackup!N30>0,Databackup!N30,"--.--") ->  | M42: Designation
A43: =IF(Databackup!B31="","",Databackup!B31) ->  | B43: =Databackup!C31 ->  | C43: =Databackup!D31 ->  | D43: =Databackup!E31 ->  | E43: =Databackup!F31 ->  | F43: =Databackup!G31 ->  | G43: =Databackup!I31 ->  | H43: =Databackup!J31 ->  | I43: =Databackup!K31 ->  | J43: =Databackup!L31 ->  | K43: =Databackup!M31 ->  | L43: =IF(Databackup!N31>0,Databackup!N31,"--.--") ->  | M43: Designation
A44: =IF(Databackup!B32="","",Databackup!B32) ->  | B44: =Databackup!C32 ->  | C44: =Databackup!D32 ->  | D44: =Databackup!E32 ->  | E44: =Databackup!F32 ->  | F44: =Databackup!G32 ->  | G44: =Databackup!I32 ->  | H44: =Databackup!J32 ->  | I44: =Databackup!K32 ->  | J44: =Databackup!L32 ->  | K44: =Databackup!M32 ->  | L44: =IF(Databackup!N32>0,Databackup!N32,"--.--") ->  | M44: Designation
A45: =IF(Databackup!B33="","",Databackup!B33) ->  | B45: =Databackup!C33 ->  | C45: =Databackup!D33 ->  | D45: =Databackup!E33 ->  | E45: =Databackup!F33 ->  | F45: =Databackup!G33 ->  | G45: =Databackup!I33 ->  | H45: =Databackup!J33 ->  | I45: =Databackup!K33 ->  | J45: =Databackup!L33 ->  | K45: =Databackup!M33 ->  | L45: =IF(Databackup!N33>0,Databackup!N33,"--.--") ->  | M45: Designation
A46: =IF(Databackup!B34="","",Databackup!B34) ->  | B46: =Databackup!C34 ->  | C46: =Databackup!D34 ->  | D46: =Databackup!E34 ->  | E46: =Databackup!F34 ->  | F46: =Databackup!G34 ->  | G46: =Databackup!I34 ->  | H46: =Databackup!J34 ->  | I46: =Databackup!K34 ->  | J46: =Databackup!L34 ->  | K46: =Databackup!M34 ->  | L46: =IF(Databackup!N34>0,Databackup!N34,"--.--") ->  | M46: Designation
A47: =IF(Databackup!B35="","",Databackup!B35) ->  | B47: =Databackup!C35 ->  | C47: =Databackup!D35 ->  | D47: =Databackup!E35 ->  | E47: =Databackup!F35 ->  | F47: =Databackup!G35 ->  | G47: =Databackup!I35 ->  | H47: =Databackup!J35 ->  | I47: =Databackup!K35 ->  | J47: =Databackup!L35 ->  | K47: =Databackup!M35 ->  | L47: =IF(Databackup!N35>0,Databackup!N35,"--.--") ->  | M47: Designation
A48: =IF(Databackup!B36="","",Databackup!B36) ->  | B48: =Databackup!C36 ->  | C48: =Databackup!D36 ->  | D48: =Databackup!E36 ->  | E48: =Databackup!F36 ->  | F48: =Databackup!G36 ->  | G48: =Databackup!I36 ->  | H48: =Databackup!J36 ->  | I48: =Databackup!K36 ->  | J48: =Databackup!L36 ->  | K48: =Databackup!M36 ->  | L48: =IF(Databackup!N36>0,Databackup!N36,"--.--") ->  | M48: Designation
A49: =IF(Databackup!B37="","",Databackup!B37) ->  | B49: =Databackup!C37 ->  | C49: =Databackup!D37 ->  | D49: =Databackup!E37 ->  | E49: =Databackup!F37 ->  | F49: =Databackup!G37 ->  | G49: =Databackup!I37 ->  | H49: =Databackup!J37 ->  | I49: =Databackup!K37 ->  | J49: =Databackup!L37 ->  | K49: =Databackup!M37 ->  | L49: =IF(Databackup!N37>0,Databackup!N37,"--.--") ->  | M49: Designation
A50: =IF(Databackup!B38="","",Databackup!B38) ->  | B50: =Databackup!C38 ->  | C50: =Databackup!D38 ->  | D50: =Databackup!E38 ->  | E50: =Databackup!F38 ->  | F50: =Databackup!G38 ->  | G50: =Databackup!I38 ->  | H50: =Databackup!J38 ->  | I50: =Databackup!K38 ->  | J50: =Databackup!L38 ->  | K50: =Databackup!M38 ->  | L50: =IF(Databackup!N38>0,Databackup!N38,"--.--") ->  | M50: Designation
A51: =IF(Databackup!B39="","",Databackup!B39) ->  | B51: =Databackup!C39 ->  | C51: =Databackup!D39 ->  | D51: =Databackup!E39 ->  | E51: =Databackup!F39 ->  | F51: =Databackup!G39 ->  | G51: =Databackup!I39 ->  | H51: =Databackup!J39 ->  | I51: =Databackup!K39 ->  | J51: =Databackup!L39 ->  | K51: =Databackup!M39 ->  | L51: =IF(Databackup!N39>0,Databackup!N39,"--.--") ->  | M51: Designation
A52: =IF(Databackup!B40="","",Databackup!B40) ->  | B52: =Databackup!C40 ->  | C52: =Databackup!D40 ->  | D52: =Databackup!E40 ->  | E52: =Databackup!F40 ->  | F52: =Databackup!G40 ->  | G52: =Databackup!I40 ->  | H52: =Databackup!J40 ->  | I52: =Databackup!K40 ->  | J52: =Databackup!L40 ->  | K52: =Databackup!M40 ->  | L52: =IF(Databackup!N40>0,Databackup!N40,"--.--") ->  | M52: Designation
A53: =IF(Databackup!B41="","",Databackup!B41) ->  | B53: =Databackup!C41 ->  | C53: =Databackup!D41 ->  | D53: =Databackup!E41 ->  | E53: =Databackup!F41 ->  | F53: =Databackup!G41 ->  | G53: =Databackup!I41 ->  | H53: =Databackup!J41 ->  | I53: =Databackup!K41 ->  | J53: =Databackup!L41 ->  | K53: =Databackup!M41 ->  | L53: =IF(Databackup!N41>0,Databackup!N41,"--.--") ->  | M53: Designation
A54: =IF(Databackup!B42="","",Databackup!B42) ->  | B54: =Databackup!C42 ->  | C54: =Databackup!D42 ->  | D54: =Databackup!E42 ->  | E54: =Databackup!F42 ->  | F54: =Databackup!G42 ->  | G54: =Databackup!I42 ->  | H54: =Databackup!J42 ->  | I54: =Databackup!K42 ->  | J54: =Databackup!L42 ->  | K54: =Databackup!M42 ->  | L54: =IF(Databackup!N42>0,Databackup!N42,"--.--") ->  | M54: Designation
A55: =IF(Databackup!B43="","",Databackup!B43) ->  | B55: =Databackup!C43 ->  | C55: =Databackup!D43 ->  | D55: =Databackup!E43 ->  | E55: =Databackup!F43 ->  | F55: =Databackup!G43 ->  | G55: =Databackup!I43 ->  | H55: =Databackup!J43 ->  | I55: =Databackup!K43 ->  | J55: =Databackup!L43 ->  | K55: =Databackup!M43 ->  | L55: =IF(Databackup!N43>0,Databackup!N43,"--.--") ->  | M55: Designation
A56: =IF(Databackup!B44="","",Databackup!B44) ->  | B56: =Databackup!C44 ->  | C56: =Databackup!D44 ->  | D56: =Databackup!E44 ->  | E56: =Databackup!F44 ->  | F56: =Databackup!G44 ->  | G56: =Databackup!I44 ->  | H56: =Databackup!J44 ->  | I56: =Databackup!K44 ->  | J56: =Databackup!L44 ->  | K56: =Databackup!M44 ->  | L56: =IF(Databackup!N44>0,Databackup!N44,"--.--") ->  | M56: Designation
A57: =IF(Databackup!B45="","",Databackup!B45) ->  | B57: =Databackup!C45 ->  | C57: =Databackup!D45 ->  | D57: =Databackup!E45 ->  | E57: =Databackup!F45 ->  | F57: =Databackup!G45 ->  | G57: =Databackup!I45 ->  | H57: =Databackup!J45 ->  | I57: =Databackup!K45 ->  | J57: =Databackup!L45 ->  | K57: =Databackup!M45 ->  | L57: =IF(Databackup!N45>0,Databackup!N45,"--.--") ->  | M57: Designation
A58: =IF(Databackup!B46="","",Databackup!B46) ->  | B58: =Databackup!C46 ->  | C58: =Databackup!D46 ->  | D58: =Databackup!E46 ->  | E58: =Databackup!F46 ->  | F58: =Databackup!G46 ->  | G58: =Databackup!I46 ->  | H58: =Databackup!J46 ->  | I58: =Databackup!K46 ->  | J58: =Databackup!L46 ->  | K58: =Databackup!M46 ->  | L58: =IF(Databackup!N46>0,Databackup!N46,"--.--") ->  | M58: Designation
A59: =IF(Databackup!B47="","",Databackup!B47) ->  | B59: =Databackup!C47 ->  | C59: =Databackup!D47 ->  | D59: =Databackup!E47 ->  | E59: =Databackup!F47 ->  | F59: =Databackup!G47 ->  | G59: =Databackup!I47 ->  | H59: =Databackup!J47 ->  | I59: =Databackup!K47 ->  | J59: =Databackup!L47 ->  | K59: =Databackup!M47 ->  | L59: =IF(Databackup!N47>0,Databackup!N47,"--.--") ->  | M59: Designation
A60: =IF(Databackup!B48="","",Databackup!B48) ->  | B60: =Databackup!C48 ->  | C60: =Databackup!D48 ->  | D60: =Databackup!E48 ->  | E60: =Databackup!F48 ->  | F60: =Databackup!G48 ->  | G60: =Databackup!I48 ->  | H60: =Databackup!J48 ->  | I60: =Databackup!K48 ->  | J60: =Databackup!L48 ->  | K60: =Databackup!M48 ->  | L60: =IF(Databackup!N48>0,Databackup!N48,"--.--") ->  | M60: Designation
A61: =IF(Databackup!B49="","",Databackup!B49) ->  | B61: =Databackup!C49 ->  | C61: =Databackup!D49 ->  | D61: =Databackup!E49 ->  | E61: =Databackup!F49 ->  | F61: =Databackup!G49 ->  | G61: =Databackup!I49 ->  | H61: =Databackup!J49 ->  | I61: =Databackup!K49 ->  | J61: =Databackup!L49 ->  | K61: =Databackup!M49 ->  | L61: =IF(Databackup!N49>0,Databackup!N49,"--.--") ->  | M61: Designation
A62: =IF(Databackup!B50="","",Databackup!B50) ->  | B62: =Databackup!C50 ->  | C62: =Databackup!D50 ->  | D62: =Databackup!E50 ->  | E62: =Databackup!F50 ->  | F62: =Databackup!G50 ->  | G62: =Databackup!I50 ->  | H62: =Databackup!J50 ->  | I62: =Databackup!K50 ->  | J62: =Databackup!L50 ->  | K62: =Databackup!M50 ->  | L62: =IF(Databackup!N50>0,Databackup!N50,"--.--") ->  | M62: Designation
A63: =IF(Databackup!B51="","",Databackup!B51) ->  | B63: =Databackup!C51 ->  | C63: =Databackup!D51 ->  | D63: =Databackup!E51 ->  | E63: =Databackup!F51 ->  | F63: =Databackup!G51 ->  | G63: =Databackup!I51 ->  | H63: =Databackup!J51 ->  | I63: =Databackup!K51 ->  | J63: =Databackup!L51 ->  | K63: =Databackup!M51 ->  | L63: =IF(Databackup!N51>0,Databackup!N51,"--.--") ->  | M63: Designation
A64: =IF(Databackup!B52="","",Databackup!B52) ->  | B64: =Databackup!C52 ->  | C64: =Databackup!D52 ->  | D64: =Databackup!E52 ->  | E64: =Databackup!F52 ->  | F64: =Databackup!G52 ->  | G64: =Databackup!I52 ->  | H64: =Databackup!J52 ->  | I64: =Databackup!K52 ->  | J64: =Databackup!L52 ->  | K64: =Databackup!M52 ->  | L64: =IF(Databackup!N52>0,Databackup!N52,"--.--") ->  | M64: Designation
A65: =IF(Databackup!B53="","",Databackup!B53) ->  | B65: =Databackup!C53 ->  | C65: =Databackup!D53 ->  | D65: =Databackup!E53 ->  | E65: =Databackup!F53 ->  | F65: =Databackup!G53 ->  | G65: =Databackup!I53 ->  | H65: =Databackup!J53 ->  | I65: =Databackup!K53 ->  | J65: =Databackup!L53 ->  | K65: =Databackup!M53 ->  | L65: =IF(Databackup!N53>0,Databackup!N53,"--.--") ->  | M65: Designation
A66: =IF(Databackup!B54="","",Databackup!B54) ->  | B66: =Databackup!C54 ->  | C66: =Databackup!D54 ->  | D66: =Databackup!E54 ->  | E66: =Databackup!F54 ->  | F66: =Databackup!G54 ->  | G66: =Databackup!I54 ->  | H66: =Databackup!J54 ->  | I66: =Databackup!K54 ->  | J66: =Databackup!L54 ->  | K66: =Databackup!M54 ->  | L66: =IF(Databackup!N54>0,Databackup!N54,"--.--") ->  | M66: Designation
A67: =IF(Databackup!B55="","",Databackup!B55) ->  | B67: =Databackup!C55 ->  | C67: =Databackup!D55 ->  | D67: =Databackup!E55 ->  | E67: =Databackup!F55 ->  | F67: =Databackup!G55 ->  | G67: =Databackup!I55 ->  | H67: =Databackup!J55 ->  | I67: =Databackup!K55 ->  | J67: =Databackup!L55 ->  | K67: =Databackup!M55 ->  | L67: =IF(Databackup!N55>0,Databackup!N55,"--.--") ->  | M67: Designation
A68: =IF(Databackup!B56="","",Databackup!B56) ->  | B68: =Databackup!C56 ->  | C68: =Databackup!D56 ->  | D68: =Databackup!E56 ->  | E68: =Databackup!F56 ->  | F68: =Databackup!G56 ->  | G68: =Databackup!I56 ->  | H68: =Databackup!J56 ->  | I68: =Databackup!K56 ->  | J68: =Databackup!L56 ->  | K68: =Databackup!M56 ->  | L68: =IF(Databackup!N56>0,Databackup!N56,"--.--") ->  | M68: Designation
A69: =IF(Databackup!B57="","",Databackup!B57) ->  | B69: =Databackup!C57 ->  | C69: =Databackup!D57 ->  | D69: =Databackup!E57 ->  | E69: =Databackup!F57 ->  | F69: =Databackup!G57 ->  | G69: =Databackup!I57 ->  | H69: =Databackup!J57 ->  | I69: =Databackup!K57 ->  | J69: =Databackup!L57 ->  | K69: =Databackup!M57 ->  | L69: =IF(Databackup!N57>0,Databackup!N57,"--.--") ->  | M69: Designation
A70: =IF(Databackup!B58="","",Databackup!B58) ->  | B70: =Databackup!C58 ->  | C70: =Databackup!D58 ->  | D70: =Databackup!E58 ->  | E70: =Databackup!F58 ->  | F70: =Databackup!G58 ->  | G70: =Databackup!I58 ->  | H70: =Databackup!J58 ->  | I70: =Databackup!K58 ->  | J70: =Databackup!L58 ->  | K70: =Databackup!M58 ->  | L70: =IF(Databackup!N58>0,Databackup!N58,"--.--") ->  | M70: Designation
A71: =IF(Databackup!B59="","",Databackup!B59) ->  | B71: =Databackup!C59 ->  | C71: =Databackup!D59 ->  | D71: =Databackup!E59 ->  | E71: =Databackup!F59 ->  | F71: =Databackup!G59 ->  | G71: =Databackup!I59 ->  | H71: =Databackup!J59 ->  | I71: =Databackup!K59 ->  | J71: =Databackup!L59 ->  | K71: =Databackup!M59 ->  | L71: =IF(Databackup!N59>0,Databackup!N59,"--.--") ->  | M71: Designation
A72: =IF(Databackup!B60="","",Databackup!B60) ->  | B72: =Databackup!C60 ->  | C72: =Databackup!D60 ->  | D72: =Databackup!E60 ->  | E72: =Databackup!F60 ->  | F72: =Databackup!G60 ->  | G72: =Databackup!I60 ->  | H72: =Databackup!J60 ->  | I72: =Databackup!K60 ->  | J72: =Databackup!L60 ->  | K72: =Databackup!M60 ->  | L72: =IF(Databackup!N60>0,Databackup!N60,"--.--") ->  | M72: Designation
A73: =IF(Databackup!B61="","",Databackup!B61) ->  | B73: =Databackup!C61 ->  | C73: =Databackup!D61 ->  | D73: =Databackup!E61 ->  | E73: =Databackup!F61 ->  | F73: =Databackup!G61 ->  | G73: =Databackup!I61 ->  | H73: =Databackup!J61 ->  | I73: =Databackup!K61 ->  | J73: =Databackup!L61 ->  | K73: =Databackup!M61 ->  | L73: =IF(Databackup!N61>0,Databackup!N61,"--.--") ->  | M73: Designation
A74: =IF(Databackup!B62="","",Databackup!B62) ->  | B74: =Databackup!C62 ->  | C74: =Databackup!D62 ->  | D74: =Databackup!E62 ->  | E74: =Databackup!F62 ->  | F74: =Databackup!G62 ->  | G74: =Databackup!I62 ->  | H74: =Databackup!J62 ->  | I74: =Databackup!K62 ->  | J74: =Databackup!L62 ->  | K74: =Databackup!M62 ->  | L74: =IF(Databackup!N62>0,Databackup!N62,"--.--") ->  | M74: Designation
A75: =IF(Databackup!B63="","",Databackup!B63) ->  | B75: =Databackup!C63 ->  | C75: =Databackup!D63 ->  | D75: =Databackup!E63 ->  | E75: =Databackup!F63 ->  | F75: =Databackup!G63 ->  | G75: =Databackup!I63 ->  | H75: =Databackup!J63 ->  | I75: =Databackup!K63 ->  | J75: =Databackup!L63 ->  | K75: =Databackup!M63 ->  | L75: =IF(Databackup!N63>0,Databackup!N63,"--.--") ->  | M75: Designation
A76: =IF(Databackup!B64="","",Databackup!B64) ->  | B76: =Databackup!C64 ->  | C76: =Databackup!D64 ->  | D76: =Databackup!E64 ->  | E76: =Databackup!F64 ->  | F76: =Databackup!G64 ->  | G76: =Databackup!I64 ->  | H76: =Databackup!J64 ->  | I76: =Databackup!K64 ->  | J76: =Databackup!L64 ->  | K76: =Databackup!M64 ->  | L76: =IF(Databackup!N64>0,Databackup!N64,"--.--") ->  | M76: Designation
A77: =IF(Databackup!B65="","",Databackup!B65) ->  | B77: =Databackup!C65 ->  | C77: =Databackup!D65 ->  | D77: =Databackup!E65 ->  | E77: =Databackup!F65 ->  | F77: =Databackup!G65 ->  | G77: =Databackup!I65 ->  | H77: =Databackup!J65 ->  | I77: =Databackup!K65 ->  | J77: =Databackup!L65 ->  | K77: =Databackup!M65 ->  | L77: =IF(Databackup!N65>0,Databackup!N65,"--.--") ->  | M77: Designation
A78: =IF(Databackup!B66="","",Databackup!B66) ->  | B78: =Databackup!C66 ->  | C78: =Databackup!D66 ->  | D78: =Databackup!E66 ->  | E78: =Databackup!F66 ->  | F78: =Databackup!G66 ->  | G78: =Databackup!I66 ->  | H78: =Databackup!J66 ->  | I78: =Databackup!K66 ->  | J78: =Databackup!L66 ->  | K78: =Databackup!M66 ->  | L78: =IF(Databackup!N66>0,Databackup!N66,"--.--") ->  | M78: Designation
A79: =IF(Databackup!B67="","",Databackup!B67) ->  | B79: =Databackup!C67 ->  | C79: =Databackup!D67 ->  | D79: =Databackup!E67 ->  | E79: =Databackup!F67 ->  | F79: =Databackup!G67 ->  | G79: =Databackup!I67 ->  | H79: =Databackup!J67 ->  | I79: =Databackup!K67 ->  | J79: =Databackup!L67 ->  | K79: =Databackup!M67 ->  | L79: =IF(Databackup!N67>0,Databackup!N67,"--.--") ->  | M79: Designation
A80: =IF(Databackup!B68="","",Databackup!B68) ->  | B80: =Databackup!C68 ->  | C80: =Databackup!D68 ->  | D80: =Databackup!E68 ->  | E80: =Databackup!F68 ->  | F80: =Databackup!G68 ->  | G80: =Databackup!I68 ->  | H80: =Databackup!J68 ->  | I80: =Databackup!K68 ->  | J80: =Databackup!L68 ->  | K80: =Databackup!M68 ->  | L80: =IF(Databackup!N68>0,Databackup!N68,"--.--") ->  | M80: Designation
A81: =IF(Databackup!B69="","",Databackup!B69) ->  | B81: =Databackup!C69 ->  | C81: =Databackup!D69 ->  | D81: =Databackup!E69 ->  | E81: =Databackup!F69 ->  | F81: =Databackup!G69 ->  | G81: =Databackup!I69 ->  | H81: =Databackup!J69 ->  | I81: =Databackup!K69 ->  | J81: =Databackup!L69 ->  | K81: =Databackup!M69 ->  | L81: =IF(Databackup!N69>0,Databackup!N69,"--.--") ->  | M81: Designation
A82: =IF(Databackup!B70="","",Databackup!B70) ->  | B82: =Databackup!C70 ->  | C82: =Databackup!D70 ->  | D82: =Databackup!E70 ->  | E82: =Databackup!F70 ->  | F82: =Databackup!G70 ->  | G82: =Databackup!I70 ->  | H82: =Databackup!J70 ->  | I82: =Databackup!K70 ->  | J82: =Databackup!L70 ->  | K82: =Databackup!M70 ->  | L82: =IF(Databackup!N70>0,Databackup!N70,"--.--") ->  | M82: Designation
A83: =IF(Databackup!B71="","",Databackup!B71) ->  | B83: =Databackup!C71 ->  | C83: =Databackup!D71 ->  | D83: =Databackup!E71 ->  | E83: =Databackup!F71 ->  | F83: =Databackup!G71 ->  | G83: =Databackup!I71 ->  | H83: =Databackup!J71 ->  | I83: =Databackup!K71 ->  | J83: =Databackup!L71 ->  | K83: =Databackup!M71 ->  | L83: =IF(Databackup!N71>0,Databackup!N71,"--.--") ->  | M83: =CONCATENATE(B83," ","Designation"," ",C83) -> Designation
A84: =IF(Databackup!B72="","",Databackup!B72) ->  | B84: =Databackup!C72 ->  | C84: =Databackup!D72 ->  | D84: =Databackup!E72 ->  | E84: =Databackup!F72 ->  | F84: =Databackup!G72 ->  | G84: =Databackup!I72 ->  | H84: =Databackup!J72 ->  | I84: =Databackup!K72 ->  | J84: =Databackup!L72 ->  | K84: =Databackup!M72 ->  | L84: =IF(Databackup!N72>0,Databackup!N72,"--.--") ->  | M84: Designation
A85: =IF(Databackup!B73="","",Databackup!B73) ->  | B85: =Databackup!C73 ->  | C85: =Databackup!D73 ->  | D85: =Databackup!E73 ->  | E85: =Databackup!F73 ->  | F85: =Databackup!G73 ->  | G85: =Databackup!I73 ->  | H85: =Databackup!J73 ->  | I85: =Databackup!K73 ->  | J85: =Databackup!L73 ->  | K85: =Databackup!M73 ->  | L85: =IF(Databackup!N73>0,Databackup!N73,"--.--") ->  | M85: Designation
A86: =IF(Databackup!B74="","",Databackup!B74) ->  | B86: =Databackup!C74 ->  | C86: =Databackup!D74 ->  | D86: =Databackup!E74 ->  | E86: =Databackup!F74 ->  | F86: =Databackup!G74 ->  | G86: =Databackup!I74 ->  | H86: =Databackup!J74 ->  | I86: =Databackup!K74 ->  | J86: =Databackup!L74 ->  | K86: =Databackup!M74 ->  | L86: =IF(Databackup!N74>0,Databackup!N74,"--.--") ->  | M86: Designation
A87: =IF(Databackup!B75="","",Databackup!B75) ->  | B87: =Databackup!C75 ->  | C87: =Databackup!D75 ->  | D87: =Databackup!E75 ->  | E87: =Databackup!F75 ->  | F87: =Databackup!G75 ->  | G87: =Databackup!I75 ->  | H87: =Databackup!J75 ->  | I87: =Databackup!K75 ->  | J87: =Databackup!L75 ->  | K87: =Databackup!M75 ->  | L87: =IF(Databackup!N75>0,Databackup!N75,"--.--") ->  | M87: Designation
A88: =IF(Databackup!B76="","",Databackup!B76) ->  | B88: =Databackup!C76 ->  | C88: =Databackup!D76 ->  | D88: =Databackup!E76 ->  | E88: =Databackup!F76 ->  | F88: =Databackup!G76 ->  | G88: =Databackup!I76 ->  | H88: =Databackup!J76 ->  | I88: =Databackup!K76 ->  | J88: =Databackup!L76 ->  | K88: =Databackup!M76 ->  | L88: =IF(Databackup!N76>0,Databackup!N76,"--.--") ->  | M88: Designation
A89: =IF(Databackup!B77="","",Databackup!B77) ->  | B89: =Databackup!C77 ->  | C89: =Databackup!D77 ->  | D89: =Databackup!E77 ->  | E89: =Databackup!F77 ->  | F89: =Databackup!G77 ->  | G89: =Databackup!I77 ->  | H89: =Databackup!J77 ->  | I89: =Databackup!K77 ->  | J89: =Databackup!L77 ->  | K89: =Databackup!M77 ->  | L89: =IF(Databackup!N77>0,Databackup!N77,"--.--") ->  | M89: Designation
A90: =IF(Databackup!B78="","",Databackup!B78) ->  | B90: =Databackup!C78 ->  | C90: =Databackup!D78 ->  | D90: =Databackup!E78 ->  | E90: =Databackup!F78 ->  | F90: =Databackup!G78 ->  | G90: =Databackup!I78 ->  | H90: =Databackup!J78 ->  | I90: =Databackup!K78 ->  | J90: =Databackup!L78 ->  | K90: =Databackup!M78 ->  | L90: =IF(Databackup!N78>0,Databackup!N78,"--.--") ->  | M90: Designation
A91: =IF(Databackup!B79="","",Databackup!B79) ->  | B91: =Databackup!C79 ->  | C91: =Databackup!D79 ->  | D91: =Databackup!E79 ->  | E91: =Databackup!F79 ->  | F91: =Databackup!G79 ->  | G91: =Databackup!I79 ->  | H91: =Databackup!J79 ->  | I91: =Databackup!K79 ->  | J91: =Databackup!L79 ->  | K91: =Databackup!M79 ->  | L91: =IF(Databackup!N79>0,Databackup!N79,"--.--") ->  | M91: Designation
A92: =IF(Databackup!B80="","",Databackup!B80) ->  | B92: =Databackup!C80 ->  | C92: =Databackup!D80 ->  | D92: =Databackup!E80 ->  | E92: =Databackup!F80 ->  | F92: =Databackup!G80 ->  | G92: =Databackup!I80 ->  | H92: =Databackup!J80 ->  | I92: =Databackup!K80 ->  | J92: =Databackup!L80 ->  | K92: =Databackup!M80 ->  | L92: =IF(Databackup!N80>0,Databackup!N80,"--.--") ->  | M92: Designation
A93: =IF(Databackup!B81="","",Databackup!B81) ->  | B93: =Databackup!C81 ->  | C93: =Databackup!D81 ->  | D93: =Databackup!E81 ->  | E93: =Databackup!F81 ->  | F93: =Databackup!G81 ->  | G93: =Databackup!I81 ->  | H93: =Databackup!J81 ->  | I93: =Databackup!K81 ->  | J93: =Databackup!L81 ->  | K93: =Databackup!M81 ->  | L93: =IF(Databackup!N81>0,Databackup!N81,"--.--") ->  | M93: Designation
A94: =IF(Databackup!B82="","",Databackup!B82) ->  | B94: =Databackup!C82 ->  | C94: =Databackup!D82 ->  | D94: =Databackup!E82 ->  | E94: =Databackup!F82 ->  | F94: =Databackup!G82 ->  | G94: =Databackup!I82 ->  | H94: =Databackup!J82 ->  | I94: =Databackup!K82 ->  | J94: =Databackup!L82 ->  | K94: =Databackup!M82 ->  | L94: =IF(Databackup!N82>0,Databackup!N82,"--.--") ->  | M94: Designation
A95: =IF(Databackup!B83="","",Databackup!B83) ->  | B95: =Databackup!C83 ->  | C95: =Databackup!D83 ->  | D95: =Databackup!E83 ->  | E95: =Databackup!F83 ->  | F95: =Databackup!G83 ->  | G95: =Databackup!I83 ->  | H95: =Databackup!J83 ->  | I95: =Databackup!K83 ->  | J95: =Databackup!L83 ->  | K95: =Databackup!M83 ->  | L95: =IF(Databackup!N83>0,Databackup!N83,"--.--") ->  | M95: Designation
A96: =IF(Databackup!B84="","",Databackup!B84) ->  | B96: =Databackup!C84 ->  | C96: =Databackup!D84 ->  | D96: =Databackup!E84 ->  | E96: =Databackup!F84 ->  | F96: =Databackup!G84 ->  | G96: =Databackup!I84 ->  | H96: =Databackup!J84 ->  | I96: =Databackup!K84 ->  | J96: =Databackup!L84 ->  | K96: =Databackup!M84 ->  | L96: =IF(Databackup!N84>0,Databackup!N84,"--.--") ->  | M96: Designation
A97: =IF(Databackup!B85="","",Databackup!B85) ->  | B97: =Databackup!C85 ->  | C97: =Databackup!D85 ->  | D97: =Databackup!E85 ->  | E97: =Databackup!F85 ->  | F97: =Databackup!G85 ->  | G97: =Databackup!I85 ->  | H97: =Databackup!J85 ->  | I97: =Databackup!K85 ->  | J97: =Databackup!L85 ->  | K97: =Databackup!M85 ->  | L97: =IF(Databackup!N85>0,Databackup!N85,"--.--") ->  | M97: Designation
A98: =IF(Databackup!B86="","",Databackup!B86) ->  | B98: =Databackup!C86 ->  | C98: =Databackup!D86 ->  | D98: =Databackup!E86 ->  | E98: =Databackup!F86 ->  | F98: =Databackup!G86 ->  | G98: =Databackup!I86 ->  | H98: =Databackup!J86 ->  | I98: =Databackup!K86 ->  | J98: =Databackup!L86 ->  | K98: =Databackup!M86 ->  | L98: =IF(Databackup!N86>0,Databackup!N86,"--.--") ->  | M98: Designation
A99: =IF(Databackup!B87="","",Databackup!B87) ->  | B99: =Databackup!C87 ->  | C99: =Databackup!D87 ->  | D99: =Databackup!E87 ->  | E99: =Databackup!F87 ->  | F99: =Databackup!G87 ->  | G99: =Databackup!I87 ->  | H99: =Databackup!J87 ->  | I99: =Databackup!K87 ->  | J99: =Databackup!L87 ->  | K99: =Databackup!M87 ->  | L99: =IF(Databackup!N87>0,Databackup!N87,"--.--") ->  | M99: Designation
A100: =IF(Databackup!B88="","",Databackup!B88) ->  | B100: =Databackup!C88 ->  | C100: =Databackup!D88 ->  | D100: =Databackup!E88 ->  | E100: =Databackup!F88 ->  | F100: =Databackup!G88 ->  | G100: =Databackup!I88 ->  | H100: =Databackup!J88 ->  | I100: =Databackup!K88 ->  | J100: =Databackup!L88 ->  | K100: =Databackup!M88 ->  | L100: =IF(Databackup!N88>0,Databackup!N88,"--.--") ->  | M100: Designation
A101: =IF(Databackup!B89="","",Databackup!B89) ->  | B101: =Databackup!C89 ->  | C101: =Databackup!D89 ->  | D101: =Databackup!E89 ->  | E101: =Databackup!F89 ->  | F101: =Databackup!G89 ->  | G101: =Databackup!I89 ->  | H101: =Databackup!J89 ->  | I101: =Databackup!K89 ->  | J101: =Databackup!L89 ->  | K101: =Databackup!M89 ->  | L101: =IF(Databackup!N89>0,Databackup!N89,"--.--") ->  | M101: Designation
A102: =IF(Databackup!B90="","",Databackup!B90) ->  | B102: =Databackup!C90 ->  | C102: =Databackup!D90 ->  | D102: =Databackup!E90 ->  | E102: =Databackup!F90 ->  | F102: =Databackup!G90 ->  | G102: =Databackup!I90 ->  | H102: =Databackup!J90 ->  | I102: =Databackup!K90 ->  | J102: =Databackup!L90 ->  | K102: =Databackup!M90 ->  | L102: =IF(Databackup!N90>0,Databackup!N90,"--.--") ->  | M102: Designation
A103: =IF(Databackup!B91="","",Databackup!B91) ->  | B103: =Databackup!C91 ->  | C103: =Databackup!D91 ->  | D103: =Databackup!E91 ->  | E103: =Databackup!F91 ->  | F103: =Databackup!G91 ->  | G103: =Databackup!I91 ->  | H103: =Databackup!J91 ->  | I103: =Databackup!K91 ->  | J103: =Databackup!L91 ->  | K103: =Databackup!M91 ->  | L103: =IF(Databackup!N91>0,Databackup!N91,"--.--") ->  | M103: Designation
A104: =IF(Databackup!B92="","",Databackup!B92) ->  | B104: =Databackup!C92 ->  | C104: =Databackup!D92 ->  | D104: =Databackup!E92 ->  | E104: =Databackup!F92 ->  | F104: =Databackup!G92 ->  | G104: =Databackup!I92 ->  | H104: =Databackup!J92 ->  | I104: =Databackup!K92 ->  | J104: =Databackup!L92 ->  | K104: =Databackup!M92 ->  | L104: =IF(Databackup!N92>0,Databackup!N92,"--.--") ->  | M104: Designation
A105: =IF(Databackup!B93="","",Databackup!B93) ->  | B105: =Databackup!C93 ->  | C105: =Databackup!D93 ->  | D105: =Databackup!E93 ->  | E105: =Databackup!F93 ->  | F105: =Databackup!G93 ->  | G105: =Databackup!I93 ->  | H105: =Databackup!J93 ->  | I105: =Databackup!K93 ->  | J105: =Databackup!L93 ->  | K105: =Databackup!M93 ->  | L105: =IF(Databackup!N93>0,Databackup!N93,"--.--") ->  | M105: Designation
A106: =IF(Databackup!B94="","",Databackup!B94) ->  | B106: =Databackup!C94 ->  | C106: =Databackup!D94 ->  | D106: =Databackup!E94 ->  | E106: =Databackup!F94 ->  | F106: =Databackup!G94 ->  | G106: =Databackup!I94 ->  | H106: =Databackup!J94 ->  | I106: =Databackup!K94 ->  | J106: =Databackup!L94 ->  | K106: =Databackup!M94 ->  | L106: =IF(Databackup!N94>0,Databackup!N94,"--.--") ->  | M106: Designation
A107: =IF(Databackup!B95="","",Databackup!B95) ->  | B107: =Databackup!C95 ->  | C107: =Databackup!D95 ->  | D107: =Databackup!E95 ->  | E107: =Databackup!F95 ->  | F107: =Databackup!G95 ->  | G107: =Databackup!I95 ->  | H107: =Databackup!J95 ->  | I107: =Databackup!K95 ->  | J107: =Databackup!L95 ->  | K107: =Databackup!M95 ->  | L107: =IF(Databackup!N95>0,Databackup!N95,"--.--") ->  | M107: Designation
A108: =IF(Databackup!B96="","",Databackup!B96) ->  | B108: =Databackup!C96 ->  | C108: =Databackup!D96 ->  | D108: =Databackup!E96 ->  | E108: =Databackup!F96 ->  | F108: =Databackup!G96 ->  | G108: =Databackup!I96 ->  | H108: =Databackup!J96 ->  | I108: =Databackup!K96 ->  | J108: =Databackup!L96 ->  | K108: =Databackup!M96 ->  | L108: =IF(Databackup!N96>0,Databackup!N96,"--.--") ->  | M108: Designation
A109: =IF(Databackup!B97="","",Databackup!B97) ->  | B109: =Databackup!C97 ->  | C109: =Databackup!D97 ->  | D109: =Databackup!E97 ->  | E109: =Databackup!F97 ->  | F109: =Databackup!G97 ->  | G109: =Databackup!I97 ->  | H109: =Databackup!J97 ->  | I109: =Databackup!K97 ->  | J109: =Databackup!L97 ->  | K109: =Databackup!M97 ->  | L109: =IF(Databackup!N97>0,Databackup!N97,"--.--") ->  | M109: Designation
A110: =IF(Databackup!B98="","",Databackup!B98) ->  | B110: =Databackup!C98 ->  | C110: =Databackup!D98 ->  | D110: =Databackup!E98 ->  | E110: =Databackup!F98 ->  | F110: =Databackup!G98 ->  | G110: =Databackup!I98 ->  | H110: =Databackup!J98 ->  | I110: =Databackup!K98 ->  | J110: =Databackup!L98 ->  | K110: =Databackup!M98 ->  | L110: =IF(Databackup!N98>0,Databackup!N98,"--.--") ->  | M110: Designation
A111: =IF(Databackup!B99="","",Databackup!B99) ->  | B111: =Databackup!C99 ->  | C111: =Databackup!D99 ->  | D111: =Databackup!E99 ->  | E111: =Databackup!F99 ->  | F111: =Databackup!G99 ->  | G111: =Databackup!I99 ->  | H111: =Databackup!J99 ->  | I111: =Databackup!K99 ->  | J111: =Databackup!L99 ->  | K111: =Databackup!M99 ->  | L111: =IF(Databackup!N99>0,Databackup!N99,"--.--") ->  | M111: Designation
A112: =IF(Databackup!B100="","",Databackup!B100) ->  | B112: =Databackup!C100 ->  | C112: =Databackup!D100 ->  | D112: =Databackup!E100 ->  | E112: =Databackup!F100 ->  | F112: =Databackup!G100 ->  | G112: =Databackup!I100 ->  | H112: =Databackup!J100 ->  | I112: =Databackup!K100 ->  | J112: =Databackup!L100 ->  | K112: =Databackup!M100 ->  | L112: =IF(Databackup!N100>0,Databackup!N100,"--.--") ->  | M112: Designation
A113: =IF(Databackup!B101="","",Databackup!B101) ->  | B113: =Databackup!C101 ->  | C113: =Databackup!D101 ->  | D113: =Databackup!E101 ->  | E113: =Databackup!F101 ->  | F113: =Databackup!G101 ->  | G113: =Databackup!I101 ->  | H113: =Databackup!J101 ->  | I113: =Databackup!K101 ->  | J113: =Databackup!L101 ->  | K113: =Databackup!M101 ->  | L113: =IF(Databackup!N101>0,Databackup!N101,"--.--") ->  | M113: Designation
A114: =IF(Databackup!B102="","",Databackup!B102) ->  | B114: =Databackup!C102 ->  | C114: =Databackup!D102 ->  | D114: =Databackup!E102 ->  | E114: =Databackup!F102 ->  | F114: =Databackup!G102 ->  | G114: =Databackup!I102 ->  | H114: =Databackup!J102 ->  | I114: =Databackup!K102 ->  | J114: =Databackup!L102 ->  | K114: =Databackup!M102 ->  | L114: =IF(Databackup!N102>0,Databackup!N102,"--.--") ->  | M114: Designation
A115: =IF(Databackup!B103="","",Databackup!B103) ->  | B115: =Databackup!C103 ->  | C115: =Databackup!D103 ->  | D115: =Databackup!E103 ->  | E115: =Databackup!F103 ->  | F115: =Databackup!G103 ->  | G115: =Databackup!I103 ->  | H115: =Databackup!J103 ->  | I115: =Databackup!K103 ->  | J115: =Databackup!L103 ->  | K115: =Databackup!M103 ->  | L115: =IF(Databackup!N103>0,Databackup!N103,"--.--") ->  | M115: Designation
A116: =IF(Databackup!B104="","",Databackup!B104) ->  | B116: =Databackup!C104 ->  | C116: =Databackup!D104 ->  | D116: =Databackup!E104 ->  | E116: =Databackup!F104 ->  | F116: =Databackup!G104 ->  | G116: =Databackup!I104 ->  | H116: =Databackup!J104 ->  | I116: =Databackup!K104 ->  | J116: =Databackup!L104 ->  | K116: =Databackup!M104 ->  | L116: =IF(Databackup!N104>0,Databackup!N104,"--.--") ->  | M116: Designation
A117: =IF(Databackup!B105="","",Databackup!B105) ->  | B117: =Databackup!C105 ->  | C117: =Databackup!D105 ->  | D117: =Databackup!E105 ->  | E117: =Databackup!F105 ->  | F117: =Databackup!G105 ->  | G117: =Databackup!I105 ->  | H117: =Databackup!J105 ->  | I117: =Databackup!K105 ->  | J117: =Databackup!L105 ->  | K117: =Databackup!M105 ->  | L117: =IF(Databackup!N105>0,Databackup!N105,"--.--") ->  | M117: Designation
A118: =IF(Databackup!B106="","",Databackup!B106) ->  | B118: =Databackup!C106 ->  | C118: =Databackup!D106 ->  | D118: =Databackup!E106 ->  | E118: =Databackup!F106 ->  | F118: =Databackup!G106 ->  | G118: =Databackup!I106 ->  | H118: =Databackup!J106 ->  | I118: =Databackup!K106 ->  | J118: =Databackup!L106 ->  | K118: =Databackup!M106 ->  | L118: =IF(Databackup!N106>0,Databackup!N106,"--.--") ->  | M118: Designation
A119: =IF(Databackup!B107="","",Databackup!B107) ->  | B119: =Databackup!C107 ->  | C119: =Databackup!D107 ->  | D119: =Databackup!E107 ->  | E119: =Databackup!F107 ->  | F119: =Databackup!G107 ->  | G119: =Databackup!I107 ->  | H119: =Databackup!J107 ->  | I119: =Databackup!K107 ->  | J119: =Databackup!L107 ->  | K119: =Databackup!M107 ->  | L119: =IF(Databackup!N107>0,Databackup!N107,"--.--") ->  | M119: Designation
A120: =IF(Databackup!B108="","",Databackup!B108) ->  | B120: =Databackup!C108 ->  | C120: =Databackup!D108 ->  | D120: =Databackup!E108 ->  | E120: =Databackup!F108 ->  | F120: =Databackup!G108 ->  | G120: =Databackup!I108 ->  | H120: =Databackup!J108 ->  | I120: =Databackup!K108 ->  | J120: =Databackup!L108 ->  | K120: =Databackup!M108 ->  | L120: =IF(Databackup!N108>0,Databackup!N108,"--.--") ->  | M120: Designation
A121: =IF(Databackup!B109="","",Databackup!B109) ->  | B121: =Databackup!C109 ->  | C121: =Databackup!D109 ->  | D121: =Databackup!E109 ->  | E121: =Databackup!F109 ->  | F121: =Databackup!G109 ->  | G121: =Databackup!I109 ->  | H121: =Databackup!J109 ->  | I121: =Databackup!K109 ->  | J121: =Databackup!L109 ->  | K121: =Databackup!M109 ->  | L121: =IF(Databackup!N109>0,Databackup!N109,"--.--") ->  | M121: Designation
A122: =IF(Databackup!B110="","",Databackup!B110) ->  | B122: =Databackup!C110 ->  | C122: =Databackup!D110 ->  | D122: =Databackup!E110 ->  | E122: =Databackup!F110 ->  | F122: =Databackup!G110 ->  | G122: =Databackup!I110 ->  | H122: =Databackup!J110 ->  | I122: =Databackup!K110 ->  | J122: =Databackup!L110 ->  | K122: =Databackup!M110 ->  | L122: =IF(Databackup!N110>0,Databackup!N110,"--.--") ->  | M122: Designation
A123: =IF(Databackup!B111="","",Databackup!B111) ->  | B123: =Databackup!C111 ->  | C123: =Databackup!D111 ->  | D123: =Databackup!E111 ->  | E123: =Databackup!F111 ->  | F123: =Databackup!G111 ->  | G123: =Databackup!I111 ->  | H123: =Databackup!J111 ->  | I123: =Databackup!K111 ->  | J123: =Databackup!L111 ->  | K123: =Databackup!M111 ->  | L123: =IF(Databackup!N111>0,Databackup!N111,"--.--") ->  | M123: Designation
A124: =IF(Databackup!B112="","",Databackup!B112) ->  | B124: =Databackup!C112 ->  | C124: =Databackup!D112 ->  | D124: =Databackup!E112 ->  | E124: =Databackup!F112 ->  | F124: =Databackup!G112 ->  | G124: =Databackup!I112 ->  | H124: =Databackup!J112 ->  | I124: =Databackup!K112 ->  | J124: =Databackup!L112 ->  | K124: =Databackup!M112 ->  | L124: =IF(Databackup!N112>0,Databackup!N112,"--.--") ->  | M124: Designation
A125: =IF(Databackup!B113="","",Databackup!B113) ->  | B125: =Databackup!C113 ->  | C125: =Databackup!D113 ->  | D125: =Databackup!E113 ->  | E125: =Databackup!F113 ->  | F125: =Databackup!G113 ->  | G125: =Databackup!I113 ->  | H125: =Databackup!J113 ->  | I125: =Databackup!K113 ->  | J125: =Databackup!L113 ->  | K125: =Databackup!M113 ->  | L125: =IF(Databackup!N113>0,Databackup!N113,"--.--") ->  | M125: Designation
A126: =IF(Databackup!B114="","",Databackup!B114) ->  | B126: =Databackup!C114 ->  | C126: =Databackup!D114 ->  | D126: =Databackup!E114 ->  | E126: =Databackup!F114 ->  | F126: =Databackup!G114 ->  | G126: =Databackup!I114 ->  | H126: =Databackup!J114 ->  | I126: =Databackup!K114 ->  | J126: =Databackup!L114 ->  | K126: =Databackup!M114 ->  | L126: =IF(Databackup!N114>0,Databackup!N114,"--.--") ->  | M126: Designation
A127: =IF(Databackup!B115="","",Databackup!B115) ->  | B127: =Databackup!C115 ->  | C127: =Databackup!D115 ->  | D127: =Databackup!E115 ->  | E127: =Databackup!F115 ->  | F127: =Databackup!G115 ->  | G127: =Databackup!I115 ->  | H127: =Databackup!J115 ->  | I127: =Databackup!K115 ->  | J127: =Databackup!L115 ->  | K127: =Databackup!M115 ->  | L127: =IF(Databackup!N115>0,Databackup!N115,"--.--") ->  | M127: Designation
A128: =IF(Databackup!B116="","",Databackup!B116) ->  | B128: =Databackup!C116 ->  | C128: =Databackup!D116 ->  | D128: =Databackup!E116 ->  | E128: =Databackup!F116 ->  | F128: =Databackup!G116 ->  | G128: =Databackup!I116 ->  | H128: =Databackup!J116 ->  | I128: =Databackup!K116 ->  | J128: =Databackup!L116 ->  | K128: =Databackup!M116 ->  | L128: =IF(Databackup!N116>0,Databackup!N116,"--.--") ->  | M128: Designation
A129: =IF(Databackup!B117="","",Databackup!B117) ->  | B129: =Databackup!C117 ->  | C129: =Databackup!D117 ->  | D129: =Databackup!E117 ->  | E129: =Databackup!F117 ->  | F129: =Databackup!G117 ->  | G129: =Databackup!I117 ->  | H129: =Databackup!J117 ->  | I129: =Databackup!K117 ->  | J129: =Databackup!L117 ->  | K129: =Databackup!M117 ->  | L129: =IF(Databackup!N117>0,Databackup!N117,"--.--") ->  | M129: Designation
A130: =IF(Databackup!B118="","",Databackup!B118) ->  | B130: =Databackup!C118 ->  | C130: =Databackup!D118 ->  | D130: =Databackup!E118 ->  | E130: =Databackup!F118 ->  | F130: =Databackup!G118 ->  | G130: =Databackup!I118 ->  | H130: =Databackup!J118 ->  | I130: =Databackup!K118 ->  | J130: =Databackup!L118 ->  | K130: =Databackup!M118 ->  | L130: =IF(Databackup!N118>0,Databackup!N118,"--.--") ->  | M130: Designation
A131: =IF(Databackup!B119="","",Databackup!B119) ->  | B131: =Databackup!C119 ->  | C131: =Databackup!D119 ->  | D131: =Databackup!E119 ->  | E131: =Databackup!F119 ->  | F131: =Databackup!G119 ->  | G131: =Databackup!I119 ->  | H131: =Databackup!J119 ->  | I131: =Databackup!K119 ->  | J131: =Databackup!L119 ->  | K131: =Databackup!M119 ->  | L131: =IF(Databackup!N119>0,Databackup!N119,"--.--") ->  | M131: Designation
A132: =IF(Databackup!B120="","",Databackup!B120) ->  | B132: =Databackup!C120 ->  | C132: =Databackup!D120 ->  | D132: =Databackup!E120 ->  | E132: =Databackup!F120 ->  | F132: =Databackup!G120 ->  | G132: =Databackup!I120 ->  | H132: =Databackup!J120 ->  | I132: =Databackup!K120 ->  | J132: =Databackup!L120 ->  | K132: =Databackup!M120 ->  | L132: =IF(Databackup!N120>0,Databackup!N120,"--.--") ->  | M132: Designation
A133: =IF(Databackup!B121="","",Databackup!B121) ->  | B133: =Databackup!C121 ->  | C133: =Databackup!D121 ->  | D133: =Databackup!E121 ->  | E133: =Databackup!F121 ->  | F133: =Databackup!G121 ->  | G133: =Databackup!I121 ->  | H133: =Databackup!J121 ->  | I133: =Databackup!K121 ->  | J133: =Databackup!L121 ->  | K133: =Databackup!M121 ->  | L133: =IF(Databackup!N121>0,Databackup!N121,"--.--") ->  | M133: Designation
A134: =IF(Databackup!B122="","",Databackup!B122) ->  | B134: =Databackup!C122 ->  | C134: =Databackup!D122 ->  | D134: =Databackup!E122 ->  | E134: =Databackup!F122 ->  | F134: =Databackup!G122 ->  | G134: =Databackup!I122 ->  | H134: =Databackup!J122 ->  | I134: =Databackup!K122 ->  | J134: =Databackup!L122 ->  | K134: =Databackup!M122 ->  | L134: =IF(Databackup!N122>0,Databackup!N122,"--.--") ->  | M134: Designation
A135: =IF(Databackup!B123="","",Databackup!B123) ->  | B135: =Databackup!C123 ->  | C135: =Databackup!D123 ->  | D135: =Databackup!E123 ->  | E135: =Databackup!F123 ->  | F135: =Databackup!G123 ->  | G135: =Databackup!I123 ->  | H135: =Databackup!J123 ->  | I135: =Databackup!K123 ->  | J135: =Databackup!L123 ->  | K135: =Databackup!M123 ->  | L135: =IF(Databackup!N123>0,Databackup!N123,"--.--") ->  | M135: Designation
A136: =IF(Databackup!B124="","",Databackup!B124) ->  | B136: =Databackup!C124 ->  | C136: =Databackup!D124 ->  | D136: =Databackup!E124 ->  | E136: =Databackup!F124 ->  | F136: =Databackup!G124 ->  | G136: =Databackup!I124 ->  | H136: =Databackup!J124 ->  | I136: =Databackup!K124 ->  | J136: =Databackup!L124 ->  | K136: =Databackup!M124 ->  | L136: =IF(Databackup!N124>0,Databackup!N124,"--.--") ->  | M136: Designation
A137: =IF(Databackup!B125="","",Databackup!B125) ->  | B137: =Databackup!C125 ->  | C137: =Databackup!D125 ->  | D137: =Databackup!E125 ->  | E137: =Databackup!F125 ->  | F137: =Databackup!G125 ->  | G137: =Databackup!I125 ->  | H137: =Databackup!J125 ->  | I137: =Databackup!K125 ->  | J137: =Databackup!L125 ->  | K137: =Databackup!M125 ->  | L137: =IF(Databackup!N125>0,Databackup!N125,"--.--") ->  | M137: Designation
A138: =IF(Databackup!B126="","",Databackup!B126) ->  | B138: =Databackup!C126 ->  | C138: =Databackup!D126 ->  | D138: =Databackup!E126 ->  | E138: =Databackup!F126 ->  | F138: =Databackup!G126 ->  | G138: =Databackup!I126 ->  | H138: =Databackup!J126 ->  | I138: =Databackup!K126 ->  | J138: =Databackup!L126 ->  | K138: =Databackup!M126 ->  | L138: =IF(Databackup!N126>0,Databackup!N126,"--.--") ->  | M138: Designation
A139: =IF(Databackup!B127="","",Databackup!B127) ->  | B139: =Databackup!C127 ->  | C139: =Databackup!D127 ->  | D139: =Databackup!E127 ->  | E139: =Databackup!F127 ->  | F139: =Databackup!G127 ->  | G139: =Databackup!I127 ->  | H139: =Databackup!J127 ->  | I139: =Databackup!K127 ->  | J139: =Databackup!L127 ->  | K139: =Databackup!M127 ->  | L139: =IF(Databackup!N127>0,Databackup!N127,"--.--") ->  | M139: Designation
A140: =IF(Databackup!B128="","",Databackup!B128) ->  | B140: =Databackup!C128 ->  | C140: =Databackup!D128 ->  | D140: =Databackup!E128 ->  | E140: =Databackup!F128 ->  | F140: =Databackup!G128 ->  | G140: =Databackup!I128 ->  | H140: =Databackup!J128 ->  | I140: =Databackup!K128 ->  | J140: =Databackup!L128 ->  | K140: =Databackup!M128 ->  | L140: =IF(Databackup!N128>0,Databackup!N128,"--.--") ->  | M140: Designation
A141: =IF(Databackup!B129="","",Databackup!B129) ->  | B141: =Databackup!C129 ->  | C141: =Databackup!D129 ->  | D141: =Databackup!E129 ->  | E141: =Databackup!F129 ->  | F141: =Databackup!G129 ->  | G141: =Databackup!I129 ->  | H141: =Databackup!J129 ->  | I141: =Databackup!K129 ->  | J141: =Databackup!L129 ->  | K141: =Databackup!M129 ->  | L141: =IF(Databackup!N129>0,Databackup!N129,"--.--") ->  | M141: Designation
A142: =IF(Databackup!B130="","",Databackup!B130) ->  | B142: =Databackup!C130 ->  | C142: =Databackup!D130 ->  | D142: =Databackup!E130 ->  | E142: =Databackup!F130 ->  | F142: =Databackup!G130 ->  | G142: =Databackup!I130 ->  | H142: =Databackup!J130 ->  | I142: =Databackup!K130 ->  | J142: =Databackup!L130 ->  | K142: =Databackup!M130 ->  | L142: =IF(Databackup!N130>0,Databackup!N130,"--.--") ->  | M142: Designation
A143: =IF(Databackup!B131="","",Databackup!B131) ->  | B143: =Databackup!C131 ->  | C143: =Databackup!D131 ->  | D143: =Databackup!E131 ->  | E143: =Databackup!F131 ->  | F143: =Databackup!G131 ->  | G143: =Databackup!I131 ->  | H143: =Databackup!J131 ->  | I143: =Databackup!K131 ->  | J143: =Databackup!L131 ->  | K143: =Databackup!M131 ->  | L143: =IF(Databackup!N131>0,Databackup!N131,"--.--") ->  | M143: Designation
A144: =IF(Databackup!B132="","",Databackup!B132) ->  | B144: =Databackup!C132 ->  | C144: =Databackup!D132 ->  | D144: =Databackup!E132 ->  | E144: =Databackup!F132 ->  | F144: =Databackup!G132 ->  | G144: =Databackup!I132 ->  | H144: =Databackup!J132 ->  | I144: =Databackup!K132 ->  | J144: =Databackup!L132 ->  | K144: =Databackup!M132 ->  | L144: =IF(Databackup!N132>0,Databackup!N132,"--.--") ->  | M144: Designation
A145: =IF(Databackup!B133="","",Databackup!B133) ->  | B145: =Databackup!C133 ->  | C145: =Databackup!D133 ->  | D145: =Databackup!E133 ->  | E145: =Databackup!F133 ->  | F145: =Databackup!G133 ->  | G145: =Databackup!I133 ->  | H145: =Databackup!J133 ->  | I145: =Databackup!K133 ->  | J145: =Databackup!L133 ->  | K145: =Databackup!M133 ->  | L145: =IF(Databackup!N133>0,Databackup!N133,"--.--") ->  | M145: Designation
A146: =IF(Databackup!B134="","",Databackup!B134) ->  | B146: =Databackup!C134 ->  | C146: =Databackup!D134 ->  | D146: =Databackup!E134 ->  | E146: =Databackup!F134 ->  | F146: =Databackup!G134 ->  | G146: =Databackup!I134 ->  | H146: =Databackup!J134 ->  | I146: =Databackup!K134 ->  | J146: =Databackup!L134 ->  | K146: =Databackup!M134 ->  | L146: =IF(Databackup!N134>0,Databackup!N134,"--.--") ->  | M146: Designation
A147: =IF(Databackup!B135="","",Databackup!B135) ->  | B147: =Databackup!C135 ->  | C147: =Databackup!D135 ->  | D147: =Databackup!E135 ->  | E147: =Databackup!F135 ->  | F147: =Databackup!G135 ->  | G147: =Databackup!I135 ->  | H147: =Databackup!J135 ->  | I147: =Databackup!K135 ->  | J147: =Databackup!L135 ->  | K147: =Databackup!M135 ->  | L147: =IF(Databackup!N135>0,Databackup!N135,"--.--") ->  | M147: =CONCATENATE(B147," ","Designation"," ",C147) -> Designation
A148: =IF(Databackup!B136="","",Databackup!B136) ->  | B148: =Databackup!C136 ->  | C148: =Databackup!D136 ->  | D148: =Databackup!E136 ->  | E148: =Databackup!F136 ->  | F148: =Databackup!G136 ->  | G148: =Databackup!I136 ->  | H148: =Databackup!J136 ->  | I148: =Databackup!K136 ->  | J148: =Databackup!L136 ->  | K148: =Databackup!M136 ->  | L148: =IF(Databackup!N136>0,Databackup!N136,"--.--") ->  | M148: Designation
A149: =IF(Databackup!B137="","",Databackup!B137) ->  | B149: =Databackup!C137 ->  | C149: =Databackup!D137 ->  | D149: =Databackup!E137 ->  | E149: =Databackup!F137 ->  | F149: =Databackup!G137 ->  | G149: =Databackup!I137 ->  | H149: =Databackup!J137 ->  | I149: =Databackup!K137 ->  | J149: =Databackup!L137 ->  | K149: =Databackup!M137 ->  | L149: =IF(Databackup!N137>0,Databackup!N137,"--.--") ->  | M149: Designation
A150: =IF(Databackup!B138="","",Databackup!B138) ->  | B150: =Databackup!C138 ->  | C150: =Databackup!D138 ->  | D150: =Databackup!E138 ->  | E150: =Databackup!F138 ->  | F150: =Databackup!G138 ->  | G150: =Databackup!I138 ->  | H150: =Databackup!J138 ->  | I150: =Databackup!K138 ->  | J150: =Databackup!L138 ->  | K150: =Databackup!M138 ->  | L150: =IF(Databackup!N138>0,Databackup!N138,"--.--") ->  | M150: Designation
A151: =IF(Databackup!B139="","",Databackup!B139) ->  | B151: =Databackup!C139 ->  | C151: =Databackup!D139 ->  | D151: =Databackup!E139 ->  | E151: =Databackup!F139 ->  | F151: =Databackup!G139 ->  | G151: =Databackup!I139 ->  | H151: =Databackup!J139 ->  | I151: =Databackup!K139 ->  | J151: =Databackup!L139 ->  | K151: =Databackup!M139 ->  | L151: =IF(Databackup!N139>0,Databackup!N139,"--.--") ->  | M151: Designation
A152: =IF(Databackup!B140="","",Databackup!B140) ->  | B152: =Databackup!C140 ->  | C152: =Databackup!D140 ->  | D152: =Databackup!E140 ->  | E152: =Databackup!F140 ->  | F152: =Databackup!G140 ->  | G152: =Databackup!I140 ->  | H152: =Databackup!J140 ->  | I152: =Databackup!K140 ->  | J152: =Databackup!L140 ->  | K152: =Databackup!M140 ->  | L152: =IF(Databackup!N140>0,Databackup!N140,"--.--") ->  | M152: Designation
A153: =IF(Databackup!B141="","",Databackup!B141) ->  | B153: =Databackup!C141 ->  | C153: =Databackup!D141 ->  | D153: =Databackup!E141 ->  | E153: =Databackup!F141 ->  | F153: =Databackup!G141 ->  | G153: =Databackup!I141 ->  | H153: =Databackup!J141 ->  | I153: =Databackup!K141 ->  | J153: =Databackup!L141 ->  | K153: =Databackup!M141 ->  | L153: =IF(Databackup!N141>0,Databackup!N141,"--.--") ->  | M153: Designation
A154: =IF(Databackup!B142="","",Databackup!B142) ->  | B154: =Databackup!C142 ->  | C154: =Databackup!D142 ->  | D154: =Databackup!E142 ->  | E154: =Databackup!F142 ->  | F154: =Databackup!G142 ->  | G154: =Databackup!I142 ->  | H154: =Databackup!J142 ->  | I154: =Databackup!K142 ->  | J154: =Databackup!L142 ->  | K154: =Databackup!M142 ->  | L154: =IF(Databackup!N142>0,Databackup!N142,"--.--") ->  | M154: Designation
A155: =IF(Databackup!B143="","",Databackup!B143) ->  | B155: =Databackup!C143 ->  | C155: =Databackup!D143 ->  | D155: =Databackup!E143 ->  | E155: =Databackup!F143 ->  | F155: =Databackup!G143 ->  | G155: =Databackup!I143 ->  | H155: =Databackup!J143 ->  | I155: =Databackup!K143 ->  | J155: =Databackup!L143 ->  | K155: =Databackup!M143 ->  | L155: =IF(Databackup!N143>0,Databackup!N143,"--.--") ->  | M155: Designation
A156: =IF(Databackup!B144="","",Databackup!B144) ->  | B156: =Databackup!C144 ->  | C156: =Databackup!D144 ->  | D156: =Databackup!E144 ->  | E156: =Databackup!F144 ->  | F156: =Databackup!G144 ->  | G156: =Databackup!I144 ->  | H156: =Databackup!J144 ->  | I156: =Databackup!K144 ->  | J156: =Databackup!L144 ->  | K156: =Databackup!M144 ->  | L156: =IF(Databackup!N144>0,Databackup!N144,"--.--") ->  | M156: Designation
A157: =IF(Databackup!B145="","",Databackup!B145) ->  | B157: =Databackup!C145 ->  | C157: =Databackup!D145 ->  | D157: =Databackup!E145 ->  | E157: =Databackup!F145 ->  | F157: =Databackup!G145 ->  | G157: =Databackup!I145 ->  | H157: =Databackup!J145 ->  | I157: =Databackup!K145 ->  | J157: =Databackup!L145 ->  | K157: =Databackup!M145 ->  | L157: =IF(Databackup!N145>0,Databackup!N145,"--.--") ->  | M157: Designation
A158: =IF(Databackup!B146="","",Databackup!B146) ->  | B158: =Databackup!C146 ->  | C158: =Databackup!D146 ->  | D158: =Databackup!E146 ->  | E158: =Databackup!F146 ->  | F158: =Databackup!G146 ->  | G158: =Databackup!I146 ->  | H158: =Databackup!J146 ->  | I158: =Databackup!K146 ->  | J158: =Databackup!L146 ->  | K158: =Databackup!M146 ->  | L158: =IF(Databackup!N146>0,Databackup!N146,"--.--") ->  | M158: Designation
A159: =IF(Databackup!B147="","",Databackup!B147) ->  | B159: =Databackup!C147 ->  | C159: =Databackup!D147 ->  | D159: =Databackup!E147 ->  | E159: =Databackup!F147 ->  | F159: =Databackup!G147 ->  | G159: =Databackup!I147 ->  | H159: =Databackup!J147 ->  | I159: =Databackup!K147 ->  | J159: =Databackup!L147 ->  | K159: =Databackup!M147 ->  | L159: =IF(Databackup!N147>0,Databackup!N147,"--.--") ->  | M159: Designation
A160: =IF(Databackup!B148="","",Databackup!B148) ->  | B160: =Databackup!C148 ->  | C160: =Databackup!D148 ->  | D160: =Databackup!E148 ->  | E160: =Databackup!F148 ->  | F160: =Databackup!G148 ->  | G160: =Databackup!I148 ->  | H160: =Databackup!J148 ->  | I160: =Databackup!K148 ->  | J160: =Databackup!L148 ->  | K160: =Databackup!M148 ->  | L160: =IF(Databackup!N148>0,Databackup!N148,"--.--") ->  | M160: Designation
A161: =IF(Databackup!B149="","",Databackup!B149) ->  | B161: =Databackup!C149 ->  | C161: =Databackup!D149 ->  | D161: =Databackup!E149 ->  | E161: =Databackup!F149 ->  | F161: =Databackup!G149 ->  | G161: =Databackup!I149 ->  | H161: =Databackup!J149 ->  | I161: =Databackup!K149 ->  | J161: =Databackup!L149 ->  | K161: =Databackup!M149 ->  | L161: =IF(Databackup!N149>0,Databackup!N149,"--.--") ->  | M161: Designation
A162: =IF(Databackup!B150="","",Databackup!B150) ->  | B162: =Databackup!C150 ->  | C162: =Databackup!D150 ->  | D162: =Databackup!E150 ->  | E162: =Databackup!F150 ->  | F162: =Databackup!G150 ->  | G162: =Databackup!I150 ->  | H162: =Databackup!J150 ->  | I162: =Databackup!K150 ->  | J162: =Databackup!L150 ->  | K162: =Databackup!M150 ->  | L162: =IF(Databackup!N150>0,Databackup!N150,"--.--") ->  | M162: Designation
A163: =IF(Databackup!B151="","",Databackup!B151) ->  | B163: =Databackup!C151 ->  | C163: =Databackup!D151 ->  | D163: =Databackup!E151 ->  | E163: =Databackup!F151 ->  | F163: =Databackup!G151 ->  | G163: =Databackup!I151 ->  | H163: =Databackup!J151 ->  | I163: =Databackup!K151 ->  | J163: =Databackup!L151 ->  | K163: =Databackup!M151 ->  | L163: =IF(Databackup!N151>0,Databackup!N151,"--.--") ->  | M163: Designation
A164: =IF(Databackup!B152="","",Databackup!B152) ->  | B164: =Databackup!C152 ->  | C164: =Databackup!D152 ->  | D164: =Databackup!E152 ->  | E164: =Databackup!F152 ->  | F164: =Databackup!G152 ->  | G164: =Databackup!I152 ->  | H164: =Databackup!J152 ->  | I164: =Databackup!K152 ->  | J164: =Databackup!L152 ->  | K164: =Databackup!M152 ->  | L164: =IF(Databackup!N152>0,Databackup!N152,"--.--") ->  | M164: Designation
A165: =IF(Databackup!B153="","",Databackup!B153) ->  | B165: =Databackup!C153 ->  | C165: =Databackup!D153 ->  | D165: =Databackup!E153 ->  | E165: =Databackup!F153 ->  | F165: =Databackup!G153 ->  | G165: =Databackup!I153 ->  | H165: =Databackup!J153 ->  | I165: =Databackup!K153 ->  | J165: =Databackup!L153 ->  | K165: =Databackup!M153 ->  | L165: =IF(Databackup!N153>0,Databackup!N153,"--.--") ->  | M165: Designation
A166: =IF(Databackup!B154="","",Databackup!B154) ->  | B166: =Databackup!C154 ->  | C166: =Databackup!D154 ->  | D166: =Databackup!E154 ->  | E166: =Databackup!F154 ->  | F166: =Databackup!G154 ->  | G166: =Databackup!I154 ->  | H166: =Databackup!J154 ->  | I166: =Databackup!K154 ->  | J166: =Databackup!L154 ->  | K166: =Databackup!M154 ->  | L166: =IF(Databackup!N154>0,Databackup!N154,"--.--") ->  | M166: Designation
A167: =IF(Databackup!B155="","",Databackup!B155) ->  | B167: =Databackup!C155 ->  | C167: =Databackup!D155 ->  | D167: =Databackup!E155 ->  | E167: =Databackup!F155 ->  | F167: =Databackup!G155 ->  | G167: =Databackup!I155 ->  | H167: =Databackup!J155 ->  | I167: =Databackup!K155 ->  | J167: =Databackup!L155 ->  | K167: =Databackup!M155 ->  | L167: =IF(Databackup!N155>0,Databackup!N155,"--.--") ->  | M167: Designation
A168: =IF(Databackup!B156="","",Databackup!B156) ->  | B168: =Databackup!C156 ->  | C168: =Databackup!D156 ->  | D168: =Databackup!E156 ->  | E168: =Databackup!F156 ->  | F168: =Databackup!G156 ->  | G168: =Databackup!I156 ->  | H168: =Databackup!J156 ->  | I168: =Databackup!K156 ->  | J168: =Databackup!L156 ->  | K168: =Databackup!M156 ->  | L168: =IF(Databackup!N156>0,Databackup!N156,"--.--") ->  | M168: Designation
A169: =IF(Databackup!B157="","",Databackup!B157) ->  | B169: =Databackup!C157 ->  | C169: =Databackup!D157 ->  | D169: =Databackup!E157 ->  | E169: =Databackup!F157 ->  | F169: =Databackup!G157 ->  | G169: =Databackup!I157 ->  | H169: =Databackup!J157 ->  | I169: =Databackup!K157 ->  | J169: =Databackup!L157 ->  | K169: =Databackup!M157 ->  | L169: =IF(Databackup!N157>0,Databackup!N157,"--.--") ->  | M169: Designation
A170: =IF(Databackup!B158="","",Databackup!B158) ->  | B170: =Databackup!C158 ->  | C170: =Databackup!D158 ->  | D170: =Databackup!E158 ->  | E170: =Databackup!F158 ->  | F170: =Databackup!G158 ->  | G170: =Databackup!I158 ->  | H170: =Databackup!J158 ->  | I170: =Databackup!K158 ->  | J170: =Databackup!L158 ->  | K170: =Databackup!M158 ->  | L170: =IF(Databackup!N158>0,Databackup!N158,"--.--") ->  | M170: Designation
A171: =IF(Databackup!B159="","",Databackup!B159) ->  | B171: =Databackup!C159 ->  | C171: =Databackup!D159 ->  | D171: =Databackup!E159 ->  | E171: =Databackup!F159 ->  | F171: =Databackup!G159 ->  | G171: =Databackup!I159 ->  | H171: =Databackup!J159 ->  | I171: =Databackup!K159 ->  | J171: =Databackup!L159 ->  | K171: =Databackup!M159 ->  | L171: =IF(Databackup!N159>0,Databackup!N159,"--.--") ->  | M171: Designation
A172: =IF(Databackup!B160="","",Databackup!B160) ->  | B172: =Databackup!C160 ->  | C172: =Databackup!D160 ->  | D172: =Databackup!E160 ->  | E172: =Databackup!F160 ->  | F172: =Databackup!G160 ->  | G172: =Databackup!I160 ->  | H172: =Databackup!J160 ->  | I172: =Databackup!K160 ->  | J172: =Databackup!L160 ->  | K172: =Databackup!M160 ->  | L172: =IF(Databackup!N160>0,Databackup!N160,"--.--") ->  | M172: Designation
A173: =IF(Databackup!B161="","",Databackup!B161) ->  | B173: =Databackup!C161 ->  | C173: =Databackup!D161 ->  | D173: =Databackup!E161 ->  | E173: =Databackup!F161 ->  | F173: =Databackup!G161 ->  | G173: =Databackup!I161 ->  | H173: =Databackup!J161 ->  | I173: =Databackup!K161 ->  | J173: =Databackup!L161 ->  | K173: =Databackup!M161 ->  | L173: =IF(Databackup!N161>0,Databackup!N161,"--.--") ->  | M173: Designation
A174: =IF(Databackup!B162="","",Databackup!B162) ->  | B174: =Databackup!C162 ->  | C174: =Databackup!D162 ->  | D174: =Databackup!E162 ->  | E174: =Databackup!F162 ->  | F174: =Databackup!G162 ->  | G174: =Databackup!I162 ->  | H174: =Databackup!J162 ->  | I174: =Databackup!K162 ->  | J174: =Databackup!L162 ->  | K174: =Databackup!M162 ->  | L174: =IF(Databackup!N162>0,Databackup!N162,"--.--") ->  | M174: Designation
A175: =IF(Databackup!B163="","",Databackup!B163) ->  | B175: =Databackup!C163 ->  | C175: =Databackup!D163 ->  | D175: =Databackup!E163 ->  | E175: =Databackup!F163 ->  | F175: =Databackup!G163 ->  | G175: =Databackup!I163 ->  | H175: =Databackup!J163 ->  | I175: =Databackup!K163 ->  | J175: =Databackup!L163 ->  | K175: =Databackup!M163 ->  | L175: =IF(Databackup!N163>0,Databackup!N163,"--.--") ->  | M175: Designation
A176: =IF(Databackup!B164="","",Databackup!B164) ->  | B176: =Databackup!C164 ->  | C176: =Databackup!D164 ->  | D176: =Databackup!E164 ->  | E176: =Databackup!F164 ->  | F176: =Databackup!G164 ->  | G176: =Databackup!I164 ->  | H176: =Databackup!J164 ->  | I176: =Databackup!K164 ->  | J176: =Databackup!L164 ->  | K176: =Databackup!M164 ->  | L176: =IF(Databackup!N164>0,Databackup!N164,"--.--") ->  | M176: Designation
A177: =IF(Databackup!B165="","",Databackup!B165) ->  | B177: =Databackup!C165 ->  | C177: =Databackup!D165 ->  | D177: =Databackup!E165 ->  | E177: =Databackup!F165 ->  | F177: =Databackup!G165 ->  | G177: =Databackup!I165 ->  | H177: =Databackup!J165 ->  | I177: =Databackup!K165 ->  | J177: =Databackup!L165 ->  | K177: =Databackup!M165 ->  | L177: =IF(Databackup!N165>0,Databackup!N165,"--.--") ->  | M177: Designation
A178: =IF(Databackup!B166="","",Databackup!B166) ->  | B178: =Databackup!C166 ->  | C178: =Databackup!D166 ->  | D178: =Databackup!E166 ->  | E178: =Databackup!F166 ->  | F178: =Databackup!G166 ->  | G178: =Databackup!I166 ->  | H178: =Databackup!J166 ->  | I178: =Databackup!K166 ->  | J178: =Databackup!L166 ->  | K178: =Databackup!M166 ->  | L178: =IF(Databackup!N166>0,Databackup!N166,"--.--") ->  | M178: Designation
A179: =IF(Databackup!B167="","",Databackup!B167) ->  | B179: =Databackup!C167 ->  | C179: =Databackup!D167 ->  | D179: =Databackup!E167 ->  | E179: =Databackup!F167 ->  | F179: =Databackup!G167 ->  | G179: =Databackup!I167 ->  | H179: =Databackup!J167 ->  | I179: =Databackup!K167 ->  | J179: =Databackup!L167 ->  | K179: =Databackup!M167 ->  | L179: =IF(Databackup!N167>0,Databackup!N167,"--.--") ->  | M179: Designation
A180: =IF(Databackup!B168="","",Databackup!B168) ->  | B180: =Databackup!C168 ->  | C180: =Databackup!D168 ->  | D180: =Databackup!E168 ->  | E180: =Databackup!F168 ->  | F180: =Databackup!G168 ->  | G180: =Databackup!I168 ->  | H180: =Databackup!J168 ->  | I180: =Databackup!K168 ->  | J180: =Databackup!L168 ->  | K180: =Databackup!M168 ->  | L180: =IF(Databackup!N168>0,Databackup!N168,"--.--") ->  | M180: Designation
A181: =IF(Databackup!B169="","",Databackup!B169) ->  | B181: =Databackup!C169 ->  | C181: =Databackup!D169 ->  | D181: =Databackup!E169 ->  | E181: =Databackup!F169 ->  | F181: =Databackup!G169 ->  | G181: =Databackup!I169 ->  | H181: =Databackup!J169 ->  | I181: =Databackup!K169 ->  | J181: =Databackup!L169 ->  | K181: =Databackup!M169 ->  | L181: =IF(Databackup!N169>0,Databackup!N169,"--.--") ->  | M181: Designation
A182: =IF(Databackup!B170="","",Databackup!B170) ->  | B182: =Databackup!C170 ->  | C182: =Databackup!D170 ->  | D182: =Databackup!E170 ->  | E182: =Databackup!F170 ->  | F182: =Databackup!G170 ->  | G182: =Databackup!I170 ->  | H182: =Databackup!J170 ->  | I182: =Databackup!K170 ->  | J182: =Databackup!L170 ->  | K182: =Databackup!M170 ->  | L182: =IF(Databackup!N170>0,Databackup!N170,"--.--") ->  | M182: Designation
A183: =IF(Databackup!B171="","",Databackup!B171) ->  | B183: =Databackup!C171 ->  | C183: =Databackup!D171 ->  | D183: =Databackup!E171 ->  | E183: =Databackup!F171 ->  | F183: =Databackup!G171 ->  | G183: =Databackup!I171 ->  | H183: =Databackup!J171 ->  | I183: =Databackup!K171 ->  | J183: =Databackup!L171 ->  | K183: =Databackup!M171 ->  | L183: =IF(Databackup!N171>0,Databackup!N171,"--.--") ->  | M183: Designation
A184: =IF(Databackup!B172="","",Databackup!B172) ->  | B184: =Databackup!C172 ->  | C184: =Databackup!D172 ->  | D184: =Databackup!E172 ->  | E184: =Databackup!F172 ->  | F184: =Databackup!G172 ->  | G184: =Databackup!I172 ->  | H184: =Databackup!J172 ->  | I184: =Databackup!K172 ->  | J184: =Databackup!L172 ->  | K184: =Databackup!M172 ->  | L184: =IF(Databackup!N172>0,Databackup!N172,"--.--") ->  | M184: Designation
A185: =IF(Databackup!B173="","",Databackup!B173) ->  | B185: =Databackup!C173 ->  | C185: =Databackup!D173 ->  | D185: =Databackup!E173 ->  | E185: =Databackup!F173 ->  | F185: =Databackup!G173 ->  | G185: =Databackup!I173 ->  | H185: =Databackup!J173 ->  | I185: =Databackup!K173 ->  | J185: =Databackup!L173 ->  | K185: =Databackup!M173 ->  | L185: =IF(Databackup!N173>0,Databackup!N173,"--.--") ->  | M185: Designation
A186: =IF(Databackup!B174="","",Databackup!B174) ->  | B186: =Databackup!C174 ->  | C186: =Databackup!D174 ->  | D186: =Databackup!E174 ->  | E186: =Databackup!F174 ->  | F186: =Databackup!G174 ->  | G186: =Databackup!I174 ->  | H186: =Databackup!J174 ->  | I186: =Databackup!K174 ->  | J186: =Databackup!L174 ->  | K186: =Databackup!M174 ->  | L186: =IF(Databackup!N174>0,Databackup!N174,"--.--") ->  | M186: Designation
A187: =IF(Databackup!B175="","",Databackup!B175) ->  | B187: =Databackup!C175 ->  | C187: =Databackup!D175 ->  | D187: =Databackup!E175 ->  | E187: =Databackup!F175 ->  | F187: =Databackup!G175 ->  | G187: =Databackup!I175 ->  | H187: =Databackup!J175 ->  | I187: =Databackup!K175 ->  | J187: =Databackup!L175 ->  | K187: =Databackup!M175 ->  | L187: =IF(Databackup!N175>0,Databackup!N175,"--.--") ->  | M187: Designation
A188: =IF(Databackup!B176="","",Databackup!B176) ->  | B188: =Databackup!C176 ->  | C188: =Databackup!D176 ->  | D188: =Databackup!E176 ->  | E188: =Databackup!F176 ->  | F188: =Databackup!G176 ->  | G188: =Databackup!I176 ->  | H188: =Databackup!J176 ->  | I188: =Databackup!K176 ->  | J188: =Databackup!L176 ->  | K188: =Databackup!M176 ->  | L188: =IF(Databackup!N176>0,Databackup!N176,"--.--") ->  | M188: Designation
A189: =IF(Databackup!B177="","",Databackup!B177) ->  | B189: =Databackup!C177 ->  | C189: =Databackup!D177 ->  | D189: =Databackup!E177 ->  | E189: =Databackup!F177 ->  | F189: =Databackup!G177 ->  | G189: =Databackup!I177 ->  | H189: =Databackup!J177 ->  | I189: =Databackup!K177 ->  | J189: =Databackup!L177 ->  | K189: =Databackup!M177 ->  | L189: =IF(Databackup!N177>0,Databackup!N177,"--.--") ->  | M189: Designation
A190: =IF(Databackup!B178="","",Databackup!B178) ->  | B190: =Databackup!C178 ->  | C190: =Databackup!D178 ->  | D190: =Databackup!E178 ->  | E190: =Databackup!F178 ->  | F190: =Databackup!G178 ->  | G190: =Databackup!I178 ->  | H190: =Databackup!J178 ->  | I190: =Databackup!K178 ->  | J190: =Databackup!L178 ->  | K190: =Databackup!M178 ->  | L190: =IF(Databackup!N178>0,Databackup!N178,"--.--") ->  | M190: Designation
A191: =IF(Databackup!B179="","",Databackup!B179) ->  | B191: =Databackup!C179 ->  | C191: =Databackup!D179 ->  | D191: =Databackup!E179 ->  | E191: =Databackup!F179 ->  | F191: =Databackup!G179 ->  | G191: =Databackup!I179 ->  | H191: =Databackup!J179 ->  | I191: =Databackup!K179 ->  | J191: =Databackup!L179 ->  | K191: =Databackup!M179 ->  | L191: =IF(Databackup!N179>0,Databackup!N179,"--.--") ->  | M191: Designation
A192: =IF(Databackup!B180="","",Databackup!B180) ->  | B192: =Databackup!C180 ->  | C192: =Databackup!D180 ->  | D192: =Databackup!E180 ->  | E192: =Databackup!F180 ->  | F192: =Databackup!G180 ->  | G192: =Databackup!I180 ->  | H192: =Databackup!J180 ->  | I192: =Databackup!K180 ->  | J192: =Databackup!L180 ->  | K192: =Databackup!M180 ->  | L192: =IF(Databackup!N180>0,Databackup!N180,"--.--") ->  | M192: Designation
A193: =IF(Databackup!B181="","",Databackup!B181) ->  | B193: =Databackup!C181 ->  | C193: =Databackup!D181 ->  | D193: =Databackup!E181 ->  | E193: =Databackup!F181 ->  | F193: =Databackup!G181 ->  | G193: =Databackup!I181 ->  | H193: =Databackup!J181 ->  | I193: =Databackup!K181 ->  | J193: =Databackup!L181 ->  | K193: =Databackup!M181 ->  | L193: =IF(Databackup!N181>0,Databackup!N181,"--.--") ->  | M193: Designation
A194: =IF(Databackup!B182="","",Databackup!B182) ->  | B194: =Databackup!C182 ->  | C194: =Databackup!D182 ->  | D194: =Databackup!E182 ->  | E194: =Databackup!F182 ->  | F194: =Databackup!G182 ->  | G194: =Databackup!I182 ->  | H194: =Databackup!J182 ->  | I194: =Databackup!K182 ->  | J194: =Databackup!L182 ->  | K194: =Databackup!M182 ->  | L194: =IF(Databackup!N182>0,Databackup!N182,"--.--") ->  | M194: Designation
A195: =IF(Databackup!B183="","",Databackup!B183) ->  | B195: =Databackup!C183 ->  | C195: =Databackup!D183 ->  | D195: =Databackup!E183 ->  | E195: =Databackup!F183 ->  | F195: =Databackup!G183 ->  | G195: =Databackup!I183 ->  | H195: =Databackup!J183 ->  | I195: =Databackup!K183 ->  | J195: =Databackup!L183 ->  | K195: =Databackup!M183 ->  | L195: =IF(Databackup!N183>0,Databackup!N183,"--.--") ->  | M195: Designation
A196: =IF(Databackup!B184="","",Databackup!B184) ->  | B196: =Databackup!C184 ->  | C196: =Databackup!D184 ->  | D196: =Databackup!E184 ->  | E196: =Databackup!F184 ->  | F196: =Databackup!G184 ->  | G196: =Databackup!I184 ->  | H196: =Databackup!J184 ->  | I196: =Databackup!K184 ->  | J196: =Databackup!L184 ->  | K196: =Databackup!M184 ->  | L196: =IF(Databackup!N184>0,Databackup!N184,"--.--") ->  | M196: Designation
A197: =IF(Databackup!B185="","",Databackup!B185) ->  | B197: =Databackup!C185 ->  | C197: =Databackup!D185 ->  | D197: =Databackup!E185 ->  | E197: =Databackup!F185 ->  | F197: =Databackup!G185 ->  | G197: =Databackup!I185 ->  | H197: =Databackup!J185 ->  | I197: =Databackup!K185 ->  | J197: =Databackup!L185 ->  | K197: =Databackup!M185 ->  | L197: =IF(Databackup!N185>0,Databackup!N185,"--.--") ->  | M197: Designation
A198: =IF(Databackup!B186="","",Databackup!B186) ->  | B198: =Databackup!C186 ->  | C198: =Databackup!D186 ->  | D198: =Databackup!E186 ->  | E198: =Databackup!F186 ->  | F198: =Databackup!G186 ->  | G198: =Databackup!I186 ->  | H198: =Databackup!J186 ->  | I198: =Databackup!K186 ->  | J198: =Databackup!L186 ->  | K198: =Databackup!M186 ->  | L198: =IF(Databackup!N186>0,Databackup!N186,"--.--") ->  | M198: Designation
A199: =IF(Databackup!B187="","",Databackup!B187) ->  | B199: =Databackup!C187 ->  | C199: =Databackup!D187 ->  | D199: =Databackup!E187 ->  | E199: =Databackup!F187 ->  | F199: =Databackup!G187 ->  | G199: =Databackup!I187 ->  | H199: =Databackup!J187 ->  | I199: =Databackup!K187 ->  | J199: =Databackup!L187 ->  | K199: =Databackup!M187 ->  | L199: =IF(Databackup!N187>0,Databackup!N187,"--.--") ->  | M199: Designation
A200: =IF(Databackup!B188="","",Databackup!B188) ->  | B200: =Databackup!C188 ->  | C200: =Databackup!D188 ->  | D200: =Databackup!E188 ->  | E200: =Databackup!F188 ->  | F200: =Databackup!G188 ->  | G200: =Databackup!I188 ->  | H200: =Databackup!J188 ->  | I200: =Databackup!K188 ->  | J200: =Databackup!L188 ->  | K200: =Databackup!M188 ->  | L200: =IF(Databackup!N188>0,Databackup!N188,"--.--") ->  | M200: Designation
A201: =IF(Databackup!B189="","",Databackup!B189) ->  | B201: =Databackup!C189 ->  | C201: =Databackup!D189 ->  | D201: =Databackup!E189 ->  | E201: =Databackup!F189 ->  | F201: =Databackup!G189 ->  | G201: =Databackup!I189 ->  | H201: =Databackup!J189 ->  | I201: =Databackup!K189 ->  | J201: =Databackup!L189 ->  | K201: =Databackup!M189 ->  | L201: =IF(Databackup!N189>0,Databackup!N189,"--.--") ->  | M201: Designation
A202: =IF(Databackup!B190="","",Databackup!B190) ->  | B202: =Databackup!C190 ->  | C202: =Databackup!D190 ->  | D202: =Databackup!E190 ->  | E202: =Databackup!F190 ->  | F202: =Databackup!G190 ->  | G202: =Databackup!I190 ->  | H202: =Databackup!J190 ->  | I202: =Databackup!K190 ->  | J202: =Databackup!L190 ->  | K202: =Databackup!M190 ->  | L202: =IF(Databackup!N190>0,Databackup!N190,"--.--") ->  | M202: Designation
A203: =IF(Databackup!B191="","",Databackup!B191) ->  | B203: =Databackup!C191 ->  | C203: =Databackup!D191 ->  | D203: =Databackup!E191 ->  | E203: =Databackup!F191 ->  | F203: =Databackup!G191 ->  | G203: =Databackup!I191 ->  | H203: =Databackup!J191 ->  | I203: =Databackup!K191 ->  | J203: =Databackup!L191 ->  | K203: =Databackup!M191 ->  | L203: =IF(Databackup!N191>0,Databackup!N191,"--.--") ->  | M203: Designation
A204: =IF(Databackup!B192="","",Databackup!B192) ->  | B204: =Databackup!C192 ->  | C204: =Databackup!D192 ->  | D204: =Databackup!E192 ->  | E204: =Databackup!F192 ->  | F204: =Databackup!G192 ->  | G204: =Databackup!I192 ->  | H204: =Databackup!J192 ->  | I204: =Databackup!K192 ->  | J204: =Databackup!L192 ->  | K204: =Databackup!M192 ->  | L204: =IF(Databackup!N192>0,Databackup!N192,"--.--") ->  | M204: Designation
A205: =IF(Databackup!B193="","",Databackup!B193) ->  | B205: =Databackup!C193 ->  | C205: =Databackup!D193 ->  | D205: =Databackup!E193 ->  | E205: =Databackup!F193 ->  | F205: =Databackup!G193 ->  | G205: =Databackup!I193 ->  | H205: =Databackup!J193 ->  | I205: =Databackup!K193 ->  | J205: =Databackup!L193 ->  | K205: =Databackup!M193 ->  | L205: =IF(Databackup!N193>0,Databackup!N193,"--.--") ->  | M205: Designation
A206: =IF(Databackup!B194="","",Databackup!B194) ->  | B206: =Databackup!C194 ->  | C206: =Databackup!D194 ->  | D206: =Databackup!E194 ->  | E206: =Databackup!F194 ->  | F206: =Databackup!G194 ->  | G206: =Databackup!I194 ->  | H206: =Databackup!J194 ->  | I206: =Databackup!K194 ->  | J206: =Databackup!L194 ->  | K206: =Databackup!M194 ->  | L206: =IF(Databackup!N194>0,Databackup!N194,"--.--") ->  | M206: Designation
... 369 more rows

Sheet Employee Data
C1: Process-Increment | G1: HOME | I1: Emp. Code "647805" is sample, when you process for incr. order, pleaseselect incr. condition "NO", for this code only | N1: HOME | P1: Country:
B2: Emp. Code | C2: Name of Incumbent | D2: Post | E2: code for pay level | F2: Pay Level as on | G2: Date From Present Pay is being taken | H2: Date of Increment | I2: Incre. Condition | J2: Pay in the Level in the Pay Matrix | K2: Increment amt. | L2: Total basic pay | M2: Opening Balance of Adjusted P.P. under Rule 11(6) | N2: Adjusted P.P. under Rule 11(6) | O2: Closing Balace P.P. amt
B3: 1 | C3: =B3+1 -> 2 | D3: =C3+1 -> 3 | F3: =D3+1 -> 4 | G3: =F3+1 -> 5 | H3: =G3+1 -> 6 | I3: =H3+1 -> 7 | J3: =I3+1 -> 8 | K3: =J3+1 -> 9 | L3: =K3+1 -> 10 | M3: =L3+1 -> 11 | N3: =M3+1 -> 12 | O3: =N3+1 -> 13 | P3: Sort order:
B4: 1 | C4: PKS | D4: AAO-I | E4: =IF(F4="","",INDEX(Table_Incr!$CB$7:$CB$30,MATCH('Employee Data'!F4,Table_Incr!$CC$7:$CC$30,0))) -> Level_13 | F4: L-13 | G4: 2022-07-01 | H4: 2023-07-01 | I4: YES | J4: 82600 | K4: =IF(B4="","",IF(I4="YES",ROUND((J4*0.03),-2),0)) -> 2500 | L4: =IF(B4="","",J4+K4) -> 85100 | M4: 0 | N4: =IF(B5="","",IF(M4>0,MIN(K4,M4),0)) ->  | O4: =IF(M4=0,"--N.A.--",IF(N4>=0,M4-N4,"--N.A.--")) -> --N.A.-- | P4: =SMALL(IF(Databackup!$A$1=$I$4:$I$7,$C$4:$C$7,""),ROW(#REF!)) -> 
K5: =IF(B5="","",IF(I5="YES",ROUND((J5*0.03),-2),0)) ->  | N5: =IF(B5="","",IF(M5>0,MIN(K5,M5),0)) ->  | O5: =IF(M5=0,"--.--",IF(N5>=0,M5-N5,"--.--")) -> --.-- | P5: =SMALL(IF(Databackup!$A$1=$I$4:$I$7,$C$4:$C$7,""),ROW(#REF!)) -> 
N6: =IF(B6="","",IF(M6>0,MIN(K6,M6),0)) ->  | O6: =IF(M6=0,"--.--",IF(N6>=0,M6-N6,"--.--")) -> --.-- | P6: =SMALL(IF(Databackup!$A$1=$I$4:$I$7,$C$4:$C$7,""),ROW(#REF!)) ->  | Q6: =INDEX(Employee_Name,MATCH(SMALL(IF(Databackup!$A$1=$I$4:$I$553,$B$4:$B$553,""),ROW(A3)),IF(Databackup!$A$1=$I$4:$I$553,$B$4:$B$553,""),0)) -> 
O7: --.-- | P7: =SMALL(IF(Databackup!$A$1=$I$4:$I$7,$C$4:$C$7,""),ROW(#REF!)) ->  | Q7: =INDEX(Employee_Name,MATCH(SMALL(IF(Databackup!$A$1=$I$4:$I$553,$B$4:$B$553,""),ROW(A4)),IF(Databackup!$A$1=$I$4:$I$553,$B$4:$B$553,""),0)) -> 
E8: =IF(F8="","",INDEX(Table_Incr!$CB$7:$CB$30,MATCH('Employee Data'!F8,Table_Incr!$CC$7:$CC$30,0))) ->  | O8: --.-- | P8: =SMALL(IF(Databackup!$A$1=$I$4:$I$7,$C$4:$C$7,""),ROW(#REF!)) ->  | Q8: =INDEX(Employee_Name,MATCH(SMALL(IF(Databackup!$A$1=$I$4:$I$553,$B$4:$B$553,""),ROW(A5)),IF(Databackup!$A$1=$I$4:$I$553,$B$4:$B$553,""),0)) -> 
E9: =IF(F9="","",INDEX(Table_Incr!$CB$7:$CB$30,MATCH('Employee Data'!F9,Table_Incr!$CC$7:$CC$30,0))) ->  | N9: =IF(B9="","",IF(M9>0,MIN(K9,M9),0)) ->  | O9: =IF(M9=0,"--.--",IF(N9>=0,M9-N9,"--.--")) -> --.-- | P9: =SMALL(IF(Databackup!$A$1=$I$4:$I$500,$C$4:$C$500,""),ROW(A6)) ->  | Q9: =INDEX(Employee_Name,MATCH(SMALL(IF(Databackup!$A$1=$I$4:$I$553,$B$4:$B$553,""),ROW(A6)),IF(Databackup!$A$1=$I$4:$I$553,$B$4:$B$553,""),0)) -> 
E10: =IF(F10="","",INDEX(Table_Incr!$CB$7:$CB$30,MATCH('Employee Data'!F10,Table_Incr!$CC$7:$CC$30,0))) ->  | O10: --.-- | P10: =SMALL(IF(Databackup!$A$1=$I$4:$I$500,$C$4:$C$500,""),ROW(A7)) ->  | Q10: =INDEX(Employee_Name,MATCH(SMALL(IF(Databackup!$A$1=$I$4:$I$553,$B$4:$B$553,""),ROW(A7)),IF(Databackup!$A$1=$I$4:$I$553,$B$4:$B$553,""),0)) -> 
E11: =IF(F11="","",INDEX(Table_Incr!$CB$7:$CB$30,MATCH('Employee Data'!F11,Table_Incr!$CC$7:$CC$30,0))) ->  | O11: --.-- | Q11: =INDEX(Employee_Name,MATCH(SMALL(IF(Databackup!$A$1=$I$4:$I$553,$B$4:$B$553,""),ROW(A8)),IF(Databackup!$A$1=$I$4:$I$553,$B$4:$B$553,""),0)) -> 
E12: =IF(F12="","",INDEX(Table_Incr!$CB$7:$CB$30,MATCH('Employee Data'!F12,Table_Incr!$CC$7:$CC$30,0))) ->  | O12: --.-- | Q12: =INDEX(Employee_Name,MATCH(SMALL(IF(Databackup!$A$1=$I$4:$I$553,$B$4:$B$553,""),ROW(A9)),IF(Databackup!$A$1=$I$4:$I$553,$B$4:$B$553,""),0)) -> 
E13: =IF(F13="","",INDEX(Table_Incr!$CB$7:$CB$30,MATCH('Employee Data'!F13,Table_Incr!$CC$7:$CC$30,0))) ->  | O13: --.-- | Q13: =INDEX(Employee_Name,MATCH(SMALL(IF(Databackup!$A$1=$I$4:$I$553,$B$4:$B$553,""),ROW(A10)),IF(Databackup!$A$1=$I$4:$I$553,$B$4:$B$553,""),0)) -> 
E14: =IF(F14="","",INDEX(Table_Incr!$CB$7:$CB$30,MATCH('Employee Data'!F14,Table_Incr!$CC$7:$CC$30,0))) ->  | O14: --.-- | Q14: =INDEX(Employee_Name,MATCH(SMALL(IF(Databackup!$A$1=$I$4:$I$553,$B$4:$B$553,""),ROW(A11)),IF(Databackup!$A$1=$I$4:$I$553,$B$4:$B$553,""),0)) -> 
E15: =IF(F15="","",INDEX(Table_Incr!$CB$7:$CB$30,MATCH('Employee Data'!F15,Table_Incr!$CC$7:$CC$30,0))) ->  | O15: --.-- | Q15: =INDEX(Employee_Name,MATCH(SMALL(IF(Databackup!$A$1=$I$4:$I$553,$B$4:$B$553,""),ROW(A12)),IF(Databackup!$A$1=$I$4:$I$553,$B$4:$B$553,""),0)) -> 
E16: =IF(F16="","",INDEX(Table_Incr!$CB$7:$CB$30,MATCH('Employee Data'!F16,Table_Incr!$CC$7:$CC$30,0))) ->  | O16: --.--
E17: =IF(F17="","",INDEX(Table_Incr!$CB$7:$CB$30,MATCH('Employee Data'!F17,Table_Incr!$CC$7:$CC$30,0))) ->  | O17: --.--
E18: =IF(F18="","",INDEX(Table_Incr!$CB$7:$CB$30,MATCH('Employee Data'!F18,Table_Incr!$CC$7:$CC$30,0))) ->  | O18: --.--
E19: =IF(F19="","",INDEX(Table_Incr!$CB$7:$CB$30,MATCH('Employee Data'!F19,Table_Incr!$CC$7:$CC$30,0))) ->  | O19: --.--
E20: =IF(F20="","",INDEX(Table_Incr!$CB$7:$CB$30,MATCH('Employee Data'!F20,Table_Incr!$CC$7:$CC$30,0))) ->  | O20: --.--
E21: =IF(F21="","",INDEX(Table_Incr!$CB$7:$CB$30,MATCH('Employee Data'!F21,Table_Incr!$CC$7:$CC$30,0))) ->  | O21: --.--
E22: =IF(F22="","",INDEX(Table_Incr!$CB$7:$CB$30,MATCH('Employee Data'!F22,Table_Incr!$CC$7:$CC$30,0))) ->  | O22: --.--
E23: =IF(F23="","",INDEX(Table_Incr!$CB$7:$CB$30,MATCH('Employee Data'!F23,Table_Incr!$CC$7:$CC$30,0))) ->  | O23: --.--
E24: =IF(F24="","",INDEX(Table_Incr!$CB$7:$CB$30,MATCH('Employee Data'!F24,Table_Incr!$CC$7:$CC$30,0))) ->  | O24: --.--
E25: =IF(F25="","",INDEX(Table_Incr!$CB$7:$CB$30,MATCH('Employee Data'!F25,Table_Incr!$CC$7:$CC$30,0))) ->  | O25: --.--
E26: =IF(F26="","",INDEX(Table_Incr!$CB$7:$CB$30,MATCH('Employee Data'!F26,Table_Incr!$CC$7:$CC$30,0))) ->  | O26: --.--
E27: =IF(F27="","",INDEX(Table_Incr!$CB$7:$CB$30,MATCH('Employee Data'!F27,Table_Incr!$CC$7:$CC$30,0))) ->  | O27: --.--
E28: =IF(F28="","",INDEX(Table_Incr!$CB$7:$CB$30,MATCH('Employee Data'!F28,Table_Incr!$CC$7:$CC$30,0))) ->  | O28: --.--
E29: =IF(F29="","",INDEX(Table_Incr!$CB$7:$CB$30,MATCH('Employee Data'!F29,Table_Incr!$CC$7:$CC$30,0))) ->  | O29: --.--
E30: =IF(F30="","",INDEX(Table_Incr!$CB$7:$CB$30,MATCH('Employee Data'!F30,Table_Incr!$CC$7:$CC$30,0))) ->  | O30: --.--
E31: =IF(F31="","",INDEX(Table_Incr!$CB$7:$CB$30,MATCH('Employee Data'!F31,Table_Incr!$CC$7:$CC$30,0))) ->  | O31: --.--
E32: =IF(F32="","",INDEX(Table_Incr!$CB$7:$CB$30,MATCH('Employee Data'!F32,Table_Incr!$CC$7:$CC$30,0))) ->  | O32: --.--
E33: =IF(F33="","",INDEX(Table_Incr!$CB$7:$CB$30,MATCH('Employee Data'!F33,Table_Incr!$CC$7:$CC$30,0))) ->  | O33: --.--
E34: =IF(F34="","",INDEX(Table_Incr!$CB$7:$CB$30,MATCH('Employee Data'!F34,Table_Incr!$CC$7:$CC$30,0))) ->  | O34: --.--
E35: =IF(F35="","",INDEX(Table_Incr!$CB$7:$CB$30,MATCH('Employee Data'!F35,Table_Incr!$CC$7:$CC$30,0))) ->  | O35: --.--
E36: =IF(F36="","",INDEX(Table_Incr!$CB$7:$CB$30,MATCH('Employee Data'!F36,Table_Incr!$CC$7:$CC$30,0))) ->  | O36: --.--
E37: =IF(F37="","",INDEX(Table_Incr!$CB$7:$CB$30,MATCH('Employee Data'!F37,Table_Incr!$CC$7:$CC$30,0))) ->  | O37: --.--
E38: =IF(F38="","",INDEX(Table_Incr!$CB$7:$CB$30,MATCH('Employee Data'!F38,Table_Incr!$CC$7:$CC$30,0))) ->  | O38: --.--
E39: =IF(F39="","",INDEX(Table_Incr!$CB$7:$CB$30,MATCH('Employee Data'!F39,Table_Incr!$CC$7:$CC$30,0))) ->  | O39: --.--
E40: =IF(F40="","",INDEX(Table_Incr!$CB$7:$CB$30,MATCH('Employee Data'!F40,Table_Incr!$CC$7:$CC$30,0))) ->  | O40: --.--
E41: =IF(F41="","",INDEX(Table_Incr!$CB$7:$CB$30,MATCH('Employee Data'!F41,Table_Incr!$CC$7:$CC$30,0))) ->  | O41: --.--
E42: =IF(F42="","",INDEX(Table_Incr!$CB$7:$CB$30,MATCH('Employee Data'!F42,Table_Incr!$CC$7:$CC$30,0))) ->  | O42: --.--
E43: =IF(F43="","",INDEX(Table_Incr!$CB$7:$CB$30,MATCH('Employee Data'!F43,Table_Incr!$CC$7:$CC$30,0))) ->  | O43: --.--
E44: =IF(F44="","",INDEX(Table_Incr!$CB$7:$CB$30,MATCH('Employee Data'!F44,Table_Incr!$CC$7:$CC$30,0))) ->  | O44: --.--
E45: =IF(F45="","",INDEX(Table_Incr!$CB$7:$CB$30,MATCH('Employee Data'!F45,Table_Incr!$CC$7:$CC$30,0))) ->  | O45: --.--
E46: =IF(F46="","",INDEX(Table_Incr!$CB$7:$CB$30,MATCH('Employee Data'!F46,Table_Incr!$CC$7:$CC$30,0))) ->  | O46: --.--
E47: =IF(F47="","",INDEX(Table_Incr!$CB$7:$CB$30,MATCH('Employee Data'!F47,Table_Incr!$CC$7:$CC$30,0))) ->  | O47: --.--
E48: =IF(F48="","",INDEX(Table_Incr!$CB$7:$CB$30,MATCH('Employee Data'!F48,Table_Incr!$CC$7:$CC$30,0))) ->  | O48: --.--
E49: =IF(F49="","",INDEX(Table_Incr!$CB$7:$CB$30,MATCH('Employee Data'!F49,Table_Incr!$CC$7:$CC$30,0))) ->  | O49: --.--
E50: =IF(F50="","",INDEX(Table_Incr!$CB$7:$CB$30,MATCH('Employee Data'!F50,Table_Incr!$CC$7:$CC$30,0))) ->  | O50: --.--
E51: =IF(F51="","",INDEX(Table_Incr!$CB$7:$CB$30,MATCH('Employee Data'!F51,Table_Incr!$CC$7:$CC$30,0))) ->  | O51: --.--
E52: =IF(F52="","",INDEX(Table_Incr!$CB$7:$CB$30,MATCH('Employee Data'!F52,Table_Incr!$CC$7:$CC$30,0))) ->  | O52: --.--
E53: =IF(F53="","",INDEX(Table_Incr!$CB$7:$CB$30,MATCH('Employee Data'!F53,Table_Incr!$CC$7:$CC$30,0))) ->  | O53: --.--
E54: =IF(F54="","",INDEX(Table_Incr!$CB$7:$CB$30,MATCH('Employee Data'!F54,Table_Incr!$CC$7:$CC$30,0))) ->  | O54: --.--
E55: =IF(F55="","",INDEX(Table_Incr!$CB$7:$CB$30,MATCH('Employee Data'!F55,Table_Incr!$CC$7:$CC$30,0))) ->  | O55: --.--
E56: =IF(F56="","",INDEX(Table_Incr!$CB$7:$CB$30,MATCH('Employee Data'!F56,Table_Incr!$CC$7:$CC$30,0))) ->  | O56: --.--
E57: =IF(F57="","",INDEX(Table_Incr!$CB$7:$CB$30,MATCH('Employee Data'!F57,Table_Incr!$CC$7:$CC$30,0))) ->  | O57: --.--
E58: =IF(F58="","",INDEX(Table_Incr!$CB$7:$CB$30,MATCH('Employee Data'!F58,Table_Incr!$CC$7:$CC$30,0))) ->  | O58: --.--
E59: =IF(F59="","",INDEX(Table_Incr!$CB$7:$CB$30,MATCH('Employee Data'!F59,Table_Incr!$CC$7:$CC$30,0))) ->  | O59: --.--
E60: =IF(F60="","",INDEX(Table_Incr!$CB$7:$CB$30,MATCH('Employee Data'!F60,Table_Incr!$CC$7:$CC$30,0))) ->  | O60: --.--
E61: =IF(F61="","",INDEX(Table_Incr!$CB$7:$CB$30,MATCH('Employee Data'!F61,Table_Incr!$CC$7:$CC$30,0))) ->  | O61: --.--
E62: =IF(F62="","",INDEX(Table_Incr!$CB$7:$CB$30,MATCH('Employee Data'!F62,Table_Incr!$CC$7:$CC$30,0))) ->  | O62: --.--
E63: =IF(F63="","",INDEX(Table_Incr!$CB$7:$CB$30,MATCH('Employee Data'!F63,Table_Incr!$CC$7:$CC$30,0))) ->  | O63: --.--
E64: =IF(F64="","",INDEX(Table_Incr!$CB$7:$CB$30,MATCH('Employee Data'!F64,Table_Incr!$CC$7:$CC$30,0))) ->  | O64: --.--
E65: =IF(F65="","",INDEX(Table_Incr!$CB$7:$CB$30,MATCH('Employee Data'!F65,Table_Incr!$CC$7:$CC$30,0))) ->  | O65: --.--
E66: =IF(F66="","",INDEX(Table_Incr!$CB$7:$CB$30,MATCH('Employee Data'!F66,Table_Incr!$CC$7:$CC$30,0))) ->  | O66: --.--
E67: =IF(F67="","",INDEX(Table_Incr!$CB$7:$CB$30,MATCH('Employee Data'!F67,Table_Incr!$CC$7:$CC$30,0))) ->  | O67: --.--
E68: =IF(F68="","",INDEX(Table_Incr!$CB$7:$CB$30,MATCH('Employee Data'!F68,Table_Incr!$CC$7:$CC$30,0))) ->  | L68: =IF(B68="","",J68+K68) ->  | O68: --.--
E69: =IF(F69="","",INDEX(Table_Incr!$CB$7:$CB$30,MATCH('Employee Data'!F69,Table_Incr!$CC$7:$CC$30,0))) ->  | K69: =IF(B69="","",IF(I69="YES",ROUND((J69*0.03),-2),0)) ->  | O69: --.--
E70: =IF(F70="","",INDEX(Table_Incr!$CB$7:$CB$30,MATCH('Employee Data'!F70,Table_Incr!$CC$7:$CC$30,0))) ->  | O70: --.--
E71: =IF(F71="","",INDEX(Table_Incr!$CB$7:$CB$30,MATCH('Employee Data'!F71,Table_Incr!$CC$7:$CC$30,0))) ->  | O71: --.--
E72: =IF(F72="","",INDEX(Table_Incr!$CB$7:$CB$30,MATCH('Employee Data'!F72,Table_Incr!$CC$7:$CC$30,0))) ->  | O72: --.--
E73: =IF(F73="","",INDEX(Table_Incr!$CB$7:$CB$30,MATCH('Employee Data'!F73,Table_Incr!$CC$7:$CC$30,0))) ->  | N73: =IF(B73="","",IF(M73>0,MIN(K73,M73),0)) ->  | O73: =IF(M73=0,"--.--",IF(N73>=0,M73-N73,"--.--")) -> --.--
E74: =IF(F74="","",INDEX(Table_Incr!$CB$7:$CB$30,MATCH('Employee Data'!F74,Table_Incr!$CC$7:$CC$30,0))) ->  | O74: --.--
E75: =IF(F75="","",INDEX(Table_Incr!$CB$7:$CB$30,MATCH('Employee Data'!F75,Table_Incr!$CC$7:$CC$30,0))) ->  | O75: --.--
E76: =IF(F76="","",INDEX(Table_Incr!$CB$7:$CB$30,MATCH('Employee Data'!F76,Table_Incr!$CC$7:$CC$30,0))) ->  | O76: --.--
E77: =IF(F77="","",INDEX(Table_Incr!$CB$7:$CB$30,MATCH('Employee Data'!F77,Table_Incr!$CC$7:$CC$30,0))) ->  | O77: --.--
E78: =IF(F78="","",INDEX(Table_Incr!$CB$7:$CB$30,MATCH('Employee Data'!F78,Table_Incr!$CC$7:$CC$30,0))) ->  | O78: --.--
E79: =IF(F79="","",INDEX(Table_Incr!$CB$7:$CB$30,MATCH('Employee Data'!F79,Table_Incr!$CC$7:$CC$30,0))) ->  | O79: --.--
E80: =IF(F80="","",INDEX(Table_Incr!$CB$7:$CB$30,MATCH('Employee Data'!F80,Table_Incr!$CC$7:$CC$30,0))) ->  | O80: --.--
E81: =IF(F81="","",INDEX(Table_Incr!$CB$7:$CB$30,MATCH('Employee Data'!F81,Table_Incr!$CC$7:$CC$30,0))) ->  | O81: --.--
E82: =IF(F82="","",INDEX(Table_Incr!$CB$7:$CB$30,MATCH('Employee Data'!F82,Table_Incr!$CC$7:$CC$30,0))) ->  | O82: --.--
E83: =IF(F83="","",INDEX(Table_Incr!$CB$7:$CB$30,MATCH('Employee Data'!F83,Table_Incr!$CC$7:$CC$30,0))) ->  | O83: --.--
E84: =IF(F84="","",INDEX(Table_Incr!$CB$7:$CB$30,MATCH('Employee Data'!F84,Table_Incr!$CC$7:$CC$30,0))) ->  | O84: --.--
E85: =IF(F85="","",INDEX(Table_Incr!$CB$7:$CB$30,MATCH('Employee Data'!F85,Table_Incr!$CC$7:$CC$30,0))) ->  | O85: --.--
E86: =IF(F86="","",INDEX(Table_Incr!$CB$7:$CB$30,MATCH('Employee Data'!F86,Table_Incr!$CC$7:$CC$30,0))) ->  | O86: --.--
E87: =IF(F87="","",INDEX(Table_Incr!$CB$7:$CB$30,MATCH('Employee Data'!F87,Table_Incr!$CC$7:$CC$30,0))) ->  | O87: --.--
E88: =IF(F88="","",INDEX(Table_Incr!$CB$7:$CB$30,MATCH('Employee Data'!F88,Table_Incr!$CC$7:$CC$30,0))) ->  | O88: --.--
E89: =IF(F89="","",INDEX(Table_Incr!$CB$7:$CB$30,MATCH('Employee Data'!F89,Table_Incr!$CC$7:$CC$30,0))) ->  | O89: --.--
E90: =IF(F90="","",INDEX(Table_Incr!$CB$7:$CB$30,MATCH('Employee Data'!F90,Table_Incr!$CC$7:$CC$30,0))) ->  | O90: --.--
E91: =IF(F91="","",INDEX(Table_Incr!$CB$7:$CB$30,MATCH('Employee Data'!F91,Table_Incr!$CC$7:$CC$30,0))) ->  | O91: --.--
E92: =IF(F92="","",INDEX(Table_Incr!$CB$7:$CB$30,MATCH('Employee Data'!F92,Table_Incr!$CC$7:$CC$30,0))) ->  | O92: --.--
E93: =IF(F93="","",INDEX(Table_Incr!$CB$7:$CB$30,MATCH('Employee Data'!F93,Table_Incr!$CC$7:$CC$30,0))) ->  | O93: --.--
E94: =IF(F94="","",INDEX(Table_Incr!$CB$7:$CB$30,MATCH('Employee Data'!F94,Table_Incr!$CC$7:$CC$30,0))) ->  | O94: --.--
E95: =IF(F95="","",INDEX(Table_Incr!$CB$7:$CB$30,MATCH('Employee Data'!F95,Table_Incr!$CC$7:$CC$30,0))) ->  | O95: --.--
E96: =IF(F96="","",INDEX(Table_Incr!$CB$7:$CB$30,MATCH('Employee Data'!F96,Table_Incr!$CC$7:$CC$30,0))) ->  | O96: --.--
E97: =IF(F97="","",INDEX(Table_Incr!$CB$7:$CB$30,MATCH('Employee Data'!F97,Table_Incr!$CC$7:$CC$30,0))) ->  | O97: --.--
E98: =IF(F98="","",INDEX(Table_Incr!$CB$7:$CB$30,MATCH('Employee Data'!F98,Table_Incr!$CC$7:$CC$30,0))) ->  | O98: --.--
E99: =IF(F99="","",INDEX(Table_Incr!$CB$7:$CB$30,MATCH('Employee Data'!F99,Table_Incr!$CC$7:$CC$30,0))) ->  | O99: --.--
E100: =IF(F100="","",INDEX(Table_Incr!$CB$7:$CB$30,MATCH('Employee Data'!F100,Table_Incr!$CC$7:$CC$30,0))) ->  | O100: --.--
E101: =IF(F101="","",INDEX(Table_Incr!$CB$7:$CB$30,MATCH('Employee Data'!F101,Table_Incr!$CC$7:$CC$30,0))) ->  | O101: --.--
E102: =IF(F102="","",INDEX(Table_Incr!$CB$7:$CB$30,MATCH('Employee Data'!F102,Table_Incr!$CC$7:$CC$30,0))) ->  | O102: --.--
E103: =IF(F103="","",INDEX(Table_Incr!$CB$7:$CB$30,MATCH('Employee Data'!F103,Table_Incr!$CC$7:$CC$30,0))) ->  | O103: --.--
E104: =IF(F104="","",INDEX(Table_Incr!$CB$7:$CB$30,MATCH('Employee Data'!F104,Table_Incr!$CC$7:$CC$30,0))) ->  | O104: --.--
E105: =IF(F105="","",INDEX(Table_Incr!$CB$7:$CB$30,MATCH('Employee Data'!F105,Table_Incr!$CC$7:$CC$30,0))) ->  | O105: --.--
E106: =IF(F106="","",INDEX(Table_Incr!$CB$7:$CB$30,MATCH('Employee Data'!F106,Table_Incr!$CC$7:$CC$30,0))) ->  | O106: --.--
E107: =IF(F107="","",INDEX(Table_Incr!$CB$7:$CB$30,MATCH('Employee Data'!F107,Table_Incr!$CC$7:$CC$30,0))) ->  | O107: --.--
E108: =IF(F108="","",INDEX(Table_Incr!$CB$7:$CB$30,MATCH('Employee Data'!F108,Table_Incr!$CC$7:$CC$30,0))) ->  | O108: --.--
E109: =IF(F109="","",INDEX(Table_Incr!$CB$7:$CB$30,MATCH('Employee Data'!F109,Table_Incr!$CC$7:$CC$30,0))) ->  | O109: --.--
E110: =IF(F110="","",INDEX(Table_Incr!$CB$7:$CB$30,MATCH('Employee Data'!F110,Table_Incr!$CC$7:$CC$30,0))) ->  | O110: --.--
E111: =IF(F111="","",INDEX(Table_Incr!$CB$7:$CB$30,MATCH('Employee Data'!F111,Table_Incr!$CC$7:$CC$30,0))) ->  | O111: --.--
E112: =IF(F112="","",INDEX(Table_Incr!$CB$7:$CB$30,MATCH('Employee Data'!F112,Table_Incr!$CC$7:$CC$30,0))) ->  | O112: --.--
E113: =IF(F113="","",INDEX(Table_Incr!$CB$7:$CB$30,MATCH('Employee Data'!F113,Table_Incr!$CC$7:$CC$30,0))) ->  | O113: --.--
E114: =IF(F114="","",INDEX(Table_Incr!$CB$7:$CB$30,MATCH('Employee Data'!F114,Table_Incr!$CC$7:$CC$30,0))) ->  | O114: --.--
E115: =IF(F115="","",INDEX(Table_Incr!$CB$7:$CB$30,MATCH('Employee Data'!F115,Table_Incr!$CC$7:$CC$30,0))) ->  | O115: --.--
E116: =IF(F116="","",INDEX(Table_Incr!$CB$7:$CB$30,MATCH('Employee Data'!F116,Table_Incr!$CC$7:$CC$30,0))) ->  | O116: --.--
E117: =IF(F117="","",INDEX(Table_Incr!$CB$7:$CB$30,MATCH('Employee Data'!F117,Table_Incr!$CC$7:$CC$30,0))) ->  | O117: --.--
E118: =IF(F118="","",INDEX(Table_Incr!$CB$7:$CB$30,MATCH('Employee Data'!F118,Table_Incr!$CC$7:$CC$30,0))) ->  | O118: --.--
E119: =IF(F119="","",INDEX(Table_Incr!$CB$7:$CB$30,MATCH('Employee Data'!F119,Table_Incr!$CC$7:$CC$30,0))) ->  | O119: --.--
E120: =IF(F120="","",INDEX(Table_Incr!$CB$7:$CB$30,MATCH('Employee Data'!F120,Table_Incr!$CC$7:$CC$30,0))) ->  | O120: --.--
E121: =IF(F121="","",INDEX(Table_Incr!$CB$7:$CB$30,MATCH('Employee Data'!F121,Table_Incr!$CC$7:$CC$30,0))) ->  | O121: --.--
E122: =IF(F122="","",INDEX(Table_Incr!$CB$7:$CB$30,MATCH('Employee Data'!F122,Table_Incr!$CC$7:$CC$30,0))) ->  | O122: --.--
E123: =IF(F123="","",INDEX(Table_Incr!$CB$7:$CB$30,MATCH('Employee Data'!F123,Table_Incr!$CC$7:$CC$30,0))) ->  | O123: --.--
E124: =IF(F124="","",INDEX(Table_Incr!$CB$7:$CB$30,MATCH('Employee Data'!F124,Table_Incr!$CC$7:$CC$30,0))) ->  | O124: --.--
E125: =IF(F125="","",INDEX(Table_Incr!$CB$7:$CB$30,MATCH('Employee Data'!F125,Table_Incr!$CC$7:$CC$30,0))) ->  | O125: --.--
E126: =IF(F126="","",INDEX(Table_Incr!$CB$7:$CB$30,MATCH('Employee Data'!F126,Table_Incr!$CC$7:$CC$30,0))) ->  | O126: --.--
E127: =IF(F127="","",INDEX(Table_Incr!$CB$7:$CB$30,MATCH('Employee Data'!F127,Table_Incr!$CC$7:$CC$30,0))) ->  | O127: --.--
E128: =IF(F128="","",INDEX(Table_Incr!$CB$7:$CB$30,MATCH('Employee Data'!F128,Table_Incr!$CC$7:$CC$30,0))) ->  | O128: --.--
E129: =IF(F129="","",INDEX(Table_Incr!$CB$7:$CB$30,MATCH('Employee Data'!F129,Table_Incr!$CC$7:$CC$30,0))) ->  | O129: --.--
E130: =IF(F130="","",INDEX(Table_Incr!$CB$7:$CB$30,MATCH('Employee Data'!F130,Table_Incr!$CC$7:$CC$30,0))) ->  | O130: --.--
E131: =IF(F131="","",INDEX(Table_Incr!$CB$7:$CB$30,MATCH('Employee Data'!F131,Table_Incr!$CC$7:$CC$30,0))) ->  | O131: --.--
E132: =IF(F132="","",INDEX(Table_Incr!$CB$7:$CB$30,MATCH('Employee Data'!F132,Table_Incr!$CC$7:$CC$30,0))) ->  | L132: =IF(B132="","",J132+K132) ->  | O132: --.--
E133: =IF(F133="","",INDEX(Table_Incr!$CB$7:$CB$30,MATCH('Employee Data'!F133,Table_Incr!$CC$7:$CC$30,0))) ->  | K133: =IF(B133="","",IF(I133="YES",ROUND((J133*0.03),-2),0)) ->  | O133: --.--
E134: =IF(F134="","",INDEX(Table_Incr!$CB$7:$CB$30,MATCH('Employee Data'!F134,Table_Incr!$CC$7:$CC$30,0))) ->  | O134: --.--
E135: =IF(F135="","",INDEX(Table_Incr!$CB$7:$CB$30,MATCH('Employee Data'!F135,Table_Incr!$CC$7:$CC$30,0))) ->  | O135: --.--
E136: =IF(F136="","",INDEX(Table_Incr!$CB$7:$CB$30,MATCH('Employee Data'!F136,Table_Incr!$CC$7:$CC$30,0))) ->  | O136: --.--
E137: =IF(F137="","",INDEX(Table_Incr!$CB$7:$CB$30,MATCH('Employee Data'!F137,Table_Incr!$CC$7:$CC$30,0))) ->  | N137: =IF(B137="","",IF(M137>0,MIN(K137,M137),0)) ->  | O137: =IF(M137=0,"--.--",IF(N137>=0,M137-N137,"--.--")) -> --.--
E138: =IF(F138="","",INDEX(Table_Incr!$CB$7:$CB$30,MATCH('Employee Data'!F138,Table_Incr!$CC$7:$CC$30,0))) ->  | O138: --.--
E139: =IF(F139="","",INDEX(Table_Incr!$CB$7:$CB$30,MATCH('Employee Data'!F139,Table_Incr!$CC$7:$CC$30,0))) ->  | O139: --.--
E140: =IF(F140="","",INDEX(Table_Incr!$CB$7:$CB$30,MATCH('Employee Data'!F140,Table_Incr!$CC$7:$CC$30,0))) ->  | O140: --.--
E141: =IF(F141="","",INDEX(Table_Incr!$CB$7:$CB$30,MATCH('Employee Data'!F141,Table_Incr!$CC$7:$CC$30,0))) ->  | O141: --.--
E142: =IF(F142="","",INDEX(Table_Incr!$CB$7:$CB$30,MATCH('Employee Data'!F142,Table_Incr!$CC$7:$CC$30,0))) ->  | O142: --.--
E143: =IF(F143="","",INDEX(Table_Incr!$CB$7:$CB$30,MATCH('Employee Data'!F143,Table_Incr!$CC$7:$CC$30,0))) ->  | O143: --.--
E144: =IF(F144="","",INDEX(Table_Incr!$CB$7:$CB$30,MATCH('Employee Data'!F144,Table_Incr!$CC$7:$CC$30,0))) ->  | O144: --.--
E145: =IF(F145="","",INDEX(Table_Incr!$CB$7:$CB$30,MATCH('Employee Data'!F145,Table_Incr!$CC$7:$CC$30,0))) ->  | O145: --.--
E146: =IF(F146="","",INDEX(Table_Incr!$CB$7:$CB$30,MATCH('Employee Data'!F146,Table_Incr!$CC$7:$CC$30,0))) ->  | O146: --.--
E147: =IF(F147="","",INDEX(Table_Incr!$CB$7:$CB$30,MATCH('Employee Data'!F147,Table_Incr!$CC$7:$CC$30,0))) ->  | O147: --.--
E148: =IF(F148="","",INDEX(Table_Incr!$CB$7:$CB$30,MATCH('Employee Data'!F148,Table_Incr!$CC$7:$CC$30,0))) ->  | O148: --.--
E149: =IF(F149="","",INDEX(Table_Incr!$CB$7:$CB$30,MATCH('Employee Data'!F149,Table_Incr!$CC$7:$CC$30,0))) ->  | O149: --.--
E150: =IF(F150="","",INDEX(Table_Incr!$CB$7:$CB$30,MATCH('Employee Data'!F150,Table_Incr!$CC$7:$CC$30,0))) ->  | O150: --.--
E151: =IF(F151="","",INDEX(Table_Incr!$CB$7:$CB$30,MATCH('Employee Data'!F151,Table_Incr!$CC$7:$CC$30,0))) ->  | O151: --.--
E152: =IF(F152="","",INDEX(Table_Incr!$CB$7:$CB$30,MATCH('Employee Data'!F152,Table_Incr!$CC$7:$CC$30,0))) ->  | O152: --.--
E153: =IF(F153="","",INDEX(Table_Incr!$CB$7:$CB$30,MATCH('Employee Data'!F153,Table_Incr!$CC$7:$CC$30,0))) ->  | O153: --.--
E154: =IF(F154="","",INDEX(Table_Incr!$CB$7:$CB$30,MATCH('Employee Data'!F154,Table_Incr!$CC$7:$CC$30,0))) ->  | O154: --.--
E155: =IF(F155="","",INDEX(Table_Incr!$CB$7:$CB$30,MATCH('Employee Data'!F155,Table_Incr!$CC$7:$CC$30,0))) ->  | O155: --.--
E156: =IF(F156="","",INDEX(Table_Incr!$CB$7:$CB$30,MATCH('Employee Data'!F156,Table_Incr!$CC$7:$CC$30,0))) ->  | O156: --.--
E157: =IF(F157="","",INDEX(Table_Incr!$CB$7:$CB$30,MATCH('Employee Data'!F157,Table_Incr!$CC$7:$CC$30,0))) ->  | O157: --.--
E158: =IF(F158="","",INDEX(Table_Incr!$CB$7:$CB$30,MATCH('Employee Data'!F158,Table_Incr!$CC$7:$CC$30,0))) ->  | O158: --.--
E159: =IF(F159="","",INDEX(Table_Incr!$CB$7:$CB$30,MATCH('Employee Data'!F159,Table_Incr!$CC$7:$CC$30,0))) ->  | O159: --.--
E160: =IF(F160="","",INDEX(Table_Incr!$CB$7:$CB$30,MATCH('Employee Data'!F160,Table_Incr!$CC$7:$CC$30,0))) ->  | O160: --.--
E161: =IF(F161="","",INDEX(Table_Incr!$CB$7:$CB$30,MATCH('Employee Data'!F161,Table_Incr!$CC$7:$CC$30,0))) ->  | O161: --.--
E162: =IF(F162="","",INDEX(Table_Incr!$CB$7:$CB$30,MATCH('Employee Data'!F162,Table_Incr!$CC$7:$CC$30,0))) ->  | O162: --.--
E163: =IF(F163="","",INDEX(Table_Incr!$CB$7:$CB$30,MATCH('Employee Data'!F163,Table_Incr!$CC$7:$CC$30,0))) ->  | O163: --.--
E164: =IF(F164="","",INDEX(Table_Incr!$CB$7:$CB$30,MATCH('Employee Data'!F164,Table_Incr!$CC$7:$CC$30,0))) ->  | O164: --.--
E165: =IF(F165="","",INDEX(Table_Incr!$CB$7:$CB$30,MATCH('Employee Data'!F165,Table_Incr!$CC$7:$CC$30,0))) ->  | O165: --.--
E166: =IF(F166="","",INDEX(Table_Incr!$CB$7:$CB$30,MATCH('Employee Data'!F166,Table_Incr!$CC$7:$CC$30,0))) ->  | O166: --.--
E167: =IF(F167="","",INDEX(Table_Incr!$CB$7:$CB$30,MATCH('Employee Data'!F167,Table_Incr!$CC$7:$CC$30,0))) ->  | O167: --.--
E168: =IF(F168="","",INDEX(Table_Incr!$CB$7:$CB$30,MATCH('Employee Data'!F168,Table_Incr!$CC$7:$CC$30,0))) ->  | O168: --.--
E169: =IF(F169="","",INDEX(Table_Incr!$CB$7:$CB$30,MATCH('Employee Data'!F169,Table_Incr!$CC$7:$CC$30,0))) ->  | O169: --.--
E170: =IF(F170="","",INDEX(Table_Incr!$CB$7:$CB$30,MATCH('Employee Data'!F170,Table_Incr!$CC$7:$CC$30,0))) ->  | O170: --.--
E171: =IF(F171="","",INDEX(Table_Incr!$CB$7:$CB$30,MATCH('Employee Data'!F171,Table_Incr!$CC$7:$CC$30,0))) ->  | O171: --.--
E172: =IF(F172="","",INDEX(Table_Incr!$CB$7:$CB$30,MATCH('Employee Data'!F172,Table_Incr!$CC$7:$CC$30,0))) ->  | O172: --.--
E173: =IF(F173="","",INDEX(Table_Incr!$CB$7:$CB$30,MATCH('Employee Data'!F173,Table_Incr!$CC$7:$CC$30,0))) ->  | O173: --.--
E174: =IF(F174="","",INDEX(Table_Incr!$CB$7:$CB$30,MATCH('Employee Data'!F174,Table_Incr!$CC$7:$CC$30,0))) ->  | O174: --.--
E175: =IF(F175="","",INDEX(Table_Incr!$CB$7:$CB$30,MATCH('Employee Data'!F175,Table_Incr!$CC$7:$CC$30,0))) ->  | O175: --.--
E176: =IF(F176="","",INDEX(Table_Incr!$CB$7:$CB$30,MATCH('Employee Data'!F176,Table_Incr!$CC$7:$CC$30,0))) ->  | O176: --.--
E177: =IF(F177="","",INDEX(Table_Incr!$CB$7:$CB$30,MATCH('Employee Data'!F177,Table_Incr!$CC$7:$CC$30,0))) ->  | O177: --.--
E178: =IF(F178="","",INDEX(Table_Incr!$CB$7:$CB$30,MATCH('Employee Data'!F178,Table_Incr!$CC$7:$CC$30,0))) ->  | O178: --.--
E179: =IF(F179="","",INDEX(Table_Incr!$CB$7:$CB$30,MATCH('Employee Data'!F179,Table_Incr!$CC$7:$CC$30,0))) ->  | O179: --.--
E180: =IF(F180="","",INDEX(Table_Incr!$CB$7:$CB$30,MATCH('Employee Data'!F180,Table_Incr!$CC$7:$CC$30,0))) ->  | O180: --.--
E181: =IF(F181="","",INDEX(Table_Incr!$CB$7:$CB$30,MATCH('Employee Data'!F181,Table_Incr!$CC$7:$CC$30,0))) ->  | O181: --.--
E182: =IF(F182="","",INDEX(Table_Incr!$CB$7:$CB$30,MATCH('Employee Data'!F182,Table_Incr!$CC$7:$CC$30,0))) ->  | O182: --.--
E183: =IF(F183="","",INDEX(Table_Incr!$CB$7:$CB$30,MATCH('Employee Data'!F183,Table_Incr!$CC$7:$CC$30,0))) ->  | O183: --.--
E184: =IF(F184="","",INDEX(Table_Incr!$CB$7:$CB$30,MATCH('Employee Data'!F184,Table_Incr!$CC$7:$CC$30,0))) ->  | O184: --.--
E185: =IF(F185="","",INDEX(Table_Incr!$CB$7:$CB$30,MATCH('Employee Data'!F185,Table_Incr!$CC$7:$CC$30,0))) ->  | O185: --.--
E186: =IF(F186="","",INDEX(Table_Incr!$CB$7:$CB$30,MATCH('Employee Data'!F186,Table_Incr!$CC$7:$CC$30,0))) ->  | O186: --.--
E187: =IF(F187="","",INDEX(Table_Incr!$CB$7:$CB$30,MATCH('Employee Data'!F187,Table_Incr!$CC$7:$CC$30,0))) ->  | O187: --.--
E188: =IF(F188="","",INDEX(Table_Incr!$CB$7:$CB$30,MATCH('Employee Data'!F188,Table_Incr!$CC$7:$CC$30,0))) ->  | O188: --.--
E189: =IF(F189="","",INDEX(Table_Incr!$CB$7:$CB$30,MATCH('Employee Data'!F189,Table_Incr!$CC$7:$CC$30,0))) ->  | O189: --.--
E190: =IF(F190="","",INDEX(Table_Incr!$CB$7:$CB$30,MATCH('Employee Data'!F190,Table_Incr!$CC$7:$CC$30,0))) ->  | O190: --.--
E191: =IF(F191="","",INDEX(Table_Incr!$CB$7:$CB$30,MATCH('Employee Data'!F191,Table_Incr!$CC$7:$CC$30,0))) ->  | O191: --.--
E192: =IF(F192="","",INDEX(Table_Incr!$CB$7:$CB$30,MATCH('Employee Data'!F192,Table_Incr!$CC$7:$CC$30,0))) ->  | O192: --.--
E193: =IF(F193="","",INDEX(Table_Incr!$CB$7:$CB$30,MATCH('Employee Data'!F193,Table_Incr!$CC$7:$CC$30,0))) ->  | O193: --.--
E194: =IF(F194="","",INDEX(Table_Incr!$CB$7:$CB$30,MATCH('Employee Data'!F194,Table_Incr!$CC$7:$CC$30,0))) ->  | O194: --.--
E195: =IF(F195="","",INDEX(Table_Incr!$CB$7:$CB$30,MATCH('Employee Data'!F195,Table_Incr!$CC$7:$CC$30,0))) ->  | O195: --.--
E196: =IF(F196="","",INDEX(Table_Incr!$CB$7:$CB$30,MATCH('Employee Data'!F196,Table_Incr!$CC$7:$CC$30,0))) ->  | L196: =IF(B196="","",J196+K196) ->  | O196: --.--
E197: =IF(F197="","",INDEX(Table_Incr!$CB$7:$CB$30,MATCH('Employee Data'!F197,Table_Incr!$CC$7:$CC$30,0))) ->  | K197: =IF(B197="","",IF(I197="YES",ROUND((J197*0.03),-2),0)) ->  | O197: --.--
E198: =IF(F198="","",INDEX(Table_Incr!$CB$7:$CB$30,MATCH('Employee Data'!F198,Table_Incr!$CC$7:$CC$30,0))) ->  | O198: --.--
E199: =IF(F199="","",INDEX(Table_Incr!$CB$7:$CB$30,MATCH('Employee Data'!F199,Table_Incr!$CC$7:$CC$30,0))) ->  | O199: --.--
E200: =IF(F200="","",INDEX(Table_Incr!$CB$7:$CB$30,MATCH('Employee Data'!F200,Table_Incr!$CC$7:$CC$30,0))) ->  | O200: --.--
... 354 more rows

Sheet Table_vi (hidden)
B1: Option Explicit | H1: Sub HideEmptyRows()
H2: Dim hRws As Range, Rw As Range, R As Range
B3: Private Sub Worksheet_Activate() | H3: Set R = Range("A2:I26")
H4: For Each Rw In R.Rows
B5: Dim HiddenRow&, RowRange As Range, RowRangeValue& | H5: If WorksheetFunction.CountA(Rw) > WorksheetFunction.Count(Rw) Then
H6: If hRws Is Nothing Then
B7: '***************************** | H7: Set hRws = Rw
B8: '< Set the 1st & last rows to be hidden > | H8: Else
B9: Const FirstRow As Long = 15 | H9: Set hRws = Union(Rw, hRws)
B10: Const LastRow As Long = 566 | H10: End If
H11: End If
B12: '< Set the columns that may contain data > | H12: Next Rw
B13: Const FirstCol As String = "B" | H13: If Not hRws Is Nothing Then
B14: Const LastCol As String = "BG" | H14: hRws.EntireRow.Hidden = True
B15: '***************************** | H15: End If
H16: End Sub
B17: ActiveWindow.DisplayZeros = False
B18: Application.ScreenUpdating = False | H18: Option Explicit
H19: Private Sub Worksheet_Activate()
B20: For HiddenRow = FirstRow To LastRow | H20: Dim r As Range, c As Range
H21: Set r = Range("a1:a299")
B22: '(we're using columns B to G here) | H22: Application.ScreenUpdating = False
B23: Set RowRange = Range(FirstCol & HiddenRow & _ | H23: For Each c In r
B24: ":" & LastCol & HiddenRow) | H24: If Len(c.text) = 0 Then
H25: c.EntireRow.Hidden = True
B26: 'sums the entries in cells in the RowRange | H26: Else
B27: RowRangeValue = Application.Sum(RowRange.Value) | H27: c.EntireRow.Hidden = False
H28: End If
B29: If RowRangeValue <> 0 Then | H29: Next c
B30: 'there's something in this row - don't hide | H30: Application.ScreenUpdating = True
B31: Rows(HiddenRow).EntireRow.Hidden = False | H31: End Sub
B32: Else
B33: 'there's nothing in this row yet - hide it
B34: Rows(HiddenRow).EntireRow.Hidden = True
B35: End If
B37: Next HiddenRow
B39: Application.ScreenUpdating = True
B41: End Sub

Sheet DDO Data
C2: HOME
B4: Name of Office | C4: Director XXXXX...XXX, Rajasthan, Bikaner
B5: Designation of Signature Authority | C5: PQRS
B6: Increment File No | C6: 123
B7: Increment Order Date | C7: =TODAY() -> 2023-06-16
B8: Name of concerning Treasury/Sub Treasury | C8: All Treasury name's are in dropdown list, if user select Sub Treasury, then write name of sub try in C9 (here dropdown list is not applicable)
B9: Treasury | C9: BIKANER

Sheet Databackup (hidden)
A1: YES | B1: Emp. Code | C1: Name of Incumbent | D1: Post | E1: Pay Level as on | F1: Date From Present Pay is being taken | G1: Date of Increment | H1: Incre. Condition | I1: Pay in the Level in the Pay Matrix | J1: Increment amt. | K1: Total basic pay | L1: Opening Balance of Adjusted P.P. under Rule 11(6) | M1: Adjusted P.P. under Rule 11(6) | N1: Closing Balace P.P. amt
A2: Items: | B2: 1 | C2: =B2+1 -> 2 | D2: =C2+1 -> 3 | E2: 4 | F2: =E2+1 -> 5 | G2: =F2+1 -> 6 | H2: =G2+1 -> 7 | I2: =H2+1 -> 8 | J2: =I2+1 -> 9 | K2: =J2+1 -> 10 | L2: =K2+1 -> 11 | M2: =L2+1 -> 12 | N2: =M2+1 -> 13
A3: =INDEX(Employee_Name,MATCH(SMALL(IF($A$1='Employee Data'!$I$4:$I$553,'Employee Data'!$B$4:$B$553,""),ROW('Employee Data'!A1)),IF($A$1='Employee Data'!$I$4:$I$553,'Employee Data'!$B$4:$B$553,""),0)) -> PKS | B3: =IF(ISERROR(INDEX('Employee Data'!$B$4:$B$553,MATCH(Databackup!A3,Employee_Name,0),0)),"",(INDEX('Employee Data'!$B$4:$B$553,MATCH(Databackup!A3,Employee_Name,0)))) -> 1 | C3: =IF(ISERROR(INDEX('Employee Data'!$C$4:$C$553,MATCH(Databackup!A3,Employee_Name,0),0)),"",(INDEX('Employee Data'!$C$4:$C$553,MATCH(Databackup!A3,Employee_Name,0)))) -> PKS | D3: =IF(ISERROR(INDEX('Employee Data'!$D$4:$D$553,MATCH(Databackup!A3,Employee_Name,0),0)),"",(INDEX('Employee Data'!$D$4:$D$553,MATCH(Databackup!A3,Employee_Name,0)))) -> AAO-I | E3: =IF(ISERROR(INDEX('Employee Data'!$F$4:$F$553,MATCH(Databackup!A3,Employee_Name,0),0)),"",(INDEX('Employee Data'!$F$4:$F$553,MATCH(Databackup!A3,Employee_Name,0)))) -> L-13 | F3: =IF(ISERROR(INDEX('Employee Data'!$G$4:$G$553,MATCH(Databackup!A3,Employee_Name,0),0)),"",(INDEX('Employee Data'!$G$4:$G$553,MATCH(Databackup!A3,Employee_Name,0)))) -> 2022-07-01 | G3: =IF(ISERROR(INDEX('Employee Data'!$H$4:$H$553,MATCH(Databackup!A3,Employee_Name,0),0)),"",(INDEX('Employee Data'!$H$4:$H$553,MATCH(Databackup!A3,Employee_Name,0)))) -> 2023-07-01 | H3: =IF(ISERROR(INDEX('Employee Data'!$I$4:$I$553,MATCH(Databackup!A3,Employee_Name,0),0)),"",(INDEX('Employee Data'!$I$4:$I$553,MATCH(Databackup!A3,Employee_Name,0)))) -> YES | I3: =IF(ISERROR(INDEX('Employee Data'!$J$4:$J$553,MATCH(Databackup!A3,Employee_Name,0),0)),"",(INDEX('Employee Data'!J$4:$J$553,MATCH(Databackup!A3,Employee_Name,0)))) -> 82600 | J3: =IF(ISERROR(INDEX('Employee Data'!$K$4:$K$553,MATCH(Databackup!A3,Employee_Name,0),0)),"",(INDEX('Employee Data'!$K$4:$K$553,MATCH(Databackup!A3,Employee_Name,0)))) -> 2500 | K3: =IF(ISERROR(INDEX('Employee Data'!$L$4:$L$553,MATCH(Databackup!A3,Employee_Name,0),0)),"",(INDEX('Employee Data'!$L$4:$L$553,MATCH(Databackup!A3,Employee_Name,0)))) -> 85100 | L3: =IF(ISERROR(INDEX('Employee Data'!$M$4:$M$553,MATCH(Databackup!A3,Employee_Name,0),0)),"",(INDEX('Employee Data'!$M$4:$M$553,MATCH(Databackup!A3,Employee_Name,0)))) -> 0 | M3: =IF(ISERROR(INDEX('Employee Data'!$N$4:$N$553,MATCH(Databackup!A3,Employee_Name,0),0)),"",(INDEX('Employee Data'!$N$4:$N$553,MATCH(Databackup!A3,Employee_Name,0)))) ->  | N3: =IF(ISERROR(INDEX('Employee Data'!$O$4:$O$553,MATCH(Databackup!A3,Employee_Name,0),0)),"",(INDEX('Employee Data'!$O$4:$O$553,MATCH(Databackup!A3,Employee_Name,0)))) -> --N.A.--
A4: =INDEX(Employee_Name,MATCH(SMALL(IF($A$1='Employee Data'!$I$4:$I$553,'Employee Data'!$B$4:$B$553,""),ROW('Employee Data'!A2)),IF($A$1='Employee Data'!$I$4:$I$553,'Employee Data'!$B$4:$B$553,""),0)) ->  | B4: =IF(ISERROR(INDEX('Employee Data'!$B$4:$B$553,MATCH(Databackup!A4,Employee_Name,0),0)),"",(INDEX('Employee Data'!$B$4:$B$553,MATCH(Databackup!A4,Employee_Name,0)))) ->  | C4: =IF(ISERROR(INDEX('Employee Data'!$C$4:$C$553,MATCH(Databackup!A4,Employee_Name,0),0)),"",(INDEX('Employee Data'!$C$4:$C$553,MATCH(Databackup!A4,Employee_Name,0)))) ->  | D4: =IF(ISERROR(INDEX('Employee Data'!$D$4:$D$553,MATCH(Databackup!A4,Employee_Name,0),0)),"",(INDEX('Employee Data'!$D$4:$D$553,MATCH(Databackup!A4,Employee_Name,0)))) ->  | E4: =IF(ISERROR(INDEX('Employee Data'!$F$4:$F$553,MATCH(Databackup!A4,Employee_Name,0),0)),"",(INDEX('Employee Data'!$F$4:$F$553,MATCH(Databackup!A4,Employee_Name,0)))) ->  | F4: =IF(ISERROR(INDEX('Employee Data'!$G$4:$G$553,MATCH(Databackup!A4,Employee_Name,0),0)),"",(INDEX('Employee Data'!$G$4:$G$553,MATCH(Databackup!A4,Employee_Name,0)))) ->  | G4: =IF(ISERROR(INDEX('Employee Data'!$H$4:$H$553,MATCH(Databackup!A4,Employee_Name,0),0)),"",(INDEX('Employee Data'!$H$4:$H$553,MATCH(Databackup!A4,Employee_Name,0)))) ->  | H4: =IF(ISERROR(INDEX('Employee Data'!$I$4:$I$553,MATCH(Databackup!A4,Employee_Name,0),0)),"",(INDEX('Employee Data'!$I$4:$I$553,MATCH(Databackup!A4,Employee_Name,0)))) ->  | I4: =IF(ISERROR(INDEX('Employee Data'!$J$4:$J$553,MATCH(Databackup!A4,Employee_Name,0),0)),"",(INDEX('Employee Data'!J$4:$J$553,MATCH(Databackup!A4,Employee_Name,0)))) ->  | J4: =IF(ISERROR(INDEX('Employee Data'!$K$4:$K$553,MATCH(Databackup!A4,Employee_Name,0),0)),"",(INDEX('Employee Data'!$K$4:$K$553,MATCH(Databackup!A4,Employee_Name,0)))) ->  | K4: =IF(ISERROR(INDEX('Employee Data'!$L$4:$L$553,MATCH(Databackup!A4,Employee_Name,0),0)),"",(INDEX('Employee Data'!$L$4:$L$553,MATCH(Databackup!A4,Employee_Name,0)))) ->  | L4: =IF(ISERROR(INDEX('Employee Data'!$M$4:$M$553,MATCH(Databackup!A4,Employee_Name,0),0)),"",(INDEX('Employee Data'!$M$4:$M$553,MATCH(Databackup!A4,Employee_Name,0)))) ->  | M4: =IF(ISERROR(INDEX('Employee Data'!$N$4:$N$553,MATCH(Databackup!A4,Employee_Name,0),0)),"",(INDEX('Employee Data'!$N$4:$N$553,MATCH(Databackup!A4,Employee_Name,0)))) ->  | N4: =IF(ISERROR(INDEX('Employee Data'!$O$4:$O$553,MATCH(Databackup!A4,Employee_Name,0),0)),"",(INDEX('Employee Data'!$O$4:$O$553,MATCH(Databackup!A4,Employee_Name,0)))) -> 
A5: =INDEX(Employee_Name,MATCH(SMALL(IF($A$1='Employee Data'!$I$4:$I$553,'Employee Data'!$B$4:$B$553,""),ROW('Employee Data'!A3)),IF($A$1='Employee Data'!$I$4:$I$553,'Employee Data'!$B$4:$B$553,""),0)) ->  | B5: =IF(ISERROR(INDEX('Employee Data'!$B$4:$B$553,MATCH(Databackup!A5,Employee_Name,0),0)),"",(INDEX('Employee Data'!$B$4:$B$553,MATCH(Databackup!A5,Employee_Name,0)))) ->  | C5: =IF(ISERROR(INDEX('Employee Data'!$C$4:$C$553,MATCH(Databackup!A5,Employee_Name,0),0)),"",(INDEX('Employee Data'!$C$4:$C$553,MATCH(Databackup!A5,Employee_Name,0)))) ->  | D5: =IF(ISERROR(INDEX('Employee Data'!$D$4:$D$553,MATCH(Databackup!A5,Employee_Name,0),0)),"",(INDEX('Employee Data'!$D$4:$D$553,MATCH(Databackup!A5,Employee_Name,0)))) ->  | E5: =IF(ISERROR(INDEX('Employee Data'!$F$4:$F$553,MATCH(Databackup!A5,Employee_Name,0),0)),"",(INDEX('Employee Data'!$F$4:$F$553,MATCH(Databackup!A5,Employee_Name,0)))) ->  | F5: =IF(ISERROR(INDEX('Employee Data'!$G$4:$G$553,MATCH(Databackup!A5,Employee_Name,0),0)),"",(INDEX('Employee Data'!$G$4:$G$553,MATCH(Databackup!A5,Employee_Name,0)))) ->  | G5: =IF(ISERROR(INDEX('Employee Data'!$H$4:$H$553,MATCH(Databackup!A5,Employee_Name,0),0)),"",(INDEX('Employee Data'!$H$4:$H$553,MATCH(Databackup!A5,Employee_Name,0)))) ->  | H5: =IF(ISERROR(INDEX('Employee Data'!$I$4:$I$553,MATCH(Databackup!A5,Employee_Name,0),0)),"",(INDEX('Employee Data'!$I$4:$I$553,MATCH(Databackup!A5,Employee_Name,0)))) ->  | I5: =IF(ISERROR(INDEX('Employee Data'!$J$4:$J$553,MATCH(Databackup!A5,Employee_Name,0),0)),"",(INDEX('Employee Data'!J$4:$J$553,MATCH(Databackup!A5,Employee_Name,0)))) ->  | J5: =IF(ISERROR(INDEX('Employee Data'!$K$4:$K$553,MATCH(Databackup!A5,Employee_Name,0),0)),"",(INDEX('Employee Data'!$K$4:$K$553,MATCH(Databackup!A5,Employee_Name,0)))) ->  | K5: =IF(ISERROR(INDEX('Employee Data'!$L$4:$L$553,MATCH(Databackup!A5,Employee_Name,0),0)),"",(INDEX('Employee Data'!$L$4:$L$553,MATCH(Databackup!A5,Employee_Name,0)))) ->  | L5: =IF(ISERROR(INDEX('Employee Data'!$M$4:$M$553,MATCH(Databackup!A5,Employee_Name,0),0)),"",(INDEX('Employee Data'!$M$4:$M$553,MATCH(Databackup!A5,Employee_Name,0)))) ->  | M5: =IF(ISERROR(INDEX('Employee Data'!$N$4:$N$553,MATCH(Databackup!A5,Employee_Name,0),0)),"",(INDEX('Employee Data'!$N$4:$N$553,MATCH(Databackup!A5,Employee_Name,0)))) ->  | N5: =IF(ISERROR(INDEX('Employee Data'!$O$4:$O$553,MATCH(Databackup!A5,Employee_Name,0),0)),"",(INDEX('Employee Data'!$O$4:$O$553,MATCH(Databackup!A5,Employee_Name,0)))) -> 
A6: =INDEX(Employee_Name,MATCH(SMALL(IF($A$1='Employee Data'!$I$4:$I$553,'Employee Data'!$B$4:$B$553,""),ROW('Employee Data'!A4)),IF($A$1='Employee Data'!$I$4:$I$553,'Employee Data'!$B$4:$B$553,""),0)) ->  | B6: =IF(ISERROR(INDEX('Employee Data'!$B$4:$B$553,MATCH(Databackup!A6,Employee_Name,0),0)),"",(INDEX('Employee Data'!$B$4:$B$553,MATCH(Databackup!A6,Employee_Name,0)))) ->  | C6: =IF(ISERROR(INDEX('Employee Data'!$C$4:$C$553,MATCH(Databackup!A6,Employee_Name,0),0)),"",(INDEX('Employee Data'!$C$4:$C$553,MATCH(Databackup!A6,Employee_Name,0)))) ->  | D6: =IF(ISERROR(INDEX('Employee Data'!$D$4:$D$553,MATCH(Databackup!A6,Employee_Name,0),0)),"",(INDEX('Employee Data'!$D$4:$D$553,MATCH(Databackup!A6,Employee_Name,0)))) ->  | E6: =IF(ISERROR(INDEX('Employee Data'!$F$4:$F$553,MATCH(Databackup!A6,Employee_Name,0),0)),"",(INDEX('Employee Data'!$F$4:$F$553,MATCH(Databackup!A6,Employee_Name,0)))) ->  | F6: =IF(ISERROR(INDEX('Employee Data'!$G$4:$G$553,MATCH(Databackup!A6,Employee_Name,0),0)),"",(INDEX('Employee Data'!$G$4:$G$553,MATCH(Databackup!A6,Employee_Name,0)))) ->  | G6: =IF(ISERROR(INDEX('Employee Data'!$H$4:$H$553,MATCH(Databackup!A6,Employee_Name,0),0)),"",(INDEX('Employee Data'!$H$4:$H$553,MATCH(Databackup!A6,Employee_Name,0)))) ->  | H6: =IF(ISERROR(INDEX('Employee Data'!$I$4:$I$553,MATCH(Databackup!A6,Employee_Name,0),0)),"",(INDEX('Employee Data'!$I$4:$I$553,MATCH(Databackup!A6,Employee_Name,0)))) ->  | I6: =IF(ISERROR(INDEX('Employee Data'!$J$4:$J$553,MATCH(Databackup!A6,Employee_Name,0),0)),"",(INDEX('Employee Data'!J$4:$J$553,MATCH(Databackup!A6,Employee_Name,0)))) ->  | J6: =IF(ISERROR(INDEX('Employee Data'!$K$4:$K$553,MATCH(Databackup!A6,Employee_Name,0),0)),"",(INDEX('Employee Data'!$K$4:$K$553,MATCH(Databackup!A6,Employee_Name,0)))) ->  | K6: =IF(ISERROR(INDEX('Employee Data'!$L$4:$L$553,MATCH(Databackup!A6,Employee_Name,0),0)),"",(INDEX('Employee Data'!$L$4:$L$553,MATCH(Databackup!A6,Employee_Name,0)))) ->  | L6: =IF(ISERROR(INDEX('Employee Data'!$M$4:$M$553,MATCH(Databackup!A6,Employee_Name,0),0)),"",(INDEX('Employee Data'!$M$4:$M$553,MATCH(Databackup!A6,Employee_Name,0)))) ->  | M6: =IF(ISERROR(INDEX('Employee Data'!$N$4:$N$553,MATCH(Databackup!A6,Employee_Name,0),0)),"",(INDEX('Employee Data'!$N$4:$N$553,MATCH(Databackup!A6,Employee_Name,0)))) ->  | N6: =IF(ISERROR(INDEX('Employee Data'!$O$4:$O$553,MATCH(Databackup!A6,Employee_Name,0),0)),"",(INDEX('Employee Data'!$O$4:$O$553,MATCH(Databackup!A6,Employee_Name,0)))) -> 
A7: =INDEX(Employee_Name,MATCH(SMALL(IF($A$1='Employee Data'!$I$4:$I$553,'Employee Data'!$B$4:$B$553,""),ROW('Employee Data'!A5)),IF($A$1='Employee Data'!$I$4:$I$553,'Employee Data'!$B$4:$B$553,""),0)) ->  | B7: =IF(ISERROR(INDEX('Employee Data'!$B$4:$B$553,MATCH(Databackup!A7,Employee_Name,0),0)),"",(INDEX('Employee Data'!$B$4:$B$553,MATCH(Databackup!A7,Employee_Name,0)))) ->  | C7: =IF(ISERROR(INDEX('Employee Data'!$C$4:$C$553,MATCH(Databackup!A7,Employee_Name,0),0)),"",(INDEX('Employee Data'!$C$4:$C$553,MATCH(Databackup!A7,Employee_Name,0)))) ->  | D7: =IF(ISERROR(INDEX('Employee Data'!$D$4:$D$553,MATCH(Databackup!A7,Employee_Name,0),0)),"",(INDEX('Employee Data'!$D$4:$D$553,MATCH(Databackup!A7,Employee_Name,0)))) ->  | E7: =IF(ISERROR(INDEX('Employee Data'!$F$4:$F$553,MATCH(Databackup!A7,Employee_Name,0),0)),"",(INDEX('Employee Data'!$F$4:$F$553,MATCH(Databackup!A7,Employee_Name,0)))) ->  | F7: =IF(ISERROR(INDEX('Employee Data'!$G$4:$G$553,MATCH(Databackup!A7,Employee_Name,0),0)),"",(INDEX('Employee Data'!$G$4:$G$553,MATCH(Databackup!A7,Employee_Name,0)))) ->  | G7: =IF(ISERROR(INDEX('Employee Data'!$H$4:$H$553,MATCH(Databackup!A7,Employee_Name,0),0)),"",(INDEX('Employee Data'!$H$4:$H$553,MATCH(Databackup!A7,Employee_Name,0)))) ->  | H7: =IF(ISERROR(INDEX('Employee Data'!$I$4:$I$553,MATCH(Databackup!A7,Employee_Name,0),0)),"",(INDEX('Employee Data'!$I$4:$I$553,MATCH(Databackup!A7,Employee_Name,0)))) ->  | I7: =IF(ISERROR(INDEX('Employee Data'!$J$4:$J$553,MATCH(Databackup!A7,Employee_Name,0),0)),"",(INDEX('Employee Data'!J$4:$J$553,MATCH(Databackup!A7,Employee_Name,0)))) ->  | J7: =IF(ISERROR(INDEX('Employee Data'!$K$4:$K$553,MATCH(Databackup!A7,Employee_Name,0),0)),"",(INDEX('Employee Data'!$K$4:$K$553,MATCH(Databackup!A7,Employee_Name,0)))) ->  | K7: =IF(ISERROR(INDEX('Employee Data'!$L$4:$L$553,MATCH(Databackup!A7,Employee_Name,0),0)),"",(INDEX('Employee Data'!$L$4:$L$553,MATCH(Databackup!A7,Employee_Name,0)))) ->  | L7: =IF(ISERROR(INDEX('Employee Data'!$M$4:$M$553,MATCH(Databackup!A7,Employee_Name,0),0)),"",(INDEX('Employee Data'!$M$4:$M$553,MATCH(Databackup!A7,Employee_Name,0)))) ->  | M7: =IF(ISERROR(INDEX('Employee Data'!$N$4:$N$553,MATCH(Databackup!A7,Employee_Name,0),0)),"",(INDEX('Employee Data'!$N$4:$N$553,MATCH(Databackup!A7,Employee_Name,0)))) ->  | N7: =IF(ISERROR(INDEX('Employee Data'!$O$4:$O$553,MATCH(Databackup!A7,Employee_Name,0),0)),"",(INDEX('Employee Data'!$O$4:$O$553,MATCH(Databackup!A7,Employee_Name,0)))) -> 
A8: =INDEX(Employee_Name,MATCH(SMALL(IF($A$1='Employee Data'!$I$4:$I$553,'Employee Data'!$B$4:$B$553,""),ROW('Employee Data'!A6)),IF($A$1='Employee Data'!$I$4:$I$553,'Employee Data'!$B$4:$B$553,""),0)) ->  | B8: =IF(ISERROR(INDEX('Employee Data'!$B$4:$B$553,MATCH(Databackup!A8,Employee_Name,0),0)),"",(INDEX('Employee Data'!$B$4:$B$553,MATCH(Databackup!A8,Employee_Name,0)))) ->  | C8: =IF(ISERROR(INDEX('Employee Data'!$C$4:$C$553,MATCH(Databackup!A8,Employee_Name,0),0)),"",(INDEX('Employee Data'!$C$4:$C$553,MATCH(Databackup!A8,Employee_Name,0)))) ->  | D8: =IF(ISERROR(INDEX('Employee Data'!$D$4:$D$553,MATCH(Databackup!A8,Employee_Name,0),0)),"",(INDEX('Employee Data'!$D$4:$D$553,MATCH(Databackup!A8,Employee_Name,0)))) ->  | E8: =IF(ISERROR(INDEX('Employee Data'!$F$4:$F$553,MATCH(Databackup!A8,Employee_Name,0),0)),"",(INDEX('Employee Data'!$F$4:$F$553,MATCH(Databackup!A8,Employee_Name,0)))) ->  | F8: =IF(ISERROR(INDEX('Employee Data'!$G$4:$G$553,MATCH(Databackup!A8,Employee_Name,0),0)),"",(INDEX('Employee Data'!$G$4:$G$553,MATCH(Databackup!A8,Employee_Name,0)))) ->  | G8: =IF(ISERROR(INDEX('Employee Data'!$H$4:$H$553,MATCH(Databackup!A8,Employee_Name,0),0)),"",(INDEX('Employee Data'!$H$4:$H$553,MATCH(Databackup!A8,Employee_Name,0)))) ->  | H8: =IF(ISERROR(INDEX('Employee Data'!$I$4:$I$553,MATCH(Databackup!A8,Employee_Name,0),0)),"",(INDEX('Employee Data'!$I$4:$I$553,MATCH(Databackup!A8,Employee_Name,0)))) ->  | I8: =IF(ISERROR(INDEX('Employee Data'!$J$4:$J$553,MATCH(Databackup!A8,Employee_Name,0),0)),"",(INDEX('Employee Data'!J$4:$J$553,MATCH(Databackup!A8,Employee_Name,0)))) ->  | J8: =IF(ISERROR(INDEX('Employee Data'!$K$4:$K$553,MATCH(Databackup!A8,Employee_Name,0),0)),"",(INDEX('Employee Data'!$K$4:$K$553,MATCH(Databackup!A8,Employee_Name,0)))) ->  | K8: =IF(ISERROR(INDEX('Employee Data'!$L$4:$L$553,MATCH(Databackup!A8,Employee_Name,0),0)),"",(INDEX('Employee Data'!$L$4:$L$553,MATCH(Databackup!A8,Employee_Name,0)))) ->  | L8: =IF(ISERROR(INDEX('Employee Data'!$M$4:$M$553,MATCH(Databackup!A8,Employee_Name,0),0)),"",(INDEX('Employee Data'!$M$4:$M$553,MATCH(Databackup!A8,Employee_Name,0)))) ->  | M8: =IF(ISERROR(INDEX('Employee Data'!$N$4:$N$553,MATCH(Databackup!A8,Employee_Name,0),0)),"",(INDEX('Employee Data'!$N$4:$N$553,MATCH(Databackup!A8,Employee_Name,0)))) ->  | N8: =IF(ISERROR(INDEX('Employee Data'!$O$4:$O$553,MATCH(Databackup!A8,Employee_Name,0),0)),"",(INDEX('Employee Data'!$O$4:$O$553,MATCH(Databackup!A8,Employee_Name,0)))) -> 
A9: =INDEX(Employee_Name,MATCH(SMALL(IF($A$1='Employee Data'!$I$4:$I$553,'Employee Data'!$B$4:$B$553,""),ROW('Employee Data'!A7)),IF($A$1='Employee Data'!$I$4:$I$553,'Employee Data'!$B$4:$B$553,""),0)) ->  | B9: =IF(ISERROR(INDEX('Employee Data'!$B$4:$B$553,MATCH(Databackup!A9,Employee_Name,0),0)),"",(INDEX('Employee Data'!$B$4:$B$553,MATCH(Databackup!A9,Employee_Name,0)))) ->  | C9: =IF(ISERROR(INDEX('Employee Data'!$C$4:$C$553,MATCH(Databackup!A9,Employee_Name,0),0)),"",(INDEX('Employee Data'!$C$4:$C$553,MATCH(Databackup!A9,Employee_Name,0)))) ->  | D9: =IF(ISERROR(INDEX('Employee Data'!$D$4:$D$553,MATCH(Databackup!A9,Employee_Name,0),0)),"",(INDEX('Employee Data'!$D$4:$D$553,MATCH(Databackup!A9,Employee_Name,0)))) ->  | E9: =IF(ISERROR(INDEX('Employee Data'!$F$4:$F$553,MATCH(Databackup!A9,Employee_Name,0),0)),"",(INDEX('Employee Data'!$F$4:$F$553,MATCH(Databackup!A9,Employee_Name,0)))) ->  | F9: =IF(ISERROR(INDEX('Employee Data'!$G$4:$G$553,MATCH(Databackup!A9,Employee_Name,0),0)),"",(INDEX('Employee Data'!$G$4:$G$553,MATCH(Databackup!A9,Employee_Name,0)))) ->  | G9: =IF(ISERROR(INDEX('Employee Data'!$H$4:$H$553,MATCH(Databackup!A9,Employee_Name,0),0)),"",(INDEX('Employee Data'!$H$4:$H$553,MATCH(Databackup!A9,Employee_Name,0)))) ->  | H9: =IF(ISERROR(INDEX('Employee Data'!$I$4:$I$553,MATCH(Databackup!A9,Employee_Name,0),0)),"",(INDEX('Employee Data'!$I$4:$I$553,MATCH(Databackup!A9,Employee_Name,0)))) ->  | I9: =IF(ISERROR(INDEX('Employee Data'!$J$4:$J$553,MATCH(Databackup!A9,Employee_Name,0),0)),"",(INDEX('Employee Data'!J$4:$J$553,MATCH(Databackup!A9,Employee_Name,0)))) ->  | J9: =IF(ISERROR(INDEX('Employee Data'!$K$4:$K$553,MATCH(Databackup!A9,Employee_Name,0),0)),"",(INDEX('Employee Data'!$K$4:$K$553,MATCH(Databackup!A9,Employee_Name,0)))) ->  | K9: =IF(ISERROR(INDEX('Employee Data'!$L$4:$L$553,MATCH(Databackup!A9,Employee_Name,0),0)),"",(INDEX('Employee Data'!$L$4:$L$553,MATCH(Databackup!A9,Employee_Name,0)))) ->  | L9: =IF(ISERROR(INDEX('Employee Data'!$M$4:$M$553,MATCH(Databackup!A9,Employee_Name,0),0)),"",(INDEX('Employee Data'!$M$4:$M$553,MATCH(Databackup!A9,Employee_Name,0)))) ->  | M9: =IF(ISERROR(INDEX('Employee Data'!$N$4:$N$553,MATCH(Databackup!A9,Employee_Name,0),0)),"",(INDEX('Employee Data'!$N$4:$N$553,MATCH(Databackup!A9,Employee_Name,0)))) ->  | N9: =IF(ISERROR(INDEX('Employee Data'!$O$4:$O$553,MATCH(Databackup!A9,Employee_Name,0),0)),"",(INDEX('Employee Data'!$O$4:$O$553,MATCH(Databackup!A9,Employee_Name,0)))) -> 
A10: =INDEX(Employee_Name,MATCH(SMALL(IF($A$1='Employee Data'!$I$4:$I$553,'Employee Data'!$B$4:$B$553,""),ROW('Employee Data'!A8)),IF($A$1='Employee Data'!$I$4:$I$553,'Employee Data'!$B$4:$B$553,""),0)) ->  | B10: =IF(ISERROR(INDEX('Employee Data'!$B$4:$B$553,MATCH(Databackup!A10,Employee_Name,0),0)),"",(INDEX('Employee Data'!$B$4:$B$553,MATCH(Databackup!A10,Employee_Name,0)))) ->  | C10: =IF(ISERROR(INDEX('Employee Data'!$C$4:$C$553,MATCH(Databackup!A10,Employee_Name,0),0)),"",(INDEX('Employee Data'!$C$4:$C$553,MATCH(Databackup!A10,Employee_Name,0)))) ->  | D10: =IF(ISERROR(INDEX('Employee Data'!$D$4:$D$553,MATCH(Databackup!A10,Employee_Name,0),0)),"",(INDEX('Employee Data'!$D$4:$D$553,MATCH(Databackup!A10,Employee_Name,0)))) ->  | E10: =IF(ISERROR(INDEX('Employee Data'!$F$4:$F$553,MATCH(Databackup!A10,Employee_Name,0),0)),"",(INDEX('Employee Data'!$F$4:$F$553,MATCH(Databackup!A10,Employee_Name,0)))) ->  | F10: =IF(ISERROR(INDEX('Employee Data'!$G$4:$G$553,MATCH(Databackup!A10,Employee_Name,0),0)),"",(INDEX('Employee Data'!$G$4:$G$553,MATCH(Databackup!A10,Employee_Name,0)))) ->  | G10: =IF(ISERROR(INDEX('Employee Data'!$H$4:$H$553,MATCH(Databackup!A10,Employee_Name,0),0)),"",(INDEX('Employee Data'!$H$4:$H$553,MATCH(Databackup!A10,Employee_Name,0)))) ->  | H10: =IF(ISERROR(INDEX('Employee Data'!$I$4:$I$553,MATCH(Databackup!A10,Employee_Name,0),0)),"",(INDEX('Employee Data'!$I$4:$I$553,MATCH(Databackup!A10,Employee_Name,0)))) ->  | I10: =IF(ISERROR(INDEX('Employee Data'!$J$4:$J$553,MATCH(Databackup!A10,Employee_Name,0),0)),"",(INDEX('Employee Data'!J$4:$J$553,MATCH(Databackup!A10,Employee_Name,0)))) ->  | J10: =IF(ISERROR(INDEX('Employee Data'!$K$4:$K$553,MATCH(Databackup!A10,Employee_Name,0),0)),"",(INDEX('Employee Data'!$K$4:$K$553,MATCH(Databackup!A10,Employee_Name,0)))) ->  | K10: =IF(ISERROR(INDEX('Employee Data'!$L$4:$L$553,MATCH(Databackup!A10,Employee_Name,0),0)),"",(INDEX('Employee Data'!$L$4:$L$553,MATCH(Databackup!A10,Employee_Name,0)))) ->  | L10: =IF(ISERROR(INDEX('Employee Data'!$M$4:$M$553,MATCH(Databackup!A10,Employee_Name,0),0)),"",(INDEX('Employee Data'!$M$4:$M$553,MATCH(Databackup!A10,Employee_Name,0)))) ->  | M10: =IF(ISERROR(INDEX('Employee Data'!$N$4:$N$553,MATCH(Databackup!A10,Employee_Name,0),0)),"",(INDEX('Employee Data'!$N$4:$N$553,MATCH(Databackup!A10,Employee_Name,0)))) ->  | N10: =IF(ISERROR(INDEX('Employee Data'!$O$4:$O$553,MATCH(Databackup!A10,Employee_Name,0),0)),"",(INDEX('Employee Data'!$O$4:$O$553,MATCH(Databackup!A10,Employee_Name,0)))) -> 
A11: =INDEX(Employee_Name,MATCH(SMALL(IF($A$1='Employee Data'!$I$4:$I$553,'Employee Data'!$B$4:$B$553,""),ROW('Employee Data'!A9)),IF($A$1='Employee Data'!$I$4:$I$553,'Employee Data'!$B$4:$B$553,""),0)) ->  | B11: =IF(ISERROR(INDEX('Employee Data'!$B$4:$B$553,MATCH(Databackup!A11,Employee_Name,0),0)),"",(INDEX('Employee Data'!$B$4:$B$553,MATCH(Databackup!A11,Employee_Name,0)))) ->  | C11: =IF(ISERROR(INDEX('Employee Data'!$C$4:$C$553,MATCH(Databackup!A11,Employee_Name,0),0)),"",(INDEX('Employee Data'!$C$4:$C$553,MATCH(Databackup!A11,Employee_Name,0)))) ->  | D11: =IF(ISERROR(INDEX('Employee Data'!$D$4:$D$553,MATCH(Databackup!A11,Employee_Name,0),0)),"",(INDEX('Employee Data'!$D$4:$D$553,MATCH(Databackup!A11,Employee_Name,0)))) ->  | E11: =IF(ISERROR(INDEX('Employee Data'!$F$4:$F$553,MATCH(Databackup!A11,Employee_Name,0),0)),"",(INDEX('Employee Data'!$F$4:$F$553,MATCH(Databackup!A11,Employee_Name,0)))) ->  | F11: =IF(ISERROR(INDEX('Employee Data'!$G$4:$G$553,MATCH(Databackup!A11,Employee_Name,0),0)),"",(INDEX('Employee Data'!$G$4:$G$553,MATCH(Databackup!A11,Employee_Name,0)))) ->  | G11: =IF(ISERROR(INDEX('Employee Data'!$H$4:$H$553,MATCH(Databackup!A11,Employee_Name,0),0)),"",(INDEX('Employee Data'!$H$4:$H$553,MATCH(Databackup!A11,Employee_Name,0)))) ->  | H11: =IF(ISERROR(INDEX('Employee Data'!$I$4:$I$553,MATCH(Databackup!A11,Employee_Name,0),0)),"",(INDEX('Employee Data'!$I$4:$I$553,MATCH(Databackup!A11,Employee_Name,0)))) ->  | I11: =IF(ISERROR(INDEX('Employee Data'!$J$4:$J$553,MATCH(Databackup!A11,Employee_Name,0),0)),"",(INDEX('Employee Data'!J$4:$J$553,MATCH(Databackup!A11,Employee_Name,0)))) ->  | J11: =IF(ISERROR(INDEX('Employee Data'!$K$4:$K$553,MATCH(Databackup!A11,Employee_Name,0),0)),"",(INDEX('Employee Data'!$K$4:$K$553,MATCH(Databackup!A11,Employee_Name,0)))) ->  | K11: =IF(ISERROR(INDEX('Employee Data'!$L$4:$L$553,MATCH(Databackup!A11,Employee_Name,0),0)),"",(INDEX('Employee Data'!$L$4:$L$553,MATCH(Databackup!A11,Employee_Name,0)))) ->  | L11: =IF(ISERROR(INDEX('Employee Data'!$M$4:$M$553,MATCH(Databackup!A11,Employee_Name,0),0)),"",(INDEX('Employee Data'!$M$4:$M$553,MATCH(Databackup!A11,Employee_Name,0)))) ->  | M11: =IF(ISERROR(INDEX('Employee Data'!$N$4:$N$553,MATCH(Databackup!A11,Employee_Name,0),0)),"",(INDEX('Employee Data'!$N$4:$N$553,MATCH(Databackup!A11,Employee_Name,0)))) ->  | N11: =IF(ISERROR(INDEX('Employee Data'!$O$4:$O$553,MATCH(Databackup!A11,Employee_Name,0),0)),"",(INDEX('Employee Data'!$O$4:$O$553,MATCH(Databackup!A11,Employee_Name,0)))) -> 
A12: =INDEX(Employee_Name,MATCH(SMALL(IF($A$1='Employee Data'!$I$4:$I$553,'Employee Data'!$B$4:$B$553,""),ROW('Employee Data'!A10)),IF($A$1='Employee Data'!$I$4:$I$553,'Employee Data'!$B$4:$B$553,""),0)) ->  | B12: =IF(ISERROR(INDEX('Employee Data'!$B$4:$B$553,MATCH(Databackup!A12,Employee_Name,0),0)),"",(INDEX('Employee Data'!$B$4:$B$553,MATCH(Databackup!A12,Employee_Name,0)))) ->  | C12: =IF(ISERROR(INDEX('Employee Data'!$C$4:$C$553,MATCH(Databackup!A12,Employee_Name,0),0)),"",(INDEX('Employee Data'!$C$4:$C$553,MATCH(Databackup!A12,Employee_Name,0)))) ->  | D12: =IF(ISERROR(INDEX('Employee Data'!$D$4:$D$553,MATCH(Databackup!A12,Employee_Name,0),0)),"",(INDEX('Employee Data'!$D$4:$D$553,MATCH(Databackup!A12,Employee_Name,0)))) ->  | E12: =IF(ISERROR(INDEX('Employee Data'!$F$4:$F$553,MATCH(Databackup!A12,Employee_Name,0),0)),"",(INDEX('Employee Data'!$F$4:$F$553,MATCH(Databackup!A12,Employee_Name,0)))) ->  | F12: =IF(ISERROR(INDEX('Employee Data'!$G$4:$G$553,MATCH(Databackup!A12,Employee_Name,0),0)),"",(INDEX('Employee Data'!$G$4:$G$553,MATCH(Databackup!A12,Employee_Name,0)))) ->  | G12: =IF(ISERROR(INDEX('Employee Data'!$H$4:$H$553,MATCH(Databackup!A12,Employee_Name,0),0)),"",(INDEX('Employee Data'!$H$4:$H$553,MATCH(Databackup!A12,Employee_Name,0)))) ->  | H12: =IF(ISERROR(INDEX('Employee Data'!$I$4:$I$553,MATCH(Databackup!A12,Employee_Name,0),0)),"",(INDEX('Employee Data'!$I$4:$I$553,MATCH(Databackup!A12,Employee_Name,0)))) ->  | I12: =IF(ISERROR(INDEX('Employee Data'!$J$4:$J$553,MATCH(Databackup!A12,Employee_Name,0),0)),"",(INDEX('Employee Data'!J$4:$J$553,MATCH(Databackup!A12,Employee_Name,0)))) ->  | J12: =IF(ISERROR(INDEX('Employee Data'!$K$4:$K$553,MATCH(Databackup!A12,Employee_Name,0),0)),"",(INDEX('Employee Data'!$K$4:$K$553,MATCH(Databackup!A12,Employee_Name,0)))) ->  | K12: =IF(ISERROR(INDEX('Employee Data'!$L$4:$L$553,MATCH(Databackup!A12,Employee_Name,0),0)),"",(INDEX('Employee Data'!$L$4:$L$553,MATCH(Databackup!A12,Employee_Name,0)))) ->  | L12: =IF(ISERROR(INDEX('Employee Data'!$M$4:$M$553,MATCH(Databackup!A12,Employee_Name,0),0)),"",(INDEX('Employee Data'!$M$4:$M$553,MATCH(Databackup!A12,Employee_Name,0)))) ->  | M12: =IF(ISERROR(INDEX('Employee Data'!$N$4:$N$553,MATCH(Databackup!A12,Employee_Name,0),0)),"",(INDEX('Employee Data'!$N$4:$N$553,MATCH(Databackup!A12,Employee_Name,0)))) ->  | N12: =IF(ISERROR(INDEX('Employee Data'!$O$4:$O$553,MATCH(Databackup!A12,Employee_Name,0),0)),"",(INDEX('Employee Data'!$O$4:$O$553,MATCH(Databackup!A12,Employee_Name,0)))) -> 
A13: =INDEX(Employee_Name,MATCH(SMALL(IF($A$1='Employee Data'!$I$4:$I$553,'Employee Data'!$B$4:$B$553,""),ROW('Employee Data'!A11)),IF($A$1='Employee Data'!$I$4:$I$553,'Employee Data'!$B$4:$B$553,""),0)) ->  | B13: =IF(ISERROR(INDEX('Employee Data'!$B$4:$B$553,MATCH(Databackup!A13,Employee_Name,0),0)),"",(INDEX('Employee Data'!$B$4:$B$553,MATCH(Databackup!A13,Employee_Name,0)))) ->  | C13: =IF(ISERROR(INDEX('Employee Data'!$C$4:$C$553,MATCH(Databackup!A13,Employee_Name,0),0)),"",(INDEX('Employee Data'!$C$4:$C$553,MATCH(Databackup!A13,Employee_Name,0)))) ->  | D13: =IF(ISERROR(INDEX('Employee Data'!$D$4:$D$553,MATCH(Databackup!A13,Employee_Name,0),0)),"",(INDEX('Employee Data'!$D$4:$D$553,MATCH(Databackup!A13,Employee_Name,0)))) ->  | E13: =IF(ISERROR(INDEX('Employee Data'!$F$4:$F$553,MATCH(Databackup!A13,Employee_Name,0),0)),"",(INDEX('Employee Data'!$F$4:$F$553,MATCH(Databackup!A13,Employee_Name,0)))) ->  | F13: =IF(ISERROR(INDEX('Employee Data'!$G$4:$G$553,MATCH(Databackup!A13,Employee_Name,0),0)),"",(INDEX('Employee Data'!$G$4:$G$553,MATCH(Databackup!A13,Employee_Name,0)))) ->  | G13: =IF(ISERROR(INDEX('Employee Data'!$H$4:$H$553,MATCH(Databackup!A13,Employee_Name,0),0)),"",(INDEX('Employee Data'!$H$4:$H$553,MATCH(Databackup!A13,Employee_Name,0)))) ->  | H13: =IF(ISERROR(INDEX('Employee Data'!$I$4:$I$553,MATCH(Databackup!A13,Employee_Name,0),0)),"",(INDEX('Employee Data'!$I$4:$I$553,MATCH(Databackup!A13,Employee_Name,0)))) ->  | I13: =IF(ISERROR(INDEX('Employee Data'!$J$4:$J$553,MATCH(Databackup!A13,Employee_Name,0),0)),"",(INDEX('Employee Data'!J$4:$J$553,MATCH(Databackup!A13,Employee_Name,0)))) ->  | J13: =IF(ISERROR(INDEX('Employee Data'!$K$4:$K$553,MATCH(Databackup!A13,Employee_Name,0),0)),"",(INDEX('Employee Data'!$K$4:$K$553,MATCH(Databackup!A13,Employee_Name,0)))) ->  | K13: =IF(ISERROR(INDEX('Employee Data'!$L$4:$L$553,MATCH(Databackup!A13,Employee_Name,0),0)),"",(INDEX('Employee Data'!$L$4:$L$553,MATCH(Databackup!A13,Employee_Name,0)))) ->  | L13: =IF(ISERROR(INDEX('Employee Data'!$M$4:$M$553,MATCH(Databackup!A13,Employee_Name,0),0)),"",(INDEX('Employee Data'!$M$4:$M$553,MATCH(Databackup!A13,Employee_Name,0)))) ->  | M13: =IF(ISERROR(INDEX('Employee Data'!$N$4:$N$553,MATCH(Databackup!A13,Employee_Name,0),0)),"",(INDEX('Employee Data'!$N$4:$N$553,MATCH(Databackup!A13,Employee_Name,0)))) ->  | N13: =IF(ISERROR(INDEX('Employee Data'!$O$4:$O$553,MATCH(Databackup!A13,Employee_Name,0),0)),"",(INDEX('Employee Data'!$O$4:$O$553,MATCH(Databackup!A13,Employee_Name,0)))) -> 
A14: =INDEX(Employee_Name,MATCH(SMALL(IF($A$1='Employee Data'!$I$4:$I$553,'Employee Data'!$B$4:$B$553,""),ROW('Employee Data'!A12)),IF($A$1='Employee Data'!$I$4:$I$553,'Employee Data'!$B$4:$B$553,""),0)) ->  | B14: =IF(ISERROR(INDEX('Employee Data'!$B$4:$B$553,MATCH(Databackup!A14,Employee_Name,0),0)),"",(INDEX('Employee Data'!$B$4:$B$553,MATCH(Databackup!A14,Employee_Name,0)))) ->  | C14: =IF(ISERROR(INDEX('Employee Data'!$C$4:$C$553,MATCH(Databackup!A14,Employee_Name,0),0)),"",(INDEX('Employee Data'!$C$4:$C$553,MATCH(Databackup!A14,Employee_Name,0)))) ->  | D14: =IF(ISERROR(INDEX('Employee Data'!$D$4:$D$553,MATCH(Databackup!A14,Employee_Name,0),0)),"",(INDEX('Employee Data'!$D$4:$D$553,MATCH(Databackup!A14,Employee_Name,0)))) ->  | E14: =IF(ISERROR(INDEX('Employee Data'!$F$4:$F$553,MATCH(Databackup!A14,Employee_Name,0),0)),"",(INDEX('Employee Data'!$F$4:$F$553,MATCH(Databackup!A14,Employee_Name,0)))) ->  | F14: =IF(ISERROR(INDEX('Employee Data'!$G$4:$G$553,MATCH(Databackup!A14,Employee_Name,0),0)),"",(INDEX('Employee Data'!$G$4:$G$553,MATCH(Databackup!A14,Employee_Name,0)))) ->  | G14: =IF(ISERROR(INDEX('Employee Data'!$H$4:$H$553,MATCH(Databackup!A14,Employee_Name,0),0)),"",(INDEX('Employee Data'!$H$4:$H$553,MATCH(Databackup!A14,Employee_Name,0)))) ->  | H14: =IF(ISERROR(INDEX('Employee Data'!$I$4:$I$553,MATCH(Databackup!A14,Employee_Name,0),0)),"",(INDEX('Employee Data'!$I$4:$I$553,MATCH(Databackup!A14,Employee_Name,0)))) ->  | I14: =IF(ISERROR(INDEX('Employee Data'!$J$4:$J$553,MATCH(Databackup!A14,Employee_Name,0),0)),"",(INDEX('Employee Data'!J$4:$J$553,MATCH(Databackup!A14,Employee_Name,0)))) ->  | J14: =IF(ISERROR(INDEX('Employee Data'!$K$4:$K$553,MATCH(Databackup!A14,Employee_Name,0),0)),"",(INDEX('Employee Data'!$K$4:$K$553,MATCH(Databackup!A14,Employee_Name,0)))) ->  | K14: =IF(ISERROR(INDEX('Employee Data'!$L$4:$L$553,MATCH(Databackup!A14,Employee_Name,0),0)),"",(INDEX('Employee Data'!$L$4:$L$553,MATCH(Databackup!A14,Employee_Name,0)))) ->  | L14: =IF(ISERROR(INDEX('Employee Data'!$M$4:$M$553,MATCH(Databackup!A14,Employee_Name,0),0)),"",(INDEX('Employee Data'!$M$4:$M$553,MATCH(Databackup!A14,Employee_Name,0)))) ->  | M14: =IF(ISERROR(INDEX('Employee Data'!$N$4:$N$553,MATCH(Databackup!A14,Employee_Name,0),0)),"",(INDEX('Employee Data'!$N$4:$N$553,MATCH(Databackup!A14,Employee_Name,0)))) ->  | N14: =IF(ISERROR(INDEX('Employee Data'!$O$4:$O$553,MATCH(Databackup!A14,Employee_Name,0),0)),"",(INDEX('Employee Data'!$O$4:$O$553,MATCH(Databackup!A14,Employee_Name,0)))) -> 
A15: =INDEX(Employee_Name,MATCH(SMALL(IF($A$1='Employee Data'!$I$4:$I$553,'Employee Data'!$B$4:$B$553,""),ROW('Employee Data'!A13)),IF($A$1='Employee Data'!$I$4:$I$553,'Employee Data'!$B$4:$B$553,""),0)) ->  | B15: =IF(ISERROR(INDEX('Employee Data'!$B$4:$B$553,MATCH(Databackup!A15,Employee_Name,0),0)),"",(INDEX('Employee Data'!$B$4:$B$553,MATCH(Databackup!A15,Employee_Name,0)))) ->  | C15: =IF(ISERROR(INDEX('Employee Data'!$C$4:$C$553,MATCH(Databackup!A15,Employee_Name,0),0)),"",(INDEX('Employee Data'!$C$4:$C$553,MATCH(Databackup!A15,Employee_Name,0)))) ->  | D15: =IF(ISERROR(INDEX('Employee Data'!$D$4:$D$553,MATCH(Databackup!A15,Employee_Name,0),0)),"",(INDEX('Employee Data'!$D$4:$D$553,MATCH(Databackup!A15,Employee_Name,0)))) ->  | E15: =IF(ISERROR(INDEX('Employee Data'!$F$4:$F$553,MATCH(Databackup!A15,Employee_Name,0),0)),"",(INDEX('Employee Data'!$F$4:$F$553,MATCH(Databackup!A15,Employee_Name,0)))) ->  | F15: =IF(ISERROR(INDEX('Employee Data'!$G$4:$G$553,MATCH(Databackup!A15,Employee_Name,0),0)),"",(INDEX('Employee Data'!$G$4:$G$553,MATCH(Databackup!A15,Employee_Name,0)))) ->  | G15: =IF(ISERROR(INDEX('Employee Data'!$H$4:$H$553,MATCH(Databackup!A15,Employee_Name,0),0)),"",(INDEX('Employee Data'!$H$4:$H$553,MATCH(Databackup!A15,Employee_Name,0)))) ->  | H15: =IF(ISERROR(INDEX('Employee Data'!$I$4:$I$553,MATCH(Databackup!A15,Employee_Name,0),0)),"",(INDEX('Employee Data'!$I$4:$I$553,MATCH(Databackup!A15,Employee_Name,0)))) ->  | I15: =IF(ISERROR(INDEX('Employee Data'!$J$4:$J$553,MATCH(Databackup!A15,Employee_Name,0),0)),"",(INDEX('Employee Data'!J$4:$J$553,MATCH(Databackup!A15,Employee_Name,0)))) ->  | J15: =IF(ISERROR(INDEX('Employee Data'!$K$4:$K$553,MATCH(Databackup!A15,Employee_Name,0),0)),"",(INDEX('Employee Data'!$K$4:$K$553,MATCH(Databackup!A15,Employee_Name,0)))) ->  | K15: =IF(ISERROR(INDEX('Employee Data'!$L$4:$L$553,MATCH(Databackup!A15,Employee_Name,0),0)),"",(INDEX('Employee Data'!$L$4:$L$553,MATCH(Databackup!A15,Employee_Name,0)))) ->  | L15: =IF(ISERROR(INDEX('Employee Data'!$M$4:$M$553,MATCH(Databackup!A15,Employee_Name,0),0)),"",(INDEX('Employee Data'!$M$4:$M$553,MATCH(Databackup!A15,Employee_Name,0)))) ->  | M15: =IF(ISERROR(INDEX('Employee Data'!$N$4:$N$553,MATCH(Databackup!A15,Employee_Name,0),0)),"",(INDEX('Employee Data'!$N$4:$N$553,MATCH(Databackup!A15,Employee_Name,0)))) ->  | N15: =IF(ISERROR(INDEX('Employee Data'!$O$4:$O$553,MATCH(Databackup!A15,Employee_Name,0),0)),"",(INDEX('Employee Data'!$O$4:$O$553,MATCH(Databackup!A15,Employee_Name,0)))) -> 
A16: =INDEX(Employee_Name,MATCH(SMALL(IF($A$1='Employee Data'!$I$4:$I$553,'Employee Data'!$B$4:$B$553,""),ROW('Employee Data'!A14)),IF($A$1='Employee Data'!$I$4:$I$553,'Employee Data'!$B$4:$B$553,""),0)) ->  | B16: =IF(ISERROR(INDEX('Employee Data'!$B$4:$B$553,MATCH(Databackup!A16,Employee_Name,0),0)),"",(INDEX('Employee Data'!$B$4:$B$553,MATCH(Databackup!A16,Employee_Name,0)))) ->  | C16: =IF(ISERROR(INDEX('Employee Data'!$C$4:$C$553,MATCH(Databackup!A16,Employee_Name,0),0)),"",(INDEX('Employee Data'!$C$4:$C$553,MATCH(Databackup!A16,Employee_Name,0)))) ->  | D16: =IF(ISERROR(INDEX('Employee Data'!$D$4:$D$553,MATCH(Databackup!A16,Employee_Name,0),0)),"",(INDEX('Employee Data'!$D$4:$D$553,MATCH(Databackup!A16,Employee_Name,0)))) ->  | E16: =IF(ISERROR(INDEX('Employee Data'!$F$4:$F$553,MATCH(Databackup!A16,Employee_Name,0),0)),"",(INDEX('Employee Data'!$F$4:$F$553,MATCH(Databackup!A16,Employee_Name,0)))) ->  | F16: =IF(ISERROR(INDEX('Employee Data'!$G$4:$G$553,MATCH(Databackup!A16,Employee_Name,0),0)),"",(INDEX('Employee Data'!$G$4:$G$553,MATCH(Databackup!A16,Employee_Name,0)))) ->  | G16: =IF(ISERROR(INDEX('Employee Data'!$H$4:$H$553,MATCH(Databackup!A16,Employee_Name,0),0)),"",(INDEX('Employee Data'!$H$4:$H$553,MATCH(Databackup!A16,Employee_Name,0)))) ->  | H16: =IF(ISERROR(INDEX('Employee Data'!$I$4:$I$553,MATCH(Databackup!A16,Employee_Name,0),0)),"",(INDEX('Employee Data'!$I$4:$I$553,MATCH(Databackup!A16,Employee_Name,0)))) ->  | I16: =IF(ISERROR(INDEX('Employee Data'!$J$4:$J$553,MATCH(Databackup!A16,Employee_Name,0),0)),"",(INDEX('Employee Data'!J$4:$J$553,MATCH(Databackup!A16,Employee_Name,0)))) ->  | J16: =IF(ISERROR(INDEX('Employee Data'!$K$4:$K$553,MATCH(Databackup!A16,Employee_Name,0),0)),"",(INDEX('Employee Data'!$K$4:$K$553,MATCH(Databackup!A16,Employee_Name,0)))) ->  | K16: =IF(ISERROR(INDEX('Employee Data'!$L$4:$L$553,MATCH(Databackup!A16,Employee_Name,0),0)),"",(INDEX('Employee Data'!$L$4:$L$553,MATCH(Databackup!A16,Employee_Name,0)))) ->  | L16: =IF(ISERROR(INDEX('Employee Data'!$M$4:$M$553,MATCH(Databackup!A16,Employee_Name,0),0)),"",(INDEX('Employee Data'!$M$4:$M$553,MATCH(Databackup!A16,Employee_Name,0)))) ->  | M16: =IF(ISERROR(INDEX('Employee Data'!$N$4:$N$553,MATCH(Databackup!A16,Employee_Name,0),0)),"",(INDEX('Employee Data'!$N$4:$N$553,MATCH(Databackup!A16,Employee_Name,0)))) ->  | N16: =IF(ISERROR(INDEX('Employee Data'!$O$4:$O$553,MATCH(Databackup!A16,Employee_Name,0),0)),"",(INDEX('Employee Data'!$O$4:$O$553,MATCH(Databackup!A16,Employee_Name,0)))) -> 
A17: =INDEX(Employee_Name,MATCH(SMALL(IF($A$1='Employee Data'!$I$4:$I$553,'Employee Data'!$B$4:$B$553,""),ROW('Employee Data'!A15)),IF($A$1='Employee Data'!$I$4:$I$553,'Employee Data'!$B$4:$B$553,""),0)) ->  | B17: =IF(ISERROR(INDEX('Employee Data'!$B$4:$B$553,MATCH(Databackup!A17,Employee_Name,0),0)),"",(INDEX('Employee Data'!$B$4:$B$553,MATCH(Databackup!A17,Employee_Name,0)))) ->  | C17: =IF(ISERROR(INDEX('Employee Data'!$C$4:$C$553,MATCH(Databackup!A17,Employee_Name,0),0)),"",(INDEX('Employee Data'!$C$4:$C$553,MATCH(Databackup!A17,Employee_Name,0)))) ->  | D17: =IF(ISERROR(INDEX('Employee Data'!$D$4:$D$553,MATCH(Databackup!A17,Employee_Name,0),0)),"",(INDEX('Employee Data'!$D$4:$D$553,MATCH(Databackup!A17,Employee_Name,0)))) ->  | E17: =IF(ISERROR(INDEX('Employee Data'!$F$4:$F$553,MATCH(Databackup!A17,Employee_Name,0),0)),"",(INDEX('Employee Data'!$F$4:$F$553,MATCH(Databackup!A17,Employee_Name,0)))) ->  | F17: =IF(ISERROR(INDEX('Employee Data'!$G$4:$G$553,MATCH(Databackup!A17,Employee_Name,0),0)),"",(INDEX('Employee Data'!$G$4:$G$553,MATCH(Databackup!A17,Employee_Name,0)))) ->  | G17: =IF(ISERROR(INDEX('Employee Data'!$H$4:$H$553,MATCH(Databackup!A17,Employee_Name,0),0)),"",(INDEX('Employee Data'!$H$4:$H$553,MATCH(Databackup!A17,Employee_Name,0)))) ->  | H17: =IF(ISERROR(INDEX('Employee Data'!$I$4:$I$553,MATCH(Databackup!A17,Employee_Name,0),0)),"",(INDEX('Employee Data'!$I$4:$I$553,MATCH(Databackup!A17,Employee_Name,0)))) ->  | I17: =IF(ISERROR(INDEX('Employee Data'!$J$4:$J$553,MATCH(Databackup!A17,Employee_Name,0),0)),"",(INDEX('Employee Data'!J$4:$J$553,MATCH(Databackup!A17,Employee_Name,0)))) ->  | J17: =IF(ISERROR(INDEX('Employee Data'!$K$4:$K$553,MATCH(Databackup!A17,Employee_Name,0),0)),"",(INDEX('Employee Data'!$K$4:$K$553,MATCH(Databackup!A17,Employee_Name,0)))) ->  | K17: =IF(ISERROR(INDEX('Employee Data'!$L$4:$L$553,MATCH(Databackup!A17,Employee_Name,0),0)),"",(INDEX('Employee Data'!$L$4:$L$553,MATCH(Databackup!A17,Employee_Name,0)))) ->  | L17: =IF(ISERROR(INDEX('Employee Data'!$M$4:$M$553,MATCH(Databackup!A17,Employee_Name,0),0)),"",(INDEX('Employee Data'!$M$4:$M$553,MATCH(Databackup!A17,Employee_Name,0)))) ->  | M17: =IF(ISERROR(INDEX('Employee Data'!$N$4:$N$553,MATCH(Databackup!A17,Employee_Name,0),0)),"",(INDEX('Employee Data'!$N$4:$N$553,MATCH(Databackup!A17,Employee_Name,0)))) ->  | N17: =IF(ISERROR(INDEX('Employee Data'!$O$4:$O$553,MATCH(Databackup!A17,Employee_Name,0),0)),"",(INDEX('Employee Data'!$O$4:$O$553,MATCH(Databackup!A17,Employee_Name,0)))) -> 
A18: =INDEX(Employee_Name,MATCH(SMALL(IF($A$1='Employee Data'!$I$4:$I$553,'Employee Data'!$B$4:$B$553,""),ROW('Employee Data'!A16)),IF($A$1='Employee Data'!$I$4:$I$553,'Employee Data'!$B$4:$B$553,""),0)) ->  | B18: =IF(ISERROR(INDEX('Employee Data'!$B$4:$B$553,MATCH(Databackup!A18,Employee_Name,0),0)),"",(INDEX('Employee Data'!$B$4:$B$553,MATCH(Databackup!A18,Employee_Name,0)))) ->  | C18: =IF(ISERROR(INDEX('Employee Data'!$C$4:$C$553,MATCH(Databackup!A18,Employee_Name,0),0)),"",(INDEX('Employee Data'!$C$4:$C$553,MATCH(Databackup!A18,Employee_Name,0)))) ->  | D18: =IF(ISERROR(INDEX('Employee Data'!$D$4:$D$553,MATCH(Databackup!A18,Employee_Name,0),0)),"",(INDEX('Employee Data'!$D$4:$D$553,MATCH(Databackup!A18,Employee_Name,0)))) ->  | E18: =IF(ISERROR(INDEX('Employee Data'!$F$4:$F$553,MATCH(Databackup!A18,Employee_Name,0),0)),"",(INDEX('Employee Data'!$F$4:$F$553,MATCH(Databackup!A18,Employee_Name,0)))) ->  | F18: =IF(ISERROR(INDEX('Employee Data'!$G$4:$G$553,MATCH(Databackup!A18,Employee_Name,0),0)),"",(INDEX('Employee Data'!$G$4:$G$553,MATCH(Databackup!A18,Employee_Name,0)))) ->  | G18: =IF(ISERROR(INDEX('Employee Data'!$H$4:$H$553,MATCH(Databackup!A18,Employee_Name,0),0)),"",(INDEX('Employee Data'!$H$4:$H$553,MATCH(Databackup!A18,Employee_Name,0)))) ->  | H18: =IF(ISERROR(INDEX('Employee Data'!$I$4:$I$553,MATCH(Databackup!A18,Employee_Name,0),0)),"",(INDEX('Employee Data'!$I$4:$I$553,MATCH(Databackup!A18,Employee_Name,0)))) ->  | I18: =IF(ISERROR(INDEX('Employee Data'!$J$4:$J$553,MATCH(Databackup!A18,Employee_Name,0),0)),"",(INDEX('Employee Data'!J$4:$J$553,MATCH(Databackup!A18,Employee_Name,0)))) ->  | J18: =IF(ISERROR(INDEX('Employee Data'!$K$4:$K$553,MATCH(Databackup!A18,Employee_Name,0),0)),"",(INDEX('Employee Data'!$K$4:$K$553,MATCH(Databackup!A18,Employee_Name,0)))) ->  | K18: =IF(ISERROR(INDEX('Employee Data'!$L$4:$L$553,MATCH(Databackup!A18,Employee_Name,0),0)),"",(INDEX('Employee Data'!$L$4:$L$553,MATCH(Databackup!A18,Employee_Name,0)))) ->  | L18: =IF(ISERROR(INDEX('Employee Data'!$M$4:$M$553,MATCH(Databackup!A18,Employee_Name,0),0)),"",(INDEX('Employee Data'!$M$4:$M$553,MATCH(Databackup!A18,Employee_Name,0)))) ->  | M18: =IF(ISERROR(INDEX('Employee Data'!$N$4:$N$553,MATCH(Databackup!A18,Employee_Name,0),0)),"",(INDEX('Employee Data'!$N$4:$N$553,MATCH(Databackup!A18,Employee_Name,0)))) ->  | N18: =IF(ISERROR(INDEX('Employee Data'!$O$4:$O$553,MATCH(Databackup!A18,Employee_Name,0),0)),"",(INDEX('Employee Data'!$O$4:$O$553,MATCH(Databackup!A18,Employee_Name,0)))) -> 
A19: =INDEX(Employee_Name,MATCH(SMALL(IF($A$1='Employee Data'!$I$4:$I$553,'Employee Data'!$B$4:$B$553,""),ROW('Employee Data'!A17)),IF($A$1='Employee Data'!$I$4:$I$553,'Employee Data'!$B$4:$B$553,""),0)) ->  | B19: =IF(ISERROR(INDEX('Employee Data'!$B$4:$B$553,MATCH(Databackup!A19,Employee_Name,0),0)),"",(INDEX('Employee Data'!$B$4:$B$553,MATCH(Databackup!A19,Employee_Name,0)))) ->  | C19: =IF(ISERROR(INDEX('Employee Data'!$C$4:$C$553,MATCH(Databackup!A19,Employee_Name,0),0)),"",(INDEX('Employee Data'!$C$4:$C$553,MATCH(Databackup!A19,Employee_Name,0)))) ->  | D19: =IF(ISERROR(INDEX('Employee Data'!$D$4:$D$553,MATCH(Databackup!A19,Employee_Name,0),0)),"",(INDEX('Employee Data'!$D$4:$D$553,MATCH(Databackup!A19,Employee_Name,0)))) ->  | E19: =IF(ISERROR(INDEX('Employee Data'!$F$4:$F$553,MATCH(Databackup!A19,Employee_Name,0),0)),"",(INDEX('Employee Data'!$F$4:$F$553,MATCH(Databackup!A19,Employee_Name,0)))) ->  | F19: =IF(ISERROR(INDEX('Employee Data'!$G$4:$G$553,MATCH(Databackup!A19,Employee_Name,0),0)),"",(INDEX('Employee Data'!$G$4:$G$553,MATCH(Databackup!A19,Employee_Name,0)))) ->  | G19: =IF(ISERROR(INDEX('Employee Data'!$H$4:$H$553,MATCH(Databackup!A19,Employee_Name,0),0)),"",(INDEX('Employee Data'!$H$4:$H$553,MATCH(Databackup!A19,Employee_Name,0)))) ->  | H19: =IF(ISERROR(INDEX('Employee Data'!$I$4:$I$553,MATCH(Databackup!A19,Employee_Name,0),0)),"",(INDEX('Employee Data'!$I$4:$I$553,MATCH(Databackup!A19,Employee_Name,0)))) ->  | I19: =IF(ISERROR(INDEX('Employee Data'!$J$4:$J$553,MATCH(Databackup!A19,Employee_Name,0),0)),"",(INDEX('Employee Data'!J$4:$J$553,MATCH(Databackup!A19,Employee_Name,0)))) ->  | J19: =IF(ISERROR(INDEX('Employee Data'!$K$4:$K$553,MATCH(Databackup!A19,Employee_Name,0),0)),"",(INDEX('Employee Data'!$K$4:$K$553,MATCH(Databackup!A19,Employee_Name,0)))) ->  | K19: =IF(ISERROR(INDEX('Employee Data'!$L$4:$L$553,MATCH(Databackup!A19,Employee_Name,0),0)),"",(INDEX('Employee Data'!$L$4:$L$553,MATCH(Databackup!A19,Employee_Name,0)))) ->  | L19: =IF(ISERROR(INDEX('Employee Data'!$M$4:$M$553,MATCH(Databackup!A19,Employee_Name,0),0)),"",(INDEX('Employee Data'!$M$4:$M$553,MATCH(Databackup!A19,Employee_Name,0)))) ->  | M19: =IF(ISERROR(INDEX('Employee Data'!$N$4:$N$553,MATCH(Databackup!A19,Employee_Name,0),0)),"",(INDEX('Employee Data'!$N$4:$N$553,MATCH(Databackup!A19,Employee_Name,0)))) ->  | N19: =IF(ISERROR(INDEX('Employee Data'!$O$4:$O$553,MATCH(Databackup!A19,Employee_Name,0),0)),"",(INDEX('Employee Data'!$O$4:$O$553,MATCH(Databackup!A19,Employee_Name,0)))) -> 
A20: =INDEX(Employee_Name,MATCH(SMALL(IF($A$1='Employee Data'!$I$4:$I$553,'Employee Data'!$B$4:$B$553,""),ROW('Employee Data'!A18)),IF($A$1='Employee Data'!$I$4:$I$553,'Employee Data'!$B$4:$B$553,""),0)) ->  | B20: =IF(ISERROR(INDEX('Employee Data'!$B$4:$B$553,MATCH(Databackup!A20,Employee_Name,0),0)),"",(INDEX('Employee Data'!$B$4:$B$553,MATCH(Databackup!A20,Employee_Name,0)))) ->  | C20: =IF(ISERROR(INDEX('Employee Data'!$C$4:$C$553,MATCH(Databackup!A20,Employee_Name,0),0)),"",(INDEX('Employee Data'!$C$4:$C$553,MATCH(Databackup!A20,Employee_Name,0)))) ->  | D20: =IF(ISERROR(INDEX('Employee Data'!$D$4:$D$553,MATCH(Databackup!A20,Employee_Name,0),0)),"",(INDEX('Employee Data'!$D$4:$D$553,MATCH(Databackup!A20,Employee_Name,0)))) ->  | E20: =IF(ISERROR(INDEX('Employee Data'!$F$4:$F$553,MATCH(Databackup!A20,Employee_Name,0),0)),"",(INDEX('Employee Data'!$F$4:$F$553,MATCH(Databackup!A20,Employee_Name,0)))) ->  | F20: =IF(ISERROR(INDEX('Employee Data'!$G$4:$G$553,MATCH(Databackup!A20,Employee_Name,0),0)),"",(INDEX('Employee Data'!$G$4:$G$553,MATCH(Databackup!A20,Employee_Name,0)))) ->  | G20: =IF(ISERROR(INDEX('Employee Data'!$H$4:$H$553,MATCH(Databackup!A20,Employee_Name,0),0)),"",(INDEX('Employee Data'!$H$4:$H$553,MATCH(Databackup!A20,Employee_Name,0)))) ->  | H20: =IF(ISERROR(INDEX('Employee Data'!$I$4:$I$553,MATCH(Databackup!A20,Employee_Name,0),0)),"",(INDEX('Employee Data'!$I$4:$I$553,MATCH(Databackup!A20,Employee_Name,0)))) ->  | I20: =IF(ISERROR(INDEX('Employee Data'!$J$4:$J$553,MATCH(Databackup!A20,Employee_Name,0),0)),"",(INDEX('Employee Data'!J$4:$J$553,MATCH(Databackup!A20,Employee_Name,0)))) ->  | J20: =IF(ISERROR(INDEX('Employee Data'!$K$4:$K$553,MATCH(Databackup!A20,Employee_Name,0),0)),"",(INDEX('Employee Data'!$K$4:$K$553,MATCH(Databackup!A20,Employee_Name,0)))) ->  | K20: =IF(ISERROR(INDEX('Employee Data'!$L$4:$L$553,MATCH(Databackup!A20,Employee_Name,0),0)),"",(INDEX('Employee Data'!$L$4:$L$553,MATCH(Databackup!A20,Employee_Name,0)))) ->  | L20: =IF(ISERROR(INDEX('Employee Data'!$M$4:$M$553,MATCH(Databackup!A20,Employee_Name,0),0)),"",(INDEX('Employee Data'!$M$4:$M$553,MATCH(Databackup!A20,Employee_Name,0)))) ->  | M20: =IF(ISERROR(INDEX('Employee Data'!$N$4:$N$553,MATCH(Databackup!A20,Employee_Name,0),0)),"",(INDEX('Employee Data'!$N$4:$N$553,MATCH(Databackup!A20,Employee_Name,0)))) ->  | N20: =IF(ISERROR(INDEX('Employee Data'!$O$4:$O$553,MATCH(Databackup!A20,Employee_Name,0),0)),"",(INDEX('Employee Data'!$O$4:$O$553,MATCH(Databackup!A20,Employee_Name,0)))) -> 
A21: =INDEX(Employee_Name,MATCH(SMALL(IF($A$1='Employee Data'!$I$4:$I$553,'Employee Data'!$B$4:$B$553,""),ROW('Employee Data'!A19)),IF($A$1='Employee Data'!$I$4:$I$553,'Employee Data'!$B$4:$B$553,""),0)) ->  | B21: =IF(ISERROR(INDEX('Employee Data'!$B$4:$B$553,MATCH(Databackup!A21,Employee_Name,0),0)),"",(INDEX('Employee Data'!$B$4:$B$553,MATCH(Databackup!A21,Employee_Name,0)))) ->  | C21: =IF(ISERROR(INDEX('Employee Data'!$C$4:$C$553,MATCH(Databackup!A21,Employee_Name,0),0)),"",(INDEX('Employee Data'!$C$4:$C$553,MATCH(Databackup!A21,Employee_Name,0)))) ->  | D21: =IF(ISERROR(INDEX('Employee Data'!$D$4:$D$553,MATCH(Databackup!A21,Employee_Name,0),0)),"",(INDEX('Employee Data'!$D$4:$D$553,MATCH(Databackup!A21,Employee_Name,0)))) ->  | E21: =IF(ISERROR(INDEX('Employee Data'!$F$4:$F$553,MATCH(Databackup!A21,Employee_Name,0),0)),"",(INDEX('Employee Data'!$F$4:$F$553,MATCH(Databackup!A21,Employee_Name,0)))) ->  | F21: =IF(ISERROR(INDEX('Employee Data'!$G$4:$G$553,MATCH(Databackup!A21,Employee_Name,0),0)),"",(INDEX('Employee Data'!$G$4:$G$553,MATCH(Databackup!A21,Employee_Name,0)))) ->  | G21: =IF(ISERROR(INDEX('Employee Data'!$H$4:$H$553,MATCH(Databackup!A21,Employee_Name,0),0)),"",(INDEX('Employee Data'!$H$4:$H$553,MATCH(Databackup!A21,Employee_Name,0)))) ->  | H21: =IF(ISERROR(INDEX('Employee Data'!$I$4:$I$553,MATCH(Databackup!A21,Employee_Name,0),0)),"",(INDEX('Employee Data'!$I$4:$I$553,MATCH(Databackup!A21,Employee_Name,0)))) ->  | I21: =IF(ISERROR(INDEX('Employee Data'!$J$4:$J$553,MATCH(Databackup!A21,Employee_Name,0),0)),"",(INDEX('Employee Data'!J$4:$J$553,MATCH(Databackup!A21,Employee_Name,0)))) ->  | J21: =IF(ISERROR(INDEX('Employee Data'!$K$4:$K$553,MATCH(Databackup!A21,Employee_Name,0),0)),"",(INDEX('Employee Data'!$K$4:$K$553,MATCH(Databackup!A21,Employee_Name,0)))) ->  | K21: =IF(ISERROR(INDEX('Employee Data'!$L$4:$L$553,MATCH(Databackup!A21,Employee_Name,0),0)),"",(INDEX('Employee Data'!$L$4:$L$553,MATCH(Databackup!A21,Employee_Name,0)))) ->  | L21: =IF(ISERROR(INDEX('Employee Data'!$M$4:$M$553,MATCH(Databackup!A21,Employee_Name,0),0)),"",(INDEX('Employee Data'!$M$4:$M$553,MATCH(Databackup!A21,Employee_Name,0)))) ->  | M21: =IF(ISERROR(INDEX('Employee Data'!$N$4:$N$553,MATCH(Databackup!A21,Employee_Name,0),0)),"",(INDEX('Employee Data'!$N$4:$N$553,MATCH(Databackup!A21,Employee_Name,0)))) ->  | N21: =IF(ISERROR(INDEX('Employee Data'!$O$4:$O$553,MATCH(Databackup!A21,Employee_Name,0),0)),"",(INDEX('Employee Data'!$O$4:$O$553,MATCH(Databackup!A21,Employee_Name,0)))) -> 
A22: =INDEX(Employee_Name,MATCH(SMALL(IF($A$1='Employee Data'!$I$4:$I$553,'Employee Data'!$B$4:$B$553,""),ROW('Employee Data'!A20)),IF($A$1='Employee Data'!$I$4:$I$553,'Employee Data'!$B$4:$B$553,""),0)) ->  | B22: =IF(ISERROR(INDEX('Employee Data'!$B$4:$B$553,MATCH(Databackup!A22,Employee_Name,0),0)),"",(INDEX('Employee Data'!$B$4:$B$553,MATCH(Databackup!A22,Employee_Name,0)))) ->  | C22: =IF(ISERROR(INDEX('Employee Data'!$C$4:$C$553,MATCH(Databackup!A22,Employee_Name,0),0)),"",(INDEX('Employee Data'!$C$4:$C$553,MATCH(Databackup!A22,Employee_Name,0)))) ->  | D22: =IF(ISERROR(INDEX('Employee Data'!$D$4:$D$553,MATCH(Databackup!A22,Employee_Name,0),0)),"",(INDEX('Employee Data'!$D$4:$D$553,MATCH(Databackup!A22,Employee_Name,0)))) ->  | E22: =IF(ISERROR(INDEX('Employee Data'!$F$4:$F$553,MATCH(Databackup!A22,Employee_Name,0),0)),"",(INDEX('Employee Data'!$F$4:$F$553,MATCH(Databackup!A22,Employee_Name,0)))) ->  | F22: =IF(ISERROR(INDEX('Employee Data'!$G$4:$G$553,MATCH(Databackup!A22,Employee_Name,0),0)),"",(INDEX('Employee Data'!$G$4:$G$553,MATCH(Databackup!A22,Employee_Name,0)))) ->  | G22: =IF(ISERROR(INDEX('Employee Data'!$H$4:$H$553,MATCH(Databackup!A22,Employee_Name,0),0)),"",(INDEX('Employee Data'!$H$4:$H$553,MATCH(Databackup!A22,Employee_Name,0)))) ->  | H22: =IF(ISERROR(INDEX('Employee Data'!$I$4:$I$553,MATCH(Databackup!A22,Employee_Name,0),0)),"",(INDEX('Employee Data'!$I$4:$I$553,MATCH(Databackup!A22,Employee_Name,0)))) ->  | I22: =IF(ISERROR(INDEX('Employee Data'!$J$4:$J$553,MATCH(Databackup!A22,Employee_Name,0),0)),"",(INDEX('Employee Data'!J$4:$J$553,MATCH(Databackup!A22,Employee_Name,0)))) ->  | J22: =IF(ISERROR(INDEX('Employee Data'!$K$4:$K$553,MATCH(Databackup!A22,Employee_Name,0),0)),"",(INDEX('Employee Data'!$K$4:$K$553,MATCH(Databackup!A22,Employee_Name,0)))) ->  | K22: =IF(ISERROR(INDEX('Employee Data'!$L$4:$L$553,MATCH(Databackup!A22,Employee_Name,0),0)),"",(INDEX('Employee Data'!$L$4:$L$553,MATCH(Databackup!A22,Employee_Name,0)))) ->  | L22: =IF(ISERROR(INDEX('Employee Data'!$M$4:$M$553,MATCH(Databackup!A22,Employee_Name,0),0)),"",(INDEX('Employee Data'!$M$4:$M$553,MATCH(Databackup!A22,Employee_Name,0)))) ->  | M22: =IF(ISERROR(INDEX('Employee Data'!$N$4:$N$553,MATCH(Databackup!A22,Employee_Name,0),0)),"",(INDEX('Employee Data'!$N$4:$N$553,MATCH(Databackup!A22,Employee_Name,0)))) ->  | N22: =IF(ISERROR(INDEX('Employee Data'!$O$4:$O$553,MATCH(Databackup!A22,Employee_Name,0),0)),"",(INDEX('Employee Data'!$O$4:$O$553,MATCH(Databackup!A22,Employee_Name,0)))) -> 
A23: =INDEX(Employee_Name,MATCH(SMALL(IF($A$1='Employee Data'!$I$4:$I$553,'Employee Data'!$B$4:$B$553,""),ROW('Employee Data'!A21)),IF($A$1='Employee Data'!$I$4:$I$553,'Employee Data'!$B$4:$B$553,""),0)) ->  | B23: =IF(ISERROR(INDEX('Employee Data'!$B$4:$B$553,MATCH(Databackup!A23,Employee_Name,0),0)),"",(INDEX('Employee Data'!$B$4:$B$553,MATCH(Databackup!A23,Employee_Name,0)))) ->  | C23: =IF(ISERROR(INDEX('Employee Data'!$C$4:$C$553,MATCH(Databackup!A23,Employee_Name,0),0)),"",(INDEX('Employee Data'!$C$4:$C$553,MATCH(Databackup!A23,Employee_Name,0)))) ->  | D23: =IF(ISERROR(INDEX('Employee Data'!$D$4:$D$553,MATCH(Databackup!A23,Employee_Name,0),0)),"",(INDEX('Employee Data'!$D$4:$D$553,MATCH(Databackup!A23,Employee_Name,0)))) ->  | E23: =IF(ISERROR(INDEX('Employee Data'!$F$4:$F$553,MATCH(Databackup!A23,Employee_Name,0),0)),"",(INDEX('Employee Data'!$F$4:$F$553,MATCH(Databackup!A23,Employee_Name,0)))) ->  | F23: =IF(ISERROR(INDEX('Employee Data'!$G$4:$G$553,MATCH(Databackup!A23,Employee_Name,0),0)),"",(INDEX('Employee Data'!$G$4:$G$553,MATCH(Databackup!A23,Employee_Name,0)))) ->  | G23: =IF(ISERROR(INDEX('Employee Data'!$H$4:$H$553,MATCH(Databackup!A23,Employee_Name,0),0)),"",(INDEX('Employee Data'!$H$4:$H$553,MATCH(Databackup!A23,Employee_Name,0)))) ->  | H23: =IF(ISERROR(INDEX('Employee Data'!$I$4:$I$553,MATCH(Databackup!A23,Employee_Name,0),0)),"",(INDEX('Employee Data'!$I$4:$I$553,MATCH(Databackup!A23,Employee_Name,0)))) ->  | I23: =IF(ISERROR(INDEX('Employee Data'!$J$4:$J$553,MATCH(Databackup!A23,Employee_Name,0),0)),"",(INDEX('Employee Data'!J$4:$J$553,MATCH(Databackup!A23,Employee_Name,0)))) ->  | J23: =IF(ISERROR(INDEX('Employee Data'!$K$4:$K$553,MATCH(Databackup!A23,Employee_Name,0),0)),"",(INDEX('Employee Data'!$K$4:$K$553,MATCH(Databackup!A23,Employee_Name,0)))) ->  | K23: =IF(ISERROR(INDEX('Employee Data'!$L$4:$L$553,MATCH(Databackup!A23,Employee_Name,0),0)),"",(INDEX('Employee Data'!$L$4:$L$553,MATCH(Databackup!A23,Employee_Name,0)))) ->  | L23: =IF(ISERROR(INDEX('Employee Data'!$M$4:$M$553,MATCH(Databackup!A23,Employee_Name,0),0)),"",(INDEX('Employee Data'!$M$4:$M$553,MATCH(Databackup!A23,Employee_Name,0)))) ->  | M23: =IF(ISERROR(INDEX('Employee Data'!$N$4:$N$553,MATCH(Databackup!A23,Employee_Name,0),0)),"",(INDEX('Employee Data'!$N$4:$N$553,MATCH(Databackup!A23,Employee_Name,0)))) ->  | N23: =IF(ISERROR(INDEX('Employee Data'!$O$4:$O$553,MATCH(Databackup!A23,Employee_Name,0),0)),"",(INDEX('Employee Data'!$O$4:$O$553,MATCH(Databackup!A23,Employee_Name,0)))) -> 
A24: =INDEX(Employee_Name,MATCH(SMALL(IF($A$1='Employee Data'!$I$4:$I$553,'Employee Data'!$B$4:$B$553,""),ROW('Employee Data'!A22)),IF($A$1='Employee Data'!$I$4:$I$553,'Employee Data'!$B$4:$B$553,""),0)) ->  | B24: =IF(ISERROR(INDEX('Employee Data'!$B$4:$B$553,MATCH(Databackup!A24,Employee_Name,0),0)),"",(INDEX('Employee Data'!$B$4:$B$553,MATCH(Databackup!A24,Employee_Name,0)))) ->  | C24: =IF(ISERROR(INDEX('Employee Data'!$C$4:$C$553,MATCH(Databackup!A24,Employee_Name,0),0)),"",(INDEX('Employee Data'!$C$4:$C$553,MATCH(Databackup!A24,Employee_Name,0)))) ->  | D24: =IF(ISERROR(INDEX('Employee Data'!$D$4:$D$553,MATCH(Databackup!A24,Employee_Name,0),0)),"",(INDEX('Employee Data'!$D$4:$D$553,MATCH(Databackup!A24,Employee_Name,0)))) ->  | E24: =IF(ISERROR(INDEX('Employee Data'!$F$4:$F$553,MATCH(Databackup!A24,Employee_Name,0),0)),"",(INDEX('Employee Data'!$F$4:$F$553,MATCH(Databackup!A24,Employee_Name,0)))) ->  | F24: =IF(ISERROR(INDEX('Employee Data'!$G$4:$G$553,MATCH(Databackup!A24,Employee_Name,0),0)),"",(INDEX('Employee Data'!$G$4:$G$553,MATCH(Databackup!A24,Employee_Name,0)))) ->  | G24: =IF(ISERROR(INDEX('Employee Data'!$H$4:$H$553,MATCH(Databackup!A24,Employee_Name,0),0)),"",(INDEX('Employee Data'!$H$4:$H$553,MATCH(Databackup!A24,Employee_Name,0)))) ->  | H24: =IF(ISERROR(INDEX('Employee Data'!$I$4:$I$553,MATCH(Databackup!A24,Employee_Name,0),0)),"",(INDEX('Employee Data'!$I$4:$I$553,MATCH(Databackup!A24,Employee_Name,0)))) ->  | I24: =IF(ISERROR(INDEX('Employee Data'!$J$4:$J$553,MATCH(Databackup!A24,Employee_Name,0),0)),"",(INDEX('Employee Data'!J$4:$J$553,MATCH(Databackup!A24,Employee_Name,0)))) ->  | J24: =IF(ISERROR(INDEX('Employee Data'!$K$4:$K$553,MATCH(Databackup!A24,Employee_Name,0),0)),"",(INDEX('Employee Data'!$K$4:$K$553,MATCH(Databackup!A24,Employee_Name,0)))) ->  | K24: =IF(ISERROR(INDEX('Employee Data'!$L$4:$L$553,MATCH(Databackup!A24,Employee_Name,0),0)),"",(INDEX('Employee Data'!$L$4:$L$553,MATCH(Databackup!A24,Employee_Name,0)))) ->  | L24: =IF(ISERROR(INDEX('Employee Data'!$M$4:$M$553,MATCH(Databackup!A24,Employee_Name,0),0)),"",(INDEX('Employee Data'!$M$4:$M$553,MATCH(Databackup!A24,Employee_Name,0)))) ->  | M24: =IF(ISERROR(INDEX('Employee Data'!$N$4:$N$553,MATCH(Databackup!A24,Employee_Name,0),0)),"",(INDEX('Employee Data'!$N$4:$N$553,MATCH(Databackup!A24,Employee_Name,0)))) ->  | N24: =IF(ISERROR(INDEX('Employee Data'!$O$4:$O$553,MATCH(Databackup!A24,Employee_Name,0),0)),"",(INDEX('Employee Data'!$O$4:$O$553,MATCH(Databackup!A24,Employee_Name,0)))) -> 
A25: =INDEX(Employee_Name,MATCH(SMALL(IF($A$1='Employee Data'!$I$4:$I$553,'Employee Data'!$B$4:$B$553,""),ROW('Employee Data'!A23)),IF($A$1='Employee Data'!$I$4:$I$553,'Employee Data'!$B$4:$B$553,""),0)) ->  | B25: =IF(ISERROR(INDEX('Employee Data'!$B$4:$B$553,MATCH(Databackup!A25,Employee_Name,0),0)),"",(INDEX('Employee Data'!$B$4:$B$553,MATCH(Databackup!A25,Employee_Name,0)))) ->  | C25: =IF(ISERROR(INDEX('Employee Data'!$C$4:$C$553,MATCH(Databackup!A25,Employee_Name,0),0)),"",(INDEX('Employee Data'!$C$4:$C$553,MATCH(Databackup!A25,Employee_Name,0)))) ->  | D25: =IF(ISERROR(INDEX('Employee Data'!$D$4:$D$553,MATCH(Databackup!A25,Employee_Name,0),0)),"",(INDEX('Employee Data'!$D$4:$D$553,MATCH(Databackup!A25,Employee_Name,0)))) ->  | E25: =IF(ISERROR(INDEX('Employee Data'!$F$4:$F$553,MATCH(Databackup!A25,Employee_Name,0),0)),"",(INDEX('Employee Data'!$F$4:$F$553,MATCH(Databackup!A25,Employee_Name,0)))) ->  | F25: =IF(ISERROR(INDEX('Employee Data'!$G$4:$G$553,MATCH(Databackup!A25,Employee_Name,0),0)),"",(INDEX('Employee Data'!$G$4:$G$553,MATCH(Databackup!A25,Employee_Name,0)))) ->  | G25: =IF(ISERROR(INDEX('Employee Data'!$H$4:$H$553,MATCH(Databackup!A25,Employee_Name,0),0)),"",(INDEX('Employee Data'!$H$4:$H$553,MATCH(Databackup!A25,Employee_Name,0)))) ->  | H25: =IF(ISERROR(INDEX('Employee Data'!$I$4:$I$553,MATCH(Databackup!A25,Employee_Name,0),0)),"",(INDEX('Employee Data'!$I$4:$I$553,MATCH(Databackup!A25,Employee_Name,0)))) ->  | I25: =IF(ISERROR(INDEX('Employee Data'!$J$4:$J$553,MATCH(Databackup!A25,Employee_Name,0),0)),"",(INDEX('Employee Data'!J$4:$J$553,MATCH(Databackup!A25,Employee_Name,0)))) ->  | J25: =IF(ISERROR(INDEX('Employee Data'!$K$4:$K$553,MATCH(Databackup!A25,Employee_Name,0),0)),"",(INDEX('Employee Data'!$K$4:$K$553,MATCH(Databackup!A25,Employee_Name,0)))) ->  | K25: =IF(ISERROR(INDEX('Employee Data'!$L$4:$L$553,MATCH(Databackup!A25,Employee_Name,0),0)),"",(INDEX('Employee Data'!$L$4:$L$553,MATCH(Databackup!A25,Employee_Name,0)))) ->  | L25: =IF(ISERROR(INDEX('Employee Data'!$M$4:$M$553,MATCH(Databackup!A25,Employee_Name,0),0)),"",(INDEX('Employee Data'!$M$4:$M$553,MATCH(Databackup!A25,Employee_Name,0)))) ->  | M25: =IF(ISERROR(INDEX('Employee Data'!$N$4:$N$553,MATCH(Databackup!A25,Employee_Name,0),0)),"",(INDEX('Employee Data'!$N$4:$N$553,MATCH(Databackup!A25,Employee_Name,0)))) ->  | N25: =IF(ISERROR(INDEX('Employee Data'!$O$4:$O$553,MATCH(Databackup!A25,Employee_Name,0),0)),"",(INDEX('Employee Data'!$O$4:$O$553,MATCH(Databackup!A25,Employee_Name,0)))) -> 
A26: =INDEX(Employee_Name,MATCH(SMALL(IF($A$1='Employee Data'!$I$4:$I$553,'Employee Data'!$B$4:$B$553,""),ROW('Employee Data'!A24)),IF($A$1='Employee Data'!$I$4:$I$553,'Employee Data'!$B$4:$B$553,""),0)) ->  | B26: =IF(ISERROR(INDEX('Employee Data'!$B$4:$B$553,MATCH(Databackup!A26,Employee_Name,0),0)),"",(INDEX('Employee Data'!$B$4:$B$553,MATCH(Databackup!A26,Employee_Name,0)))) ->  | C26: =IF(ISERROR(INDEX('Employee Data'!$C$4:$C$553,MATCH(Databackup!A26,Employee_Name,0),0)),"",(INDEX('Employee Data'!$C$4:$C$553,MATCH(Databackup!A26,Employee_Name,0)))) ->  | D26: =IF(ISERROR(INDEX('Employee Data'!$D$4:$D$553,MATCH(Databackup!A26,Employee_Name,0),0)),"",(INDEX('Employee Data'!$D$4:$D$553,MATCH(Databackup!A26,Employee_Name,0)))) ->  | E26: =IF(ISERROR(INDEX('Employee Data'!$F$4:$F$553,MATCH(Databackup!A26,Employee_Name,0),0)),"",(INDEX('Employee Data'!$F$4:$F$553,MATCH(Databackup!A26,Employee_Name,0)))) ->  | F26: =IF(ISERROR(INDEX('Employee Data'!$G$4:$G$553,MATCH(Databackup!A26,Employee_Name,0),0)),"",(INDEX('Employee Data'!$G$4:$G$553,MATCH(Databackup!A26,Employee_Name,0)))) ->  | G26: =IF(ISERROR(INDEX('Employee Data'!$H$4:$H$553,MATCH(Databackup!A26,Employee_Name,0),0)),"",(INDEX('Employee Data'!$H$4:$H$553,MATCH(Databackup!A26,Employee_Name,0)))) ->  | H26: =IF(ISERROR(INDEX('Employee Data'!$I$4:$I$553,MATCH(Databackup!A26,Employee_Name,0),0)),"",(INDEX('Employee Data'!$I$4:$I$553,MATCH(Databackup!A26,Employee_Name,0)))) ->  | I26: =IF(ISERROR(INDEX('Employee Data'!$J$4:$J$553,MATCH(Databackup!A26,Employee_Name,0),0)),"",(INDEX('Employee Data'!J$4:$J$553,MATCH(Databackup!A26,Employee_Name,0)))) ->  | J26: =IF(ISERROR(INDEX('Employee Data'!$K$4:$K$553,MATCH(Databackup!A26,Employee_Name,0),0)),"",(INDEX('Employee Data'!$K$4:$K$553,MATCH(Databackup!A26,Employee_Name,0)))) ->  | K26: =IF(ISERROR(INDEX('Employee Data'!$L$4:$L$553,MATCH(Databackup!A26,Employee_Name,0),0)),"",(INDEX('Employee Data'!$L$4:$L$553,MATCH(Databackup!A26,Employee_Name,0)))) ->  | L26: =IF(ISERROR(INDEX('Employee Data'!$M$4:$M$553,MATCH(Databackup!A26,Employee_Name,0),0)),"",(INDEX('Employee Data'!$M$4:$M$553,MATCH(Databackup!A26,Employee_Name,0)))) ->  | M26: =IF(ISERROR(INDEX('Employee Data'!$N$4:$N$553,MATCH(Databackup!A26,Employee_Name,0),0)),"",(INDEX('Employee Data'!$N$4:$N$553,MATCH(Databackup!A26,Employee_Name,0)))) ->  | N26: =IF(ISERROR(INDEX('Employee Data'!$O$4:$O$553,MATCH(Databackup!A26,Employee_Name,0),0)),"",(INDEX('Employee Data'!$O$4:$O$553,MATCH(Databackup!A26,Employee_Name,0)))) -> 
A27: =INDEX(Employee_Name,MATCH(SMALL(IF($A$1='Employee Data'!$I$4:$I$553,'Employee Data'!$B$4:$B$553,""),ROW('Employee Data'!A25)),IF($A$1='Employee Data'!$I$4:$I$553,'Employee Data'!$B$4:$B$553,""),0)) ->  | B27: =IF(ISERROR(INDEX('Employee Data'!$B$4:$B$553,MATCH(Databackup!A27,Employee_Name,0),0)),"",(INDEX('Employee Data'!$B$4:$B$553,MATCH(Databackup!A27,Employee_Name,0)))) ->  | C27: =IF(ISERROR(INDEX('Employee Data'!$C$4:$C$553,MATCH(Databackup!A27,Employee_Name,0),0)),"",(INDEX('Employee Data'!$C$4:$C$553,MATCH(Databackup!A27,Employee_Name,0)))) ->  | D27: =IF(ISERROR(INDEX('Employee Data'!$D$4:$D$553,MATCH(Databackup!A27,Employee_Name,0),0)),"",(INDEX('Employee Data'!$D$4:$D$553,MATCH(Databackup!A27,Employee_Name,0)))) ->  | E27: =IF(ISERROR(INDEX('Employee Data'!$F$4:$F$553,MATCH(Databackup!A27,Employee_Name,0),0)),"",(INDEX('Employee Data'!$F$4:$F$553,MATCH(Databackup!A27,Employee_Name,0)))) ->  | F27: =IF(ISERROR(INDEX('Employee Data'!$G$4:$G$553,MATCH(Databackup!A27,Employee_Name,0),0)),"",(INDEX('Employee Data'!$G$4:$G$553,MATCH(Databackup!A27,Employee_Name,0)))) ->  | G27: =IF(ISERROR(INDEX('Employee Data'!$H$4:$H$553,MATCH(Databackup!A27,Employee_Name,0),0)),"",(INDEX('Employee Data'!$H$4:$H$553,MATCH(Databackup!A27,Employee_Name,0)))) ->  | H27: =IF(ISERROR(INDEX('Employee Data'!$I$4:$I$553,MATCH(Databackup!A27,Employee_Name,0),0)),"",(INDEX('Employee Data'!$I$4:$I$553,MATCH(Databackup!A27,Employee_Name,0)))) ->  | I27: =IF(ISERROR(INDEX('Employee Data'!$J$4:$J$553,MATCH(Databackup!A27,Employee_Name,0),0)),"",(INDEX('Employee Data'!J$4:$J$553,MATCH(Databackup!A27,Employee_Name,0)))) ->  | J27: =IF(ISERROR(INDEX('Employee Data'!$K$4:$K$553,MATCH(Databackup!A27,Employee_Name,0),0)),"",(INDEX('Employee Data'!$K$4:$K$553,MATCH(Databackup!A27,Employee_Name,0)))) ->  | K27: =IF(ISERROR(INDEX('Employee Data'!$L$4:$L$553,MATCH(Databackup!A27,Employee_Name,0),0)),"",(INDEX('Employee Data'!$L$4:$L$553,MATCH(Databackup!A27,Employee_Name,0)))) ->  | L27: =IF(ISERROR(INDEX('Employee Data'!$M$4:$M$553,MATCH(Databackup!A27,Employee_Name,0),0)),"",(INDEX('Employee Data'!$M$4:$M$553,MATCH(Databackup!A27,Employee_Name,0)))) ->  | M27: =IF(ISERROR(INDEX('Employee Data'!$N$4:$N$553,MATCH(Databackup!A27,Employee_Name,0),0)),"",(INDEX('Employee Data'!$N$4:$N$553,MATCH(Databackup!A27,Employee_Name,0)))) ->  | N27: =IF(ISERROR(INDEX('Employee Data'!$O$4:$O$553,MATCH(Databackup!A27,Employee_Name,0),0)),"",(INDEX('Employee Data'!$O$4:$O$553,MATCH(Databackup!A27,Employee_Name,0)))) -> 
A28: =INDEX(Employee_Name,MATCH(SMALL(IF($A$1='Employee Data'!$I$4:$I$553,'Employee Data'!$B$4:$B$553,""),ROW('Employee Data'!A26)),IF($A$1='Employee Data'!$I$4:$I$553,'Employee Data'!$B$4:$B$553,""),0)) ->  | B28: =IF(ISERROR(INDEX('Employee Data'!$B$4:$B$553,MATCH(Databackup!A28,Employee_Name,0),0)),"",(INDEX('Employee Data'!$B$4:$B$553,MATCH(Databackup!A28,Employee_Name,0)))) ->  | C28: =IF(ISERROR(INDEX('Employee Data'!$C$4:$C$553,MATCH(Databackup!A28,Employee_Name,0),0)),"",(INDEX('Employee Data'!$C$4:$C$553,MATCH(Databackup!A28,Employee_Name,0)))) ->  | D28: =IF(ISERROR(INDEX('Employee Data'!$D$4:$D$553,MATCH(Databackup!A28,Employee_Name,0),0)),"",(INDEX('Employee Data'!$D$4:$D$553,MATCH(Databackup!A28,Employee_Name,0)))) ->  | E28: =IF(ISERROR(INDEX('Employee Data'!$F$4:$F$553,MATCH(Databackup!A28,Employee_Name,0),0)),"",(INDEX('Employee Data'!$F$4:$F$553,MATCH(Databackup!A28,Employee_Name,0)))) ->  | F28: =IF(ISERROR(INDEX('Employee Data'!$G$4:$G$553,MATCH(Databackup!A28,Employee_Name,0),0)),"",(INDEX('Employee Data'!$G$4:$G$553,MATCH(Databackup!A28,Employee_Name,0)))) ->  | G28: =IF(ISERROR(INDEX('Employee Data'!$H$4:$H$553,MATCH(Databackup!A28,Employee_Name,0),0)),"",(INDEX('Employee Data'!$H$4:$H$553,MATCH(Databackup!A28,Employee_Name,0)))) ->  | H28: =IF(ISERROR(INDEX('Employee Data'!$I$4:$I$553,MATCH(Databackup!A28,Employee_Name,0),0)),"",(INDEX('Employee Data'!$I$4:$I$553,MATCH(Databackup!A28,Employee_Name,0)))) ->  | I28: =IF(ISERROR(INDEX('Employee Data'!$J$4:$J$553,MATCH(Databackup!A28,Employee_Name,0),0)),"",(INDEX('Employee Data'!J$4:$J$553,MATCH(Databackup!A28,Employee_Name,0)))) ->  | J28: =IF(ISERROR(INDEX('Employee Data'!$K$4:$K$553,MATCH(Databackup!A28,Employee_Name,0),0)),"",(INDEX('Employee Data'!$K$4:$K$553,MATCH(Databackup!A28,Employee_Name,0)))) ->  | K28: =IF(ISERROR(INDEX('Employee Data'!$L$4:$L$553,MATCH(Databackup!A28,Employee_Name,0),0)),"",(INDEX('Employee Data'!$L$4:$L$553,MATCH(Databackup!A28,Employee_Name,0)))) ->  | L28: =IF(ISERROR(INDEX('Employee Data'!$M$4:$M$553,MATCH(Databackup!A28,Employee_Name,0),0)),"",(INDEX('Employee Data'!$M$4:$M$553,MATCH(Databackup!A28,Employee_Name,0)))) ->  | M28: =IF(ISERROR(INDEX('Employee Data'!$N$4:$N$553,MATCH(Databackup!A28,Employee_Name,0),0)),"",(INDEX('Employee Data'!$N$4:$N$553,MATCH(Databackup!A28,Employee_Name,0)))) ->  | N28: =IF(ISERROR(INDEX('Employee Data'!$O$4:$O$553,MATCH(Databackup!A28,Employee_Name,0),0)),"",(INDEX('Employee Data'!$O$4:$O$553,MATCH(Databackup!A28,Employee_Name,0)))) -> 
A29: =INDEX(Employee_Name,MATCH(SMALL(IF($A$1='Employee Data'!$I$4:$I$553,'Employee Data'!$B$4:$B$553,""),ROW('Employee Data'!A27)),IF($A$1='Employee Data'!$I$4:$I$553,'Employee Data'!$B$4:$B$553,""),0)) ->  | B29: =IF(ISERROR(INDEX('Employee Data'!$B$4:$B$553,MATCH(Databackup!A29,Employee_Name,0),0)),"",(INDEX('Employee Data'!$B$4:$B$553,MATCH(Databackup!A29,Employee_Name,0)))) ->  | C29: =IF(ISERROR(INDEX('Employee Data'!$C$4:$C$553,MATCH(Databackup!A29,Employee_Name,0),0)),"",(INDEX('Employee Data'!$C$4:$C$553,MATCH(Databackup!A29,Employee_Name,0)))) ->  | D29: =IF(ISERROR(INDEX('Employee Data'!$D$4:$D$553,MATCH(Databackup!A29,Employee_Name,0),0)),"",(INDEX('Employee Data'!$D$4:$D$553,MATCH(Databackup!A29,Employee_Name,0)))) ->  | E29: =IF(ISERROR(INDEX('Employee Data'!$F$4:$F$553,MATCH(Databackup!A29,Employee_Name,0),0)),"",(INDEX('Employee Data'!$F$4:$F$553,MATCH(Databackup!A29,Employee_Name,0)))) ->  | F29: =IF(ISERROR(INDEX('Employee Data'!$G$4:$G$553,MATCH(Databackup!A29,Employee_Name,0),0)),"",(INDEX('Employee Data'!$G$4:$G$553,MATCH(Databackup!A29,Employee_Name,0)))) ->  | G29: =IF(ISERROR(INDEX('Employee Data'!$H$4:$H$553,MATCH(Databackup!A29,Employee_Name,0),0)),"",(INDEX('Employee Data'!$H$4:$H$553,MATCH(Databackup!A29,Employee_Name,0)))) ->  | H29: =IF(ISERROR(INDEX('Employee Data'!$I$4:$I$553,MATCH(Databackup!A29,Employee_Name,0),0)),"",(INDEX('Employee Data'!$I$4:$I$553,MATCH(Databackup!A29,Employee_Name,0)))) ->  | I29: =IF(ISERROR(INDEX('Employee Data'!$J$4:$J$553,MATCH(Databackup!A29,Employee_Name,0),0)),"",(INDEX('Employee Data'!J$4:$J$553,MATCH(Databackup!A29,Employee_Name,0)))) ->  | J29: =IF(ISERROR(INDEX('Employee Data'!$K$4:$K$553,MATCH(Databackup!A29,Employee_Name,0),0)),"",(INDEX('Employee Data'!$K$4:$K$553,MATCH(Databackup!A29,Employee_Name,0)))) ->  | K29: =IF(ISERROR(INDEX('Employee Data'!$L$4:$L$553,MATCH(Databackup!A29,Employee_Name,0),0)),"",(INDEX('Employee Data'!$L$4:$L$553,MATCH(Databackup!A29,Employee_Name,0)))) ->  | L29: =IF(ISERROR(INDEX('Employee Data'!$M$4:$M$553,MATCH(Databackup!A29,Employee_Name,0),0)),"",(INDEX('Employee Data'!$M$4:$M$553,MATCH(Databackup!A29,Employee_Name,0)))) ->  | M29: =IF(ISERROR(INDEX('Employee Data'!$N$4:$N$553,MATCH(Databackup!A29,Employee_Name,0),0)),"",(INDEX('Employee Data'!$N$4:$N$553,MATCH(Databackup!A29,Employee_Name,0)))) ->  | N29: =IF(ISERROR(INDEX('Employee Data'!$O$4:$O$553,MATCH(Databackup!A29,Employee_Name,0),0)),"",(INDEX('Employee Data'!$O$4:$O$553,MATCH(Databackup!A29,Employee_Name,0)))) -> 
A30: =INDEX(Employee_Name,MATCH(SMALL(IF($A$1='Employee Data'!$I$4:$I$553,'Employee Data'!$B$4:$B$553,""),ROW('Employee Data'!A28)),IF($A$1='Employee Data'!$I$4:$I$553,'Employee Data'!$B$4:$B$553,""),0)) ->  | B30: =IF(ISERROR(INDEX('Employee Data'!$B$4:$B$553,MATCH(Databackup!A30,Employee_Name,0),0)),"",(INDEX('Employee Data'!$B$4:$B$553,MATCH(Databackup!A30,Employee_Name,0)))) ->  | C30: =IF(ISERROR(INDEX('Employee Data'!$C$4:$C$553,MATCH(Databackup!A30,Employee_Name,0),0)),"",(INDEX('Employee Data'!$C$4:$C$553,MATCH(Databackup!A30,Employee_Name,0)))) ->  | D30: =IF(ISERROR(INDEX('Employee Data'!$D$4:$D$553,MATCH(Databackup!A30,Employee_Name,0),0)),"",(INDEX('Employee Data'!$D$4:$D$553,MATCH(Databackup!A30,Employee_Name,0)))) ->  | E30: =IF(ISERROR(INDEX('Employee Data'!$F$4:$F$553,MATCH(Databackup!A30,Employee_Name,0),0)),"",(INDEX('Employee Data'!$F$4:$F$553,MATCH(Databackup!A30,Employee_Name,0)))) ->  | F30: =IF(ISERROR(INDEX('Employee Data'!$G$4:$G$553,MATCH(Databackup!A30,Employee_Name,0),0)),"",(INDEX('Employee Data'!$G$4:$G$553,MATCH(Databackup!A30,Employee_Name,0)))) ->  | G30: =IF(ISERROR(INDEX('Employee Data'!$H$4:$H$553,MATCH(Databackup!A30,Employee_Name,0),0)),"",(INDEX('Employee Data'!$H$4:$H$553,MATCH(Databackup!A30,Employee_Name,0)))) ->  | H30: =IF(ISERROR(INDEX('Employee Data'!$I$4:$I$553,MATCH(Databackup!A30,Employee_Name,0),0)),"",(INDEX('Employee Data'!$I$4:$I$553,MATCH(Databackup!A30,Employee_Name,0)))) ->  | I30: =IF(ISERROR(INDEX('Employee Data'!$J$4:$J$553,MATCH(Databackup!A30,Employee_Name,0),0)),"",(INDEX('Employee Data'!J$4:$J$553,MATCH(Databackup!A30,Employee_Name,0)))) ->  | J30: =IF(ISERROR(INDEX('Employee Data'!$K$4:$K$553,MATCH(Databackup!A30,Employee_Name,0),0)),"",(INDEX('Employee Data'!$K$4:$K$553,MATCH(Databackup!A30,Employee_Name,0)))) ->  | K30: =IF(ISERROR(INDEX('Employee Data'!$L$4:$L$553,MATCH(Databackup!A30,Employee_Name,0),0)),"",(INDEX('Employee Data'!$L$4:$L$553,MATCH(Databackup!A30,Employee_Name,0)))) ->  | L30: =IF(ISERROR(INDEX('Employee Data'!$M$4:$M$553,MATCH(Databackup!A30,Employee_Name,0),0)),"",(INDEX('Employee Data'!$M$4:$M$553,MATCH(Databackup!A30,Employee_Name,0)))) ->  | M30: =IF(ISERROR(INDEX('Employee Data'!$N$4:$N$553,MATCH(Databackup!A30,Employee_Name,0),0)),"",(INDEX('Employee Data'!$N$4:$N$553,MATCH(Databackup!A30,Employee_Name,0)))) ->  | N30: =IF(ISERROR(INDEX('Employee Data'!$O$4:$O$553,MATCH(Databackup!A30,Employee_Name,0),0)),"",(INDEX('Employee Data'!$O$4:$O$553,MATCH(Databackup!A30,Employee_Name,0)))) -> 
A31: =INDEX(Employee_Name,MATCH(SMALL(IF($A$1='Employee Data'!$I$4:$I$553,'Employee Data'!$B$4:$B$553,""),ROW('Employee Data'!A29)),IF($A$1='Employee Data'!$I$4:$I$553,'Employee Data'!$B$4:$B$553,""),0)) ->  | B31: =IF(ISERROR(INDEX('Employee Data'!$B$4:$B$553,MATCH(Databackup!A31,Employee_Name,0),0)),"",(INDEX('Employee Data'!$B$4:$B$553,MATCH(Databackup!A31,Employee_Name,0)))) ->  | C31: =IF(ISERROR(INDEX('Employee Data'!$C$4:$C$553,MATCH(Databackup!A31,Employee_Name,0),0)),"",(INDEX('Employee Data'!$C$4:$C$553,MATCH(Databackup!A31,Employee_Name,0)))) ->  | D31: =IF(ISERROR(INDEX('Employee Data'!$D$4:$D$553,MATCH(Databackup!A31,Employee_Name,0),0)),"",(INDEX('Employee Data'!$D$4:$D$553,MATCH(Databackup!A31,Employee_Name,0)))) ->  | E31: =IF(ISERROR(INDEX('Employee Data'!$F$4:$F$553,MATCH(Databackup!A31,Employee_Name,0),0)),"",(INDEX('Employee Data'!$F$4:$F$553,MATCH(Databackup!A31,Employee_Name,0)))) ->  | F31: =IF(ISERROR(INDEX('Employee Data'!$G$4:$G$553,MATCH(Databackup!A31,Employee_Name,0),0)),"",(INDEX('Employee Data'!$G$4:$G$553,MATCH(Databackup!A31,Employee_Name,0)))) ->  | G31: =IF(ISERROR(INDEX('Employee Data'!$H$4:$H$553,MATCH(Databackup!A31,Employee_Name,0),0)),"",(INDEX('Employee Data'!$H$4:$H$553,MATCH(Databackup!A31,Employee_Name,0)))) ->  | H31: =IF(ISERROR(INDEX('Employee Data'!$I$4:$I$553,MATCH(Databackup!A31,Employee_Name,0),0)),"",(INDEX('Employee Data'!$I$4:$I$553,MATCH(Databackup!A31,Employee_Name,0)))) ->  | I31: =IF(ISERROR(INDEX('Employee Data'!$J$4:$J$553,MATCH(Databackup!A31,Employee_Name,0),0)),"",(INDEX('Employee Data'!J$4:$J$553,MATCH(Databackup!A31,Employee_Name,0)))) ->  | J31: =IF(ISERROR(INDEX('Employee Data'!$K$4:$K$553,MATCH(Databackup!A31,Employee_Name,0),0)),"",(INDEX('Employee Data'!$K$4:$K$553,MATCH(Databackup!A31,Employee_Name,0)))) ->  | K31: =IF(ISERROR(INDEX('Employee Data'!$L$4:$L$553,MATCH(Databackup!A31,Employee_Name,0),0)),"",(INDEX('Employee Data'!$L$4:$L$553,MATCH(Databackup!A31,Employee_Name,0)))) ->  | L31: =IF(ISERROR(INDEX('Employee Data'!$M$4:$M$553,MATCH(Databackup!A31,Employee_Name,0),0)),"",(INDEX('Employee Data'!$M$4:$M$553,MATCH(Databackup!A31,Employee_Name,0)))) ->  | M31: =IF(ISERROR(INDEX('Employee Data'!$N$4:$N$553,MATCH(Databackup!A31,Employee_Name,0),0)),"",(INDEX('Employee Data'!$N$4:$N$553,MATCH(Databackup!A31,Employee_Name,0)))) ->  | N31: =IF(ISERROR(INDEX('Employee Data'!$O$4:$O$553,MATCH(Databackup!A31,Employee_Name,0),0)),"",(INDEX('Employee Data'!$O$4:$O$553,MATCH(Databackup!A31,Employee_Name,0)))) -> 
A32: =INDEX(Employee_Name,MATCH(SMALL(IF($A$1='Employee Data'!$I$4:$I$553,'Employee Data'!$B$4:$B$553,""),ROW('Employee Data'!A30)),IF($A$1='Employee Data'!$I$4:$I$553,'Employee Data'!$B$4:$B$553,""),0)) ->  | B32: =IF(ISERROR(INDEX('Employee Data'!$B$4:$B$553,MATCH(Databackup!A32,Employee_Name,0),0)),"",(INDEX('Employee Data'!$B$4:$B$553,MATCH(Databackup!A32,Employee_Name,0)))) ->  | C32: =IF(ISERROR(INDEX('Employee Data'!$C$4:$C$553,MATCH(Databackup!A32,Employee_Name,0),0)),"",(INDEX('Employee Data'!$C$4:$C$553,MATCH(Databackup!A32,Employee_Name,0)))) ->  | D32: =IF(ISERROR(INDEX('Employee Data'!$D$4:$D$553,MATCH(Databackup!A32,Employee_Name,0),0)),"",(INDEX('Employee Data'!$D$4:$D$553,MATCH(Databackup!A32,Employee_Name,0)))) ->  | E32: =IF(ISERROR(INDEX('Employee Data'!$F$4:$F$553,MATCH(Databackup!A32,Employee_Name,0),0)),"",(INDEX('Employee Data'!$F$4:$F$553,MATCH(Databackup!A32,Employee_Name,0)))) ->  | F32: =IF(ISERROR(INDEX('Employee Data'!$G$4:$G$553,MATCH(Databackup!A32,Employee_Name,0),0)),"",(INDEX('Employee Data'!$G$4:$G$553,MATCH(Databackup!A32,Employee_Name,0)))) ->  | G32: =IF(ISERROR(INDEX('Employee Data'!$H$4:$H$553,MATCH(Databackup!A32,Employee_Name,0),0)),"",(INDEX('Employee Data'!$H$4:$H$553,MATCH(Databackup!A32,Employee_Name,0)))) ->  | H32: =IF(ISERROR(INDEX('Employee Data'!$I$4:$I$553,MATCH(Databackup!A32,Employee_Name,0),0)),"",(INDEX('Employee Data'!$I$4:$I$553,MATCH(Databackup!A32,Employee_Name,0)))) ->  | I32: =IF(ISERROR(INDEX('Employee Data'!$J$4:$J$553,MATCH(Databackup!A32,Employee_Name,0),0)),"",(INDEX('Employee Data'!J$4:$J$553,MATCH(Databackup!A32,Employee_Name,0)))) ->  | J32: =IF(ISERROR(INDEX('Employee Data'!$K$4:$K$553,MATCH(Databackup!A32,Employee_Name,0),0)),"",(INDEX('Employee Data'!$K$4:$K$553,MATCH(Databackup!A32,Employee_Name,0)))) ->  | K32: =IF(ISERROR(INDEX('Employee Data'!$L$4:$L$553,MATCH(Databackup!A32,Employee_Name,0),0)),"",(INDEX('Employee Data'!$L$4:$L$553,MATCH(Databackup!A32,Employee_Name,0)))) ->  | L32: =IF(ISERROR(INDEX('Employee Data'!$M$4:$M$553,MATCH(Databackup!A32,Employee_Name,0),0)),"",(INDEX('Employee Data'!$M$4:$M$553,MATCH(Databackup!A32,Employee_Name,0)))) ->  | M32: =IF(ISERROR(INDEX('Employee Data'!$N$4:$N$553,MATCH(Databackup!A32,Employee_Name,0),0)),"",(INDEX('Employee Data'!$N$4:$N$553,MATCH(Databackup!A32,Employee_Name,0)))) ->  | N32: =IF(ISERROR(INDEX('Employee Data'!$O$4:$O$553,MATCH(Databackup!A32,Employee_Name,0),0)),"",(INDEX('Employee Data'!$O$4:$O$553,MATCH(Databackup!A32,Employee_Name,0)))) -> 
A33: =INDEX(Employee_Name,MATCH(SMALL(IF($A$1='Employee Data'!$I$4:$I$553,'Employee Data'!$B$4:$B$553,""),ROW('Employee Data'!A31)),IF($A$1='Employee Data'!$I$4:$I$553,'Employee Data'!$B$4:$B$553,""),0)) ->  | B33: =IF(ISERROR(INDEX('Employee Data'!$B$4:$B$553,MATCH(Databackup!A33,Employee_Name,0),0)),"",(INDEX('Employee Data'!$B$4:$B$553,MATCH(Databackup!A33,Employee_Name,0)))) ->  | C33: =IF(ISERROR(INDEX('Employee Data'!$C$4:$C$553,MATCH(Databackup!A33,Employee_Name,0),0)),"",(INDEX('Employee Data'!$C$4:$C$553,MATCH(Databackup!A33,Employee_Name,0)))) ->  | D33: =IF(ISERROR(INDEX('Employee Data'!$D$4:$D$553,MATCH(Databackup!A33,Employee_Name,0),0)),"",(INDEX('Employee Data'!$D$4:$D$553,MATCH(Databackup!A33,Employee_Name,0)))) ->  | E33: =IF(ISERROR(INDEX('Employee Data'!$F$4:$F$553,MATCH(Databackup!A33,Employee_Name,0),0)),"",(INDEX('Employee Data'!$F$4:$F$553,MATCH(Databackup!A33,Employee_Name,0)))) ->  | F33: =IF(ISERROR(INDEX('Employee Data'!$G$4:$G$553,MATCH(Databackup!A33,Employee_Name,0),0)),"",(INDEX('Employee Data'!$G$4:$G$553,MATCH(Databackup!A33,Employee_Name,0)))) ->  | G33: =IF(ISERROR(INDEX('Employee Data'!$H$4:$H$553,MATCH(Databackup!A33,Employee_Name,0),0)),"",(INDEX('Employee Data'!$H$4:$H$553,MATCH(Databackup!A33,Employee_Name,0)))) ->  | H33: =IF(ISERROR(INDEX('Employee Data'!$I$4:$I$553,MATCH(Databackup!A33,Employee_Name,0),0)),"",(INDEX('Employee Data'!$I$4:$I$553,MATCH(Databackup!A33,Employee_Name,0)))) ->  | I33: =IF(ISERROR(INDEX('Employee Data'!$J$4:$J$553,MATCH(Databackup!A33,Employee_Name,0),0)),"",(INDEX('Employee Data'!J$4:$J$553,MATCH(Databackup!A33,Employee_Name,0)))) ->  | J33: =IF(ISERROR(INDEX('Employee Data'!$K$4:$K$553,MATCH(Databackup!A33,Employee_Name,0),0)),"",(INDEX('Employee Data'!$K$4:$K$553,MATCH(Databackup!A33,Employee_Name,0)))) ->  | K33: =IF(ISERROR(INDEX('Employee Data'!$L$4:$L$553,MATCH(Databackup!A33,Employee_Name,0),0)),"",(INDEX('Employee Data'!$L$4:$L$553,MATCH(Databackup!A33,Employee_Name,0)))) ->  | L33: =IF(ISERROR(INDEX('Employee Data'!$M$4:$M$553,MATCH(Databackup!A33,Employee_Name,0),0)),"",(INDEX('Employee Data'!$M$4:$M$553,MATCH(Databackup!A33,Employee_Name,0)))) ->  | M33: =IF(ISERROR(INDEX('Employee Data'!$N$4:$N$553,MATCH(Databackup!A33,Employee_Name,0),0)),"",(INDEX('Employee Data'!$N$4:$N$553,MATCH(Databackup!A33,Employee_Name,0)))) ->  | N33: =IF(ISERROR(INDEX('Employee Data'!$O$4:$O$553,MATCH(Databackup!A33,Employee_Name,0),0)),"",(INDEX('Employee Data'!$O$4:$O$553,MATCH(Databackup!A33,Employee_Name,0)))) -> 
A34: =INDEX(Employee_Name,MATCH(SMALL(IF($A$1='Employee Data'!$I$4:$I$553,'Employee Data'!$B$4:$B$553,""),ROW('Employee Data'!A32)),IF($A$1='Employee Data'!$I$4:$I$553,'Employee Data'!$B$4:$B$553,""),0)) ->  | B34: =IF(ISERROR(INDEX('Employee Data'!$B$4:$B$553,MATCH(Databackup!A34,Employee_Name,0),0)),"",(INDEX('Employee Data'!$B$4:$B$553,MATCH(Databackup!A34,Employee_Name,0)))) ->  | C34: =IF(ISERROR(INDEX('Employee Data'!$C$4:$C$553,MATCH(Databackup!A34,Employee_Name,0),0)),"",(INDEX('Employee Data'!$C$4:$C$553,MATCH(Databackup!A34,Employee_Name,0)))) ->  | D34: =IF(ISERROR(INDEX('Employee Data'!$D$4:$D$553,MATCH(Databackup!A34,Employee_Name,0),0)),"",(INDEX('Employee Data'!$D$4:$D$553,MATCH(Databackup!A34,Employee_Name,0)))) ->  | E34: =IF(ISERROR(INDEX('Employee Data'!$F$4:$F$553,MATCH(Databackup!A34,Employee_Name,0),0)),"",(INDEX('Employee Data'!$F$4:$F$553,MATCH(Databackup!A34,Employee_Name,0)))) ->  | F34: =IF(ISERROR(INDEX('Employee Data'!$G$4:$G$553,MATCH(Databackup!A34,Employee_Name,0),0)),"",(INDEX('Employee Data'!$G$4:$G$553,MATCH(Databackup!A34,Employee_Name,0)))) ->  | G34: =IF(ISERROR(INDEX('Employee Data'!$H$4:$H$553,MATCH(Databackup!A34,Employee_Name,0),0)),"",(INDEX('Employee Data'!$H$4:$H$553,MATCH(Databackup!A34,Employee_Name,0)))) ->  | H34: =IF(ISERROR(INDEX('Employee Data'!$I$4:$I$553,MATCH(Databackup!A34,Employee_Name,0),0)),"",(INDEX('Employee Data'!$I$4:$I$553,MATCH(Databackup!A34,Employee_Name,0)))) ->  | I34: =IF(ISERROR(INDEX('Employee Data'!$J$4:$J$553,MATCH(Databackup!A34,Employee_Name,0),0)),"",(INDEX('Employee Data'!J$4:$J$553,MATCH(Databackup!A34,Employee_Name,0)))) ->  | J34: =IF(ISERROR(INDEX('Employee Data'!$K$4:$K$553,MATCH(Databackup!A34,Employee_Name,0),0)),"",(INDEX('Employee Data'!$K$4:$K$553,MATCH(Databackup!A34,Employee_Name,0)))) ->  | K34: =IF(ISERROR(INDEX('Employee Data'!$L$4:$L$553,MATCH(Databackup!A34,Employee_Name,0),0)),"",(INDEX('Employee Data'!$L$4:$L$553,MATCH(Databackup!A34,Employee_Name,0)))) ->  | L34: =IF(ISERROR(INDEX('Employee Data'!$M$4:$M$553,MATCH(Databackup!A34,Employee_Name,0),0)),"",(INDEX('Employee Data'!$M$4:$M$553,MATCH(Databackup!A34,Employee_Name,0)))) ->  | M34: =IF(ISERROR(INDEX('Employee Data'!$N$4:$N$553,MATCH(Databackup!A34,Employee_Name,0),0)),"",(INDEX('Employee Data'!$N$4:$N$553,MATCH(Databackup!A34,Employee_Name,0)))) ->  | N34: =IF(ISERROR(INDEX('Employee Data'!$O$4:$O$553,MATCH(Databackup!A34,Employee_Name,0),0)),"",(INDEX('Employee Data'!$O$4:$O$553,MATCH(Databackup!A34,Employee_Name,0)))) -> 
A35: =INDEX(Employee_Name,MATCH(SMALL(IF($A$1='Employee Data'!$I$4:$I$553,'Employee Data'!$B$4:$B$553,""),ROW('Employee Data'!A33)),IF($A$1='Employee Data'!$I$4:$I$553,'Employee Data'!$B$4:$B$553,""),0)) ->  | B35: =IF(ISERROR(INDEX('Employee Data'!$B$4:$B$553,MATCH(Databackup!A35,Employee_Name,0),0)),"",(INDEX('Employee Data'!$B$4:$B$553,MATCH(Databackup!A35,Employee_Name,0)))) ->  | C35: =IF(ISERROR(INDEX('Employee Data'!$C$4:$C$553,MATCH(Databackup!A35,Employee_Name,0),0)),"",(INDEX('Employee Data'!$C$4:$C$553,MATCH(Databackup!A35,Employee_Name,0)))) ->  | D35: =IF(ISERROR(INDEX('Employee Data'!$D$4:$D$553,MATCH(Databackup!A35,Employee_Name,0),0)),"",(INDEX('Employee Data'!$D$4:$D$553,MATCH(Databackup!A35,Employee_Name,0)))) ->  | E35: =IF(ISERROR(INDEX('Employee Data'!$F$4:$F$553,MATCH(Databackup!A35,Employee_Name,0),0)),"",(INDEX('Employee Data'!$F$4:$F$553,MATCH(Databackup!A35,Employee_Name,0)))) ->  | F35: =IF(ISERROR(INDEX('Employee Data'!$G$4:$G$553,MATCH(Databackup!A35,Employee_Name,0),0)),"",(INDEX('Employee Data'!$G$4:$G$553,MATCH(Databackup!A35,Employee_Name,0)))) ->  | G35: =IF(ISERROR(INDEX('Employee Data'!$H$4:$H$553,MATCH(Databackup!A35,Employee_Name,0),0)),"",(INDEX('Employee Data'!$H$4:$H$553,MATCH(Databackup!A35,Employee_Name,0)))) ->  | H35: =IF(ISERROR(INDEX('Employee Data'!$I$4:$I$553,MATCH(Databackup!A35,Employee_Name,0),0)),"",(INDEX('Employee Data'!$I$4:$I$553,MATCH(Databackup!A35,Employee_Name,0)))) ->  | I35: =IF(ISERROR(INDEX('Employee Data'!$J$4:$J$553,MATCH(Databackup!A35,Employee_Name,0),0)),"",(INDEX('Employee Data'!J$4:$J$553,MATCH(Databackup!A35,Employee_Name,0)))) ->  | J35: =IF(ISERROR(INDEX('Employee Data'!$K$4:$K$553,MATCH(Databackup!A35,Employee_Name,0),0)),"",(INDEX('Employee Data'!$K$4:$K$553,MATCH(Databackup!A35,Employee_Name,0)))) ->  | K35: =IF(ISERROR(INDEX('Employee Data'!$L$4:$L$553,MATCH(Databackup!A35,Employee_Name,0),0)),"",(INDEX('Employee Data'!$L$4:$L$553,MATCH(Databackup!A35,Employee_Name,0)))) ->  | L35: =IF(ISERROR(INDEX('Employee Data'!$M$4:$M$553,MATCH(Databackup!A35,Employee_Name,0),0)),"",(INDEX('Employee Data'!$M$4:$M$553,MATCH(Databackup!A35,Employee_Name,0)))) ->  | M35: =IF(ISERROR(INDEX('Employee Data'!$N$4:$N$553,MATCH(Databackup!A35,Employee_Name,0),0)),"",(INDEX('Employee Data'!$N$4:$N$553,MATCH(Databackup!A35,Employee_Name,0)))) ->  | N35: =IF(ISERROR(INDEX('Employee Data'!$O$4:$O$553,MATCH(Databackup!A35,Employee_Name,0),0)),"",(INDEX('Employee Data'!$O$4:$O$553,MATCH(Databackup!A35,Employee_Name,0)))) -> 
A36: =INDEX(Employee_Name,MATCH(SMALL(IF($A$1='Employee Data'!$I$4:$I$553,'Employee Data'!$B$4:$B$553,""),ROW('Employee Data'!A34)),IF($A$1='Employee Data'!$I$4:$I$553,'Employee Data'!$B$4:$B$553,""),0)) ->  | B36: =IF(ISERROR(INDEX('Employee Data'!$B$4:$B$553,MATCH(Databackup!A36,Employee_Name,0),0)),"",(INDEX('Employee Data'!$B$4:$B$553,MATCH(Databackup!A36,Employee_Name,0)))) ->  | C36: =IF(ISERROR(INDEX('Employee Data'!$C$4:$C$553,MATCH(Databackup!A36,Employee_Name,0),0)),"",(INDEX('Employee Data'!$C$4:$C$553,MATCH(Databackup!A36,Employee_Name,0)))) ->  | D36: =IF(ISERROR(INDEX('Employee Data'!$D$4:$D$553,MATCH(Databackup!A36,Employee_Name,0),0)),"",(INDEX('Employee Data'!$D$4:$D$553,MATCH(Databackup!A36,Employee_Name,0)))) ->  | E36: =IF(ISERROR(INDEX('Employee Data'!$F$4:$F$553,MATCH(Databackup!A36,Employee_Name,0),0)),"",(INDEX('Employee Data'!$F$4:$F$553,MATCH(Databackup!A36,Employee_Name,0)))) ->  | F36: =IF(ISERROR(INDEX('Employee Data'!$G$4:$G$553,MATCH(Databackup!A36,Employee_Name,0),0)),"",(INDEX('Employee Data'!$G$4:$G$553,MATCH(Databackup!A36,Employee_Name,0)))) ->  | G36: =IF(ISERROR(INDEX('Employee Data'!$H$4:$H$553,MATCH(Databackup!A36,Employee_Name,0),0)),"",(INDEX('Employee Data'!$H$4:$H$553,MATCH(Databackup!A36,Employee_Name,0)))) ->  | H36: =IF(ISERROR(INDEX('Employee Data'!$I$4:$I$553,MATCH(Databackup!A36,Employee_Name,0),0)),"",(INDEX('Employee Data'!$I$4:$I$553,MATCH(Databackup!A36,Employee_Name,0)))) ->  | I36: =IF(ISERROR(INDEX('Employee Data'!$J$4:$J$553,MATCH(Databackup!A36,Employee_Name,0),0)),"",(INDEX('Employee Data'!J$4:$J$553,MATCH(Databackup!A36,Employee_Name,0)))) ->  | J36: =IF(ISERROR(INDEX('Employee Data'!$K$4:$K$553,MATCH(Databackup!A36,Employee_Name,0),0)),"",(INDEX('Employee Data'!$K$4:$K$553,MATCH(Databackup!A36,Employee_Name,0)))) ->  | K36: =IF(ISERROR(INDEX('Employee Data'!$L$4:$L$553,MATCH(Databackup!A36,Employee_Name,0),0)),"",(INDEX('Employee Data'!$L$4:$L$553,MATCH(Databackup!A36,Employee_Name,0)))) ->  | L36: =IF(ISERROR(INDEX('Employee Data'!$M$4:$M$553,MATCH(Databackup!A36,Employee_Name,0),0)),"",(INDEX('Employee Data'!$M$4:$M$553,MATCH(Databackup!A36,Employee_Name,0)))) ->  | M36: =IF(ISERROR(INDEX('Employee Data'!$N$4:$N$553,MATCH(Databackup!A36,Employee_Name,0),0)),"",(INDEX('Employee Data'!$N$4:$N$553,MATCH(Databackup!A36,Employee_Name,0)))) ->  | N36: =IF(ISERROR(INDEX('Employee Data'!$O$4:$O$553,MATCH(Databackup!A36,Employee_Name,0),0)),"",(INDEX('Employee Data'!$O$4:$O$553,MATCH(Databackup!A36,Employee_Name,0)))) -> 
A37: =INDEX(Employee_Name,MATCH(SMALL(IF($A$1='Employee Data'!$I$4:$I$553,'Employee Data'!$B$4:$B$553,""),ROW('Employee Data'!A35)),IF($A$1='Employee Data'!$I$4:$I$553,'Employee Data'!$B$4:$B$553,""),0)) ->  | B37: =IF(ISERROR(INDEX('Employee Data'!$B$4:$B$553,MATCH(Databackup!A37,Employee_Name,0),0)),"",(INDEX('Employee Data'!$B$4:$B$553,MATCH(Databackup!A37,Employee_Name,0)))) ->  | C37: =IF(ISERROR(INDEX('Employee Data'!$C$4:$C$553,MATCH(Databackup!A37,Employee_Name,0),0)),"",(INDEX('Employee Data'!$C$4:$C$553,MATCH(Databackup!A37,Employee_Name,0)))) ->  | D37: =IF(ISERROR(INDEX('Employee Data'!$D$4:$D$553,MATCH(Databackup!A37,Employee_Name,0),0)),"",(INDEX('Employee Data'!$D$4:$D$553,MATCH(Databackup!A37,Employee_Name,0)))) ->  | E37: =IF(ISERROR(INDEX('Employee Data'!$F$4:$F$553,MATCH(Databackup!A37,Employee_Name,0),0)),"",(INDEX('Employee Data'!$F$4:$F$553,MATCH(Databackup!A37,Employee_Name,0)))) ->  | F37: =IF(ISERROR(INDEX('Employee Data'!$G$4:$G$553,MATCH(Databackup!A37,Employee_Name,0),0)),"",(INDEX('Employee Data'!$G$4:$G$553,MATCH(Databackup!A37,Employee_Name,0)))) ->  | G37: =IF(ISERROR(INDEX('Employee Data'!$H$4:$H$553,MATCH(Databackup!A37,Employee_Name,0),0)),"",(INDEX('Employee Data'!$H$4:$H$553,MATCH(Databackup!A37,Employee_Name,0)))) ->  | H37: =IF(ISERROR(INDEX('Employee Data'!$I$4:$I$553,MATCH(Databackup!A37,Employee_Name,0),0)),"",(INDEX('Employee Data'!$I$4:$I$553,MATCH(Databackup!A37,Employee_Name,0)))) ->  | I37: =IF(ISERROR(INDEX('Employee Data'!$J$4:$J$553,MATCH(Databackup!A37,Employee_Name,0),0)),"",(INDEX('Employee Data'!J$4:$J$553,MATCH(Databackup!A37,Employee_Name,0)))) ->  | J37: =IF(ISERROR(INDEX('Employee Data'!$K$4:$K$553,MATCH(Databackup!A37,Employee_Name,0),0)),"",(INDEX('Employee Data'!$K$4:$K$553,MATCH(Databackup!A37,Employee_Name,0)))) ->  | K37: =IF(ISERROR(INDEX('Employee Data'!$L$4:$L$553,MATCH(Databackup!A37,Employee_Name,0),0)),"",(INDEX('Employee Data'!$L$4:$L$553,MATCH(Databackup!A37,Employee_Name,0)))) ->  | L37: =IF(ISERROR(INDEX('Employee Data'!$M$4:$M$553,MATCH(Databackup!A37,Employee_Name,0),0)),"",(INDEX('Employee Data'!$M$4:$M$553,MATCH(Databackup!A37,Employee_Name,0)))) ->  | M37: =IF(ISERROR(INDEX('Employee Data'!$N$4:$N$553,MATCH(Databackup!A37,Employee_Name,0),0)),"",(INDEX('Employee Data'!$N$4:$N$553,MATCH(Databackup!A37,Employee_Name,0)))) ->  | N37: =IF(ISERROR(INDEX('Employee Data'!$O$4:$O$553,MATCH(Databackup!A37,Employee_Name,0),0)),"",(INDEX('Employee Data'!$O$4:$O$553,MATCH(Databackup!A37,Employee_Name,0)))) -> 
A38: =INDEX(Employee_Name,MATCH(SMALL(IF($A$1='Employee Data'!$I$4:$I$553,'Employee Data'!$B$4:$B$553,""),ROW('Employee Data'!A36)),IF($A$1='Employee Data'!$I$4:$I$553,'Employee Data'!$B$4:$B$553,""),0)) ->  | B38: =IF(ISERROR(INDEX('Employee Data'!$B$4:$B$553,MATCH(Databackup!A38,Employee_Name,0),0)),"",(INDEX('Employee Data'!$B$4:$B$553,MATCH(Databackup!A38,Employee_Name,0)))) ->  | C38: =IF(ISERROR(INDEX('Employee Data'!$C$4:$C$553,MATCH(Databackup!A38,Employee_Name,0),0)),"",(INDEX('Employee Data'!$C$4:$C$553,MATCH(Databackup!A38,Employee_Name,0)))) ->  | D38: =IF(ISERROR(INDEX('Employee Data'!$D$4:$D$553,MATCH(Databackup!A38,Employee_Name,0),0)),"",(INDEX('Employee Data'!$D$4:$D$553,MATCH(Databackup!A38,Employee_Name,0)))) ->  | E38: =IF(ISERROR(INDEX('Employee Data'!$F$4:$F$553,MATCH(Databackup!A38,Employee_Name,0),0)),"",(INDEX('Employee Data'!$F$4:$F$553,MATCH(Databackup!A38,Employee_Name,0)))) ->  | F38: =IF(ISERROR(INDEX('Employee Data'!$G$4:$G$553,MATCH(Databackup!A38,Employee_Name,0),0)),"",(INDEX('Employee Data'!$G$4:$G$553,MATCH(Databackup!A38,Employee_Name,0)))) ->  | G38: =IF(ISERROR(INDEX('Employee Data'!$H$4:$H$553,MATCH(Databackup!A38,Employee_Name,0),0)),"",(INDEX('Employee Data'!$H$4:$H$553,MATCH(Databackup!A38,Employee_Name,0)))) ->  | H38: =IF(ISERROR(INDEX('Employee Data'!$I$4:$I$553,MATCH(Databackup!A38,Employee_Name,0),0)),"",(INDEX('Employee Data'!$I$4:$I$553,MATCH(Databackup!A38,Employee_Name,0)))) ->  | I38: =IF(ISERROR(INDEX('Employee Data'!$J$4:$J$553,MATCH(Databackup!A38,Employee_Name,0),0)),"",(INDEX('Employee Data'!J$4:$J$553,MATCH(Databackup!A38,Employee_Name,0)))) ->  | J38: =IF(ISERROR(INDEX('Employee Data'!$K$4:$K$553,MATCH(Databackup!A38,Employee_Name,0),0)),"",(INDEX('Employee Data'!$K$4:$K$553,MATCH(Databackup!A38,Employee_Name,0)))) ->  | K38: =IF(ISERROR(INDEX('Employee Data'!$L$4:$L$553,MATCH(Databackup!A38,Employee_Name,0),0)),"",(INDEX('Employee Data'!$L$4:$L$553,MATCH(Databackup!A38,Employee_Name,0)))) ->  | L38: =IF(ISERROR(INDEX('Employee Data'!$M$4:$M$553,MATCH(Databackup!A38,Employee_Name,0),0)),"",(INDEX('Employee Data'!$M$4:$M$553,MATCH(Databackup!A38,Employee_Name,0)))) ->  | M38: =IF(ISERROR(INDEX('Employee Data'!$N$4:$N$553,MATCH(Databackup!A38,Employee_Name,0),0)),"",(INDEX('Employee Data'!$N$4:$N$553,MATCH(Databackup!A38,Employee_Name,0)))) ->  | N38: =IF(ISERROR(INDEX('Employee Data'!$O$4:$O$553,MATCH(Databackup!A38,Employee_Name,0),0)),"",(INDEX('Employee Data'!$O$4:$O$553,MATCH(Databackup!A38,Employee_Name,0)))) -> 
A39: =INDEX(Employee_Name,MATCH(SMALL(IF($A$1='Employee Data'!$I$4:$I$553,'Employee Data'!$B$4:$B$553,""),ROW('Employee Data'!A37)),IF($A$1='Employee Data'!$I$4:$I$553,'Employee Data'!$B$4:$B$553,""),0)) ->  | B39: =IF(ISERROR(INDEX('Employee Data'!$B$4:$B$553,MATCH(Databackup!A39,Employee_Name,0),0)),"",(INDEX('Employee Data'!$B$4:$B$553,MATCH(Databackup!A39,Employee_Name,0)))) ->  | C39: =IF(ISERROR(INDEX('Employee Data'!$C$4:$C$553,MATCH(Databackup!A39,Employee_Name,0),0)),"",(INDEX('Employee Data'!$C$4:$C$553,MATCH(Databackup!A39,Employee_Name,0)))) ->  | D39: =IF(ISERROR(INDEX('Employee Data'!$D$4:$D$553,MATCH(Databackup!A39,Employee_Name,0),0)),"",(INDEX('Employee Data'!$D$4:$D$553,MATCH(Databackup!A39,Employee_Name,0)))) ->  | E39: =IF(ISERROR(INDEX('Employee Data'!$F$4:$F$553,MATCH(Databackup!A39,Employee_Name,0),0)),"",(INDEX('Employee Data'!$F$4:$F$553,MATCH(Databackup!A39,Employee_Name,0)))) ->  | F39: =IF(ISERROR(INDEX('Employee Data'!$G$4:$G$553,MATCH(Databackup!A39,Employee_Name,0),0)),"",(INDEX('Employee Data'!$G$4:$G$553,MATCH(Databackup!A39,Employee_Name,0)))) ->  | G39: =IF(ISERROR(INDEX('Employee Data'!$H$4:$H$553,MATCH(Databackup!A39,Employee_Name,0),0)),"",(INDEX('Employee Data'!$H$4:$H$553,MATCH(Databackup!A39,Employee_Name,0)))) ->  | H39: =IF(ISERROR(INDEX('Employee Data'!$I$4:$I$553,MATCH(Databackup!A39,Employee_Name,0),0)),"",(INDEX('Employee Data'!$I$4:$I$553,MATCH(Databackup!A39,Employee_Name,0)))) ->  | I39: =IF(ISERROR(INDEX('Employee Data'!$J$4:$J$553,MATCH(Databackup!A39,Employee_Name,0),0)),"",(INDEX('Employee Data'!J$4:$J$553,MATCH(Databackup!A39,Employee_Name,0)))) ->  | J39: =IF(ISERROR(INDEX('Employee Data'!$K$4:$K$553,MATCH(Databackup!A39,Employee_Name,0),0)),"",(INDEX('Employee Data'!$K$4:$K$553,MATCH(Databackup!A39,Employee_Name,0)))) ->  | K39: =IF(ISERROR(INDEX('Employee Data'!$L$4:$L$553,MATCH(Databackup!A39,Employee_Name,0),0)),"",(INDEX('Employee Data'!$L$4:$L$553,MATCH(Databackup!A39,Employee_Name,0)))) ->  | L39: =IF(ISERROR(INDEX('Employee Data'!$M$4:$M$553,MATCH(Databackup!A39,Employee_Name,0),0)),"",(INDEX('Employee Data'!$M$4:$M$553,MATCH(Databackup!A39,Employee_Name,0)))) ->  | M39: =IF(ISERROR(INDEX('Employee Data'!$N$4:$N$553,MATCH(Databackup!A39,Employee_Name,0),0)),"",(INDEX('Employee Data'!$N$4:$N$553,MATCH(Databackup!A39,Employee_Name,0)))) ->  | N39: =IF(ISERROR(INDEX('Employee Data'!$O$4:$O$553,MATCH(Databackup!A39,Employee_Name,0),0)),"",(INDEX('Employee Data'!$O$4:$O$553,MATCH(Databackup!A39,Employee_Name,0)))) -> 
A40: =INDEX(Employee_Name,MATCH(SMALL(IF($A$1='Employee Data'!$I$4:$I$553,'Employee Data'!$B$4:$B$553,""),ROW('Employee Data'!A38)),IF($A$1='Employee Data'!$I$4:$I$553,'Employee Data'!$B$4:$B$553,""),0)) ->  | B40: =IF(ISERROR(INDEX('Employee Data'!$B$4:$B$553,MATCH(Databackup!A40,Employee_Name,0),0)),"",(INDEX('Employee Data'!$B$4:$B$553,MATCH(Databackup!A40,Employee_Name,0)))) ->  | C40: =IF(ISERROR(INDEX('Employee Data'!$C$4:$C$553,MATCH(Databackup!A40,Employee_Name,0),0)),"",(INDEX('Employee Data'!$C$4:$C$553,MATCH(Databackup!A40,Employee_Name,0)))) ->  | D40: =IF(ISERROR(INDEX('Employee Data'!$D$4:$D$553,MATCH(Databackup!A40,Employee_Name,0),0)),"",(INDEX('Employee Data'!$D$4:$D$553,MATCH(Databackup!A40,Employee_Name,0)))) ->  | E40: =IF(ISERROR(INDEX('Employee Data'!$F$4:$F$553,MATCH(Databackup!A40,Employee_Name,0),0)),"",(INDEX('Employee Data'!$F$4:$F$553,MATCH(Databackup!A40,Employee_Name,0)))) ->  | F40: =IF(ISERROR(INDEX('Employee Data'!$G$4:$G$553,MATCH(Databackup!A40,Employee_Name,0),0)),"",(INDEX('Employee Data'!$G$4:$G$553,MATCH(Databackup!A40,Employee_Name,0)))) ->  | G40: =IF(ISERROR(INDEX('Employee Data'!$H$4:$H$553,MATCH(Databackup!A40,Employee_Name,0),0)),"",(INDEX('Employee Data'!$H$4:$H$553,MATCH(Databackup!A40,Employee_Name,0)))) ->  | H40: =IF(ISERROR(INDEX('Employee Data'!$I$4:$I$553,MATCH(Databackup!A40,Employee_Name,0),0)),"",(INDEX('Employee Data'!$I$4:$I$553,MATCH(Databackup!A40,Employee_Name,0)))) ->  | I40: =IF(ISERROR(INDEX('Employee Data'!$J$4:$J$553,MATCH(Databackup!A40,Employee_Name,0),0)),"",(INDEX('Employee Data'!J$4:$J$553,MATCH(Databackup!A40,Employee_Name,0)))) ->  | J40: =IF(ISERROR(INDEX('Employee Data'!$K$4:$K$553,MATCH(Databackup!A40,Employee_Name,0),0)),"",(INDEX('Employee Data'!$K$4:$K$553,MATCH(Databackup!A40,Employee_Name,0)))) ->  | K40: =IF(ISERROR(INDEX('Employee Data'!$L$4:$L$553,MATCH(Databackup!A40,Employee_Name,0),0)),"",(INDEX('Employee Data'!$L$4:$L$553,MATCH(Databackup!A40,Employee_Name,0)))) ->  | L40: =IF(ISERROR(INDEX('Employee Data'!$M$4:$M$553,MATCH(Databackup!A40,Employee_Name,0),0)),"",(INDEX('Employee Data'!$M$4:$M$553,MATCH(Databackup!A40,Employee_Name,0)))) ->  | M40: =IF(ISERROR(INDEX('Employee Data'!$N$4:$N$553,MATCH(Databackup!A40,Employee_Name,0),0)),"",(INDEX('Employee Data'!$N$4:$N$553,MATCH(Databackup!A40,Employee_Name,0)))) ->  | N40: =IF(ISERROR(INDEX('Employee Data'!$O$4:$O$553,MATCH(Databackup!A40,Employee_Name,0),0)),"",(INDEX('Employee Data'!$O$4:$O$553,MATCH(Databackup!A40,Employee_Name,0)))) -> 
A41: =INDEX(Employee_Name,MATCH(SMALL(IF($A$1='Employee Data'!$I$4:$I$553,'Employee Data'!$B$4:$B$553,""),ROW('Employee Data'!A39)),IF($A$1='Employee Data'!$I$4:$I$553,'Employee Data'!$B$4:$B$553,""),0)) ->  | B41: =IF(ISERROR(INDEX('Employee Data'!$B$4:$B$553,MATCH(Databackup!A41,Employee_Name,0),0)),"",(INDEX('Employee Data'!$B$4:$B$553,MATCH(Databackup!A41,Employee_Name,0)))) ->  | C41: =IF(ISERROR(INDEX('Employee Data'!$C$4:$C$553,MATCH(Databackup!A41,Employee_Name,0),0)),"",(INDEX('Employee Data'!$C$4:$C$553,MATCH(Databackup!A41,Employee_Name,0)))) ->  | D41: =IF(ISERROR(INDEX('Employee Data'!$D$4:$D$553,MATCH(Databackup!A41,Employee_Name,0),0)),"",(INDEX('Employee Data'!$D$4:$D$553,MATCH(Databackup!A41,Employee_Name,0)))) ->  | E41: =IF(ISERROR(INDEX('Employee Data'!$F$4:$F$553,MATCH(Databackup!A41,Employee_Name,0),0)),"",(INDEX('Employee Data'!$F$4:$F$553,MATCH(Databackup!A41,Employee_Name,0)))) ->  | F41: =IF(ISERROR(INDEX('Employee Data'!$G$4:$G$553,MATCH(Databackup!A41,Employee_Name,0),0)),"",(INDEX('Employee Data'!$G$4:$G$553,MATCH(Databackup!A41,Employee_Name,0)))) ->  | G41: =IF(ISERROR(INDEX('Employee Data'!$H$4:$H$553,MATCH(Databackup!A41,Employee_Name,0),0)),"",(INDEX('Employee Data'!$H$4:$H$553,MATCH(Databackup!A41,Employee_Name,0)))) ->  | H41: =IF(ISERROR(INDEX('Employee Data'!$I$4:$I$553,MATCH(Databackup!A41,Employee_Name,0),0)),"",(INDEX('Employee Data'!$I$4:$I$553,MATCH(Databackup!A41,Employee_Name,0)))) ->  | I41: =IF(ISERROR(INDEX('Employee Data'!$J$4:$J$553,MATCH(Databackup!A41,Employee_Name,0),0)),"",(INDEX('Employee Data'!J$4:$J$553,MATCH(Databackup!A41,Employee_Name,0)))) ->  | J41: =IF(ISERROR(INDEX('Employee Data'!$K$4:$K$553,MATCH(Databackup!A41,Employee_Name,0),0)),"",(INDEX('Employee Data'!$K$4:$K$553,MATCH(Databackup!A41,Employee_Name,0)))) ->  | K41: =IF(ISERROR(INDEX('Employee Data'!$L$4:$L$553,MATCH(Databackup!A41,Employee_Name,0),0)),"",(INDEX('Employee Data'!$L$4:$L$553,MATCH(Databackup!A41,Employee_Name,0)))) ->  | L41: =IF(ISERROR(INDEX('Employee Data'!$M$4:$M$553,MATCH(Databackup!A41,Employee_Name,0),0)),"",(INDEX('Employee Data'!$M$4:$M$553,MATCH(Databackup!A41,Employee_Name,0)))) ->  | M41: =IF(ISERROR(INDEX('Employee Data'!$N$4:$N$553,MATCH(Databackup!A41,Employee_Name,0),0)),"",(INDEX('Employee Data'!$N$4:$N$553,MATCH(Databackup!A41,Employee_Name,0)))) ->  | N41: =IF(ISERROR(INDEX('Employee Data'!$O$4:$O$553,MATCH(Databackup!A41,Employee_Name,0),0)),"",(INDEX('Employee Data'!$O$4:$O$553,MATCH(Databackup!A41,Employee_Name,0)))) -> 
A42: =INDEX(Employee_Name,MATCH(SMALL(IF($A$1='Employee Data'!$I$4:$I$553,'Employee Data'!$B$4:$B$553,""),ROW('Employee Data'!A40)),IF($A$1='Employee Data'!$I$4:$I$553,'Employee Data'!$B$4:$B$553,""),0)) ->  | B42: =IF(ISERROR(INDEX('Employee Data'!$B$4:$B$553,MATCH(Databackup!A42,Employee_Name,0),0)),"",(INDEX('Employee Data'!$B$4:$B$553,MATCH(Databackup!A42,Employee_Name,0)))) ->  | C42: =IF(ISERROR(INDEX('Employee Data'!$C$4:$C$553,MATCH(Databackup!A42,Employee_Name,0),0)),"",(INDEX('Employee Data'!$C$4:$C$553,MATCH(Databackup!A42,Employee_Name,0)))) ->  | D42: =IF(ISERROR(INDEX('Employee Data'!$D$4:$D$553,MATCH(Databackup!A42,Employee_Name,0),0)),"",(INDEX('Employee Data'!$D$4:$D$553,MATCH(Databackup!A42,Employee_Name,0)))) ->  | E42: =IF(ISERROR(INDEX('Employee Data'!$F$4:$F$553,MATCH(Databackup!A42,Employee_Name,0),0)),"",(INDEX('Employee Data'!$F$4:$F$553,MATCH(Databackup!A42,Employee_Name,0)))) ->  | F42: =IF(ISERROR(INDEX('Employee Data'!$G$4:$G$553,MATCH(Databackup!A42,Employee_Name,0),0)),"",(INDEX('Employee Data'!$G$4:$G$553,MATCH(Databackup!A42,Employee_Name,0)))) ->  | G42: =IF(ISERROR(INDEX('Employee Data'!$H$4:$H$553,MATCH(Databackup!A42,Employee_Name,0),0)),"",(INDEX('Employee Data'!$H$4:$H$553,MATCH(Databackup!A42,Employee_Name,0)))) ->  | H42: =IF(ISERROR(INDEX('Employee Data'!$I$4:$I$553,MATCH(Databackup!A42,Employee_Name,0),0)),"",(INDEX('Employee Data'!$I$4:$I$553,MATCH(Databackup!A42,Employee_Name,0)))) ->  | I42: =IF(ISERROR(INDEX('Employee Data'!$J$4:$J$553,MATCH(Databackup!A42,Employee_Name,0),0)),"",(INDEX('Employee Data'!J$4:$J$553,MATCH(Databackup!A42,Employee_Name,0)))) ->  | J42: =IF(ISERROR(INDEX('Employee Data'!$K$4:$K$553,MATCH(Databackup!A42,Employee_Name,0),0)),"",(INDEX('Employee Data'!$K$4:$K$553,MATCH(Databackup!A42,Employee_Name,0)))) ->  | K42: =IF(ISERROR(INDEX('Employee Data'!$L$4:$L$553,MATCH(Databackup!A42,Employee_Name,0),0)),"",(INDEX('Employee Data'!$L$4:$L$553,MATCH(Databackup!A42,Employee_Name,0)))) ->  | L42: =IF(ISERROR(INDEX('Employee Data'!$M$4:$M$553,MATCH(Databackup!A42,Employee_Name,0),0)),"",(INDEX('Employee Data'!$M$4:$M$553,MATCH(Databackup!A42,Employee_Name,0)))) ->  | M42: =IF(ISERROR(INDEX('Employee Data'!$N$4:$N$553,MATCH(Databackup!A42,Employee_Name,0),0)),"",(INDEX('Employee Data'!$N$4:$N$553,MATCH(Databackup!A42,Employee_Name,0)))) ->  | N42: =IF(ISERROR(INDEX('Employee Data'!$O$4:$O$553,MATCH(Databackup!A42,Employee_Name,0),0)),"",(INDEX('Employee Data'!$O$4:$O$553,MATCH(Databackup!A42,Employee_Name,0)))) -> 
A43: =INDEX(Employee_Name,MATCH(SMALL(IF($A$1='Employee Data'!$I$4:$I$553,'Employee Data'!$B$4:$B$553,""),ROW('Employee Data'!A41)),IF($A$1='Employee Data'!$I$4:$I$553,'Employee Data'!$B$4:$B$553,""),0)) ->  | B43: =IF(ISERROR(INDEX('Employee Data'!$B$4:$B$553,MATCH(Databackup!A43,Employee_Name,0),0)),"",(INDEX('Employee Data'!$B$4:$B$553,MATCH(Databackup!A43,Employee_Name,0)))) ->  | C43: =IF(ISERROR(INDEX('Employee Data'!$C$4:$C$553,MATCH(Databackup!A43,Employee_Name,0),0)),"",(INDEX('Employee Data'!$C$4:$C$553,MATCH(Databackup!A43,Employee_Name,0)))) ->  | D43: =IF(ISERROR(INDEX('Employee Data'!$D$4:$D$553,MATCH(Databackup!A43,Employee_Name,0),0)),"",(INDEX('Employee Data'!$D$4:$D$553,MATCH(Databackup!A43,Employee_Name,0)))) ->  | E43: =IF(ISERROR(INDEX('Employee Data'!$F$4:$F$553,MATCH(Databackup!A43,Employee_Name,0),0)),"",(INDEX('Employee Data'!$F$4:$F$553,MATCH(Databackup!A43,Employee_Name,0)))) ->  | F43: =IF(ISERROR(INDEX('Employee Data'!$G$4:$G$553,MATCH(Databackup!A43,Employee_Name,0),0)),"",(INDEX('Employee Data'!$G$4:$G$553,MATCH(Databackup!A43,Employee_Name,0)))) ->  | G43: =IF(ISERROR(INDEX('Employee Data'!$H$4:$H$553,MATCH(Databackup!A43,Employee_Name,0),0)),"",(INDEX('Employee Data'!$H$4:$H$553,MATCH(Databackup!A43,Employee_Name,0)))) ->  | H43: =IF(ISERROR(INDEX('Employee Data'!$I$4:$I$553,MATCH(Databackup!A43,Employee_Name,0),0)),"",(INDEX('Employee Data'!$I$4:$I$553,MATCH(Databackup!A43,Employee_Name,0)))) ->  | I43: =IF(ISERROR(INDEX('Employee Data'!$J$4:$J$553,MATCH(Databackup!A43,Employee_Name,0),0)),"",(INDEX('Employee Data'!J$4:$J$553,MATCH(Databackup!A43,Employee_Name,0)))) ->  | J43: =IF(ISERROR(INDEX('Employee Data'!$K$4:$K$553,MATCH(Databackup!A43,Employee_Name,0),0)),"",(INDEX('Employee Data'!$K$4:$K$553,MATCH(Databackup!A43,Employee_Name,0)))) ->  | K43: =IF(ISERROR(INDEX('Employee Data'!$L$4:$L$553,MATCH(Databackup!A43,Employee_Name,0),0)),"",(INDEX('Employee Data'!$L$4:$L$553,MATCH(Databackup!A43,Employee_Name,0)))) ->  | L43: =IF(ISERROR(INDEX('Employee Data'!$M$4:$M$553,MATCH(Databackup!A43,Employee_Name,0),0)),"",(INDEX('Employee Data'!$M$4:$M$553,MATCH(Databackup!A43,Employee_Name,0)))) ->  | M43: =IF(ISERROR(INDEX('Employee Data'!$N$4:$N$553,MATCH(Databackup!A43,Employee_Name,0),0)),"",(INDEX('Employee Data'!$N$4:$N$553,MATCH(Databackup!A43,Employee_Name,0)))) ->  | N43: =IF(ISERROR(INDEX('Employee Data'!$O$4:$O$553,MATCH(Databackup!A43,Employee_Name,0),0)),"",(INDEX('Employee Data'!$O$4:$O$553,MATCH(Databackup!A43,Employee_Name,0)))) -> 
A44: =INDEX(Employee_Name,MATCH(SMALL(IF($A$1='Employee Data'!$I$4:$I$553,'Employee Data'!$B$4:$B$553,""),ROW('Employee Data'!A42)),IF($A$1='Employee Data'!$I$4:$I$553,'Employee Data'!$B$4:$B$553,""),0)) ->  | B44: =IF(ISERROR(INDEX('Employee Data'!$B$4:$B$553,MATCH(Databackup!A44,Employee_Name,0),0)),"",(INDEX('Employee Data'!$B$4:$B$553,MATCH(Databackup!A44,Employee_Name,0)))) ->  | C44: =IF(ISERROR(INDEX('Employee Data'!$C$4:$C$553,MATCH(Databackup!A44,Employee_Name,0),0)),"",(INDEX('Employee Data'!$C$4:$C$553,MATCH(Databackup!A44,Employee_Name,0)))) ->  | D44: =IF(ISERROR(INDEX('Employee Data'!$D$4:$D$553,MATCH(Databackup!A44,Employee_Name,0),0)),"",(INDEX('Employee Data'!$D$4:$D$553,MATCH(Databackup!A44,Employee_Name,0)))) ->  | E44: =IF(ISERROR(INDEX('Employee Data'!$F$4:$F$553,MATCH(Databackup!A44,Employee_Name,0),0)),"",(INDEX('Employee Data'!$F$4:$F$553,MATCH(Databackup!A44,Employee_Name,0)))) ->  | F44: =IF(ISERROR(INDEX('Employee Data'!$G$4:$G$553,MATCH(Databackup!A44,Employee_Name,0),0)),"",(INDEX('Employee Data'!$G$4:$G$553,MATCH(Databackup!A44,Employee_Name,0)))) ->  | G44: =IF(ISERROR(INDEX('Employee Data'!$H$4:$H$553,MATCH(Databackup!A44,Employee_Name,0),0)),"",(INDEX('Employee Data'!$H$4:$H$553,MATCH(Databackup!A44,Employee_Name,0)))) ->  | H44: =IF(ISERROR(INDEX('Employee Data'!$I$4:$I$553,MATCH(Databackup!A44,Employee_Name,0),0)),"",(INDEX('Employee Data'!$I$4:$I$553,MATCH(Databackup!A44,Employee_Name,0)))) ->  | I44: =IF(ISERROR(INDEX('Employee Data'!$J$4:$J$553,MATCH(Databackup!A44,Employee_Name,0),0)),"",(INDEX('Employee Data'!J$4:$J$553,MATCH(Databackup!A44,Employee_Name,0)))) ->  | J44: =IF(ISERROR(INDEX('Employee Data'!$K$4:$K$553,MATCH(Databackup!A44,Employee_Name,0),0)),"",(INDEX('Employee Data'!$K$4:$K$553,MATCH(Databackup!A44,Employee_Name,0)))) ->  | K44: =IF(ISERROR(INDEX('Employee Data'!$L$4:$L$553,MATCH(Databackup!A44,Employee_Name,0),0)),"",(INDEX('Employee Data'!$L$4:$L$553,MATCH(Databackup!A44,Employee_Name,0)))) ->  | L44: =IF(ISERROR(INDEX('Employee Data'!$M$4:$M$553,MATCH(Databackup!A44,Employee_Name,0),0)),"",(INDEX('Employee Data'!$M$4:$M$553,MATCH(Databackup!A44,Employee_Name,0)))) ->  | M44: =IF(ISERROR(INDEX('Employee Data'!$N$4:$N$553,MATCH(Databackup!A44,Employee_Name,0),0)),"",(INDEX('Employee Data'!$N$4:$N$553,MATCH(Databackup!A44,Employee_Name,0)))) ->  | N44: =IF(ISERROR(INDEX('Employee Data'!$O$4:$O$553,MATCH(Databackup!A44,Employee_Name,0),0)),"",(INDEX('Employee Data'!$O$4:$O$553,MATCH(Databackup!A44,Employee_Name,0)))) -> 
A45: =INDEX(Employee_Name,MATCH(SMALL(IF($A$1='Employee Data'!$I$4:$I$553,'Employee Data'!$B$4:$B$553,""),ROW('Employee Data'!A43)),IF($A$1='Employee Data'!$I$4:$I$553,'Employee Data'!$B$4:$B$553,""),0)) ->  | B45: =IF(ISERROR(INDEX('Employee Data'!$B$4:$B$553,MATCH(Databackup!A45,Employee_Name,0),0)),"",(INDEX('Employee Data'!$B$4:$B$553,MATCH(Databackup!A45,Employee_Name,0)))) ->  | C45: =IF(ISERROR(INDEX('Employee Data'!$C$4:$C$553,MATCH(Databackup!A45,Employee_Name,0),0)),"",(INDEX('Employee Data'!$C$4:$C$553,MATCH(Databackup!A45,Employee_Name,0)))) ->  | D45: =IF(ISERROR(INDEX('Employee Data'!$D$4:$D$553,MATCH(Databackup!A45,Employee_Name,0),0)),"",(INDEX('Employee Data'!$D$4:$D$553,MATCH(Databackup!A45,Employee_Name,0)))) ->  | E45: =IF(ISERROR(INDEX('Employee Data'!$F$4:$F$553,MATCH(Databackup!A45,Employee_Name,0),0)),"",(INDEX('Employee Data'!$F$4:$F$553,MATCH(Databackup!A45,Employee_Name,0)))) ->  | F45: =IF(ISERROR(INDEX('Employee Data'!$G$4:$G$553,MATCH(Databackup!A45,Employee_Name,0),0)),"",(INDEX('Employee Data'!$G$4:$G$553,MATCH(Databackup!A45,Employee_Name,0)))) ->  | G45: =IF(ISERROR(INDEX('Employee Data'!$H$4:$H$553,MATCH(Databackup!A45,Employee_Name,0),0)),"",(INDEX('Employee Data'!$H$4:$H$553,MATCH(Databackup!A45,Employee_Name,0)))) ->  | H45: =IF(ISERROR(INDEX('Employee Data'!$I$4:$I$553,MATCH(Databackup!A45,Employee_Name,0),0)),"",(INDEX('Employee Data'!$I$4:$I$553,MATCH(Databackup!A45,Employee_Name,0)))) ->  | I45: =IF(ISERROR(INDEX('Employee Data'!$J$4:$J$553,MATCH(Databackup!A45,Employee_Name,0),0)),"",(INDEX('Employee Data'!J$4:$J$553,MATCH(Databackup!A45,Employee_Name,0)))) ->  | J45: =IF(ISERROR(INDEX('Employee Data'!$K$4:$K$553,MATCH(Databackup!A45,Employee_Name,0),0)),"",(INDEX('Employee Data'!$K$4:$K$553,MATCH(Databackup!A45,Employee_Name,0)))) ->  | K45: =IF(ISERROR(INDEX('Employee Data'!$L$4:$L$553,MATCH(Databackup!A45,Employee_Name,0),0)),"",(INDEX('Employee Data'!$L$4:$L$553,MATCH(Databackup!A45,Employee_Name,0)))) ->  | L45: =IF(ISERROR(INDEX('Employee Data'!$M$4:$M$553,MATCH(Databackup!A45,Employee_Name,0),0)),"",(INDEX('Employee Data'!$M$4:$M$553,MATCH(Databackup!A45,Employee_Name,0)))) ->  | M45: =IF(ISERROR(INDEX('Employee Data'!$N$4:$N$553,MATCH(Databackup!A45,Employee_Name,0),0)),"",(INDEX('Employee Data'!$N$4:$N$553,MATCH(Databackup!A45,Employee_Name,0)))) ->  | N45: =IF(ISERROR(INDEX('Employee Data'!$O$4:$O$553,MATCH(Databackup!A45,Employee_Name,0),0)),"",(INDEX('Employee Data'!$O$4:$O$553,MATCH(Databackup!A45,Employee_Name,0)))) -> 
A46: =INDEX(Employee_Name,MATCH(SMALL(IF($A$1='Employee Data'!$I$4:$I$553,'Employee Data'!$B$4:$B$553,""),ROW('Employee Data'!A44)),IF($A$1='Employee Data'!$I$4:$I$553,'Employee Data'!$B$4:$B$553,""),0)) ->  | B46: =IF(ISERROR(INDEX('Employee Data'!$B$4:$B$553,MATCH(Databackup!A46,Employee_Name,0),0)),"",(INDEX('Employee Data'!$B$4:$B$553,MATCH(Databackup!A46,Employee_Name,0)))) ->  | C46: =IF(ISERROR(INDEX('Employee Data'!$C$4:$C$553,MATCH(Databackup!A46,Employee_Name,0),0)),"",(INDEX('Employee Data'!$C$4:$C$553,MATCH(Databackup!A46,Employee_Name,0)))) ->  | D46: =IF(ISERROR(INDEX('Employee Data'!$D$4:$D$553,MATCH(Databackup!A46,Employee_Name,0),0)),"",(INDEX('Employee Data'!$D$4:$D$553,MATCH(Databackup!A46,Employee_Name,0)))) ->  | E46: =IF(ISERROR(INDEX('Employee Data'!$F$4:$F$553,MATCH(Databackup!A46,Employee_Name,0),0)),"",(INDEX('Employee Data'!$F$4:$F$553,MATCH(Databackup!A46,Employee_Name,0)))) ->  | F46: =IF(ISERROR(INDEX('Employee Data'!$G$4:$G$553,MATCH(Databackup!A46,Employee_Name,0),0)),"",(INDEX('Employee Data'!$G$4:$G$553,MATCH(Databackup!A46,Employee_Name,0)))) ->  | G46: =IF(ISERROR(INDEX('Employee Data'!$H$4:$H$553,MATCH(Databackup!A46,Employee_Name,0),0)),"",(INDEX('Employee Data'!$H$4:$H$553,MATCH(Databackup!A46,Employee_Name,0)))) ->  | H46: =IF(ISERROR(INDEX('Employee Data'!$I$4:$I$553,MATCH(Databackup!A46,Employee_Name,0),0)),"",(INDEX('Employee Data'!$I$4:$I$553,MATCH(Databackup!A46,Employee_Name,0)))) ->  | I46: =IF(ISERROR(INDEX('Employee Data'!$J$4:$J$553,MATCH(Databackup!A46,Employee_Name,0),0)),"",(INDEX('Employee Data'!J$4:$J$553,MATCH(Databackup!A46,Employee_Name,0)))) ->  | J46: =IF(ISERROR(INDEX('Employee Data'!$K$4:$K$553,MATCH(Databackup!A46,Employee_Name,0),0)),"",(INDEX('Employee Data'!$K$4:$K$553,MATCH(Databackup!A46,Employee_Name,0)))) ->  | K46: =IF(ISERROR(INDEX('Employee Data'!$L$4:$L$553,MATCH(Databackup!A46,Employee_Name,0),0)),"",(INDEX('Employee Data'!$L$4:$L$553,MATCH(Databackup!A46,Employee_Name,0)))) ->  | L46: =IF(ISERROR(INDEX('Employee Data'!$M$4:$M$553,MATCH(Databackup!A46,Employee_Name,0),0)),"",(INDEX('Employee Data'!$M$4:$M$553,MATCH(Databackup!A46,Employee_Name,0)))) ->  | M46: =IF(ISERROR(INDEX('Employee Data'!$N$4:$N$553,MATCH(Databackup!A46,Employee_Name,0),0)),"",(INDEX('Employee Data'!$N$4:$N$553,MATCH(Databackup!A46,Employee_Name,0)))) ->  | N46: =IF(ISERROR(INDEX('Employee Data'!$O$4:$O$553,MATCH(Databackup!A46,Employee_Name,0),0)),"",(INDEX('Employee Data'!$O$4:$O$553,MATCH(Databackup!A46,Employee_Name,0)))) -> 
A47: =INDEX(Employee_Name,MATCH(SMALL(IF($A$1='Employee Data'!$I$4:$I$553,'Employee Data'!$B$4:$B$553,""),ROW('Employee Data'!A45)),IF($A$1='Employee Data'!$I$4:$I$553,'Employee Data'!$B$4:$B$553,""),0)) ->  | B47: =IF(ISERROR(INDEX('Employee Data'!$B$4:$B$553,MATCH(Databackup!A47,Employee_Name,0),0)),"",(INDEX('Employee Data'!$B$4:$B$553,MATCH(Databackup!A47,Employee_Name,0)))) ->  | C47: =IF(ISERROR(INDEX('Employee Data'!$C$4:$C$553,MATCH(Databackup!A47,Employee_Name,0),0)),"",(INDEX('Employee Data'!$C$4:$C$553,MATCH(Databackup!A47,Employee_Name,0)))) ->  | D47: =IF(ISERROR(INDEX('Employee Data'!$D$4:$D$553,MATCH(Databackup!A47,Employee_Name,0),0)),"",(INDEX('Employee Data'!$D$4:$D$553,MATCH(Databackup!A47,Employee_Name,0)))) ->  | E47: =IF(ISERROR(INDEX('Employee Data'!$F$4:$F$553,MATCH(Databackup!A47,Employee_Name,0),0)),"",(INDEX('Employee Data'!$F$4:$F$553,MATCH(Databackup!A47,Employee_Name,0)))) ->  | F47: =IF(ISERROR(INDEX('Employee Data'!$G$4:$G$553,MATCH(Databackup!A47,Employee_Name,0),0)),"",(INDEX('Employee Data'!$G$4:$G$553,MATCH(Databackup!A47,Employee_Name,0)))) ->  | G47: =IF(ISERROR(INDEX('Employee Data'!$H$4:$H$553,MATCH(Databackup!A47,Employee_Name,0),0)),"",(INDEX('Employee Data'!$H$4:$H$553,MATCH(Databackup!A47,Employee_Name,0)))) ->  | H47: =IF(ISERROR(INDEX('Employee Data'!$I$4:$I$553,MATCH(Databackup!A47,Employee_Name,0),0)),"",(INDEX('Employee Data'!$I$4:$I$553,MATCH(Databackup!A47,Employee_Name,0)))) ->  | I47: =IF(ISERROR(INDEX('Employee Data'!$J$4:$J$553,MATCH(Databackup!A47,Employee_Name,0),0)),"",(INDEX('Employee Data'!J$4:$J$553,MATCH(Databackup!A47,Employee_Name,0)))) ->  | J47: =IF(ISERROR(INDEX('Employee Data'!$K$4:$K$553,MATCH(Databackup!A47,Employee_Name,0),0)),"",(INDEX('Employee Data'!$K$4:$K$553,MATCH(Databackup!A47,Employee_Name,0)))) ->  | K47: =IF(ISERROR(INDEX('Employee Data'!$L$4:$L$553,MATCH(Databackup!A47,Employee_Name,0),0)),"",(INDEX('Employee Data'!$L$4:$L$553,MATCH(Databackup!A47,Employee_Name,0)))) ->  | L47: =IF(ISERROR(INDEX('Employee Data'!$M$4:$M$553,MATCH(Databackup!A47,Employee_Name,0),0)),"",(INDEX('Employee Data'!$M$4:$M$553,MATCH(Databackup!A47,Employee_Name,0)))) ->  | M47: =IF(ISERROR(INDEX('Employee Data'!$N$4:$N$553,MATCH(Databackup!A47,Employee_Name,0),0)),"",(INDEX('Employee Data'!$N$4:$N$553,MATCH(Databackup!A47,Employee_Name,0)))) ->  | N47: =IF(ISERROR(INDEX('Employee Data'!$O$4:$O$553,MATCH(Databackup!A47,Employee_Name,0),0)),"",(INDEX('Employee Data'!$O$4:$O$553,MATCH(Databackup!A47,Employee_Name,0)))) -> 
A48: =INDEX(Employee_Name,MATCH(SMALL(IF($A$1='Employee Data'!$I$4:$I$553,'Employee Data'!$B$4:$B$553,""),ROW('Employee Data'!A46)),IF($A$1='Employee Data'!$I$4:$I$553,'Employee Data'!$B$4:$B$553,""),0)) ->  | B48: =IF(ISERROR(INDEX('Employee Data'!$B$4:$B$553,MATCH(Databackup!A48,Employee_Name,0),0)),"",(INDEX('Employee Data'!$B$4:$B$553,MATCH(Databackup!A48,Employee_Name,0)))) ->  | C48: =IF(ISERROR(INDEX('Employee Data'!$C$4:$C$553,MATCH(Databackup!A48,Employee_Name,0),0)),"",(INDEX('Employee Data'!$C$4:$C$553,MATCH(Databackup!A48,Employee_Name,0)))) ->  | D48: =IF(ISERROR(INDEX('Employee Data'!$D$4:$D$553,MATCH(Databackup!A48,Employee_Name,0),0)),"",(INDEX('Employee Data'!$D$4:$D$553,MATCH(Databackup!A48,Employee_Name,0)))) ->  | E48: =IF(ISERROR(INDEX('Employee Data'!$F$4:$F$553,MATCH(Databackup!A48,Employee_Name,0),0)),"",(INDEX('Employee Data'!$F$4:$F$553,MATCH(Databackup!A48,Employee_Name,0)))) ->  | F48: =IF(ISERROR(INDEX('Employee Data'!$G$4:$G$553,MATCH(Databackup!A48,Employee_Name,0),0)),"",(INDEX('Employee Data'!$G$4:$G$553,MATCH(Databackup!A48,Employee_Name,0)))) ->  | G48: =IF(ISERROR(INDEX('Employee Data'!$H$4:$H$553,MATCH(Databackup!A48,Employee_Name,0),0)),"",(INDEX('Employee Data'!$H$4:$H$553,MATCH(Databackup!A48,Employee_Name,0)))) ->  | H48: =IF(ISERROR(INDEX('Employee Data'!$I$4:$I$553,MATCH(Databackup!A48,Employee_Name,0),0)),"",(INDEX('Employee Data'!$I$4:$I$553,MATCH(Databackup!A48,Employee_Name,0)))) ->  | I48: =IF(ISERROR(INDEX('Employee Data'!$J$4:$J$553,MATCH(Databackup!A48,Employee_Name,0),0)),"",(INDEX('Employee Data'!J$4:$J$553,MATCH(Databackup!A48,Employee_Name,0)))) ->  | J48: =IF(ISERROR(INDEX('Employee Data'!$K$4:$K$553,MATCH(Databackup!A48,Employee_Name,0),0)),"",(INDEX('Employee Data'!$K$4:$K$553,MATCH(Databackup!A48,Employee_Name,0)))) ->  | K48: =IF(ISERROR(INDEX('Employee Data'!$L$4:$L$553,MATCH(Databackup!A48,Employee_Name,0),0)),"",(INDEX('Employee Data'!$L$4:$L$553,MATCH(Databackup!A48,Employee_Name,0)))) ->  | L48: =IF(ISERROR(INDEX('Employee Data'!$M$4:$M$553,MATCH(Databackup!A48,Employee_Name,0),0)),"",(INDEX('Employee Data'!$M$4:$M$553,MATCH(Databackup!A48,Employee_Name,0)))) ->  | M48: =IF(ISERROR(INDEX('Employee Data'!$N$4:$N$553,MATCH(Databackup!A48,Employee_Name,0),0)),"",(INDEX('Employee Data'!$N$4:$N$553,MATCH(Databackup!A48,Employee_Name,0)))) ->  | N48: =IF(ISERROR(INDEX('Employee Data'!$O$4:$O$553,MATCH(Databackup!A48,Employee_Name,0),0)),"",(INDEX('Employee Data'!$O$4:$O$553,MATCH(Databackup!A48,Employee_Name,0)))) -> 
A49: =INDEX(Employee_Name,MATCH(SMALL(IF($A$1='Employee Data'!$I$4:$I$553,'Employee Data'!$B$4:$B$553,""),ROW('Employee Data'!A47)),IF($A$1='Employee Data'!$I$4:$I$553,'Employee Data'!$B$4:$B$553,""),0)) ->  | B49: =IF(ISERROR(INDEX('Employee Data'!$B$4:$B$553,MATCH(Databackup!A49,Employee_Name,0),0)),"",(INDEX('Employee Data'!$B$4:$B$553,MATCH(Databackup!A49,Employee_Name,0)))) ->  | C49: =IF(ISERROR(INDEX('Employee Data'!$C$4:$C$553,MATCH(Databackup!A49,Employee_Name,0),0)),"",(INDEX('Employee Data'!$C$4:$C$553,MATCH(Databackup!A49,Employee_Name,0)))) ->  | D49: =IF(ISERROR(INDEX('Employee Data'!$D$4:$D$553,MATCH(Databackup!A49,Employee_Name,0),0)),"",(INDEX('Employee Data'!$D$4:$D$553,MATCH(Databackup!A49,Employee_Name,0)))) ->  | E49: =IF(ISERROR(INDEX('Employee Data'!$F$4:$F$553,MATCH(Databackup!A49,Employee_Name,0),0)),"",(INDEX('Employee Data'!$F$4:$F$553,MATCH(Databackup!A49,Employee_Name,0)))) ->  | F49: =IF(ISERROR(INDEX('Employee Data'!$G$4:$G$553,MATCH(Databackup!A49,Employee_Name,0),0)),"",(INDEX('Employee Data'!$G$4:$G$553,MATCH(Databackup!A49,Employee_Name,0)))) ->  | G49: =IF(ISERROR(INDEX('Employee Data'!$H$4:$H$553,MATCH(Databackup!A49,Employee_Name,0),0)),"",(INDEX('Employee Data'!$H$4:$H$553,MATCH(Databackup!A49,Employee_Name,0)))) ->  | H49: =IF(ISERROR(INDEX('Employee Data'!$I$4:$I$553,MATCH(Databackup!A49,Employee_Name,0),0)),"",(INDEX('Employee Data'!$I$4:$I$553,MATCH(Databackup!A49,Employee_Name,0)))) ->  | I49: =IF(ISERROR(INDEX('Employee Data'!$J$4:$J$553,MATCH(Databackup!A49,Employee_Name,0),0)),"",(INDEX('Employee Data'!J$4:$J$553,MATCH(Databackup!A49,Employee_Name,0)))) ->  | J49: =IF(ISERROR(INDEX('Employee Data'!$K$4:$K$553,MATCH(Databackup!A49,Employee_Name,0),0)),"",(INDEX('Employee Data'!$K$4:$K$553,MATCH(Databackup!A49,Employee_Name,0)))) ->  | K49: =IF(ISERROR(INDEX('Employee Data'!$L$4:$L$553,MATCH(Databackup!A49,Employee_Name,0),0)),"",(INDEX('Employee Data'!$L$4:$L$553,MATCH(Databackup!A49,Employee_Name,0)))) ->  | L49: =IF(ISERROR(INDEX('Employee Data'!$M$4:$M$553,MATCH(Databackup!A49,Employee_Name,0),0)),"",(INDEX('Employee Data'!$M$4:$M$553,MATCH(Databackup!A49,Employee_Name,0)))) ->  | M49: =IF(ISERROR(INDEX('Employee Data'!$N$4:$N$553,MATCH(Databackup!A49,Employee_Name,0),0)),"",(INDEX('Employee Data'!$N$4:$N$553,MATCH(Databackup!A49,Employee_Name,0)))) ->  | N49: =IF(ISERROR(INDEX('Employee Data'!$O$4:$O$553,MATCH(Databackup!A49,Employee_Name,0),0)),"",(INDEX('Employee Data'!$O$4:$O$553,MATCH(Databackup!A49,Employee_Name,0)))) -> 
